Workbook

Sheet Readme
A1: Tool description: This Excel-based and macro-enabled modelling tool has been developed for the assessment of emissions associated with the applications of different chemical nitrogen fertiliser products at water management catchment scale (WMC) for England. The emissions cover both upstream / embedded emissions associated with the production of fertilisers, as well as in-field emissions. Both emissions to air - nitrous oxide (N2O), carbon dioxide (CO2) and ammonia (NH3), plus emissions to water - nitrate (NO3) are considered. The template has been set up for interactive modelling wherein the following key inputs / factors can be customised: 1) major crops and land use distributions 2) fertiliser application rates and coverages 3) embeded emissions with different fertiliser products wherein different types of fertilisers can be represented; e.g., conventional fertilisers, fertilisers based on green ammonia, etc. Location- specific emission intensities can be specified to represent the potential contribution from potential distributed production systems 4) proportional usages of fertiliser products by different crops and grass 5) nitrate, nitrous oxide and ammonia emissions coefficients (i.e., emission factors) for crops and grass by different farm types. For fertiliser rates and coverages, changes can be made by modifying the actual values or specifying a relative change; e.g., from 1 to 2 to double the rates. Functions are available for targeted scenario modelling wherein a selection of farm types, crops and geographic areas can be specified. Default values for all inputs have been assembled using an updated recent national dataset and information, as well as modelled outputs. Key data sources are provided in the 'Data sources' worksheet for reference purposes and in support of further updates in the future. National totals of fertiliser usages and emissions by different products are tabulated at the top of the output worksheets.
A2: The typical modelling run will involve reviewing various inputs and parameters, making necessary changes, specifying modelling domains (specific farm types, crops, government regions, WMCs), confirming changes made and obtaining refreshed results via embedded buttons in the 'Control' worksheet. The underpinning code has been locked for viewing to prevent unintentional changes ('green'). Some rows / columns are hidden for clarity. Generally speaking, cells shaded in green can be changed by users and cell areas shaded in other colours are for display only and should not be changed. There is no 'Undo' function implemented so users are strongly advised to save a copy of the tool before any simulations.
A3: Acknowledgements: This modelling template was developed as part of two projects - one funded by the UKRI-EPSRC (UK Research and Innovation-Engineering and Physical Sciences Research Council) via grant award EP/Y025776/1 - Global Nitrogen Innovation Centre for Clean Energy and Environment (NICCEE), and a second - the Land Use for Net Zero (LUNZ) Hub. The Hub is part of the Transforming Land Use for Net zero, Nature and People (LUNZ) programme co-funded by UKRI, the Department for the Environment, Food and Rural Affairs (on behalf of England and Wales), the Department for Energy Security and Net Zero, the Department of Agriculture, Environment and Rural Affairs of Northern Ireland, and the Scottish Government. The LUNZ Hub is supported by UKRI’s Building a Green Future Programme alongside three research councils: Biotechnology and Biological Sciences Research Council (BBSRC) Natural Environment Research Council (NERC) Economic and Social Research Council (ESRC). Please cite the tool as: Zhang, Y. and Collins, A.L. (2025). Rothamsted Fertiliser Emissions Scenarios Tool (R-FEST). | C3: Click this link to access a shapefile for WMC boundaries from data.gov.uk
A4: Disclaimer: The tool is based on the best data and information available to the developers and users should be aware that the results are only indicative, best used for the comparison of different scenarios.
A5: Contacts and further help: Please contact Dr Yusheng Zhang (yusheng.zhang@rothamsted.ac.uk) for assistance.

Sheet Control
B1: This sheet provides links to other worksheets to change inputs and run the tool. Click a button / select an option to make changes.
A2: Start | B2: Remember to confirm any changes if not done automatically | F2: Selection by RFT (1) | J2: Selection by landuse (2)
F3: RFTID | G3: Status ( 1 for on) | H3: RFT | J3: Landuse ID | K3: Status ( 1 for on) | L3: Land use | N3: Government region (3) | O3: Status ( 1 for on) | Q3: WMC ID (4) | R3: Status ( 1 for on) | S3: WMC name
F5: 0 | G5: 1 | H5: Cereals | J5: 1 | K5: 1 | L5: Permanent Pasture | N5: East Midlands | O5: 1 | Q5: 3000 | R5: 1 | S5: Adur_Ouse | U5: =COUNTIF(R5:R93,0) -> 0
F6: 1 | G6: 1 | H6: General Cropping | J6: 2 | K6: 1 | L6: Rotational Grassland | N6: East of England | O6: 1 | Q6: 3001 | R6: 1 | S6: Aire_Calder
F7: 2 | G7: 1 | H7: Horticulture | J7: 3 | K7: 1 | L7: Winter Wheat | N7: North East | O7: 1 | Q7: 3002 | R7: 1 | S7: Alt_Crossens
B8: 1 | F8: 5 | G8: 1 | H8: Dairy | J8: 4 | K8: 1 | L8: Winter Barley | N8: North West | O8: 1 | Q8: 3004 | R8: 1 | S8: Arun
B9: 1 | F9: 7 | G9: 1 | H9: Lowland grazing | J9: 5 | K9: 1 | L9: Spring Barley | N9: South East | O9: 1 | Q9: 3005 | R9: 1 | S9: Bristol_Avon
F10: 8 | G10: 1 | H10: Mixed | J10: 6 | K10: 1 | L10: Winter OSR | N10: South West | O10: 1 | Q10: 3006 | R10: 1 | S10: Hamp_Avon
J11: 7 | K11: 1 | L11: Maize | N11: West Midlands | O11: 1 | Q11: 3007 | R11: 1 | S11: Warks_Avon
J12: 8 | K12: 1 | L12: Potatoes | N12: Yorkshire and The Humber | O12: 1 | Q12: 3008 | R12: 1 | S12: Broadland
J13: 9 | K13: 1 | L13: Sugar Beet | Q13: 3009 | R13: 1 | S13: Cam_Ouse
J14: 10 | K14: 1 | L14: Fodder Crops | Q14: 3012 | R14: 1 | S14: Cherwell
J15: 11 | K15: 1 | L15: Other Crops | Q15: 3017 | R15: 1 | S15: Colne
J16: 12 | K16: 1 | L16: Vegetables (Brassica) | Q16: 3018 | R16: 1 | S16: Essex
B17: Selection by (optional) | J17: 13 | K17: 1 | L17: Vegetables (Other) | Q17: 3021 | R17: 1 | S17: Cotswolds
J18: 14 | K18: 1 | L18: Orchards | Q18: 3022 | R18: 1 | S18: Cuckmere
J19: 15 | K19: 1 | L19: Soft Fruit | Q19: 3023 | R19: 1 | S19: Darent
Q20: 3026 | R20: 1 | S20: Derwent_Derby
Q21: 3027 | R21: 1 | S21: Derwent_Humber
D22: None selected! | Q22: 3028 | R22: 1 | S22: Derwent_NW
Q23: 3029 | R23: 1 | S23: Don_Rother
D24: No outputs available | Q24: 3030 | R24: 1 | S24: Dorset
Q25: 3031 | R25: 1 | S25: Douglas
A26: Finish | Q26: 3032 | R26: 1 | S26: Dove
Q27: 3033 | R27: 1 | S27: E_Devon
Q28: 3034 | R28: 1 | S28: E_Hampshire
Q29: 3035 | R29: 1 | S29: E_Suffolk
Q30: 3036 | R30: 1 | S30: Eden_Esk
Q31: 3037 | R31: 1 | S31: Esk_Coast
Q32: 3038 | R32: 1 | S32: Glos_Vale
Q33: 3039 | R33: 1 | S33: Hull_Riding
Q34: 3041 | R34: 1 | S34: Idle_Tome
Q35: 3042 | R35: 1 | S35: Irwell
Q36: 3043 | R36: 1 | S36: Isle_Wight
Q37: 3044 | R37: 1 | S37: Kennet_Pang
Q38: 3045 | R38: 1 | S38: Kent_Leven
Q39: 3048 | R39: 1 | S39: Loddon
Q40: 3049 | R40: 1 | S40: London
Q41: 3050 | R41: 1 | S41: Louth
Q42: 3051 | R42: 1 | S42: Lower_Mersey
Q43: 3052 | R43: 1 | S43: Lower_Trent
Q44: 3053 | R44: 1 | S44: Lune
Q45: 3054 | R45: 1 | S45: Maidenhead
Q46: 3055 | R46: 1 | S46: Medway
Q47: 3058 | R47: 1 | S47: Mole
Q48: 3059 | R48: 1 | S48: Nene
Q49: 3060 | R49: 1 | S49: New_Forest
Q50: 3061 | R50: 1 | S50: N_Cornwall
Q51: 3062 | R51: 1 | S51: N_Devon
Q52: 3063 | R52: 1 | S52: N_Kent
Q53: 3064 | R53: 1 | S53: N_Norfolk
Q54: 3065 | R54: 1 | S54: NW_Norfolk
Q55: 3067 | R55: 1 | S55: Northumberland
Q56: 3069 | R56: 1 | S56: Old_Bedford
Q57: 3070 | R57: 1 | S57: Ribble
Q58: 3071 | R58: 1 | S58: Roding_Beam
Q59: 3072 | R59: 1 | S59: Rother
Q60: 3074 | R60: 1 | S60: Shrops_Severn
Q61: 3075 | R61: 1 | S61: Worcs_Severn
Q62: 3076 | R62: 1 | S62: Severn_Upland
Q63: 3077 | R63: 1 | S63: Severn_Vale
Q64: 3078 | R64: 1 | S64: Soar
Q65: 3080 | R65: 1 | S65: SW_Somerset
Q66: 3081 | R66: 1 | S66: S_Devon
Q67: 3084 | R67: 1 | S67: S_Essex
Q68: 3085 | R68: 1 | S68: SW_Lakes
Q69: 3087 | R69: 1 | S69: Stour
Q70: 3088 | R70: 1 | S70: Swale
Q71: 3089 | R71: 1 | S71: Tamar
Q72: 3090 | R72: 1 | S72: Tame
Q73: 3093 | R73: 1 | S73: Tees
Q74: 3096 | R74: 1 | S74: Teme
Q75: 3097 | R75: 1 | S75: Test_Itchen
Q76: 3098 | R76: 1 | S76: Thame
Q77: 3100 | R77: 1 | S77: Till
Q78: 3101 | R78: 1 | S78: Staff_Trent
Q79: 3102 | R79: 1 | S79: Tweed
Q80: 3103 | R80: 1 | S80: Tyne
Q81: 3104 | R81: 1 | S81: Upper_Bedford_Ouse
Q82: 3105 | R82: 1 | S82: Upper_Lee
Q83: 3106 | R83: 1 | S83: Upper_Mersey
Q84: 3109 | R84: 1 | S84: Waver_Wampool
Q85: 3110 | R85: 1 | S85: Wear
Q86: 3111 | R86: 1 | S86: Weaver_Gowy
Q87: 3112 | R87: 1 | S87: Welland
Q88: 3113 | R88: 1 | S88: W_Cornwall
Q89: 3114 | R89: 1 | S89: Wey
Q90: 3115 | R90: 1 | S90: Wharfe
Q91: 3116 | R91: 1 | S91: Witham
Q92: 3117 | R92: 1 | S92: Wye
Q93: 3119 | R93: 1 | S93: Wyre

Sheet Fertiliser application info
B1: This sheet contains data on fertiliser application rates and dressing coverages for different robust farm types (the columns) and different land uses (the rows)
B2: Field application rate (kg N/ha) | L2: Fertiliser dressing coverage (%)
C3: Cereal | D3: General | E3: Horticulture | F3: Dairy | G3: Lowland | H3: Mixed | L3: Cereal | M3: General | N3: Horticulture | O3: Dairy | P3: Lowland | Q3: Mixed
A4: Business As Usual (BAU) | B4: Permanent Pasture | C4: 80 | D4: 83 | E4: 83 | F4: 118 | G4: 67 | H4: 72 | L4: 44 | M4: 39 | N4: 39 | O4: 81 | P4: 51 | Q4: 61
B5: Rotational Grassland | C5: 117 | D5: 109 | E5: 109 | F5: 152 | G5: 96 | H5: 123 | L5: 83 | M5: 70 | N5: 70 | O5: 89 | P5: 80 | Q5: 84
B6: Winter Wheat | C6: 196 | D6: 177 | E6: 177 | F6: 167 | G6: 164 | H6: 178 | L6: 100 | M6: 98 | N6: 98 | O6: 97 | P6: 100 | Q6: 98
B7: Winter Barley | C7: 147 | D7: 133 | E7: 133 | F7: 134 | G7: 139 | H7: 150 | L7: 98 | M7: 99 | N7: 99 | O7: 88 | P7: 98 | Q7: 98
B8: Spring Barley | C8: 109 | D8: 102 | E8: 102 | F8: 88 | G8: 82 | H8: 98 | L8: 99 | M8: 94 | N8: 94 | O8: 76 | P8: 94 | Q8: 94
C9: 170 | D9: 173 | E9: 173 | F9: 113 | G9: 113 | H9: 157 | L9: 99 | M9: 100 | N9: 100 | O9: 100 | P9: 99 | Q9: 100
B10: Maize | C10: 95 | D10: 75 | E10: 75 | F10: 62 | G10: 58 | H10: 64 | L10: 76 | M10: 81 | N10: 81 | O10: 84 | P10: 68 | Q10: 93
B11: Potatoes | C11: 129 | D11: 129 | E11: 129 | F11: 129 | G11: 129 | H11: 129 | L11: 93 | M11: 93 | N11: 93 | O11: 93 | P11: 93 | Q11: 93
B12: Sugar Beet | C12: 77 | D12: 71 | E12: 71 | F12: 71 | G12: 71 | H12: 91 | L12: 98 | M12: 94 | N12: 94 | O12: 38 | P12: 38 | Q12: 38
B13: Fodder Crops | C13: 98 | D13: 75 | E13: 75 | F13: 106 | G13: 57 | H13: 82 | L13: 71 | M13: 46 | N13: 46 | O13: 48 | P13: 67 | Q13: 63
B14: Other Crops | C14: 100 | D14: 105 | E14: 105 | F14: 86 | G14: 106 | H14: 115 | L14: 86 | M14: 72 | N14: 72 | O14: 86 | P14: 81 | Q14: 60
B15: Vegetables (Brassica) | C15: 94 | D15: 94 | E15: 94 | F15: 94 | G15: 94 | H15: 94 | L15: 66 | M15: 66 | N15: 66 | O15: 66 | P15: 66 | Q15: 66
B16: Vegetables (Other) | C16: 94 | D16: 94 | E16: 94 | F16: 94 | G16: 94 | H16: 94 | L16: 44 | M16: 44 | N16: 44 | O16: 44 | P16: 44 | Q16: 44
B17: Orchards | C17: 75 | D17: 75 | E17: 75 | F17: 75 | G17: 75 | H17: 75 | L17: 81 | M17: 81 | N17: 81 | O17: 81 | P17: 81 | Q17: 81
B18: Soft Fruit | C18: 0 | D18: 67 | E18: 67 | F18: 67 | G18: 67 | H18: 67 | L18: 90 | M18: 97 | N18: 97 | O18: 97 | P18: 97 | Q18: 97
A23: Scenario adjustment | B23: Permanent Pasture | C23: 1.00 | D23: 1.00 | E23: 1.00 | F23: 1.00 | G23: 1.00 | H23: 1.00 | L23: 1.00 | M23: 1.00 | N23: 1.00 | O23: 1.00 | P23: 1.00 | Q23: 1.00
B24: Rotational Grassland | C24: 1.00 | D24: 1.00 | E24: 1.00 | F24: 1.00 | G24: 1.00 | H24: 1.00 | L24: 1.00 | M24: 1.00 | N24: 1.00 | O24: 1.00 | P24: 1.00 | Q24: 1.00
B25: Winter Wheat | C25: 1.00 | D25: 1.00 | E25: 1.00 | F25: 1.00 | G25: 1.00 | H25: 1.00 | L25: 1.00 | M25: 1.00 | N25: 1.00 | O25: 1.00 | P25: 1.00 | Q25: 1.00
B26: Winter Barley | C26: 1.00 | D26: 1.00 | E26: 1.00 | F26: 1.00 | G26: 1.00 | H26: 1.00 | L26: 1.00 | M26: 1.00 | N26: 1.00 | O26: 1.00 | P26: 1.00 | Q26: 1.00
B27: Spring Barley | C27: 1.00 | D27: 1.00 | E27: 1.00 | F27: 1.00 | G27: 1.00 | H27: 1.00 | L27: 1.00 | M27: 1.00 | N27: 1.00 | O27: 1.00 | P27: 1.00 | Q27: 1.00
B28: Winter Oilseed Rape | C28: 1.00 | D28: 1.00 | E28: 1.00 | F28: 1.00 | G28: 1.00 | H28: 1.00 | L28: 1.00 | M28: 1.00 | N28: 1.00 | O28: 1.00 | P28: 1.00 | Q28: 1.00
B29: Maize | C29: 1.00 | D29: 1.00 | E29: 1.00 | F29: 1.00 | G29: 1.00 | H29: 1.00 | L29: 1.00 | M29: 1.00 | N29: 1.00 | O29: 1.00 | P29: 1.00 | Q29: 1.00
B30: Potatoes | C30: 1.00 | D30: 1.00 | E30: 1.00 | F30: 1.00 | G30: 1.00 | H30: 1.00 | L30: 1.00 | M30: 1.00 | N30: 1.00 | O30: 1.00 | P30: 1.00 | Q30: 1.00
B31: Sugar Beet | C31: 1.00 | D31: 1.00 | E31: 1.00 | F31: 1.00 | G31: 1.00 | H31: 1.00 | L31: 1.00 | M31: 1.00 | N31: 1.00 | O31: 1.00 | P31: 1.00 | Q31: 1.00
B32: Fodder Crops | C32: 1.00 | D32: 1.00 | E32: 1.00 | F32: 1.00 | G32: 1.00 | H32: 1.00 | L32: 1.00 | M32: 1.00 | N32: 1.00 | O32: 1.00 | P32: 1.00 | Q32: 1.00
B33: Other Crops | C33: 1.00 | D33: 1.00 | E33: 1.00 | F33: 1.00 | G33: 1.00 | H33: 1.00 | L33: 1.00 | M33: 1.00 | N33: 1.00 | O33: 1.00 | P33: 1.00 | Q33: 1.00
B34: Vegetables (Brassica) | C34: 1.00 | D34: 1.00 | E34: 1.00 | F34: 1.00 | G34: 1.00 | H34: 1.00 | L34: 1.00 | M34: 1.00 | N34: 1.00 | O34: 1.00 | P34: 1.00 | Q34: 1.00
B35: Vegetables (Other) | C35: 1.00 | D35: 1.00 | E35: 1.00 | F35: 1.00 | G35: 1.00 | H35: 1.00 | L35: 1.00 | M35: 1.00 | N35: 1.00 | O35: 1.00 | P35: 1.00 | Q35: 1.00
B36: Orchards | C36: 1.00 | D36: 1.00 | E36: 1.00 | F36: 1.00 | G36: 1.00 | H36: 1.00 | L36: 1.00 | M36: 1.00 | N36: 1.00 | O36: 1.00 | P36: 1.00 | Q36: 1.00
B37: Soft Fruit | C37: 1.00 | D37: 1.00 | E37: 1.00 | F37: 1.00 | G37: 1.00 | H37: 1.00 | L37: 1.00 | M37: 1.00 | N37: 1.00 | O37: 1.00 | P37: 1.00 | Q37: 1.00
B49: Rate_Crop_List | C49: Cereal | D49: General | E49: Horticulture | F49: Dairy | G49: Other | H49: Mixed
B50: Permanent Pasture | C50: =C4*C23*L4*L23/100 -> 35.2 | D50: =D4*D23*M4*M23/100 -> 32.4 | E50: 32.4 | F50: 95.6 | G50: 34.2 | H50: 43.9
B51: Rotational Grassland | C51: =C5*C24*L5*L24/100 -> 97.1 | D51: =D5*D24*M5*M24/100 -> 76.3 | E51: =E5*E24*N5*N24/100 -> 76.3 | F51: =F5*F24*O5*O24/100 -> 135.3 | G51: =G5*G24*P5*P24/100 -> 76.8 | H51: =H5*H24*Q5*Q24/100 -> 103.3
B52: Winter Wheat | C52: 196.0 | D52: 173.5 | E52: 173.5 | F52: 162.0 | G52: 164.0 | H52: 174.4
B53: Winter Barley | C53: 144.1 | D53: 131.7 | E53: 131.7 | F53: 117.9 | G53: 136.2 | H53: 147.0
B54: Spring Barley | C54: 107.9 | D54: 95.9 | E54: 95.9 | F54: 66.9 | G54: 77.1 | H54: 92.1
B55: Winter OSR | C55: 168.3 | D55: 173.0 | E55: 173.0 | F55: 113.0 | G55: 111.9 | H55: 157.0
B56: Maize | C56: 72.2 | D56: 60.8 | E56: 60.8 | F56: 52.1 | G56: 39.4 | H56: 59.5
B57: Potatoes | C57: 120.0 | D57: 120.0 | E57: 120.0 | F57: 120.0 | G57: 120.0 | H57: 120.0
B58: Sugar Beet | C58: 75.5 | D58: 66.7 | E58: 66.7 | F58: 27.0 | G58: 27.0 | H58: 34.6
B59: Fodder Crops | C59: 69.9 | D59: 34.1 | E59: 34.1 | F59: 50.9 | G59: 38.2 | H59: 51.3
B60: Other Crops | C60: 86.5 | D60: 75.0 | E60: 75.0 | F60: 74.0 | G60: 85.9 | H60: 69.0
B61: Vegetables (Brassica) | C61: 62.0 | D61: 62.0 | E61: 62.0 | F61: 62.0 | G61: 62.0 | H61: 62.0
B62: Vegetables (Other) | C62: 41.4 | D62: 41.4 | E62: 41.4 | F62: 41.4 | G62: 41.4 | H62: 41.4
B63: Orchards | C63: 60.8 | D63: 60.8 | E63: 60.8 | F63: 60.8 | G63: 60.8 | H63: 60.8
B64: Soft Fruit | C64: 0.0 | D64: 65.0 | E64: 65.0 | F64: 65.0 | G64: 65.0 | H64: 65.0

Sheet Fertiliser product info
B1: This sheet contains fertiliser product specific information
B4: % of fertiliser products used by major crops / landuses
C5: Product Crop group
B6: Fertiliser product | C6: Grass | D6: Winter cereal | E6: Spring cereal | F6: OSR | G6: Potatoes | H6: Sugarbeet | I6: Other
B7: AN | C7: 37.3 | D7: 47.7 | E7: 45.5 | F7: 42.4 | G7: 11.9 | H7: 48.4 | I7: 45.4
B8: Urea | C8: 18.9 | D8: 27.5 | E8: 21.9 | F8: 28.1 | G8: 3.4 | H8: 23.0 | I8: 14.2
B9: CAN | C9: 2.0 | D9: 1.4 | E9: 1.8 | F9: 1.2 | G9: 0.0 | H9: 9.8 | I9: 1.6
B10: UAN | C10: 5.1 | D10: 20.7 | E10: 18.2 | F10: 26.2 | G10: 19.0 | H10: 9.2 | I10: 8.6
B11: Low N | C11: 1.7 | D11: 0.9 | E11: 2.5 | F11: 1.1 | G11: 65.7 | H11: 2.8 | I11: 20.2
B12: High N | C12: 35.0 | D12: 1.9 | E12: 10.1 | F12: 1.0 | G12: 0.0 | H12: 6.8 | I12: 10.0
B14: Sum check | C14: =SUM(C7:C12) -> 100.0 | D14: 100.0 | E14: 100.0 | F14: 100.0 | G14: 100.0 | H14: 100.0 | I14: 100.0
B16: Embeded fertiliser emissions intensity (t Co2 e / t N)
B18: Catchment | C18: AN | D18: Urea | E18: CAN | F18: UAN | G18: Low N | H18: High N
B19: All others | C19: 3.42 | D19: 1.91 | E19: 3.52 | F19: 2.61 | G19: 2.88 | H19: 2.68
B21: 3000 | C21: 3.42 | D21: 1.91 | E21: 3.52 | F21: 2.61 | G21: 2.88 | H21: 2.68
B22: 3001 | C22: 3.42 | D22: 1.91 | E22: 3.52 | F22: 2.61 | G22: 2.88 | H22: 2.68

Sheet Field emission CFs
B1: This sheet contains in field emissions coefficients for N2O, NH3, and NO3.
B4: Emissions coefficients for grass | F4: Emissions coefficients for arable | N4: Nitrate emissions coefficient
B5: Direct | C5: IndirectDeposition | D5: IndirectLeaching | F5: Direct | G5: IndirectDeposition | H5: IndirectLeaching
B6: N2O | C6: N2O | D6: N2O | E6: NH3 | F6: N2O | G6: N2O | H6: N2O | I6: NH3 | K6: RFT | L6: product | N6: Catch | O6: RFTnum | P6: Arable | Q6: Grass | S6: RFT
B8: 0.0092 | C8: 0.0004 | D8: 0.0005 | E8: 0.0205 | F8: 0.0091 | G8: 0.0004 | H8: 0.0035 | I8: 0.0205 | K8: Cereal | L8: AN | N8: 3000 | O8: 0 | P8: 0.08874868278 | Q8: 0.05296083807 | S8: Cereals
B9: 0.0060 | C9: 0.0029 | D9: 0.0005 | E9: 0.1588 | F9: 0.0063 | G9: 0.0027 | H9: 0.0035 | I9: 0.1461 | K9: Cereal | L9: Urea | N9: 3000 | O9: 1 | P9: 0.1149318409 | Q9: 0.05271231507 | S9: General Cropping
B10: 0.0092 | C10: 0.0004 | D10: 0.0005 | E10: 0.0205 | F10: 0.0090 | G10: 0.0004 | H10: 0.0035 | I10: 0.0205 | K10: Cereal | L10: CAN | N10: 3000 | O10: 2 | P10: 0.1035000653 | Q10: 0.05637302181 | S10: Horticulture
B11: 0.0060 | C11: 0.0015 | D11: 0.0005 | E11: 0.0811 | F11: 0.0063 | G11: 0.0014 | H11: 0.0035 | I11: 0.0747 | K11: Cereal | L11: UAN | N11: 3000 | O11: 5 | P11: 0.09353751771 | Q11: 0.0497483562 | S11: Dairy
B12: 0.0092 | C12: 0.0004 | D12: 0.0005 | E12: 0.0205 | F12: 0.0090 | G12: 0.0004 | H12: 0.0035 | I12: 0.0205 | K12: Cereal | L12: Low N | N12: 3000 | O12: 7 | P12: 0.116398565 | Q12: 0.0516579905 | S12: LOWLAND GRAZING LIVESTOCK
B13: 0.0092 | C13: 0.0011 | D13: 0.0005 | E13: 0.0559 | F13: 0.0091 | G13: 0.0010 | H13: 0.0035 | I13: 0.0521 | K13: Cereal | L13: High N | N13: 3000 | O13: 8 | P13: 0.1010166175 | Q13: 0.05553628838 | S13: Mixed
B14: 0.0116 | C14: 0.0005 | D14: 0.0006 | E14: 0.0205 | F14: 0.0089 | G14: 0.0004 | H14: 0.0035 | I14: 0.0205 | K14: General | L14: AN | N14: 3001 | O14: 0 | P14: 0.07788092959 | Q14: 0.03789081643 | S14: Cereals
B15: 0.0060 | C15: 0.0028 | D15: 0.0006 | E15: 0.1503 | F15: 0.0063 | G15: 0.0027 | H15: 0.0035 | I15: 0.1490 | K15: General | L15: Urea | N15: 3001 | O15: 1 | P15: 0.1113989645 | Q15: 0.06433284457 | S15: General Cropping
B16: 0.0116 | C16: 0.0005 | D16: 0.0006 | E16: 0.0205 | F16: 0.0088 | G16: 0.0004 | H16: 0.0035 | I16: 0.0205 | K16: General | L16: CAN | N16: 3001 | O16: 2 | P16: 0.08596779655 | Q16: 0.04187821142 | S16: Horticulture
B17: 0.0060 | C17: 0.0014 | D17: 0.0006 | E17: 0.0768 | F17: 0.0063 | G17: 0.0014 | H17: 0.0035 | I17: 0.0772 | K17: General | L17: UAN | N17: 3001 | O17: 5 | P17: 0.08757478179 | Q17: 0.05681763907 | S17: Dairy
B18: 0.0116 | C18: 0.0005 | D18: 0.0006 | E18: 0.0205 | F18: 0.0092 | G18: 0.0004 | H18: 0.0035 | I18: 0.0205 | K18: General | L18: Low N | N18: 3001 | O18: 7 | P18: 0.09693873265 | Q18: 0.04805327232 | S18: LOWLAND GRAZING LIVESTOCK
B19: 0.0116 | C19: 0.0009 | D19: 0.0006 | E19: 0.0415 | F19: 0.0091 | G19: 0.0010 | H19: 0.0035 | I19: 0.0551 | K19: General | L19: High N | N19: 3001 | O19: 8 | P19: 0.1017029725 | Q19: 0.0606139375 | S19: Mixed
B20: 0.0113 | C20: 0.0005 | D20: 0.0006 | E20: 0.0205 | F20: 0.0093 | G20: 0.0004 | H20: 0.0035 | I20: 0.0205 | K20: Horticultural | L20: AN | N20: 3002 | O20: 0 | P20: 0.0992405344 | Q20: 0.06227870406 | S20: Cereals
B21: 0.0060 | C21: 0.0029 | D21: 0.0006 | E21: 0.1578 | F21: 0.0063 | G21: 0.0028 | H21: 0.0035 | I21: 0.1503 | K21: Horticultural | L21: Urea | N21: 3002 | O21: 1 | P21: 0.1148394626 | Q21: 0.0643651715 | S21: General Cropping
B22: 0.0113 | C22: 0.0005 | D22: 0.0006 | E22: 0.0205 | F22: 0.0091 | G22: 0.0004 | H22: 0.0035 | I22: 0.0205 | K22: Horticultural | L22: CAN | N22: 3002 | O22: 2 | P22: 0.1145663572 | Q22: 0.06409472831 | S22: Horticulture
B23: 0.0060 | C23: 0.0015 | D23: 0.0006 | E23: 0.0807 | F23: 0.0062 | G23: 0.0014 | H23: 0.0035 | I23: 0.0775 | K23: Horticultural | L23: UAN | N23: 3002 | O23: 7 | P23: 0.1238799907 | Q23: 0.06155177187 | S23: LOWLAND GRAZING LIVESTOCK
B24: 0.0113 | C24: 0.0005 | D24: 0.0006 | E24: 0.0205 | F24: 0.0094 | G24: 0.0004 | H24: 0.0035 | I24: 0.0205 | K24: Horticultural | L24: Low N | N24: 3002 | O24: 8 | P24: 0.1126805318 | Q24: 0.06748029253 | S24: Mixed
B25: 0.0113 | C25: 0.0009 | D25: 0.0006 | E25: 0.0445 | F25: 0.0094 | G25: 0.0011 | H25: 0.0035 | I25: 0.0604 | K25: Horticultural | L25: High N | N25: 3004 | O25: 0 | P25: 0.09159254613 | Q25: 0.05865258677 | S25: Cereals
B26: 0.0144 | C26: 0.0005 | D26: 0.0008 | E26: 0.0205 | F26: 0.0123 | G26: 0.0004 | H26: 0.0035 | I26: 0.0205 | K26: Dairy | L26: AN | N26: 3004 | O26: 1 | P26: 0.1144714384 | Q26: 0.05749077823 | S26: General Cropping
B27: 0.0062 | C27: 0.0027 | D27: 0.0008 | E27: 0.1465 | F27: 0.0062 | G27: 0.0026 | H27: 0.0035 | I27: 0.1416 | K27: Dairy | L27: Urea | N27: 3004 | O27: 2 | P27: 0.1031499938 | Q27: 0.060757222 | S27: Horticulture
B28: 0.0144 | C28: 0.0005 | D28: 0.0008 | E28: 0.0205 | F28: 0.0122 | G28: 0.0004 | H28: 0.0035 | I28: 0.0205 | K28: Dairy | L28: CAN | N28: 3004 | O28: 5 | P28: 0.09533552774 | Q28: 0.05144252028 | S28: Dairy
B29: 0.0062 | C29: 0.0014 | D29: 0.0008 | E29: 0.0749 | F29: 0.0062 | G29: 0.0014 | H29: 0.0035 | I29: 0.0727 | K29: Dairy | L29: UAN | N29: 3004 | O29: 7 | P29: 0.100576723 | Q29: 0.05589641643 | S29: LOWLAND GRAZING LIVESTOCK
B30: 0.0144 | C30: 0.0005 | D30: 0.0008 | E30: 0.0205 | F30: 0.0120 | G30: 0.0004 | H30: 0.0035 | I30: 0.0205 | K30: Dairy | L30: Low N | N30: 3004 | O30: 8 | P30: 0.1038140366 | Q30: 0.06405333485 | S30: Mixed
B31: 0.0144 | C31: 0.0007 | D31: 0.0008 | E31: 0.0344 | F31: 0.0120 | G31: 0.0008 | H31: 0.0035 | I31: 0.0384 | K31: Dairy | L31: High N | N31: 3005 | O31: 0 | P31: 0.09279793779 | Q31: 0.05719303635 | S31: Cereals
B32: 0.0113 | C32: 0.0005 | D32: 0.0006 | E32: 0.0205 | F32: 0.0120 | G32: 0.0004 | H32: 0.0035 | I32: 0.0205 | K32: Lowland | L32: AN | N32: 3005 | O32: 1 | P32: 0.1174685359 | Q32: 0.05715714574 | S32: General Cropping
B33: 0.0058 | C33: 0.0028 | D33: 0.0006 | E33: 0.1519 | F33: 0.0062 | G33: 0.0026 | H33: 0.0035 | I33: 0.1429 | K33: Lowland | L33: Urea | N33: 3005 | O33: 2 | P33: 0.09670046563 | Q33: 0.05735652727 | S33: Horticulture
B34: 0.0113 | C34: 0.0005 | D34: 0.0006 | E34: 0.0205 | F34: 0.0120 | G34: 0.0004 | H34: 0.0035 | I34: 0.0205 | K34: Lowland | L34: CAN | N34: 3005 | O34: 5 | P34: 0.09565680339 | Q34: 0.05152928848 | S34: Dairy
B35: 0.0058 | C35: 0.0015 | D35: 0.0006 | E35: 0.0776 | F35: 0.0062 | G35: 0.0014 | H35: 0.0035 | I35: 0.0733 | K35: Lowland | L35: UAN | N35: 3005 | O35: 7 | P35: 0.1169290366 | Q35: 0.05628367858 | S35: LOWLAND GRAZING LIVESTOCK
B36: 0.0113 | C36: 0.0005 | D36: 0.0006 | E36: 0.0205 | F36: 0.0119 | G36: 0.0004 | H36: 0.0035 | I36: 0.0205 | K36: Lowland | L36: Low N | N36: 3005 | O36: 8 | P36: 0.1014134814 | Q36: 0.0593925849 | S36: Mixed
B37: 0.0113 | C37: 0.0008 | D37: 0.0006 | E37: 0.0410 | F37: 0.0120 | G37: 0.0007 | H37: 0.0035 | I37: 0.0355 | K37: Lowland | L37: High N | N37: 3006 | O37: 0 | P37: 0.09076389959 | Q37: 0.0682523165 | S37: Cereals
B38: 0.0107 | C38: 0.0005 | D38: 0.0005 | E38: 0.0205 | F38: 0.0103 | G38: 0.0004 | H38: 0.0035 | I38: 0.0205 | K38: Mixed | L38: AN | N38: 3006 | O38: 1 | P38: 0.105051281 | Q38: 0.06726927021 | S38: General Cropping
B39: 0.0060 | C39: 0.0028 | D39: 0.0005 | E39: 0.1528 | F39: 0.0063 | G39: 0.0026 | H39: 0.0035 | I39: 0.1414 | K39: Mixed | L39: Urea | N39: 3006 | O39: 2 | P39: 0.1150784462 | Q39: 0.0745317613 | S39: Horticulture
B40: 0.0107 | C40: 0.0005 | D40: 0.0005 | E40: 0.0205 | F40: 0.0102 | G40: 0.0004 | H40: 0.0035 | I40: 0.0205 | K40: Mixed | L40: CAN | N40: 3006 | O40: 5 | P40: 0.09032971691 | Q40: 0.06284553384 | S40: Dairy
B41: 0.0060 | C41: 0.0015 | D41: 0.0005 | E41: 0.0781 | F41: 0.0063 | G41: 0.0013 | H41: 0.0035 | I41: 0.0725 | K41: Mixed | L41: UAN | N41: 3006 | O41: 7 | P41: 0.0988154046 | Q41: 0.06698144135 | S41: LOWLAND GRAZING LIVESTOCK
B42: 0.0107 | C42: 0.0005 | D42: 0.0005 | E42: 0.0205 | F42: 0.0104 | G42: 0.0004 | H42: 0.0035 | I42: 0.0205 | K42: Mixed | L42: Low N | N42: 3006 | O42: 8 | P42: 0.0945971249 | Q42: 0.07208426274 | S42: Mixed
B43: 0.0107 | C43: 0.0009 | D43: 0.0005 | E43: 0.0429 | F43: 0.0103 | G43: 0.0008 | H43: 0.0035 | I43: 0.0434 | K43: Mixed | L43: High N | N43: 3007 | O43: 0 | P43: 0.0788179203 | Q43: 0.03126761334 | S43: Cereals
N44: 3007 | O44: 1 | P44: 0.08996201753 | Q44: 0.03393047077 | S44: General Cropping
N45: 3007 | O45: 2 | P45: 0.07598212506 | Q45: 0.03103271784 | S45: Horticulture
N46: 3007 | O46: 5 | P46: 0.06734743719 | Q46: 0.02606404133 | S46: Dairy
N47: 3007 | O47: 7 | P47: 0.09504247579 | Q47: 0.03234514738 | S47: LOWLAND GRAZING LIVESTOCK
N48: 3007 | O48: 8 | P48: 0.08150706266 | Q48: 0.03204914599 | S48: Mixed
N49: 3008 | O49: 0 | P49: 0.07683838954 | Q49: 0.03085323031 | S49: Cereals
N50: 3008 | O50: 1 | P50: 0.08127760657 | Q50: 0.03517929914 | S50: General Cropping
N51: 3008 | O51: 2 | P51: 0.0748711377 | Q51: 0.02988728585 | S51: Horticulture
N52: 3008 | O52: 5 | P52: 0.07359002252 | Q52: 0.02561993847 | S52: Dairy
N53: 3008 | O53: 7 | P53: 0.08882384995 | Q53: 0.03366550808 | S53: LOWLAND GRAZING LIVESTOCK
N54: 3008 | O54: 8 | P54: 0.07300269265 | Q54: 0.02932228389 | S54: Mixed
N55: 3009 | O55: 0 | P55: 0.06185874318 | Q55: 0.02153419896 | S55: Cereals
N56: 3009 | O56: 1 | P56: 0.06979363573 | Q56: 0.02280019727 | S56: General Cropping
N57: 3009 | O57: 2 | P57: 0.06731652509 | Q57: 0.02077297337 | S57: Horticulture
N58: 3009 | O58: 5 | P58: 0.06631233108 | Q58: 0.02159980463 | S58: Dairy
N59: 3009 | O59: 7 | P59: 0.08404554303 | Q59: 0.02290439666 | S59: LOWLAND GRAZING LIVESTOCK
N60: 3009 | O60: 8 | P60: 0.06257343519 | Q60: 0.0237926519 | S60: Mixed
N61: 3012 | O61: 0 | P61: 0.07970831375 | Q61: 0.04333861944 | S61: Cereals
N62: 3012 | O62: 1 | P62: 0.09469334188 | Q62: 0.04117665121 | S62: General Cropping
N63: 3012 | O63: 2 | P63: 0.08470572684 | Q63: 0.04225536368 | S63: Horticulture
N64: 3012 | O64: 5 | P64: 0.07671832304 | Q64: 0.03834033933 | S64: Dairy
N65: 3012 | O65: 7 | P65: 0.08823455355 | Q65: 0.0406250447 | S65: LOWLAND GRAZING LIVESTOCK
N66: 3012 | O66: 8 | P66: 0.08573755846 | Q66: 0.0417357597 | S66: Mixed
N67: 3017 | O67: 0 | P67: 0.08282272065 | Q67: 0.05078133833 | S67: Cereals
N68: 3017 | O68: 1 | P68: 0.09731345099 | Q68: 0.0496490495 | S68: General Cropping
N69: 3017 | O69: 2 | P69: 0.0931294056 | Q69: 0.04351248524 | S69: Horticulture
N70: 3017 | O70: 5 | P70: 0.1100726591 | Q70: 0.03787771034 | S70: Dairy
N71: 3017 | O71: 7 | P71: 0.08554868601 | Q71: 0.04842077339 | S71: LOWLAND GRAZING LIVESTOCK
N72: 3017 | O72: 8 | P72: 0.08893113646 | Q72: 0.05289124133 | S72: Mixed
N73: 3018 | O73: 0 | P73: 0.06193182205 | Q73: 0.01889577344 | S73: Cereals
N74: 3018 | O74: 1 | P74: 0.06887553839 | Q74: 0.01858504726 | S74: General Cropping
N75: 3018 | O75: 2 | P75: 0.06168034728 | Q75: 0.01882667289 | S75: Horticulture
N76: 3018 | O76: 5 | P76: 0.06222502452 | Q76: 0.01689409709 | S76: Dairy
N77: 3018 | O77: 7 | P77: 0.08031116564 | Q77: 0.0188053647 | S77: LOWLAND GRAZING LIVESTOCK
N78: 3018 | O78: 8 | P78: 0.06146235404 | Q78: 0.01843089606 | S78: Mixed
N79: 3021 | O79: 0 | P79: 0.08307982953 | Q79: 0.05637620939 | S79: Cereals
N80: 3021 | O80: 1 | P80: 0.1055270928 | Q80: 0.05490693069 | S80: General Cropping
N81: 3021 | O81: 2 | P81: 0.09575645205 | Q81: 0.0548400623 | S81: Horticulture
N82: 3021 | O82: 5 | P82: 0.0811838462 | Q82: 0.04187285604 | S82: Dairy
N83: 3021 | O83: 7 | P83: 0.09900206848 | Q83: 0.05267868015 | S83: LOWLAND GRAZING LIVESTOCK
N84: 3021 | O84: 8 | P84: 0.08969104878 | Q84: 0.05849390529 | S84: Mixed
N85: 3022 | O85: 0 | P85: 0.09134929119 | Q85: 0.0499361457 | S85: Cereals
N86: 3022 | O86: 1 | P86: 0.1201103183 | Q86: 0.04879529839 | S86: General Cropping
N87: 3022 | O87: 2 | P87: 0.09647793831 | Q87: 0.05268259386 | S87: Horticulture
N88: 3022 | O88: 5 | P88: 0.09659147044 | Q88: 0.03799537612 | S88: Dairy
N89: 3022 | O89: 7 | P89: 0.09939407752 | Q89: 0.04955225981 | S89: LOWLAND GRAZING LIVESTOCK
N90: 3022 | O90: 8 | P90: 0.1041102434 | Q90: 0.05200672434 | S90: Mixed
N91: 3023 | O91: 0 | P91: 0.0759826802 | Q91: 0.04816864784 | S91: Cereals
N92: 3023 | O92: 1 | P92: 0.08816082851 | Q92: 0.05017616251 | S92: General Cropping
N93: 3023 | O93: 2 | P93: 0.0668887119 | Q93: 0.0506757857 | S93: Horticulture
N94: 3023 | O94: 5 | P94: 0.08134515775 | Q94: 0.04150512214 | S94: Dairy
N95: 3023 | O95: 7 | P95: 0.1026896371 | Q95: 0.05337365761 | S95: LOWLAND GRAZING LIVESTOCK
N96: 3023 | O96: 8 | P96: 0.08356315364 | Q96: 0.05172558923 | S96: Mixed
N97: 3026 | O97: 0 | P97: 0.08836625984 | Q97: 0.04656131451 | S97: Cereals
N98: 3026 | O98: 1 | P98: 0.1130940945 | Q98: 0.06334059117 | S98: General Cropping
N99: 3026 | O99: 2 | P99: 0.1390889198 | Q99: 0.06169005819 | S99: Horticulture
N100: 3026 | O100: 5 | P100: 0.09203061462 | Q100: 0.05647599138 | S100: Dairy
N101: 3026 | O101: 7 | P101: 0.09848501863 | Q101: 0.05105372326 | S101: LOWLAND GRAZING LIVESTOCK
N102: 3026 | O102: 8 | P102: 0.09342970991 | Q102: 0.05925992286 | S102: Mixed
N103: 3027 | O103: 0 | P103: 0.07884002125 | Q103: 0.04639901484 | S103: Cereals
N104: 3027 | O104: 1 | P104: 0.09622657367 | Q104: 0.04947354273 | S104: General Cropping
N105: 3027 | O105: 2 | P105: 0.08381155101 | Q105: 0.0469329299 | S105: Horticulture
N106: 3027 | O106: 5 | P106: 0.07406309958 | Q106: 0.04014019408 | S106: Dairy
N107: 3027 | O107: 7 | P107: 0.09546536159 | Q107: 0.045992352 | S107: LOWLAND GRAZING LIVESTOCK
N108: 3027 | O108: 8 | P108: 0.08587644422 | Q108: 0.04870187029 | S108: Mixed
N109: 3028 | O109: 0 | P109: 0.118905501 | Q109: 0.06826891582 | S109: Cereals
N110: 3028 | O110: 1 | P110: 0.1363924545 | Q110: 0.08020168254 | S110: General Cropping
N111: 3028 | O111: 2 | P111: 0.1528179191 | Q111: 0.08737596472 | S111: Horticulture
N112: 3028 | O112: 5 | P112: 0.1034097419 | Q112: 0.06388019833 | S112: Dairy
N113: 3028 | O113: 7 | P113: 0.1235830986 | Q113: 0.06726366805 | S113: LOWLAND GRAZING LIVESTOCK
N114: 3028 | O114: 8 | P114: 0.1361165284 | Q114: 0.07640130278 | S114: Mixed
N115: 3029 | O115: 0 | P115: 0.0778603869 | Q115: 0.03812701542 | S115: Cereals
N116: 3029 | O116: 1 | P116: 0.09028298055 | Q116: 0.0422266139 | S116: General Cropping
N117: 3029 | O117: 2 | P117: 0.09521765105 | Q117: 0.04794937795 | S117: Horticulture
N118: 3029 | O118: 5 | P118: 0.08624798366 | Q118: 0.05070964512 | S118: Dairy
N119: 3029 | O119: 7 | P119: 0.09839040955 | Q119: 0.03531104584 | S119: LOWLAND GRAZING LIVESTOCK
N120: 3029 | O120: 8 | P120: 0.08580158593 | Q120: 0.0410798364 | S120: Mixed
N121: 3030 | O121: 0 | P121: 0.09735115593 | Q121: 0.0708340011 | S121: Cereals
N122: 3030 | O122: 1 | P122: 0.1220114537 | Q122: 0.06395509005 | S122: General Cropping
N123: 3030 | O123: 2 | P123: 0.123708749 | Q123: 0.06535393364 | S123: Horticulture
N124: 3030 | O124: 5 | P124: 0.09239570329 | Q124: 0.05072464772 | S124: Dairy
N125: 3030 | O125: 7 | P125: 0.1243691403 | Q125: 0.06274236241 | S125: LOWLAND GRAZING LIVESTOCK
N126: 3030 | O126: 8 | P126: 0.1078393834 | Q126: 0.06569258171 | S126: Mixed
N127: 3031 | O127: 0 | P127: 0.1127178514 | Q127: 0.0671837065 | S127: Cereals
N128: 3031 | O128: 1 | P128: 0.1295545164 | Q128: 0.06602794671 | S128: General Cropping
N129: 3031 | O129: 2 | P129: 0.1120728326 | Q129: 0.06491044255 | S129: Horticulture
N130: 3031 | O130: 5 | P130: 0.1058097628 | Q130: 0.05608704462 | S130: Dairy
N131: 3031 | O131: 7 | P131: 0.1209253394 | Q131: 0.06528428209 | S131: LOWLAND GRAZING LIVESTOCK
N132: 3031 | O132: 8 | P132: 0.1180388996 | Q132: 0.06811410768 | S132: Mixed
N133: 3032 | O133: 0 | P133: 0.09000588854 | Q133: 0.05359838309 | S133: Cereals
N134: 3032 | O134: 1 | P134: 0.1093121658 | Q134: 0.06353098484 | S134: General Cropping
N135: 3032 | O135: 2 | P135: 0.103656778 | Q135: 0.0599287169 | S135: Horticulture
N136: 3032 | O136: 5 | P136: 0.09784952182 | Q136: 0.05273468933 | S136: Dairy
N137: 3032 | O137: 7 | P137: 0.09818106641 | Q137: 0.04792564544 | S137: LOWLAND GRAZING LIVESTOCK
N138: 3032 | O138: 8 | P138: 0.1012693416 | Q138: 0.06173814764 | S138: Mixed
N139: 3033 | O139: 0 | P139: 0.1043839754 | Q139: 0.06887128268 | S139: Cereals
N140: 3033 | O140: 1 | P140: 0.1374100798 | Q140: 0.07295522236 | S140: General Cropping
N141: 3033 | O141: 2 | P141: 0.1141044767 | Q141: 0.07469100816 | S141: Horticulture
N142: 3033 | O142: 5 | P142: 0.104268467 | Q142: 0.05918112634 | S142: Dairy
N143: 3033 | O143: 7 | P143: 0.1294790041 | Q143: 0.07153923514 | S143: LOWLAND GRAZING LIVESTOCK
N144: 3033 | O144: 8 | P144: 0.1113762257 | Q144: 0.07000294199 | S144: Mixed
N145: 3034 | O145: 0 | P145: 0.09325679938 | Q145: 0.06456698979 | S145: Cereals
N146: 3034 | O146: 1 | P146: 0.107945631 | Q146: 0.05436436307 | S146: General Cropping
N147: 3034 | O147: 2 | P147: 0.07868323673 | Q147: 0.05280725022 | S147: Horticulture
N148: 3034 | O148: 5 | P148: 0.09639198899 | Q148: 0.05793820617 | S148: Dairy
N149: 3034 | O149: 7 | P149: 0.1080634428 | Q149: 0.0554821443 | S149: LOWLAND GRAZING LIVESTOCK
N150: 3034 | O150: 8 | P150: 0.08863777403 | Q150: 0.06152859682 | S150: Mixed
N151: 3035 | O151: 0 | P151: 0.06972766894 | Q151: 0.02371692543 | S151: Cereals
N152: 3035 | O152: 1 | P152: 0.07818672663 | Q152: 0.02574985767 | S152: General Cropping
N153: 3035 | O153: 2 | P153: 0.07004998193 | Q153: 0.02608542468 | S153: Horticulture
N154: 3035 | O154: 5 | P154: 0.07205726599 | Q154: 0.0243765656 | S154: Dairy
N155: 3035 | O155: 7 | P155: 0.08463512294 | Q155: 0.02532864177 | S155: LOWLAND GRAZING LIVESTOCK
N156: 3035 | O156: 8 | P156: 0.06622636259 | Q156: 0.02149252102 | S156: Mixed
N157: 3036 | O157: 0 | P157: 0.1182503658 | Q157: 0.06595947137 | S157: Cereals
N158: 3036 | O158: 1 | P158: 0.1291540355 | Q158: 0.07115396121 | S158: General Cropping
N159: 3036 | O159: 2 | P159: 0.108192446 | Q159: 0.07190434303 | S159: Horticulture
N160: 3036 | O160: 5 | P160: 0.0982226035 | Q160: 0.05662084573 | S160: Dairy
N161: 3036 | O161: 7 | P161: 0.1125957003 | Q161: 0.05926361015 | S161: LOWLAND GRAZING LIVESTOCK
N162: 3036 | O162: 8 | P162: 0.1148825529 | Q162: 0.06852885048 | S162: Mixed
N163: 3037 | O163: 0 | P163: 0.08910574609 | Q163: 0.0403269603 | S163: Cereals
N164: 3037 | O164: 1 | P164: 0.1131991536 | Q164: 0.04570422535 | S164: General Cropping
N165: 3037 | O165: 2 | P165: 0.02172670097 | Q165: 0.07738095238 | S165: Horticulture
N166: 3037 | O166: 5 | P166: 0.08743750638 | Q166: 0.04791427788 | S166: Dairy
N167: 3037 | O167: 7 | P167: 0.0972490537 | Q167: 0.03734801688 | S167: LOWLAND GRAZING LIVESTOCK
N168: 3037 | O168: 8 | P168: 0.08863112918 | Q168: 0.03825568295 | S168: Mixed
N169: 3038 | O169: 0 | P169: 0.08008009989 | Q169: 0.05060105949 | S169: Cereals
N170: 3038 | O170: 1 | P170: 0.0939903649 | Q170: 0.04821914113 | S170: General Cropping
N171: 3038 | O171: 2 | P171: 0.07781984855 | Q171: 0.04077581532 | S171: Horticulture
N172: 3038 | O172: 5 | P172: 0.08198717949 | Q172: 0.04103696622 | S172: Dairy
N173: 3038 | O173: 7 | P173: 0.09554013562 | Q173: 0.0479654972 | S173: LOWLAND GRAZING LIVESTOCK
N174: 3038 | O174: 8 | P174: 0.08473535764 | Q174: 0.051546698 | S174: Mixed
N175: 3039 | O175: 0 | P175: 0.07455842917 | Q175: 0.03590514397 | S175: Cereals
N176: 3039 | O176: 1 | P176: 0.08279627875 | Q176: 0.04265272944 | S176: General Cropping
N177: 3039 | O177: 2 | P177: 0.07277565596 | Q177: 0.03179135732 | S177: Horticulture
N178: 3039 | O178: 5 | P178: 0.07412379297 | Q178: 0.0297814362 | S178: Dairy
N179: 3039 | O179: 7 | P179: 0.09055064122 | Q179: 0.03511710929 | S179: LOWLAND GRAZING LIVESTOCK
N180: 3039 | O180: 8 | P180: 0.07292787426 | Q180: 0.03748341625 | S180: Mixed
N181: 3041 | O181: 0 | P181: 0.06970427411 | Q181: 0.02969303172 | S181: Cereals
N182: 3041 | O182: 1 | P182: 0.07720571897 | Q182: 0.03081300625 | S182: General Cropping
N183: 3041 | O183: 2 | P183: 0.0732765104 | Q183: 0.03183155572 | S183: Horticulture
N184: 3041 | O184: 5 | P184: 0.06279266252 | Q184: 0.01806161396 | S184: Dairy
N185: 3041 | O185: 7 | P185: 0.08330618893 | Q185: 0.02934958913 | S185: LOWLAND GRAZING LIVESTOCK
N186: 3041 | O186: 8 | P186: 0.06999845286 | Q186: 0.03083490068 | S186: Mixed
N187: 3042 | O187: 0 | P187: 0.1055651594 | Q187: 0.06868610375 | S187: Cereals
N188: 3042 | O188: 1 | P188: 0.1631578947 | Q188: 0.07752038547 | S188: General Cropping
N189: 3042 | O189: 2 | P189: 0.09163950331 | Q189: 0.0743790781 | S189: Horticulture
N190: 3042 | O190: 5 | P190: 0.1210409086 | Q190: 0.07464548675 | S190: Dairy
N191: 3042 | O191: 7 | P191: 0.1386546749 | Q191: 0.07594098853 | S191: LOWLAND GRAZING LIVESTOCK
N192: 3042 | O192: 8 | P192: 0.08864576827 | Q192: 0.06357378207 | S192: Mixed
N193: 3043 | O193: 0 | P193: 0.09950804348 | Q193: 0.05617582194 | S193: Cereals
N194: 3043 | O194: 1 | P194: 0.110980115 | Q194: 0.05397786317 | S194: General Cropping
N195: 3043 | O195: 2 | P195: 0.08959082827 | Q195: 0.06192473076 | S195: Horticulture
N196: 3043 | O196: 5 | P196: 0.08793145578 | Q196: 0.04351211297 | S196: Dairy
N197: 3043 | O197: 7 | P197: 0.1001110629 | Q197: 0.05527360975 | S197: LOWLAND GRAZING LIVESTOCK
N198: 3043 | O198: 8 | P198: 0.09346428961 | Q198: 0.05637728087 | S198: Mixed
N199: 3044 | O199: 0 | P199: 0.08651662923 | Q199: 0.05927077817 | S199: Cereals
N200: 3044 | O200: 1 | P200: 0.1086774963 | Q200: 0.05323859427 | S200: General Cropping
N201: 3044 | O201: 2 | P201: 0.09472659176 | Q201: 0.04830386858 | S201: Horticulture
N202: 3044 | O202: 5 | P202: 0.08078727121 | Q202: 0.05167995214 | S202: Dairy
N203: 3044 | O203: 7 | P203: 0.09986420839 | Q203: 0.05504790363 | S203: LOWLAND GRAZING LIVESTOCK
... 331 more rows

Sheet Landuse
A1: Catch | B1: RFTnum | C1: Permanent Pasture | D1: Rotational Grassland | E1: Winter Wheat (Feed) | F1: Winter Barley (Malting) | G1: Spring Barley | H1: Winter OSR | I1: Maize | J1: Potatoes | K1: Sugar Beet | L1: Fodder Crops | M1: Other Crops | N1: Vegetables (Brassica) | O1: Vegetables (Other) | P1: Orchards | Q1: Soft Fruit | S1: Business As Usual (BAU) | T1: Catchment | U1: RFTnum | V1: Permanent Pasture | W1: Rotational Grassland | X1: Winter Wheat (Feed) | Y1: Winter Barley (Malting) | Z1: Spring Barley | AA1: Winter OSR | AB1: Maize | AC1: Potatoes | AD1: Sugar Beet | AE1: Fodder Crops | AF1: Other Crops | AG1: Vegetables (Brassica) | AH1: Vegetables (Other) | AI1: Orchards | AJ1: Soft Fruit | AL1: Adjustment | AM1: Catchment | AN1: RFTnum | AO1: Permanent Pasture | AP1: Rotational Grassland | AQ1: Winter Wheat (Feed) | AR1: Winter Barley (Malting) | AS1: Spring Barley | AT1: Winter OSR | AU1: Maize | AV1: Potatoes | AW1: Sugar Beet | AX1: Fodder Crops | AY1: Other Crops | AZ1: Vegetables (Brassica) | BA1: Vegetables (Other) | BB1: Orchards | BC1: Soft Fruit | BG1: CombineID | BH1: RegionID | BI1: Holding
A2: =AM2 -> 3000 | B2: =AN2 -> 0 | C2: =V2*AO2 -> 1854.6 | D2: =W2*AP2 -> 956.2 | E2: =X2*AQ2 -> 2327.4 | F2: =Y2*AR2 -> 304.0 | G2: =Z2*AS2 -> 912.4 | H2: =AA2*AT2 -> 197.5 | I2: =AB2*AU2 -> 172.9 | J2: =AC2*AV2 -> 0.0 | K2: =AD2*AW2 -> 0.0 | L2: =AE2*AX2 -> 49.6 | M2: =AF2*AY2 -> 403.6 | N2: =AG2*AZ2 -> 0.0 | O2: =AH2*BA2 -> 0.0 | P2: =AI2*BB2 -> 0.0 | Q2: =AJ2*BC2 -> 0.0 | T2: 3000 | U2: 0 | V2: 1854.6 | W2: 956.2 | X2: 2327.4 | Y2: 304.0 | Z2: 912.4 | AA2: 197.5 | AB2: 172.9 | AC2: 0.0 | AD2: 0.0 | AE2: 49.6 | AF2: 403.6 | AG2: 0.0 | AH2: 0.0 | AI2: 0.0 | AJ2: 0.0 | AM2: 3000 | AN2: 0 | AO2: 1.00 | AP2: 1.00 | AQ2: 1.00 | AR2: 1.00 | AS2: 1.00 | AT2: 1.00 | AU2: 1.00 | AV2: 1.00 | AW2: 1.00 | AX2: 1.00 | AY2: 1.00 | AZ2: 1.00 | BA2: 1.00 | BB2: 1.00 | BC2: 1.00 | BG2: 3000_0 | BH2: 5 | BI2: 83
A3: 3000 | B3: 1 | C3: 4370.7 | D3: 1378.8 | E3: 220.5 | F3: 38.1 | G3: 70.0 | H3: 0.0 | I3: 100.8 | J3: 10.7 | K3: 10.3 | L3: 41.8 | M3: 54.3 | N3: 13.9 | O3: 0.0 | P3: 1.6 | Q3: 10.2 | T3: 3000 | U3: 1 | V3: 4370.7 | W3: 1378.8 | X3: 220.5 | Y3: 38.1 | Z3: 70.0 | AA3: 0.0 | AB3: 100.8 | AC3: 10.7 | AD3: 10.3 | AE3: 41.8 | AF3: 54.3 | AG3: 13.9 | AH3: 0.0 | AI3: 1.6 | AJ3: 10.2 | AM3: 3000 | AN3: 1 | AO3: 1.00 | AP3: 1.00 | AQ3: 1.00 | AR3: 1.00 | AS3: 1.00 | AT3: 1.00 | AU3: 1.00 | AV3: 1.00 | AW3: 1.00 | AX3: 1.00 | AY3: 1.00 | AZ3: 1.00 | BA3: 1.00 | BB3: 1.00 | BC3: 1.00 | BG3: 3000_1 | BH3: 5 | BI3: 237
A4: 3000 | B4: 2 | C4: 233.5 | D4: 67.2 | E4: 25.1 | F4: 0.0 | G4: 19.0 | H4: 2.7 | I4: 0.0 | J4: 2.1 | K4: 0.0 | L4: 0.1 | M4: 0.3 | N4: 0.0 | O4: 15.6 | P4: 72.5 | Q4: 197.0 | T4: 3000 | U4: 2 | V4: 233.5 | W4: 67.2 | X4: 25.1 | Y4: 0.0 | Z4: 19.0 | AA4: 2.7 | AB4: 0.0 | AC4: 2.1 | AD4: 0.0 | AE4: 0.1 | AF4: 0.3 | AG4: 0.0 | AH4: 15.6 | AI4: 72.5 | AJ4: 197.0 | AM4: 3000 | AN4: 2 | AO4: 1.00 | AP4: 1.00 | AQ4: 1.00 | AR4: 1.00 | AS4: 1.00 | AT4: 1.00 | AU4: 1.00 | AV4: 1.00 | AW4: 1.00 | AX4: 1.00 | AY4: 1.00 | AZ4: 1.00 | BA4: 1.00 | BB4: 1.00 | BC4: 1.00 | BG4: 3000_2 | BH4: 5 | BI4: 41
A5: 3000 | B5: 5 | C5: 2335.3 | D5: 1070.2 | E5: 678.0 | F5: 62.0 | G5: 182.9 | H5: 37.6 | I5: 529.3 | J5: 0.0 | K5: 0.0 | L5: 54.4 | M5: 55.2 | N5: 3.3 | O5: 2.0 | P5: 0.0 | Q5: 0.0 | T5: 3000 | U5: 5 | V5: 2335.3 | W5: 1070.2 | X5: 678.0 | Y5: 62.0 | Z5: 182.9 | AA5: 37.6 | AB5: 529.3 | AC5: 0.0 | AD5: 0.0 | AE5: 54.4 | AF5: 55.2 | AG5: 3.3 | AH5: 2.0 | AI5: 0.0 | AJ5: 0.0 | AM5: 3000 | AN5: 5 | AO5: 1.00 | AP5: 1.00 | AQ5: 1.00 | AR5: 1.00 | AS5: 1.00 | AT5: 1.00 | AU5: 1.00 | AV5: 1.00 | AW5: 1.00 | AX5: 1.00 | AY5: 1.00 | AZ5: 1.00 | BA5: 1.00 | BB5: 1.00 | BC5: 1.00 | BG5: 3000_5 | BH5: 5 | BI5: 25
A6: 3000 | B6: 7 | C6: 13361.3 | D6: 2284.0 | E6: 184.3 | F6: 52.3 | G6: 208.8 | H6: 88.4 | I6: 167.3 | J6: 1.1 | K6: 0.6 | L6: 20.7 | M6: 74.5 | N6: 5.9 | O6: 0.4 | P6: 0.3 | Q6: 2.0 | T6: 3000 | U6: 7 | V6: 13361.3 | W6: 2284.0 | X6: 184.3 | Y6: 52.3 | Z6: 208.8 | AA6: 88.4 | AB6: 167.3 | AC6: 1.1 | AD6: 0.6 | AE6: 20.7 | AF6: 74.5 | AG6: 5.9 | AH6: 0.4 | AI6: 0.3 | AJ6: 2.0 | AM6: 3000 | AN6: 7 | AO6: 1.00 | AP6: 1.00 | AQ6: 1.00 | AR6: 1.00 | AS6: 1.00 | AT6: 1.00 | AU6: 1.00 | AV6: 1.00 | AW6: 1.00 | AX6: 1.00 | AY6: 1.00 | AZ6: 1.00 | BA6: 1.00 | BB6: 1.00 | BC6: 1.00 | BG6: 3000_7 | BH6: 5 | BI6: 436
A7: 3000 | B7: 8 | C7: 3346.1 | D7: 1223.6 | E7: 1107.3 | F7: 207.6 | G7: 491.5 | H7: 35.8 | I7: 218.9 | J7: 2.4 | K7: 0.0 | L7: 131.0 | M7: 372.2 | N7: 17.7 | O7: 5.3 | P7: 5.8 | Q7: 15.6 | T7: 3000 | U7: 8 | V7: 3346.1 | W7: 1223.6 | X7: 1107.3 | Y7: 207.6 | Z7: 491.5 | AA7: 35.8 | AB7: 218.9 | AC7: 2.4 | AD7: 0.0 | AE7: 131.0 | AF7: 372.2 | AG7: 17.7 | AH7: 5.3 | AI7: 5.8 | AJ7: 15.6 | AM7: 3000 | AN7: 8 | AO7: 1.00 | AP7: 1.00 | AQ7: 1.00 | AR7: 1.00 | AS7: 1.00 | AT7: 1.00 | AU7: 1.00 | AV7: 1.00 | AW7: 1.00 | AX7: 1.00 | AY7: 1.00 | AZ7: 1.00 | BA7: 1.00 | BB7: 1.00 | BC7: 1.00 | BG7: 3000_8 | BH7: 5 | BI7: 97
A8: 3001 | B8: 0 | C8: 760.2 | D8: 607.8 | E8: 4300.1 | F8: 1251.7 | G8: 1226.8 | H8: 785.7 | I8: 273.3 | J8: 45.0 | K8: 18.5 | L8: 71.2 | M8: 589.8 | N8: 23.7 | O8: 118.4 | P8: 1.9 | Q8: 18.0 | T8: 3001 | U8: 0 | V8: 760.2 | W8: 607.8 | X8: 4300.1 | Y8: 1251.7 | Z8: 1226.8 | AA8: 785.7 | AB8: 273.3 | AC8: 45.0 | AD8: 18.5 | AE8: 71.2 | AF8: 589.8 | AG8: 23.7 | AH8: 118.4 | AI8: 1.9 | AJ8: 18.0 | AM8: 3001 | AN8: 0 | AO8: 1.00 | AP8: 1.00 | AQ8: 1.00 | AR8: 1.00 | AS8: 1.00 | AT8: 1.00 | AU8: 1.00 | AV8: 1.00 | AW8: 1.00 | AX8: 1.00 | AY8: 1.00 | AZ8: 1.00 | BA8: 1.00 | BB8: 1.00 | BC8: 1.00 | BG8: 3001_0 | BH8: 8 | BI8: 114
A9: 3001 | B9: 1 | C9: 6472.7 | D9: 1067.0 | E9: 2305.6 | F9: 326.9 | G9: 229.6 | H9: 148.3 | I9: 226.3 | J9: 452.4 | K9: 72.1 | L9: 2.8 | M9: 456.3 | N9: 0.9 | O9: 377.8 | P9: 0.0 | Q9: 1.9 | T9: 3001 | U9: 1 | V9: 6472.7 | W9: 1067.0 | X9: 2305.6 | Y9: 326.9 | Z9: 229.6 | AA9: 148.3 | AB9: 226.3 | AC9: 452.4 | AD9: 72.1 | AE9: 2.8 | AF9: 456.3 | AG9: 0.9 | AH9: 377.8 | AI9: 0.0 | AJ9: 1.9 | AM9: 3001 | AN9: 1 | AO9: 1.00 | AP9: 1.00 | AQ9: 1.00 | AR9: 1.00 | AS9: 1.00 | AT9: 1.00 | AU9: 1.00 | AV9: 1.00 | AW9: 1.00 | AX9: 1.00 | AY9: 1.00 | AZ9: 1.00 | BA9: 1.00 | BB9: 1.00 | BC9: 1.00 | BG9: 3001_1 | BH9: 8 | BI9: 341
A10: 3001 | B10: 2 | C10: 91.5 | D10: 25.7 | E10: 93.1 | F10: 25.6 | G10: 67.2 | H10: 0.0 | I10: 7.0 | J10: 19.9 | K10: 24.2 | L10: 3.6 | M10: 7.3 | N10: 1.2 | O10: 70.0 | P10: 3.6 | Q10: 0.0 | T10: 3001 | U10: 2 | V10: 91.5 | W10: 25.7 | X10: 93.1 | Y10: 25.6 | Z10: 67.2 | AA10: 0.0 | AB10: 7.0 | AC10: 19.9 | AD10: 24.2 | AE10: 3.6 | AF10: 7.3 | AG10: 1.2 | AH10: 70.0 | AI10: 3.6 | AJ10: 0.0 | AM10: 3001 | AN10: 2 | AO10: 1.00 | AP10: 1.00 | AQ10: 1.00 | AR10: 1.00 | AS10: 1.00 | AT10: 1.00 | AU10: 1.00 | AV10: 1.00 | AW10: 1.00 | AX10: 1.00 | AY10: 1.00 | AZ10: 1.00 | BA10: 1.00 | BB10: 1.00 | BC10: 1.00 | BG10: 3001_2 | BH10: 8 | BI10: 29
A11: 3001 | B11: 5 | C11: 7465.4 | D11: 1818.1 | E11: 292.6 | F11: 94.4 | G11: 41.9 | H11: 0.0 | I11: 4.8 | J11: 0.0 | K11: 0.0 | L11: 0.0 | M11: 0.0 | N11: 0.0 | O11: 0.0 | P11: 0.0 | Q11: 0.0 | T11: 3001 | U11: 5 | V11: 7465.4 | W11: 1818.1 | X11: 292.6 | Y11: 94.4 | Z11: 41.9 | AA11: 0.0 | AB11: 4.8 | AC11: 0.0 | AD11: 0.0 | AE11: 0.0 | AF11: 0.0 | AG11: 0.0 | AH11: 0.0 | AI11: 0.0 | AJ11: 0.0 | AM11: 3001 | AN11: 5 | AO11: 1.00 | AP11: 1.00 | AQ11: 1.00 | AR11: 1.00 | AS11: 1.00 | AT11: 1.00 | AU11: 1.00 | AV11: 1.00 | AW11: 1.00 | AX11: 1.00 | AY11: 1.00 | AZ11: 1.00 | BA11: 1.00 | BB11: 1.00 | BC11: 1.00 | BG11: 3001_5 | BH11: 8 | BI11: 97
A12: 3001 | B12: 7 | C12: 6008.9 | D12: 453.1 | E12: 65.8 | F12: 96.1 | G12: 39.6 | H12: 0.0 | I12: 6.9 | J12: 0.0 | K12: 0.9 | L12: 28.6 | M12: 4.3 | N12: 0.9 | O12: 4.9 | P12: 2.4 | Q12: 0.0 | T12: 3001 | U12: 7 | V12: 6008.9 | W12: 453.1 | X12: 65.8 | Y12: 96.1 | Z12: 39.6 | AA12: 0.0 | AB12: 6.9 | AC12: 0.0 | AD12: 0.9 | AE12: 28.6 | AF12: 4.3 | AG12: 0.9 | AH12: 4.9 | AI12: 2.4 | AJ12: 0.0 | AM12: 3001 | AN12: 7 | AO12: 1.00 | AP12: 1.00 | AQ12: 1.00 | AR12: 1.00 | AS12: 1.00 | AT12: 1.00 | AU12: 1.00 | AV12: 1.00 | AW12: 1.00 | AX12: 1.00 | AY12: 1.00 | AZ12: 1.00 | BA12: 1.00 | BB12: 1.00 | BC12: 1.00 | BG12: 3001_7 | BH12: 8 | BI12: 235
A13: 3001 | B13: 8 | C13: 2155.5 | D13: 384.3 | E13: 445.7 | F13: 242.3 | G13: 210.7 | H13: 89.1 | I13: 28.6 | J13: 33.0 | K13: 0.0 | L13: 27.0 | M13: 77.8 | N13: 9.0 | O13: 2.4 | P13: 0.4 | Q13: 1.3 | T13: 3001 | U13: 8 | V13: 2155.5 | W13: 384.3 | X13: 445.7 | Y13: 242.3 | Z13: 210.7 | AA13: 89.1 | AB13: 28.6 | AC13: 33.0 | AD13: 0.0 | AE13: 27.0 | AF13: 77.8 | AG13: 9.0 | AH13: 2.4 | AI13: 0.4 | AJ13: 1.3 | AM13: 3001 | AN13: 8 | AO13: 1.00 | AP13: 1.00 | AQ13: 1.00 | AR13: 1.00 | AS13: 1.00 | AT13: 1.00 | AU13: 1.00 | AV13: 1.00 | AW13: 1.00 | AX13: 1.00 | AY13: 1.00 | AZ13: 1.00 | BA13: 1.00 | BB13: 1.00 | BC13: 1.00 | BG13: 3001_8 | BH13: 8 | BI13: 94
A14: 3002 | B14: 0 | C14: 90.2 | D14: 117.3 | E14: 1605.2 | F14: 181.2 | G14: 663.6 | H14: 196.0 | I14: 10.0 | J14: 72.4 | K14: 2.2 | L14: 43.5 | M14: 431.9 | N14: 14.1 | O14: 44.2 | P14: 0.0 | Q14: 0.0 | T14: 3002 | U14: 0 | V14: 90.2 | W14: 117.3 | X14: 1605.2 | Y14: 181.2 | Z14: 663.6 | AA14: 196.0 | AB14: 10.0 | AC14: 72.4 | AD14: 2.2 | AE14: 43.5 | AF14: 431.9 | AG14: 14.1 | AH14: 44.2 | AI14: 0.0 | AJ14: 0.0 | AM14: 3002 | AN14: 0 | AO14: 1.00 | AP14: 1.00 | AQ14: 1.00 | AR14: 1.00 | AS14: 1.00 | AT14: 1.00 | AU14: 1.00 | AV14: 1.00 | AW14: 1.00 | AX14: 1.00 | AY14: 1.00 | AZ14: 1.00 | BA14: 1.00 | BB14: 1.00 | BC14: 1.00 | BG14: 3002_0 | BH14: 4 | BI14: 43
A15: 3002 | B15: 1 | C15: 764.0 | D15: 1323.1 | E15: 1956.7 | F15: 159.3 | G15: 1588.4 | H15: 184.3 | I15: 78.8 | J15: 1253.7 | K15: 42.9 | L15: 875.3 | M15: 290.5 | N15: 291.4 | O15: 2256.2 | P15: 0.2 | Q15: 0.0 | T15: 3002 | U15: 1 | V15: 764.0 | W15: 1323.1 | X15: 1956.7 | Y15: 159.3 | Z15: 1588.4 | AA15: 184.3 | AB15: 78.8 | AC15: 1253.7 | AD15: 42.9 | AE15: 875.3 | AF15: 290.5 | AG15: 291.4 | AH15: 2256.2 | AI15: 0.2 | AJ15: 0.0 | AM15: 3002 | AN15: 1 | AO15: 1.00 | AP15: 1.00 | AQ15: 1.00 | AR15: 1.00 | AS15: 1.00 | AT15: 1.00 | AU15: 1.00 | AV15: 1.00 | AW15: 1.00 | AX15: 1.00 | AY15: 1.00 | AZ15: 1.00 | BA15: 1.00 | BB15: 1.00 | BC15: 1.00 | BG15: 3002_1 | BH15: 4 | BI15: 106
A16: 3002 | B16: 2 | C16: 95.4 | D16: 357.1 | E16: 164.7 | F16: 45.7 | G16: 285.1 | H16: 33.0 | I16: 73.6 | J16: 117.6 | K16: 14.0 | L16: 19.1 | M16: 62.1 | N16: 6.4 | O16: 302.7 | P16: 2.5 | Q16: 0.0 | T16: 3002 | U16: 2 | V16: 95.4 | W16: 357.1 | X16: 164.7 | Y16: 45.7 | Z16: 285.1 | AA16: 33.0 | AB16: 73.6 | AC16: 117.6 | AD16: 14.0 | AE16: 19.1 | AF16: 62.1 | AG16: 6.4 | AH16: 302.7 | AI16: 2.5 | AJ16: 0.0 | AM16: 3002 | AN16: 2 | AO16: 1.00 | AP16: 1.00 | AQ16: 1.00 | AR16: 1.00 | AS16: 1.00 | AT16: 1.00 | AU16: 1.00 | AV16: 1.00 | AW16: 1.00 | AX16: 1.00 | AY16: 1.00 | AZ16: 1.00 | BA16: 1.00 | BB16: 1.00 | BC16: 1.00 | BG16: 3002_2 | BH16: 4 | BI16: 62
A17: 3002 | B17: 7 | C17: 585.5 | D17: 181.1 | E17: 0.0 | F17: 0.0 | G17: 20.2 | H17: 0.0 | I17: 2.3 | J17: 3.1 | K17: 0.0 | L17: 0.0 | M17: 0.0 | N17: 0.0 | O17: 10.5 | P17: 0.0 | Q17: 0.0 | T17: 3002 | U17: 7 | V17: 585.5 | W17: 181.1 | X17: 0.0 | Y17: 0.0 | Z17: 20.2 | AA17: 0.0 | AB17: 2.3 | AC17: 3.1 | AD17: 0.0 | AE17: 0.0 | AF17: 0.0 | AG17: 0.0 | AH17: 10.5 | AI17: 0.0 | AJ17: 0.0 | AM17: 3002 | AN17: 7 | AO17: 1.00 | AP17: 1.00 | AQ17: 1.00 | AR17: 1.00 | AS17: 1.00 | AT17: 1.00 | AU17: 1.00 | AV17: 1.00 | AW17: 1.00 | AX17: 1.00 | AY17: 1.00 | AZ17: 1.00 | BA17: 1.00 | BB17: 1.00 | BC17: 1.00 | BG17: 3002_7 | BH17: 4 | BI17: 48
A18: 3002 | B18: 8 | C18: 267.5 | D18: 162.4 | E18: 161.6 | F18: 50.5 | G18: 89.2 | H18: 43.6 | I18: 32.7 | J18: 38.3 | K18: 8.0 | L18: 16.2 | M18: 45.4 | N18: 4.7 | O18: 76.4 | P18: 0.0 | Q18: 0.0 | T18: 3002 | U18: 8 | V18: 267.5 | W18: 162.4 | X18: 161.6 | Y18: 50.5 | Z18: 89.2 | AA18: 43.6 | AB18: 32.7 | AC18: 38.3 | AD18: 8.0 | AE18: 16.2 | AF18: 45.4 | AG18: 4.7 | AH18: 76.4 | AI18: 0.0 | AJ18: 0.0 | AM18: 3002 | AN18: 8 | AO18: 1.00 | AP18: 1.00 | AQ18: 1.00 | AR18: 1.00 | AS18: 1.00 | AT18: 1.00 | AU18: 1.00 | AV18: 1.00 | AW18: 1.00 | AX18: 1.00 | AY18: 1.00 | AZ18: 1.00 | BA18: 1.00 | BB18: 1.00 | BC18: 1.00 | BG18: 3002_8 | BH18: 4 | BI18: 11
A19: 3004 | B19: 0 | C19: 2967.8 | D19: 1288.5 | E19: 8537.8 | F19: 1036.7 | G19: 1773.4 | H19: 1016.0 | I19: 999.9 | J19: 16.7 | K19: 0.0 | L19: 62.0 | M19: 2231.4 | N19: 0.0 | O19: 8.0 | P19: 0.0 | Q19: 22.8 | T19: 3004 | U19: 0 | V19: 2967.8 | W19: 1288.5 | X19: 8537.8 | Y19: 1036.7 | Z19: 1773.4 | AA19: 1016.0 | AB19: 999.9 | AC19: 16.7 | AD19: 0.0 | AE19: 62.0 | AF19: 2231.4 | AG19: 0.0 | AH19: 8.0 | AI19: 0.0 | AJ19: 22.8 | AM19: 3004 | AN19: 0 | AO19: 1.00 | AP19: 1.00 | AQ19: 1.00 | AR19: 1.00 | AS19: 1.00 | AT19: 1.00 | AU19: 1.00 | AV19: 1.00 | AW19: 1.00 | AX19: 1.00 | AY19: 1.00 | AZ19: 1.00 | BA19: 1.00 | BB19: 1.00 | BC19: 1.00 | BG19: 3004_0 | BH19: 5 | BI19: 158
A20: 3004 | B20: 1 | C20: 3763.1 | D20: 1174.0 | E20: 658.3 | F20: 54.3 | G20: 78.2 | H20: 100.0 | I20: 461.2 | J20: 132.3 | K20: 7.6 | L20: 530.2 | M20: 232.3 | N20: 93.2 | O20: 384.1 | P20: 0.0 | Q20: 25.4 | T20: 3004 | U20: 1 | V20: 3763.1 | W20: 1174.0 | X20: 658.3 | Y20: 54.3 | Z20: 78.2 | AA20: 100.0 | AB20: 461.2 | AC20: 132.3 | AD20: 7.6 | AE20: 530.2 | AF20: 232.3 | AG20: 93.2 | AH20: 384.1 | AI20: 0.0 | AJ20: 25.4 | AM20: 3004 | AN20: 1 | AO20: 1.00 | AP20: 1.00 | AQ20: 1.00 | AR20: 1.00 | AS20: 1.00 | AT20: 1.00 | AU20: 1.00 | AV20: 1.00 | AW20: 1.00 | AX20: 1.00 | AY20: 1.00 | AZ20: 1.00 | BA20: 1.00 | BB20: 1.00 | BC20: 1.00 | BG20: 3004_1 | BH20: 5 | BI20: 233
A21: 3004 | B21: 2 | C21: 584.2 | D21: 247.5 | E21: 2.0 | F21: 8.5 | G21: 6.1 | H21: 22.2 | I21: 93.4 | J21: 0.0 | K21: 0.0 | L21: 0.0 | M21: 30.1 | N21: 0.0 | O21: 39.5 | P21: 58.7 | Q21: 491.0 | T21: 3004 | U21: 2 | V21: 584.2 | W21: 247.5 | X21: 2.0 | Y21: 8.5 | Z21: 6.1 | AA21: 22.2 | AB21: 93.4 | AC21: 0.0 | AD21: 0.0 | AE21: 0.0 | AF21: 30.1 | AG21: 0.0 | AH21: 39.5 | AI21: 58.7 | AJ21: 491.0 | AM21: 3004 | AN21: 2 | AO21: 1.00 | AP21: 1.00 | AQ21: 1.00 | AR21: 1.00 | AS21: 1.00 | AT21: 1.00 | AU21: 1.00 | AV21: 1.00 | AW21: 1.00 | AX21: 1.00 | AY21: 1.00 | AZ21: 1.00 | BA21: 1.00 | BB21: 1.00 | BC21: 1.00 | BG21: 3004_2 | BH21: 5 | BI21: 86
A22: 3004 | B22: 5 | C22: 2225.8 | D22: 1268.2 | E22: 253.4 | F22: 29.6 | G22: 277.4 | H22: 55.0 | I22: 297.5 | J22: 0.0 | K22: 8.3 | L22: 99.1 | M22: 237.7 | N22: 11.5 | O22: 12.8 | P22: 0.0 | Q22: 0.0 | T22: 3004 | U22: 5 | V22: 2225.8 | W22: 1268.2 | X22: 253.4 | Y22: 29.6 | Z22: 277.4 | AA22: 55.0 | AB22: 297.5 | AC22: 0.0 | AD22: 8.3 | AE22: 99.1 | AF22: 237.7 | AG22: 11.5 | AH22: 12.8 | AI22: 0.0 | AJ22: 0.0 | AM22: 3004 | AN22: 5 | AO22: 1.00 | AP22: 1.00 | AQ22: 1.00 | AR22: 1.00 | AS22: 1.00 | AT22: 1.00 | AU22: 1.00 | AV22: 1.00 | AW22: 1.00 | AX22: 1.00 | AY22: 1.00 | AZ22: 1.00 | BA22: 1.00 | BB22: 1.00 | BC22: 1.00 | BG22: 3004_5 | BH22: 5 | BI22: 25
A23: 3004 | B23: 7 | C23: 11430.8 | D23: 1888.9 | E23: 199.4 | F23: 35.6 | G23: 59.0 | H23: 0.0 | I23: 135.3 | J23: 0.0 | K23: 8.1 | L23: 429.0 | M23: 157.6 | N23: 30.0 | O23: 0.5 | P23: 1.6 | Q23: 0.3 | T23: 3004 | U23: 7 | V23: 11430.8 | W23: 1888.9 | X23: 199.4 | Y23: 35.6 | Z23: 59.0 | AA23: 0.0 | AB23: 135.3 | AC23: 0.0 | AD23: 8.1 | AE23: 429.0 | AF23: 157.6 | AG23: 30.0 | AH23: 0.5 | AI23: 1.6 | AJ23: 0.3 | AM23: 3004 | AN23: 7 | AO23: 1.00 | AP23: 1.00 | AQ23: 1.00 | AR23: 1.00 | AS23: 1.00 | AT23: 1.00 | AU23: 1.00 | AV23: 1.00 | AW23: 1.00 | AX23: 1.00 | AY23: 1.00 | AZ23: 1.00 | BA23: 1.00 | BB23: 1.00 | BC23: 1.00 | BG23: 3004_7 | BH23: 5 | BI23: 342
A24: 3004 | B24: 8 | C24: 4070.9 | D24: 1798.6 | E24: 1810.5 | F24: 401.4 | G24: 893.9 | H24: 104.1 | I24: 612.2 | J24: 23.1 | K24: 9.7 | L24: 225.7 | M24: 804.2 | N24: 2.9 | O24: 2.1 | P24: 5.8 | Q24: 3.5 | T24: 3004 | U24: 8 | V24: 4070.9 | W24: 1798.6 | X24: 1810.5 | Y24: 401.4 | Z24: 893.9 | AA24: 104.1 | AB24: 612.2 | AC24: 23.1 | AD24: 9.7 | AE24: 225.7 | AF24: 804.2 | AG24: 2.9 | AH24: 2.1 | AI24: 5.8 | AJ24: 3.5 | AM24: 3004 | AN24: 8 | AO24: 1.00 | AP24: 1.00 | AQ24: 1.00 | AR24: 1.00 | AS24: 1.00 | AT24: 1.00 | AU24: 1.00 | AV24: 1.00 | AW24: 1.00 | AX24: 1.00 | AY24: 1.00 | AZ24: 1.00 | BA24: 1.00 | BB24: 1.00 | BC24: 1.00 | BG24: 3004_8 | BH24: 5 | BI24: 66
A25: 3005 | B25: 0 | C25: 7346.5 | D25: 3357.2 | E25: 12887.9 | F25: 3491.2 | G25: 4919.5 | H25: 1531.4 | I25: 2530.2 | J25: 14.8 | K25: 0.0 | L25: 202.0 | M25: 3196.5 | N25: 34.4 | O25: 2.6 | P25: 1.4 | Q25: 0.0 | T25: 3005 | U25: 0 | V25: 7346.5 | W25: 3357.2 | X25: 12887.9 | Y25: 3491.2 | Z25: 4919.5 | AA25: 1531.4 | AB25: 2530.2 | AC25: 14.8 | AD25: 0.0 | AE25: 202.0 | AF25: 3196.5 | AG25: 34.4 | AH25: 2.6 | AI25: 1.4 | AJ25: 0.0 | AM25: 3005 | AN25: 0 | AO25: 1.00 | AP25: 1.00 | AQ25: 1.00 | AR25: 1.00 | AS25: 1.00 | AT25: 1.00 | AU25: 1.00 | AV25: 1.00 | AW25: 1.00 | AX25: 1.00 | AY25: 1.00 | AZ25: 1.00 | BA25: 1.00 | BB25: 1.00 | BC25: 1.00 | BG25: 3005_0 | BH25: 6 | BI25: 312
A26: 3005 | B26: 1 | C26: 12059.0 | D26: 3158.7 | E26: 314.5 | F26: 150.7 | G26: 178.2 | H26: 33.6 | I26: 621.5 | J26: 109.4 | K26: 6.4 | L26: 83.1 | M26: 283.8 | N26: 20.9 | O26: 114.8 | P26: 4.5 | Q26: 0.8 | T26: 3005 | U26: 1 | V26: 12059.0 | W26: 3158.7 | X26: 314.5 | Y26: 150.7 | Z26: 178.2 | AA26: 33.6 | AB26: 621.5 | AC26: 109.4 | AD26: 6.4 | AE26: 83.1 | AF26: 283.8 | AG26: 20.9 | AH26: 114.8 | AI26: 4.5 | AJ26: 0.8 | AM26: 3005 | AN26: 1 | AO26: 1.00 | AP26: 1.00 | AQ26: 1.00 | AR26: 1.00 | AS26: 1.00 | AT26: 1.00 | AU26: 1.00 | AV26: 1.00 | AW26: 1.00 | AX26: 1.00 | AY26: 1.00 | AZ26: 1.00 | BA26: 1.00 | BB26: 1.00 | BC26: 1.00 | BG26: 3005_1 | BH26: 6 | BI26: 588
A27: 3005 | B27: 2 | C27: 538.6 | D27: 278.3 | E27: 41.9 | F27: 41.0 | G27: 48.1 | H27: 0.0 | I27: 13.3 | J27: 11.8 | K27: 1.8 | L27: 15.3 | M27: 94.4 | N27: 0.0 | O27: 106.8 | P27: 299.1 | Q27: 18.2 | T27: 3005 | U27: 2 | V27: 538.6 | W27: 278.3 | X27: 41.9 | Y27: 41.0 | Z27: 48.1 | AA27: 0.0 | AB27: 13.3 | AC27: 11.8 | AD27: 1.8 | AE27: 15.3 | AF27: 94.4 | AG27: 0.0 | AH27: 106.8 | AI27: 299.1 | AJ27: 18.2 | AM27: 3005 | AN27: 2 | AO27: 1.00 | AP27: 1.00 | AQ27: 1.00 | AR27: 1.00 | AS27: 1.00 | AT27: 1.00 | AU27: 1.00 | AV27: 1.00 | AW27: 1.00 | AX27: 1.00 | AY27: 1.00 | AZ27: 1.00 | BA27: 1.00 | BB27: 1.00 | BC27: 1.00 | BG27: 3005_2 | BH27: 6 | BI27: 95
A28: 3005 | B28: 5 | C28: 19250.2 | D28: 12550.6 | E28: 3776.0 | F28: 739.8 | G28: 963.4 | H28: 157.7 | I28: 3917.8 | J28: 0.0 | K28: 3.8 | L28: 552.4 | M28: 832.6 | N28: 23.1 | O28: 21.7 | P28: 4.9 | Q28: 0.0 | T28: 3005 | U28: 5 | V28: 19250.2 | W28: 12550.6 | X28: 3776.0 | Y28: 739.8 | Z28: 963.4 | AA28: 157.7 | AB28: 3917.8 | AC28: 0.0 | AD28: 3.8 | AE28: 552.4 | AF28: 832.6 | AG28: 23.1 | AH28: 21.7 | AI28: 4.9 | AJ28: 0.0 | AM28: 3005 | AN28: 5 | AO28: 1.00 | AP28: 1.00 | AQ28: 1.00 | AR28: 1.00 | AS28: 1.00 | AT28: 1.00 | AU28: 1.00 | AV28: 1.00 | AW28: 1.00 | AX28: 1.00 | AY28: 1.00 | AZ28: 1.00 | BA28: 1.00 | BB28: 1.00 | BC28: 1.00 | BG28: 3005_5 | BH28: 6 | BI28: 257
A29: 3005 | B29: 7 | C29: 48079.9 | D29: 6351.9 | E29: 800.6 | F29: 240.5 | G29: 585.4 | H29: 37.9 | I29: 802.3 | J29: 4.2 | K29: 1.5 | L29: 284.7 | M29: 324.1 | N29: 43.0 | O29: 11.7 | P29: 9.8 | Q29: 0.0 | T29: 3005 | U29: 7 | V29: 48079.9 | W29: 6351.9 | X29: 800.6 | Y29: 240.5 | Z29: 585.4 | AA29: 37.9 | AB29: 802.3 | AC29: 4.2 | AD29: 1.5 | AE29: 284.7 | AF29: 324.1 | AG29: 43.0 | AH29: 11.7 | AI29: 9.8 | AJ29: 0.0 | AM29: 3005 | AN29: 7 | AO29: 1.00 | AP29: 1.00 | AQ29: 1.00 | AR29: 1.00 | AS29: 1.00 | AT29: 1.00 | AU29: 1.00 | AV29: 1.00 | AW29: 1.00 | AX29: 1.00 | AY29: 1.00 | AZ29: 1.00 | BA29: 1.00 | BB29: 1.00 | BC29: 1.00 | BG29: 3005_7 | BH29: 6 | BI29: 1332
A30: 3005 | B30: 8 | C30: 7119.2 | D30: 3695.5 | E30: 4051.8 | F30: 1028.1 | G30: 1480.6 | H30: 291.4 | I30: 1100.2 | J30: 12.2 | K30: 9.5 | L30: 261.0 | M30: 1154.9 | N30: 9.0 | O30: 25.0 | P30: 23.3 | Q30: 1.5 | T30: 3005 | U30: 8 | V30: 7119.2 | W30: 3695.5 | X30: 4051.8 | Y30: 1028.1 | Z30: 1480.6 | AA30: 291.4 | AB30: 1100.2 | AC30: 12.2 | AD30: 9.5 | AE30: 261.0 | AF30: 1154.9 | AG30: 9.0 | AH30: 25.0 | AI30: 23.3 | AJ30: 1.5 | AM30: 3005 | AN30: 8 | AO30: 1.00 | AP30: 1.00 | AQ30: 1.00 | AR30: 1.00 | AS30: 1.00 | AT30: 1.00 | AU30: 1.00 | AV30: 1.00 | AW30: 1.00 | AX30: 1.00 | AY30: 1.00 | AZ30: 1.00 | BA30: 1.00 | BB30: 1.00 | BC30: 1.00 | BG30: 3005_8 | BH30: 6 | BI30: 228
A31: 3006 | B31: 0 | C31: 9185.8 | D31: 2082.7 | E31: 14972.8 | F31: 3168.5 | G31: 8914.9 | H31: 4081.5 | I31: 1207.7 | J31: 13.0 | K31: 2.0 | L31: 125.1 | M31: 5002.3 | N31: 11.0 | O31: 42.8 | P31: 0.1 | Q31: 0.7 | T31: 3006 | U31: 0 | V31: 9185.8 | W31: 2082.7 | X31: 14972.8 | Y31: 3168.5 | Z31: 8914.9 | AA31: 4081.5 | AB31: 1207.7 | AC31: 13.0 | AD31: 2.0 | AE31: 125.1 | AF31: 5002.3 | AG31: 11.0 | AH31: 42.8 | AI31: 0.1 | AJ31: 0.7 | AM31: 3006 | AN31: 0 | AO31: 1.00 | AP31: 1.00 | AQ31: 1.00 | AR31: 1.00 | AS31: 1.00 | AT31: 1.00 | AU31: 1.00 | AV31: 1.00 | AW31: 1.00 | AX31: 1.00 | AY31: 1.00 | AZ31: 1.00 | BA31: 1.00 | BB31: 1.00 | BC31: 1.00 | BG31: 3006_0 | BH31: 6 | BI31: 191
A32: 3006 | B32: 1 | C32: 4405.8 | D32: 1493.0 | E32: 395.7 | F32: 3.9 | G32: 233.2 | H32: 25.1 | I32: 68.9 | J32: 4.0 | K32: 4.9 | L32: 53.3 | M32: 438.7 | N32: 0.0 | O32: 131.8 | P32: 0.2 | Q32: 30.7 | T32: 3006 | U32: 1 | V32: 4405.8 | W32: 1493.0 | X32: 395.7 | Y32: 3.9 | Z32: 233.2 | AA32: 25.1 | AB32: 68.9 | AC32: 4.0 | AD32: 4.9 | AE32: 53.3 | AF32: 438.7 | AG32: 0.0 | AH32: 131.8 | AI32: 0.2 | AJ32: 30.7 | AM32: 3006 | AN32: 1 | AO32: 1.00 | AP32: 1.00 | AQ32: 1.00 | AR32: 1.00 | AS32: 1.00 | AT32: 1.00 | AU32: 1.00 | AV32: 1.00 | AW32: 1.00 | AX32: 1.00 | AY32: 1.00 | AZ32: 1.00 | BA32: 1.00 | BB32: 1.00 | BC32: 1.00 | BG32: 3006_1 | BH32: 6 | BI32: 108
A33: 3006 | B33: 2 | C33: 282.1 | D33: 34.1 | E33: 98.0 | F33: 0.0 | G33: 96.5 | H33: 0.0 | I33: 95.1 | J33: 0.2 | K33: 0.0 | L33: 2.6 | M33: 39.8 | N33: 0.9 | O33: 25.0 | P33: 3.1 | Q33: 19.8 | T33: 3006 | U33: 2 | V33: 282.1 | W33: 34.1 | X33: 98.0 | Y33: 0.0 | Z33: 96.5 | AA33: 0.0 | AB33: 95.1 | AC33: 0.2 | AD33: 0.0 | AE33: 2.6 | AF33: 39.8 | AG33: 0.9 | AH33: 25.0 | AI33: 3.1 | AJ33: 19.8 | AM33: 3006 | AN33: 2 | AO33: 1.00 | AP33: 1.00 | AQ33: 1.00 | AR33: 1.00 | AS33: 1.00 | AT33: 1.00 | AU33: 1.00 | AV33: 1.00 | AW33: 1.00 | AX33: 1.00 | AY33: 1.00 | AZ33: 1.00 | BA33: 1.00 | BB33: 1.00 | BC33: 1.00 | BG33: 3006_2 | BH33: 6 | BI33: 18
A34: 3006 | B34: 5 | C34: 3955.6 | D34: 2995.3 | E34: 2080.1 | F34: 357.5 | G34: 532.7 | H34: 254.1 | I34: 1001.0 | J34: 0.0 | K34: 0.0 | L34: 203.2 | M34: 213.7 | N34: 9.0 | O34: 2.1 | P34: 0.0 | Q34: 0.0 | T34: 3006 | U34: 5 | V34: 3955.6 | W34: 2995.3 | X34: 2080.1 | Y34: 357.5 | Z34: 532.7 | AA34: 254.1 | AB34: 1001.0 | AC34: 0.0 | AD34: 0.0 | AE34: 203.2 | AF34: 213.7 | AG34: 9.0 | AH34: 2.1 | AI34: 0.0 | AJ34: 0.0 | AM34: 3006 | AN34: 5 | AO34: 1.00 | AP34: 1.00 | AQ34: 1.00 | AR34: 1.00 | AS34: 1.00 | AT34: 1.00 | AU34: 1.00 | AV34: 1.00 | AW34: 1.00 | AX34: 1.00 | AY34: 1.00 | AZ34: 1.00 | BA34: 1.00 | BB34: 1.00 | BC34: 1.00 | BG34: 3006_5 | BH34: 6 | BI34: 35
A35: 3006 | B35: 7 | C35: 19455.5 | D35: 1316.7 | E35: 434.1 | F35: 59.2 | G35: 457.3 | H35: 0.0 | I35: 172.1 | J35: 0.0 | K35: 0.0 | L35: 73.7 | M35: 236.9 | N35: 5.3 | O35: 11.3 | P35: 2.2 | Q35: 0.0 | T35: 3006 | U35: 7 | V35: 19455.5 | W35: 1316.7 | X35: 434.1 | Y35: 59.2 | Z35: 457.3 | AA35: 0.0 | AB35: 172.1 | AC35: 0.0 | AD35: 0.0 | AE35: 73.7 | AF35: 236.9 | AG35: 5.3 | AH35: 11.3 | AI35: 2.2 | AJ35: 0.0 | AM35: 3006 | AN35: 7 | AO35: 1.00 | AP35: 1.00 | AQ35: 1.00 | AR35: 1.00 | AS35: 1.00 | AT35: 1.00 | AU35: 1.00 | AV35: 1.00 | AW35: 1.00 | AX35: 1.00 | AY35: 1.00 | AZ35: 1.00 | BA35: 1.00 | BB35: 1.00 | BC35: 1.00 | BG35: 3006_7 | BH35: 6 | BI35: 336
A36: 3006 | B36: 8 | C36: 5823.5 | D36: 1463.0 | E36: 4574.3 | F36: 1110.8 | G36: 2398.0 | H36: 966.9 | I36: 802.6 | J36: 0.0 | K36: 77.3 | L36: 353.9 | M36: 701.7 | N36: 43.0 | O36: 103.2 | P36: 0.3 | Q36: 6.2 | T36: 3006 | U36: 8 | V36: 5823.5 | W36: 1463.0 | X36: 4574.3 | Y36: 1110.8 | Z36: 2398.0 | AA36: 966.9 | AB36: 802.6 | AC36: 0.0 | AD36: 77.3 | AE36: 353.9 | AF36: 701.7 | AG36: 43.0 | AH36: 103.2 | AI36: 0.3 | AJ36: 6.2 | AM36: 3006 | AN36: 8 | AO36: 1.00 | AP36: 1.00 | AQ36: 1.00 | AR36: 1.00 | AS36: 1.00 | AT36: 1.00 | AU36: 1.00 | AV36: 1.00 | AW36: 1.00 | AX36: 1.00 | AY36: 1.00 | AZ36: 1.00 | BA36: 1.00 | BB36: 1.00 | BC36: 1.00 | BG36: 3006_8 | BH36: 6 | BI36: 66
A37: 3007 | B37: 0 | C37: 10124.5 | D37: 5334.2 | E37: 38356.2 | F37: 5010.2 | G37: 5230.5 | H37: 4727.9 | I37: 3756.0 | J37: 200.8 | K37: 140.0 | L37: 219.4 | M37: 8290.7 | N37: 26.7 | O37: 396.5 | P37: 30.5 | Q37: 1.7 | T37: 3007 | U37: 0 | V37: 10124.5 | W37: 5334.2 | X37: 38356.2 | Y37: 5010.2 | Z37: 5230.5 | AA37: 4727.9 | AB37: 3756.0 | AC37: 200.8 | AD37: 140.0 | AE37: 219.4 | AF37: 8290.7 | AG37: 26.7 | AH37: 396.5 | AI37: 30.5 | AJ37: 1.7 | AM37: 3007 | AN37: 0 | AO37: 1.00 | AP37: 1.00 | AQ37: 1.00 | AR37: 1.00 | AS37: 1.00 | AT37: 1.00 | AU37: 1.00 | AV37: 1.00 | AW37: 1.00 | AX37: 1.00 | AY37: 1.00 | AZ37: 1.00 | BA37: 1.00 | BB37: 1.00 | BC37: 1.00 | BG37: 3007_0 | BH37: 7 | BI37: 620
A38: 3007 | B38: 1 | C38: 8322.7 | D38: 2385.4 | E38: 2584.4 | F38: 470.2 | G38: 498.2 | H38: 108.9 | I38: 692.3 | J38: 320.8 | K38: 116.6 | L38: 54.8 | M38: 937.5 | N38: 12.5 | O38: 979.0 | P38: 16.6 | Q38: 149.7 | T38: 3007 | U38: 1 | V38: 8322.7 | W38: 2385.4 | X38: 2584.4 | Y38: 470.2 | Z38: 498.2 | AA38: 108.9 | AB38: 692.3 | AC38: 320.8 | AD38: 116.6 | AE38: 54.8 | AF38: 937.5 | AG38: 12.5 | AH38: 979.0 | AI38: 16.6 | AJ38: 149.7 | AM38: 3007 | AN38: 1 | AO38: 1.00 | AP38: 1.00 | AQ38: 1.00 | AR38: 1.00 | AS38: 1.00 | AT38: 1.00 | AU38: 1.00 | AV38: 1.00 | AW38: 1.00 | AX38: 1.00 | AY38: 1.00 | AZ38: 1.00 | BA38: 1.00 | BB38: 1.00 | BC38: 1.00 | BG38: 3007_1 | BH38: 7 | BI38: 482
A39: 3007 | B39: 2 | C39: 850.5 | D39: 225.3 | E39: 700.3 | F39: 66.6 | G39: 239.0 | H39: 0.0 | I39: 111.8 | J39: 30.0 | K39: 13.4 | L39: 27.9 | M39: 326.6 | N39: 0.9 | O39: 792.0 | P39: 420.4 | Q39: 16.7 | T39: 3007 | U39: 2 | V39: 850.5 | W39: 225.3 | X39: 700.3 | Y39: 66.6 | Z39: 239.0 | AA39: 0.0 | AB39: 111.8 | AC39: 30.0 | AD39: 13.4 | AE39: 27.9 | AF39: 326.6 | AG39: 0.9 | AH39: 792.0 | AI39: 420.4 | AJ39: 16.7 | AM39: 3007 | AN39: 2 | AO39: 1.00 | AP39: 1.00 | AQ39: 1.00 | AR39: 1.00 | AS39: 1.00 | AT39: 1.00 | AU39: 1.00 | AV39: 1.00 | AW39: 1.00 | AX39: 1.00 | AY39: 1.00 | AZ39: 1.00 | BA39: 1.00 | BB39: 1.00 | BC39: 1.00 | BG39: 3007_2 | BH39: 7 | BI39: 134
A40: 3007 | B40: 5 | C40: 2706.5 | D40: 2694.7 | E40: 1165.0 | F40: 187.7 | G40: 158.7 | H40: 16.6 | I40: 883.5 | J40: 0.0 | K40: 7.2 | L40: 152.0 | M40: 91.4 | N40: 0.0 | O40: 0.0 | P40: 6.7 | Q40: 0.0 | T40: 3007 | U40: 5 | V40: 2706.5 | W40: 2694.7 | X40: 1165.0 | Y40: 187.7 | Z40: 158.7 | AA40: 16.6 | AB40: 883.5 | AC40: 0.0 | AD40: 7.2 | AE40: 152.0 | AF40: 91.4 | AG40: 0.0 | AH40: 0.0 | AI40: 6.7 | AJ40: 0.0 | AM40: 3007 | AN40: 5 | AO40: 1.00 | AP40: 1.00 | AQ40: 1.00 | AR40: 1.00 | AS40: 1.00 | AT40: 1.00 | AU40: 1.00 | AV40: 1.00 | AW40: 1.00 | AX40: 1.00 | AY40: 1.00 | AZ40: 1.00 | BA40: 1.00 | BB40: 1.00 | BC40: 1.00 | BG40: 3007_5 | BH40: 7 | BI40: 62
A41: 3007 | B41: 7 | C41: 31912.1 | D41: 6540.6 | E41: 923.8 | F41: 416.5 | G41: 420.4 | H41: 140.5 | I41: 252.4 | J41: 0.1 | K41: 8.7 | L41: 180.1 | M41: 436.9 | N41: 35.6 | O41: 40.4 | P41: 4.7 | Q41: 2.7 | T41: 3007 | U41: 7 | V41: 31912.1 | W41: 6540.6 | X41: 923.8 | Y41: 416.5 | Z41: 420.4 | AA41: 140.5 | AB41: 252.4 | AC41: 0.1 | AD41: 8.7 | AE41: 180.1 | AF41: 436.9 | AG41: 35.6 | AH41: 40.4 | AI41: 4.7 | AJ41: 2.7 | AM41: 3007 | AN41: 7 | AO41: 1.00 | AP41: 1.00 | AQ41: 1.00 | AR41: 1.00 | AS41: 1.00 | AT41: 1.00 | AU41: 1.00 | AV41: 1.00 | AW41: 1.00 | AX41: 1.00 | AY41: 1.00 | AZ41: 1.00 | BA41: 1.00 | BB41: 1.00 | BC41: 1.00 | BG41: 3007_7 | BH41: 7 | BI41: 1088
A42: 3007 | B42: 8 | C42: 8040.4 | D42: 4251.7 | E42: 6452.9 | F42: 1279.7 | G42: 1385.6 | H42: 413.3 | I42: 534.7 | J42: 113.0 | K42: 37.0 | L42: 145.6 | M42: 1482.8 | N42: 35.8 | O42: 62.6 | P42: 27.9 | Q42: 6.1 | T42: 3007 | U42: 8 | V42: 8040.4 | W42: 4251.7 | X42: 6452.9 | Y42: 1279.7 | Z42: 1385.6 | AA42: 413.3 | AB42: 534.7 | AC42: 113.0 | AD42: 37.0 | AE42: 145.6 | AF42: 1482.8 | AG42: 35.8 | AH42: 62.6 | AI42: 27.9 | AJ42: 6.1 | AM42: 3007 | AN42: 8 | AO42: 1.00 | AP42: 1.00 | AQ42: 1.00 | AR42: 1.00 | AS42: 1.00 | AT42: 1.00 | AU42: 1.00 | AV42: 1.00 | AW42: 1.00 | AX42: 1.00 | AY42: 1.00 | AZ42: 1.00 | BA42: 1.00 | BB42: 1.00 | BC42: 1.00 | BG42: 3007_8 | BH42: 7 | BI42: 249
A43: 3008 | B43: 0 | C43: 5273.1 | D43: 1774.8 | E43: 30379.5 | F43: 7477.7 | G43: 8160.0 | H43: 7049.1 | I43: 3373.8 | J43: 150.9 | K43: 2902.2 | L43: 283.4 | M43: 3289.6 | N43: 26.7 | O43: 479.4 | P43: 3.9 | Q43: 2.2 | T43: 3008 | U43: 0 | V43: 5273.1 | W43: 1774.8 | X43: 30379.5 | Y43: 7477.7 | Z43: 8160.0 | AA43: 7049.1 | AB43: 3373.8 | AC43: 150.9 | AD43: 2902.2 | AE43: 283.4 | AF43: 3289.6 | AG43: 26.7 | AH43: 479.4 | AI43: 3.9 | AJ43: 2.2 | AM43: 3008 | AN43: 0 | AO43: 1.00 | AP43: 1.00 | AQ43: 1.00 | AR43: 1.00 | AS43: 1.00 | AT43: 1.00 | AU43: 1.00 | AV43: 1.00 | AW43: 1.00 | AX43: 1.00 | AY43: 1.00 | AZ43: 1.00 | BA43: 1.00 | BB43: 1.00 | BC43: 1.00 | BG43: 3008_0 | BH43: 2 | BI43: 613
A44: 3008 | B44: 1 | C44: 9669.9 | D44: 2432.4 | E44: 18095.2 | F44: 8606.2 | G44: 8416.6 | H44: 4554.6 | I44: 2639.6 | J44: 4802.7 | K44: 9346.2 | L44: 365.0 | M44: 1643.5 | N44: 39.9 | O44: 2984.9 | P44: 31.1 | Q44: 104.7 | T44: 3008 | U44: 1 | V44: 9669.9 | W44: 2432.4 | X44: 18095.2 | Y44: 8606.2 | Z44: 8416.6 | AA44: 4554.6 | AB44: 2639.6 | AC44: 4802.7 | AD44: 9346.2 | AE44: 365.0 | AF44: 1643.5 | AG44: 39.9 | AH44: 2984.9 | AI44: 31.1 | AJ44: 104.7 | AM44: 3008 | AN44: 1 | AO44: 1.00 | AP44: 1.00 | AQ44: 1.00 | AR44: 1.00 | AS44: 1.00 | AT44: 1.00 | AU44: 1.00 | AV44: 1.00 | AW44: 1.00 | AX44: 1.00 | AY44: 1.00 | AZ44: 1.00 | BA44: 1.00 | BB44: 1.00 | BC44: 1.00 | BG44: 3008_1 | BH44: 2 | BI44: 719
A45: 3008 | B45: 2 | C45: 654.3 | D45: 118.3 | E45: 1061.0 | F45: 542.9 | G45: 895.9 | H45: 277.3 | I45: 57.0 | J45: 67.1 | K45: 466.5 | L45: 11.7 | M45: 158.5 | N45: 1.2 | O45: 203.3 | P45: 63.3 | Q45: 223.9 | T45: 3008 | U45: 2 | V45: 654.3 | W45: 118.3 | X45: 1061.0 | Y45: 542.9 | Z45: 895.9 | AA45: 277.3 | AB45: 57.0 | AC45: 67.1 | AD45: 466.5 | AE45: 11.7 | AF45: 158.5 | AG45: 1.2 | AH45: 203.3 | AI45: 63.3 | AJ45: 223.9 | AM45: 3008 | AN45: 2 | AO45: 1.00 | AP45: 1.00 | AQ45: 1.00 | AR45: 1.00 | AS45: 1.00 | AT45: 1.00 | AU45: 1.00 | AV45: 1.00 | AW45: 1.00 | AX45: 1.00 | AY45: 1.00 | AZ45: 1.00 | BA45: 1.00 | BB45: 1.00 | BC45: 1.00 | BG45: 3008_2 | BH45: 2 | BI45: 75
A46: 3008 | B46: 5 | C46: 844.7 | D46: 746.7 | E46: 596.8 | F46: 311.8 | G46: 93.6 | H46: 89.1 | I46: 436.9 | J46: 20.3 | K46: 28.8 | L46: 102.7 | M46: 18.8 | N46: 8.1 | O46: 8.1 | P46: 0.0 | Q46: 0.0 | T46: 3008 | U46: 5 | V46: 844.7 | W46: 746.7 | X46: 596.8 | Y46: 311.8 | Z46: 93.6 | AA46: 89.1 | AB46: 436.9 | AC46: 20.3 | AD46: 28.8 | AE46: 102.7 | AF46: 18.8 | AG46: 8.1 | AH46: 8.1 | AI46: 0.0 | AJ46: 0.0 | AM46: 3008 | AN46: 5 | AO46: 1.00 | AP46: 1.00 | AQ46: 1.00 | AR46: 1.00 | AS46: 1.00 | AT46: 1.00 | AU46: 1.00 | AV46: 1.00 | AW46: 1.00 | AX46: 1.00 | AY46: 1.00 | AZ46: 1.00 | BA46: 1.00 | BB46: 1.00 | BC46: 1.00 | BG46: 3008_5 | BH46: 2 | BI46: 27
A47: 3008 | B47: 7 | C47: 7466.1 | D47: 826.2 | E47: 32.7 | F47: 39.2 | G47: 125.6 | H47: 16.4 | I47: 131.5 | J47: 0.0 | K47: 52.0 | L47: 151.2 | M47: 17.4 | N47: 30.2 | O47: 0.0 | P47: 0.8 | Q47: 0.1 | T47: 3008 | U47: 7 | V47: 7466.1 | W47: 826.2 | X47: 32.7 | Y47: 39.2 | Z47: 125.6 | AA47: 16.4 | AB47: 131.5 | AC47: 0.0 | AD47: 52.0 | AE47: 151.2 | AF47: 17.4 | AG47: 30.2 | AH47: 0.0 | AI47: 0.8 | AJ47: 0.1 | AM47: 3008 | AN47: 7 | AO47: 1.00 | AP47: 1.00 | AQ47: 1.00 | AR47: 1.00 | AS47: 1.00 | AT47: 1.00 | AU47: 1.00 | AV47: 1.00 | AW47: 1.00 | AX47: 1.00 | AY47: 1.00 | AZ47: 1.00 | BA47: 1.00 | BB47: 1.00 | BC47: 1.00 | BG47: 3008_7 | BH47: 2 | BI47: 441
A48: 3008 | B48: 8 | C48: 3194.8 | D48: 921.9 | E48: 5393.5 | F48: 1894.4 | G48: 2257.7 | H48: 1159.1 | I48: 1216.6 | J48: 351.5 | K48: 1265.5 | L48: 117.9 | M48: 620.1 | N48: 20.7 | O48: 221.5 | P48: 2.6 | Q48: 9.3 | T48: 3008 | U48: 8 | V48: 3194.8 | W48: 921.9 | X48: 5393.5 | Y48: 1894.4 | Z48: 2257.7 | AA48: 1159.1 | AB48: 1216.6 | AC48: 351.5 | AD48: 1265.5 | AE48: 117.9 | AF48: 620.1 | AG48: 20.7 | AH48: 221.5 | AI48: 2.6 | AJ48: 9.3 | AM48: 3008 | AN48: 8 | AO48: 1.00 | AP48: 1.00 | AQ48: 1.00 | AR48: 1.00 | AS48: 1.00 | AT48: 1.00 | AU48: 1.00 | AV48: 1.00 | AW48: 1.00 | AX48: 1.00 | AY48: 1.00 | AZ48: 1.00 | BA48: 1.00 | BB48: 1.00 | BC48: 1.00 | BG48: 3008_8 | BH48: 2 | BI48: 174
A49: 3009 | B49: 0 | C49: 4766.3 | D49: 2295.4 | E49: 50583.6 | F49: 10075.4 | G49: 10347.8 | H49: 6592.0 | I49: 4078.1 | J49: 172.1 | K49: 3848.1 | L49: 207.8 | M49: 6566.5 | N49: 44.6 | O49: 232.1 | P49: 18.1 | Q49: 11.0 | T49: 3009 | U49: 0 | V49: 4766.3 | W49: 2295.4 | X49: 50583.6 | Y49: 10075.4 | Z49: 10347.8 | AA49: 6592.0 | AB49: 4078.1 | AC49: 172.1 | AD49: 3848.1 | AE49: 207.8 | AF49: 6566.5 | AG49: 44.6 | AH49: 232.1 | AI49: 18.1 | AJ49: 11.0 | AM49: 3009 | AN49: 0 | AO49: 1.00 | AP49: 1.00 | AQ49: 1.00 | AR49: 1.00 | AS49: 1.00 | AT49: 1.00 | AU49: 1.00 | AV49: 1.00 | AW49: 1.00 | AX49: 1.00 | AY49: 1.00 | AZ49: 1.00 | BA49: 1.00 | BB49: 1.00 | BC49: 1.00 | BG49: 3009_0 | BH49: 2 | BI49: 663
A50: 3009 | B50: 1 | C50: 11170.8 | D50: 4304.0 | E50: 32129.3 | F50: 5362.6 | G50: 7150.7 | H50: 2768.9 | I50: 4506.8 | J50: 9815.8 | K50: 11021.1 | L50: 357.2 | M50: 3344.5 | N50: 61.3 | O50: 6315.4 | P50: 5.1 | Q50: 153.8 | T50: 3009 | U50: 1 | V50: 11170.8 | W50: 4304.0 | X50: 32129.3 | Y50: 5362.6 | Z50: 7150.7 | AA50: 2768.9 | AB50: 4506.8 | AC50: 9815.8 | AD50: 11021.1 | AE50: 357.2 | AF50: 3344.5 | AG50: 61.3 | AH50: 6315.4 | AI50: 5.1 | AJ50: 153.8 | AM50: 3009 | AN50: 1 | AO50: 1.00 | AP50: 1.00 | AQ50: 1.00 | AR50: 1.00 | AS50: 1.00 | AT50: 1.00 | AU50: 1.00 | AV50: 1.00 | AW50: 1.00 | AX50: 1.00 | AY50: 1.00 | AZ50: 1.00 | BA50: 1.00 | BB50: 1.00 | BC50: 1.00 | BG50: 3009_1 | BH50: 2 | BI50: 577
A51: 3009 | B51: 2 | C51: 662.5 | D51: 415.3 | E51: 1137.4 | F51: 291.7 | G51: 340.1 | H51: 225.3 | I51: 80.6 | J51: 166.7 | K51: 343.6 | L51: 57.1 | M51: 475.5 | N51: 17.9 | O51: 147.6 | P51: 130.7 | Q51: 74.6 | T51: 3009 | U51: 2 | V51: 662.5 | W51: 415.3 | X51: 1137.4 | Y51: 291.7 | Z51: 340.1 | AA51: 225.3 | AB51: 80.6 | AC51: 166.7 | AD51: 343.6 | AE51: 57.1 | AF51: 475.5 | AG51: 17.9 | AH51: 147.6 | AI51: 130.7 | AJ51: 74.6 | AM51: 3009 | AN51: 2 | AO51: 1.00 | AP51: 1.00 | AQ51: 1.00 | AR51: 1.00 | AS51: 1.00 | AT51: 1.00 | AU51: 1.00 | AV51: 1.00 | AW51: 1.00 | AX51: 1.00 | AY51: 1.00 | AZ51: 1.00 | BA51: 1.00 | BB51: 1.00 | BC51: 1.00 | BG51: 3009_2 | BH51: 2 | BI51: 80
A52: 3009 | B52: 5 | C52: 251.8 | D52: 269.3 | E52: 360.4 | F52: 43.2 | G52: 68.7 | H52: 48.9 | I52: 192.7 | J52: 25.0 | K52: 81.9 | L52: 6.5 | M52: 3.2 | N52: 0.0 | O52: 13.6 | P52: 0.0 | Q52: 0.0 | T52: 3009 | U52: 5 | V52: 251.8 | W52: 269.3 | X52: 360.4 | Y52: 43.2 | Z52: 68.7 | AA52: 48.9 | AB52: 192.7 | AC52: 25.0 | AD52: 81.9 | AE52: 6.5 | AF52: 3.2 | AG52: 0.0 | AH52: 13.6 | AI52: 0.0 | AJ52: 0.0 | AM52: 3009 | AN52: 5 | AO52: 1.00 | AP52: 1.00 | AQ52: 1.00 | AR52: 1.00 | AS52: 1.00 | AT52: 1.00 | AU52: 1.00 | AV52: 1.00 | AW52: 1.00 | AX52: 1.00 | AY52: 1.00 | AZ52: 1.00 | BA52: 1.00 | BB52: 1.00 | BC52: 1.00 | BG52: 3009_5 | BH52: 2 | BI52: 9
A53: 3009 | B53: 7 | C53: 13993.6 | D53: 1469.2 | E53: 54.0 | F53: 26.9 | G53: 172.4 | H53: 17.4 | I53: 55.1 | J53: 4.5 | K53: 10.1 | L53: 349.4 | M53: 59.1 | N53: 6.7 | O53: 0.0 | P53: 0.1 | Q53: 0.0 | T53: 3009 | U53: 7 | V53: 13993.6 | W53: 1469.2 | X53: 54.0 | Y53: 26.9 | Z53: 172.4 | AA53: 17.4 | AB53: 55.1 | AC53: 4.5 | AD53: 10.1 | AE53: 349.4 | AF53: 59.1 | AG53: 6.7 | AH53: 0.0 | AI53: 0.1 | AJ53: 0.0 | AM53: 3009 | AN53: 7 | AO53: 1.00 | AP53: 1.00 | AQ53: 1.00 | AR53: 1.00 | AS53: 1.00 | AT53: 1.00 | AU53: 1.00 | AV53: 1.00 | AW53: 1.00 | AX53: 1.00 | AY53: 1.00 | AZ53: 1.00 | BA53: 1.00 | BB53: 1.00 | BC53: 1.00 | BG53: 3009_7 | BH53: 2 | BI53: 340
A54: 3009 | B54: 8 | C54: 1644.1 | D54: 468.9 | E54: 2914.4 | F54: 677.1 | G54: 875.4 | H54: 242.6 | I54: 341.5 | J54: 160.9 | K54: 629.2 | L54: 92.6 | M54: 245.6 | N54: 9.6 | O54: 54.4 | P54: 2.5 | Q54: 1.0 | T54: 3009 | U54: 8 | V54: 1644.1 | W54: 468.9 | X54: 2914.4 | Y54: 677.1 | Z54: 875.4 | AA54: 242.6 | AB54: 341.5 | AC54: 160.9 | AD54: 629.2 | AE54: 92.6 | AF54: 245.6 | AG54: 9.6 | AH54: 54.4 | AI54: 2.5 | AJ54: 1.0 | AM54: 3009 | AN54: 8 | AO54: 1.00 | AP54: 1.00 | AQ54: 1.00 | AR54: 1.00 | AS54: 1.00 | AT54: 1.00 | AU54: 1.00 | AV54: 1.00 | AW54: 1.00 | AX54: 1.00 | AY54: 1.00 | AZ54: 1.00 | BA54: 1.00 | BB54: 1.00 | BC54: 1.00 | BG54: 3009_8 | BH54: 2 | BI54: 74
A55: 3012 | B55: 0 | C55: 4467.5 | D55: 1710.7 | E55: 11219.5 | F55: 2053.5 | G55: 2736.8 | H55: 1775.8 | I55: 189.1 | J55: 13.0 | K55: 8.9 | L55: 0.0 | M55: 2427.7 | N55: 0.0 | O55: 0.0 | P55: 0.0 | Q55: 0.0 | T55: 3012 | U55: 0 | V55: 4467.5 | W55: 1710.7 | X55: 11219.5 | Y55: 2053.5 | Z55: 2736.8 | AA55: 1775.8 | AB55: 189.1 | AC55: 13.0 | AD55: 8.9 | AE55: 0.0 | AF55: 2427.7 | AG55: 0.0 | AH55: 0.0 | AI55: 0.0 | AJ55: 0.0 | AM55: 3012 | AN55: 0 | AO55: 1.00 | AP55: 1.00 | AQ55: 1.00 | AR55: 1.00 | AS55: 1.00 | AT55: 1.00 | AU55: 1.00 | AV55: 1.00 | AW55: 1.00 | AX55: 1.00 | AY55: 1.00 | AZ55: 1.00 | BA55: 1.00 | BB55: 1.00 | BC55: 1.00 | BG55: 3012_0 | BH55: 1 | BI55: 191
A56: 3012 | B56: 1 | C56: 3119.8 | D56: 537.1 | E56: 932.6 | F56: 194.0 | G56: 134.1 | H56: 181.4 | I56: 105.2 | J56: 179.1 | K56: 0.6 | L56: 32.9 | M56: 305.4 | N56: 0.2 | O56: 48.1 | P56: 6.1 | Q56: 10.6 | T56: 3012 | U56: 1 | V56: 3119.8 | W56: 537.1 | X56: 932.6 | Y56: 194.0 | Z56: 134.1 | AA56: 181.4 | AB56: 105.2 | AC56: 179.1 | AD56: 0.6 | AE56: 32.9 | AF56: 305.4 | AG56: 0.2 | AH56: 48.1 | AI56: 6.1 | AJ56: 10.6 | AM56: 3012 | AN56: 1 | AO56: 1.00 | AP56: 1.00 | AQ56: 1.00 | AR56: 1.00 | AS56: 1.00 | AT56: 1.00 | AU56: 1.00 | AV56: 1.00 | AW56: 1.00 | AX56: 1.00 | AY56: 1.00 | AZ56: 1.00 | BA56: 1.00 | BB56: 1.00 | BC56: 1.00 | BG56: 3012_1 | BH56: 1 | BI56: 145
A57: 3012 | B57: 2 | C57: 115.9 | D57: 96.9 | E57: 306.0 | F57: 0.0 | G57: 39.5 | H57: 0.0 | I57: 8.7 | J57: 0.0 | K57: 0.0 | L57: 0.0 | M57: 176.8 | N57: 0.0 | O57: 123.2 | P57: 2.6 | Q57: 0.3 | T57: 3012 | U57: 2 | V57: 115.9 | W57: 96.9 | X57: 306.0 | Y57: 0.0 | Z57: 39.5 | AA57: 0.0 | AB57: 8.7 | AC57: 0.0 | AD57: 0.0 | AE57: 0.0 | AF57: 176.8 | AG57: 0.0 | AH57: 123.2 | AI57: 2.6 | AJ57: 0.3 | AM57: 3012 | AN57: 2 | AO57: 1.00 | AP57: 1.00 | AQ57: 1.00 | AR57: 1.00 | AS57: 1.00 | AT57: 1.00 | AU57: 1.00 | AV57: 1.00 | AW57: 1.00 | AX57: 1.00 | AY57: 1.00 | AZ57: 1.00 | BA57: 1.00 | BB57: 1.00 | BC57: 1.00 | BG57: 3012_2 | BH57: 1 | BI57: 15
A58: 3012 | B58: 5 | C58: 696.1 | D58: 719.8 | E58: 342.3 | F58: 75.5 | G58: 98.0 | H58: 0.0 | I58: 314.5 | J58: 0.0 | K58: 0.0 | L58: 29.0 | M58: 15.5 | N58: 0.0 | O58: 0.0 | P58: 0.0 | Q58: 0.0 | T58: 3012 | U58: 5 | V58: 696.1 | W58: 719.8 | X58: 342.3 | Y58: 75.5 | Z58: 98.0 | AA58: 0.0 | AB58: 314.5 | AC58: 0.0 | AD58: 0.0 | AE58: 29.0 | AF58: 15.5 | AG58: 0.0 | AH58: 0.0 | AI58: 0.0 | AJ58: 0.0 | AM58: 3012 | AN58: 5 | AO58: 1.00 | AP58: 1.00 | AQ58: 1.00 | AR58: 1.00 | AS58: 1.00 | AT58: 1.00 | AU58: 1.00 | AV58: 1.00 | AW58: 1.00 | AX58: 1.00 | AY58: 1.00 | AZ58: 1.00 | BA58: 1.00 | BB58: 1.00 | BC58: 1.00 | BG58: 3012_5 | BH58: 1 | BI58: 11
A59: 3012 | B59: 7 | C59: 11067.5 | D59: 1568.0 | E59: 142.5 | F59: 44.6 | G59: 129.1 | H59: 0.0 | I59: 109.3 | J59: 0.0 | K59: 0.0 | L59: 21.9 | M59: 59.8 | N59: 4.9 | O59: 2.1 | P59: 0.0 | Q59: 0.0 | T59: 3012 | U59: 7 | V59: 11067.5 | W59: 1568.0 | X59: 142.5 | Y59: 44.6 | Z59: 129.1 | AA59: 0.0 | AB59: 109.3 | AC59: 0.0 | AD59: 0.0 | AE59: 21.9 | AF59: 59.8 | AG59: 4.9 | AH59: 2.1 | AI59: 0.0 | AJ59: 0.0 | AM59: 3012 | AN59: 7 | AO59: 1.00 | AP59: 1.00 | AQ59: 1.00 | AR59: 1.00 | AS59: 1.00 | AT59: 1.00 | AU59: 1.00 | AV59: 1.00 | AW59: 1.00 | AX59: 1.00 | AY59: 1.00 | AZ59: 1.00 | BA59: 1.00 | BB59: 1.00 | BC59: 1.00 | BG59: 3012_7 | BH59: 1 | BI59: 300
A60: 3012 | B60: 8 | C60: 3345.0 | D60: 942.2 | E60: 2026.4 | F60: 441.0 | G60: 511.0 | H60: 222.6 | I60: 370.1 | J60: 0.0 | K60: 0.0 | L60: 24.5 | M60: 777.7 | N60: 0.0 | O60: 36.1 | P60: 1.7 | Q60: 0.0 | T60: 3012 | U60: 8 | V60: 3345.0 | W60: 942.2 | X60: 2026.4 | Y60: 441.0 | Z60: 511.0 | AA60: 222.6 | AB60: 370.1 | AC60: 0.0 | AD60: 0.0 | AE60: 24.5 | AF60: 777.7 | AG60: 0.0 | AH60: 36.1 | AI60: 1.7 | AJ60: 0.0 | AM60: 3012 | AN60: 8 | AO60: 1.00 | AP60: 1.00 | AQ60: 1.00 | AR60: 1.00 | AS60: 1.00 | AT60: 1.00 | AU60: 1.00 | AV60: 1.00 | AW60: 1.00 | AX60: 1.00 | AY60: 1.00 | AZ60: 1.00 | BA60: 1.00 | BB60: 1.00 | BC60: 1.00 | BG60: 3012_8 | BH60: 1 | BI60: 66
A61: 3017 | B61: 0 | C61: 2718.2 | D61: 1081.1 | E61: 10837.1 | F61: 1636.7 | G61: 2689.9 | H61: 1401.0 | I61: 256.2 | J61: 10.3 | K61: 2.4 | L61: 36.3 | M61: 3019.0 | N61: 0.0 | O61: 0.0 | P61: 0.3 | Q61: 0.0 | T61: 3017 | U61: 0 | V61: 2718.2 | W61: 1081.1 | X61: 10837.1 | Y61: 1636.7 | Z61: 2689.9 | AA61: 1401.0 | AB61: 256.2 | AC61: 10.3 | AD61: 2.4 | AE61: 36.3 | AF61: 3019.0 | AG61: 0.0 | AH61: 0.0 | AI61: 0.3 | AJ61: 0.0 | AM61: 3017 | AN61: 0 | AO61: 1.00 | AP61: 1.00 | AQ61: 1.00 | AR61: 1.00 | AS61: 1.00 | AT61: 1.00 | AU61: 1.00 | AV61: 1.00 | AW61: 1.00 | AX61: 1.00 | AY61: 1.00 | AZ61: 1.00 | BA61: 1.00 | BB61: 1.00 | BC61: 1.00 | BG61: 3017_0 | BH61: 2 | BI61: 150
A62: 3017 | B62: 1 | C62: 1993.5 | D62: 357.2 | E62: 1.5 | F62: 0.0 | G62: 0.0 | H62: 0.0 | I62: 36.3 | J62: 0.0 | K62: 0.0 | L62: 73.9 | M62: 13.1 | N62: 0.0 | O62: 0.0 | P62: 0.0 | Q62: 0.0 | T62: 3017 | U62: 1 | V62: 1993.5 | W62: 357.2 | X62: 1.5 | Y62: 0.0 | Z62: 0.0 | AA62: 0.0 | AB62: 36.3 | AC62: 0.0 | AD62: 0.0 | AE62: 73.9 | AF62: 13.1 | AG62: 0.0 | AH62: 0.0 | AI62: 0.0 | AJ62: 0.0 | AM62: 3017 | AN62: 1 | AO62: 1.00 | AP62: 1.00 | AQ62: 1.00 | AR62: 1.00 | AS62: 1.00 | AT62: 1.00 | AU62: 1.00 | AV62: 1.00 | AW62: 1.00 | AX62: 1.00 | AY62: 1.00 | AZ62: 1.00 | BA62: 1.00 | BB62: 1.00 | BC62: 1.00 | BG62: 3017_1 | BH62: 2 | BI62: 96
A63: 3017 | B63: 2 | C63: 164.5 | D63: 46.3 | E63: 95.9 | F63: 0.0 | G63: 29.9 | H63: 62.6 | I63: 0.0 | J63: 0.0 | K63: 0.0 | L63: 0.0 | M63: 45.1 | N63: 0.0 | O63: 18.5 | P63: 23.8 | Q63: 12.2 | T63: 3017 | U63: 2 | V63: 164.5 | W63: 46.3 | X63: 95.9 | Y63: 0.0 | Z63: 29.9 | AA63: 62.6 | AB63: 0.0 | AC63: 0.0 | AD63: 0.0 | AE63: 0.0 | AF63: 45.1 | AG63: 0.0 | AH63: 18.5 | AI63: 23.8 | AJ63: 12.2 | AM63: 3017 | AN63: 2 | AO63: 1.00 | AP63: 1.00 | AQ63: 1.00 | AR63: 1.00 | AS63: 1.00 | AT63: 1.00 | AU63: 1.00 | AV63: 1.00 | AW63: 1.00 | AX63: 1.00 | AY63: 1.00 | AZ63: 1.00 | BA63: 1.00 | BB63: 1.00 | BC63: 1.00 | BG63: 3017_2 | BH63: 2 | BI63: 26
A64: 3017 | B64: 5 | C64: 200.0 | D64: 643.9 | E64: 0.0 | F64: 0.0 | G64: 11.0 | H64: 0.0 | I64: 69.8 | J64: 0.2 | K64: 0.0 | L64: 25.5 | M64: 0.1 | N64: 0.1 | O64: 2.1 | P64: 0.0 | Q64: 0.1 | T64: 3017 | U64: 5 | V64: 200.0 | W64: 643.9 | X64: 0.0 | Y64: 0.0 | Z64: 11.0 | AA64: 0.0 | AB64: 69.8 | AC64: 0.2 | AD64: 0.0 | AE64: 25.5 | AF64: 0.1 | AG64: 0.1 | AH64: 2.1 | AI64: 0.0 | AJ64: 0.1 | AM64: 3017 | AN64: 5 | AO64: 1.00 | AP64: 1.00 | AQ64: 1.00 | AR64: 1.00 | AS64: 1.00 | AT64: 1.00 | AU64: 1.00 | AV64: 1.00 | AW64: 1.00 | AX64: 1.00 | AY64: 1.00 | AZ64: 1.00 | BA64: 1.00 | BB64: 1.00 | BC64: 1.00 | BG64: 3017_5 | BH64: 2 | BI64: 7
A65: 3017 | B65: 7 | C65: 5371.0 | D65: 929.4 | E65: 7.8 | F65: 19.4 | G65: 5.5 | H65: 0.0 | I65: 18.7 | J65: 0.0 | K65: 0.0 | L65: 47.9 | M65: 59.0 | N65: 0.0 | O65: 0.0 | P65: 0.0 | Q65: 0.0 | T65: 3017 | U65: 7 | V65: 5371.0 | W65: 929.4 | X65: 7.8 | Y65: 19.4 | Z65: 5.5 | AA65: 0.0 | AB65: 18.7 | AC65: 0.0 | AD65: 0.0 | AE65: 47.9 | AF65: 59.0 | AG65: 0.0 | AH65: 0.0 | AI65: 0.0 | AJ65: 0.0 | AM65: 3017 | AN65: 7 | AO65: 1.00 | AP65: 1.00 | AQ65: 1.00 | AR65: 1.00 | AS65: 1.00 | AT65: 1.00 | AU65: 1.00 | AV65: 1.00 | AW65: 1.00 | AX65: 1.00 | AY65: 1.00 | AZ65: 1.00 | BA65: 1.00 | BB65: 1.00 | BC65: 1.00 | BG65: 3017_7 | BH65: 2 | BI65: 233
A66: =AM66 -> 3017 | B66: =AN66 -> 8 | C66: =V66*AO66 -> 1083.0 | D66: =W66*AP66 -> 154.2 | E66: =X66*AQ66 -> 435.2 | F66: =Y66*AR66 -> 29.2 | G66: =Z66*AS66 -> 142.8 | H66: =AA66*AT66 -> 36.0 | I66: =AB66*AU66 -> 32.2 | J66: =AC66*AV66 -> 1.0 | K66: =AD66*AW66 -> 0.0 | L66: =AE66*AX66 -> 22.0 | M66: =AF66*AY66 -> 113.8 | N66: =AG66*AZ66 -> 0.0 | O66: =AH66*BA66 -> 0.0 | P66: =AI66*BB66 -> 0.2 | Q66: =AJ66*BC66 -> 0.0 | T66: 3017 | U66: 8 | V66: 1083.0 | W66: 154.2 | X66: 435.2 | Y66: 29.2 | Z66: 142.8 | AA66: 36.0 | AB66: 32.2 | AC66: 1.0 | AD66: 0.0 | AE66: 22.0 | AF66: 113.8 | AG66: 0.0 | AH66: 0.0 | AI66: 0.2 | AJ66: 0.0 | AM66: 3017 | AN66: 8 | AO66: 1.00 | AP66: 1.00 | AQ66: 1.00 | AR66: 1.00 | AS66: 1.00 | AT66: 1.00 | AU66: 1.00 | AV66: 1.00 | AW66: 1.00 | AX66: 1.00 | AY66: 1.00 | AZ66: 1.00 | BA66: 1.00 | BB66: 1.00 | BC66: 1.00 | BG66: 3017_8 | BH66: 2 | BI66: 28
A67: 3018 | B67: 0 | C67: 6464.3 | D67: 3673.8 | E67: 69455.4 | F67: 9085.8 | G67: 12891.9 | H67: 10260.6 | I67: 2206.7 | J67: 569.7 | K67: 1902.3 | L67: 468.6 | M67: 6793.2 | N67: 13.2 | O67: 1753.2 | P67: 7.1 | Q67: 42.2 | T67: 3018 | U67: 0 | V67: 6464.3 | W67: 3673.8 | X67: 69455.4 | Y67: 9085.8 | Z67: 12891.9 | AA67: 10260.6 | AB67: 2206.7 | AC67: 569.7 | AD67: 1902.3 | AE67: 468.6 | AF67: 6793.2 | AG67: 13.2 | AH67: 1753.2 | AI67: 7.1 | AJ67: 42.2 | AM67: 3018 | AN67: 0 | AO67: 1.00 | AP67: 1.00 | AQ67: 1.00 | AR67: 1.00 | AS67: 1.00 | AT67: 1.00 | AU67: 1.00 | AV67: 1.00 | AW67: 1.00 | AX67: 1.00 | AY67: 1.00 | AZ67: 1.00 | BA67: 1.00 | BB67: 1.00 | BC67: 1.00 | BG67: 3018_0 | BH67: 2 | BI67: 971
A68: 3018 | B68: 1 | C68: 4204.7 | D68: 1803.8 | E68: 7678.0 | F68: 1796.2 | G68: 1665.6 | H68: 650.3 | I68: 764.9 | J68: 2201.5 | K68: 1584.8 | L68: 378.7 | M68: 1115.2 | N68: 69.8 | O68: 1107.2 | P68: 53.8 | Q68: 35.8 | T68: 3018 | U68: 1 | V68: 4204.7 | W68: 1803.8 | X68: 7678.0 | Y68: 1796.2 | Z68: 1665.6 | AA68: 650.3 | AB68: 764.9 | AC68: 2201.5 | AD68: 1584.8 | AE68: 378.7 | AF68: 1115.2 | AG68: 69.8 | AH68: 1107.2 | AI68: 53.8 | AJ68: 35.8 | AM68: 3018 | AN68: 1 | AO68: 1.00 | AP68: 1.00 | AQ68: 1.00 | AR68: 1.00 | AS68: 1.00 | AT68: 1.00 | AU68: 1.00 | AV68: 1.00 | AW68: 1.00 | AX68: 1.00 | AY68: 1.00 | AZ68: 1.00 | BA68: 1.00 | BB68: 1.00 | BC68: 1.00 | BG68: 3018_1 | BH68: 2 | BI68: 399
A69: 3018 | B69: 2 | C69: 453.5 | D69: 116.7 | E69: 769.6 | F69: 90.1 | G69: 278.6 | H69: 10.1 | I69: 28.2 | J69: 42.6 | K69: 13.0 | L69: 3.7 | M69: 230.8 | N69: 0.1 | O69: 198.3 | P69: 285.4 | Q69: 191.2 | T69: 3018 | U69: 2 | V69: 453.5 | W69: 116.7 | X69: 769.6 | Y69: 90.1 | Z69: 278.6 | AA69: 10.1 | AB69: 28.2 | AC69: 42.6 | AD69: 13.0 | AE69: 3.7 | AF69: 230.8 | AG69: 0.1 | AH69: 198.3 | AI69: 285.4 | AJ69: 191.2 | AM69: 3018 | AN69: 2 | AO69: 1.00 | AP69: 1.00 | AQ69: 1.00 | AR69: 1.00 | AS69: 1.00 | AT69: 1.00 | AU69: 1.00 | AV69: 1.00 | AW69: 1.00 | AX69: 1.00 | AY69: 1.00 | AZ69: 1.00 | BA69: 1.00 | BB69: 1.00 | BC69: 1.00 | BG69: 3018_2 | BH69: 2 | BI69: 113
A70: 3018 | B70: 5 | C70: 55.0 | D70: 105.0 | E70: 41.0 | F70: 0.0 | G70: 0.0 | H70: 0.0 | I70: 18.1 | J70: 0.0 | K70: 0.0 | L70: 0.0 | M70: 0.0 | N70: 0.0 | O70: 0.0 | P70: 0.0 | Q70: 0.0 | T70: 3018 | U70: 5 | V70: 55.0 | W70: 105.0 | X70: 41.0 | Y70: 0.0 | Z70: 0.0 | AA70: 0.0 | AB70: 18.1 | AC70: 0.0 | AD70: 0.0 | AE70: 0.0 | AF70: 0.0 | AG70: 0.0 | AH70: 0.0 | AI70: 0.0 | AJ70: 0.0 | AM70: 3018 | AN70: 5 | AO70: 1.00 | AP70: 1.00 | AQ70: 1.00 | AR70: 1.00 | AS70: 1.00 | AT70: 1.00 | AU70: 1.00 | AV70: 1.00 | AW70: 1.00 | AX70: 1.00 | AY70: 1.00 | AZ70: 1.00 | BA70: 1.00 | BB70: 1.00 | BC70: 1.00 | BG70: 3018_5 | BH70: 2 | BI70: 3
A71: 3018 | B71: 7 | C71: 7152.9 | D71: 990.4 | E71: 120.2 | F71: 25.2 | G71: 46.3 | H71: 0.0 | I71: 50.4 | J71: 0.1 | K71: 1.0 | L71: 7.5 | M71: 13.5 | N71: 2.5 | O71: 35.8 | P71: 0.2 | Q71: 0.0 | T71: 3018 | U71: 7 | V71: 7152.9 | W71: 990.4 | X71: 120.2 | Y71: 25.2 | Z71: 46.3 | AA71: 0.0 | AB71: 50.4 | AC71: 0.1 | AD71: 1.0 | AE71: 7.5 | AF71: 13.5 | AG71: 2.5 | AH71: 35.8 | AI71: 0.2 | AJ71: 0.0 | AM71: 3018 | AN71: 7 | AO71: 1.00 | AP71: 1.00 | AQ71: 1.00 | AR71: 1.00 | AS71: 1.00 | AT71: 1.00 | AU71: 1.00 | AV71: 1.00 | AW71: 1.00 | AX71: 1.00 | AY71: 1.00 | AZ71: 1.00 | BA71: 1.00 | BB71: 1.00 | BC71: 1.00 | BG71: 3018_7 | BH71: 2 | BI71: 413
A72: 3018 | B72: 8 | C72: 1156.4 | D72: 666.5 | E72: 1562.0 | F72: 548.4 | G72: 473.0 | H72: 151.0 | I72: 66.3 | J72: 24.3 | K72: 152.0 | L72: 110.9 | M72: 360.1 | N72: 4.0 | O72: 125.0 | P72: 4.4 | Q72: 0.0 | T72: 3018 | U72: 8 | V72: 1156.4 | W72: 666.5 | X72: 1562.0 | Y72: 548.4 | Z72: 473.0 | AA72: 151.0 | AB72: 66.3 | AC72: 24.3 | AD72: 152.0 | AE72: 110.9 | AF72: 360.1 | AG72: 4.0 | AH72: 125.0 | AI72: 4.4 | AJ72: 0.0 | AM72: 3018 | AN72: 8 | AO72: 1.00 | AP72: 1.00 | AQ72: 1.00 | AR72: 1.00 | AS72: 1.00 | AT72: 1.00 | AU72: 1.00 | AV72: 1.00 | AW72: 1.00 | AX72: 1.00 | AY72: 1.00 | AZ72: 1.00 | BA72: 1.00 | BB72: 1.00 | BC72: 1.00 | BG72: 3018_8 | BH72: 2 | BI72: 86
A73: 3021 | B73: 0 | C73: 9018.5 | D73: 4338.2 | E73: 20357.2 | F73: 5291.9 | G73: 9827.1 | H73: 4248.0 | I73: 1025.6 | J73: 164.9 | K73: 44.6 | L73: 240.7 | M73: 5287.8 | N73: 38.6 | O73: 12.2 | P73: 2.6 | Q73: 0.0 | T73: 3021 | U73: 0 | V73: 9018.5 | W73: 4338.2 | X73: 20357.2 | Y73: 5291.9 | Z73: 9827.1 | AA73: 4248.0 | AB73: 1025.6 | AC73: 164.9 | AD73: 44.6 | AE73: 240.7 | AF73: 5287.8 | AG73: 38.6 | AH73: 12.2 | AI73: 2.6 | AJ73: 0.0 | AM73: 3021 | AN73: 0 | AO73: 1.00 | AP73: 1.00 | AQ73: 1.00 | AR73: 1.00 | AS73: 1.00 | AT73: 1.00 | AU73: 1.00 | AV73: 1.00 | AW73: 1.00 | AX73: 1.00 | AY73: 1.00 | AZ73: 1.00 | BA73: 1.00 | BB73: 1.00 | BC73: 1.00 | BG73: 3021_0 | BH73: 5 | BI73: 209
A74: 3021 | B74: 1 | C74: 3835.1 | D74: 1755.3 | E74: 247.9 | F74: 131.1 | G74: 279.3 | H74: 40.7 | I74: 75.1 | J74: 62.0 | K74: 1.4 | L74: 138.5 | M74: 260.8 | N74: 3.7 | O74: 45.6 | P74: 3.1 | Q74: 0.0 | T74: 3021 | U74: 1 | V74: 3835.1 | W74: 1755.3 | X74: 247.9 | Y74: 131.1 | Z74: 279.3 | AA74: 40.7 | AB74: 75.1 | AC74: 62.0 | AD74: 1.4 | AE74: 138.5 | AF74: 260.8 | AG74: 3.7 | AH74: 45.6 | AI74: 3.1 | AJ74: 0.0 | AM74: 3021 | AN74: 1 | AO74: 1.00 | AP74: 1.00 | AQ74: 1.00 | AR74: 1.00 | AS74: 1.00 | AT74: 1.00 | AU74: 1.00 | AV74: 1.00 | AW74: 1.00 | AX74: 1.00 | AY74: 1.00 | AZ74: 1.00 | BA74: 1.00 | BB74: 1.00 | BC74: 1.00 | BG74: 3021_1 | BH74: 5 | BI74: 125
A75: 3021 | B75: 2 | C75: 100.5 | D75: 42.1 | E75: 1.0 | F75: 0.0 | G75: 10.0 | H75: 0.0 | I75: 0.0 | J75: 0.1 | K75: 0.0 | L75: 0.0 | M75: 4.3 | N75: 0.0 | O75: 25.3 | P75: 20.1 | Q75: 3.6 | T75: 3021 | U75: 2 | V75: 100.5 | W75: 42.1 | X75: 1.0 | Y75: 0.0 | Z75: 10.0 | AA75: 0.0 | AB75: 0.0 | AC75: 0.1 | AD75: 0.0 | AE75: 0.0 | AF75: 4.3 | AG75: 0.0 | AH75: 25.3 | AI75: 20.1 | AJ75: 3.6 | AM75: 3021 | AN75: 2 | AO75: 1.00 | AP75: 1.00 | AQ75: 1.00 | AR75: 1.00 | AS75: 1.00 | AT75: 1.00 | AU75: 1.00 | AV75: 1.00 | AW75: 1.00 | AX75: 1.00 | AY75: 1.00 | AZ75: 1.00 | BA75: 1.00 | BB75: 1.00 | BC75: 1.00 | BG75: 3021_2 | BH75: 5 | BI75: 17
A76: 3021 | B76: 5 | C76: 1285.1 | D76: 1141.6 | E76: 556.9 | F76: 75.0 | G76: 315.5 | H76: 155.8 | I76: 332.0 | J76: 0.0 | K76: 14.0 | L76: 138.6 | M76: 69.9 | N76: 33.1 | O76: 0.0 | P76: 0.0 | Q76: 0.0 | T76: 3021 | U76: 5 | V76: 1285.1 | W76: 1141.6 | X76: 556.9 | Y76: 75.0 | Z76: 315.5 | AA76: 155.8 | AB76: 332.0 | AC76: 0.0 | AD76: 14.0 | AE76: 138.6 | AF76: 69.9 | AG76: 33.1 | AH76: 0.0 | AI76: 0.0 | AJ76: 0.0 | AM76: 3021 | AN76: 5 | AO76: 1.00 | AP76: 1.00 | AQ76: 1.00 | AR76: 1.00 | AS76: 1.00 | AT76: 1.00 | AU76: 1.00 | AV76: 1.00 | AW76: 1.00 | AX76: 1.00 | AY76: 1.00 | AZ76: 1.00 | BA76: 1.00 | BB76: 1.00 | BC76: 1.00 | BG76: 3021_5 | BH76: 5 | BI76: 15
A77: 3021 | B77: 7 | C77: 12648.0 | D77: 2515.2 | E77: 115.0 | F77: 60.1 | G77: 152.6 | H77: 6.9 | I77: 9.3 | J77: 0.0 | K77: 5.0 | L77: 355.3 | M77: 143.1 | N77: 17.6 | O77: 15.0 | P77: 0.6 | Q77: 4.6 | T77: 3021 | U77: 7 | V77: 12648.0 | W77: 2515.2 | X77: 115.0 | Y77: 60.1 | Z77: 152.6 | AA77: 6.9 | AB77: 9.3 | AC77: 0.0 | AD77: 5.0 | AE77: 355.3 | AF77: 143.1 | AG77: 17.6 | AH77: 15.0 | AI77: 0.6 | AJ77: 4.6 | AM77: 3021 | AN77: 7 | AO77: 1.00 | AP77: 1.00 | AQ77: 1.00 | AR77: 1.00 | AS77: 1.00 | AT77: 1.00 | AU77: 1.00 | AV77: 1.00 | AW77: 1.00 | AX77: 1.00 | AY77: 1.00 | AZ77: 1.00 | BA77: 1.00 | BB77: 1.00 | BC77: 1.00 | BG77: 3021_7 | BH77: 5 | BI77: 252
A78: 3021 | B78: 8 | C78: 5177.4 | D78: 2992.6 | E78: 3378.6 | F78: 708.2 | G78: 1506.0 | H78: 497.9 | I78: 350.3 | J78: 19.6 | K78: 23.6 | L78: 91.2 | M78: 1232.1 | N78: 12.1 | O78: 26.4 | P78: 4.8 | Q78: 4.3 | T78: 3021 | U78: 8 | V78: 5177.4 | W78: 2992.6 | X78: 3378.6 | Y78: 708.2 | Z78: 1506.0 | AA78: 497.9 | AB78: 350.3 | AC78: 19.6 | AD78: 23.6 | AE78: 91.2 | AF78: 1232.1 | AG78: 12.1 | AH78: 26.4 | AI78: 4.8 | AJ78: 4.3 | AM78: 3021 | AN78: 8 | AO78: 1.00 | AP78: 1.00 | AQ78: 1.00 | AR78: 1.00 | AS78: 1.00 | AT78: 1.00 | AU78: 1.00 | AV78: 1.00 | AW78: 1.00 | AX78: 1.00 | AY78: 1.00 | AZ78: 1.00 | BA78: 1.00 | BB78: 1.00 | BC78: 1.00 | BG78: 3021_8 | BH78: 5 | BI78: 68
A79: 3022 | B79: 0 | C79: 1543.1 | D79: 320.9 | E79: 1854.1 | F79: 106.2 | G79: 712.9 | H79: 390.4 | I79: 61.1 | J79: 0.4 | K79: 0.0 | L79: 0.0 | M79: 529.0 | N79: 0.0 | O79: 0.0 | P79: 0.0 | Q79: 0.0 | T79: 3022 | U79: 0 | V79: 1543.1 | W79: 320.9 | X79: 1854.1 | Y79: 106.2 | Z79: 712.9 | AA79: 390.4 | AB79: 61.1 | AC79: 0.4 | AD79: 0.0 | AE79: 0.0 | AF79: 529.0 | AG79: 0.0 | AH79: 0.0 | AI79: 0.0 | AJ79: 0.0 | AM79: 3022 | AN79: 0 | AO79: 1.00 | AP79: 1.00 | AQ79: 1.00 | AR79: 1.00 | AS79: 1.00 | AT79: 1.00 | AU79: 1.00 | AV79: 1.00 | AW79: 1.00 | AX79: 1.00 | AY79: 1.00 | AZ79: 1.00 | BA79: 1.00 | BB79: 1.00 | BC79: 1.00 | BG79: 3022_0 | BH79: 5 | BI79: 37
A80: 3022 | B80: 1 | C80: 1781.4 | D80: 141.8 | E80: 2.7 | F80: 0.0 | G80: 7.0 | H80: 0.0 | I80: 30.0 | J80: 39.9 | K80: 0.0 | L80: 6.9 | M80: 0.0 | N80: 2.3 | O80: 0.0 | P80: 0.0 | Q80: 0.0 | T80: 3022 | U80: 1 | V80: 1781.4 | W80: 141.8 | X80: 2.7 | Y80: 0.0 | Z80: 7.0 | AA80: 0.0 | AB80: 30.0 | AC80: 39.9 | AD80: 0.0 | AE80: 6.9 | AF80: 0.0 | AG80: 2.3 | AH80: 0.0 | AI80: 0.0 | AJ80: 0.0 | AM80: 3022 | AN80: 1 | AO80: 1.00 | AP80: 1.00 | AQ80: 1.00 | AR80: 1.00 | AS80: 1.00 | AT80: 1.00 | AU80: 1.00 | AV80: 1.00 | AW80: 1.00 | AX80: 1.00 | AY80: 1.00 | AZ80: 1.00 | BA80: 1.00 | BB80: 1.00 | BC80: 1.00 | BG80: 3022_1 | BH80: 5 | BI80: 98
A81: 3022 | B81: 2 | C81: 81.1 | D81: 1.2 | E81: 0.0 | F81: 0.0 | G81: 0.0 | H81: 0.0 | I81: 0.0 | J81: 0.3 | K81: 0.0 | L81: 0.0 | M81: 0.2 | N81: 0.0 | O81: 8.2 | P81: 51.1 | Q81: 16.3 | T81: 3022 | U81: 2 | V81: 81.1 | W81: 1.2 | X81: 0.0 | Y81: 0.0 | Z81: 0.0 | AA81: 0.0 | AB81: 0.0 | AC81: 0.3 | AD81: 0.0 | AE81: 0.0 | AF81: 0.2 | AG81: 0.0 | AH81: 8.2 | AI81: 51.1 | AJ81: 16.3 | AM81: 3022 | AN81: 2 | AO81: 1.00 | AP81: 1.00 | AQ81: 1.00 | AR81: 1.00 | AS81: 1.00 | AT81: 1.00 | AU81: 1.00 | AV81: 1.00 | AW81: 1.00 | AX81: 1.00 | AY81: 1.00 | AZ81: 1.00 | BA81: 1.00 | BB81: 1.00 | BC81: 1.00 | BG81: 3022_2 | BH81: 5 | BI81: 25
A82: 3022 | B82: 5 | C82: 830.9 | D82: 403.0 | E82: 38.9 | F82: 0.0 | G82: 0.0 | H82: 0.0 | I82: 191.6 | J82: 0.0 | K82: 0.0 | L82: 16.6 | M82: 17.1 | N82: 0.0 | O82: 0.3 | P82: 0.0 | Q82: 0.0 | T82: 3022 | U82: 5 | V82: 830.9 | W82: 403.0 | X82: 38.9 | Y82: 0.0 | Z82: 0.0 | AA82: 0.0 | AB82: 191.6 | AC82: 0.0 | AD82: 0.0 | AE82: 16.6 | AF82: 17.1 | AG82: 0.0 | AH82: 0.3 | AI82: 0.0 | AJ82: 0.0 | AM82: 3022 | AN82: 5 | AO82: 1.00 | AP82: 1.00 | AQ82: 1.00 | AR82: 1.00 | AS82: 1.00 | AT82: 1.00 | AU82: 1.00 | AV82: 1.00 | AW82: 1.00 | AX82: 1.00 | AY82: 1.00 | AZ82: 1.00 | BA82: 1.00 | BB82: 1.00 | BC82: 1.00 | BG82: 3022_5 | BH82: 5 | BI82: 10
A83: 3022 | B83: 7 | C83: 8543.8 | D83: 473.8 | E83: 74.6 | F83: 64.6 | G83: 75.2 | H83: 0.0 | I83: 106.8 | J83: 0.0 | K83: 0.0 | L83: 18.1 | M83: 74.0 | N83: 5.0 | O83: 0.0 | P83: 0.4 | Q83: 0.1 | T83: 3022 | U83: 7 | V83: 8543.8 | W83: 473.8 | X83: 74.6 | Y83: 64.6 | Z83: 75.2 | AA83: 0.0 | AB83: 106.8 | AC83: 0.0 | AD83: 0.0 | AE83: 18.1 | AF83: 74.0 | AG83: 5.0 | AH83: 0.0 | AI83: 0.4 | AJ83: 0.1 | AM83: 3022 | AN83: 7 | AO83: 1.00 | AP83: 1.00 | AQ83: 1.00 | AR83: 1.00 | AS83: 1.00 | AT83: 1.00 | AU83: 1.00 | AV83: 1.00 | AW83: 1.00 | AX83: 1.00 | AY83: 1.00 | AZ83: 1.00 | BA83: 1.00 | BB83: 1.00 | BC83: 1.00 | BG83: 3022_7 | BH83: 5 | BI83: 261
A84: 3022 | B84: 8 | C84: 954.4 | D84: 130.6 | E84: 231.9 | F84: 25.0 | G84: 104.4 | H84: 20.7 | I84: 80.0 | J84: 0.2 | K84: 0.0 | L84: 4.1 | M84: 81.0 | N84: 1.4 | O84: 8.6 | P84: 1.4 | Q84: 0.8 | T84: 3022 | U84: 8 | V84: 954.4 | W84: 130.6 | X84: 231.9 | Y84: 25.0 | Z84: 104.4 | AA84: 20.7 | AB84: 80.0 | AC84: 0.2 | AD84: 0.0 | AE84: 4.1 | AF84: 81.0 | AG84: 1.4 | AH84: 8.6 | AI84: 1.4 | AJ84: 0.8 | AM84: 3022 | AN84: 8 | AO84: 1.00 | AP84: 1.00 | AQ84: 1.00 | AR84: 1.00 | AS84: 1.00 | AT84: 1.00 | AU84: 1.00 | AV84: 1.00 | AW84: 1.00 | AX84: 1.00 | AY84: 1.00 | AZ84: 1.00 | BA84: 1.00 | BB84: 1.00 | BC84: 1.00 | BG84: 3022_8 | BH84: 5 | BI84: 37
A85: 3023 | B85: 0 | C85: 754.8 | D85: 163.3 | E85: 2311.6 | F85: 164.5 | G85: 216.3 | H85: 369.6 | I85: 15.5 | J85: 0.0 | K85: 0.0 | L85: 0.0 | M85: 506.2 | N85: 0.0 | O85: 0.0 | P85: 0.0 | Q85: 0.0 | T85: 3023 | U85: 0 | V85: 754.8 | W85: 163.3 | X85: 2311.6 | Y85: 164.5 | Z85: 216.3 | AA85: 369.6 | AB85: 15.5 | AC85: 0.0 | AD85: 0.0 | AE85: 0.0 | AF85: 506.2 | AG85: 0.0 | AH85: 0.0 | AI85: 0.0 | AJ85: 0.0 | AM85: 3023 | AN85: 0 | AO85: 1.00 | AP85: 1.00 | AQ85: 1.00 | AR85: 1.00 | AS85: 1.00 | AT85: 1.00 | AU85: 1.00 | AV85: 1.00 | AW85: 1.00 | AX85: 1.00 | AY85: 1.00 | AZ85: 1.00 | BA85: 1.00 | BB85: 1.00 | BC85: 1.00 | BG85: 3023_0 | BH85: 5 | BI85: 33
A86: 3023 | B86: 1 | C86: 1551.2 | D86: 141.6 | E86: 309.3 | F86: 22.5 | G86: 0.0 | H86: 31.6 | I86: 143.6 | J86: 19.3 | K86: 0.0 | L86: 8.0 | M86: 58.9 | N86: 0.0 | O86: 19.7 | P86: 0.8 | Q86: 44.4 | T86: 3023 | U86: 1 | V86: 1551.2 | W86: 141.6 | X86: 309.3 | Y86: 22.5 | Z86: 0.0 | AA86: 31.6 | AB86: 143.6 | AC86: 19.3 | AD86: 0.0 | AE86: 8.0 | AF86: 58.9 | AG86: 0.0 | AH86: 19.7 | AI86: 0.8 | AJ86: 44.4 | AM86: 3023 | AN86: 1 | AO86: 1.00 | AP86: 1.00 | AQ86: 1.00 | AR86: 1.00 | AS86: 1.00 | AT86: 1.00 | AU86: 1.00 | AV86: 1.00 | AW86: 1.00 | AX86: 1.00 | AY86: 1.00 | AZ86: 1.00 | BA86: 1.00 | BB86: 1.00 | BC86: 1.00 | BG86: 3023_1 | BH86: 5 | BI86: 50
A87: 3023 | B87: 2 | C87: 14.4 | D87: 33.4 | E87: 88.7 | F87: 0.0 | G87: 5.3 | H87: 0.0 | I87: 7.3 | J87: 0.0 | K87: 0.0 | L87: 1.0 | M87: 12.6 | N87: 0.0 | O87: 44.4 | P87: 24.4 | Q87: 9.0 | T87: 3023 | U87: 2 | V87: 14.4 | W87: 33.4 | X87: 88.7 | Y87: 0.0 | Z87: 5.3 | AA87: 0.0 | AB87: 7.3 | AC87: 0.0 | AD87: 0.0 | AE87: 1.0 | AF87: 12.6 | AG87: 0.0 | AH87: 44.4 | AI87: 24.4 | AJ87: 9.0 | AM87: 3023 | AN87: 2 | AO87: 1.00 | AP87: 1.00 | AQ87: 1.00 | AR87: 1.00 | AS87: 1.00 | AT87: 1.00 | AU87: 1.00 | AV87: 1.00 | AW87: 1.00 | AX87: 1.00 | AY87: 1.00 | AZ87: 1.00 | BA87: 1.00 | BB87: 1.00 | BC87: 1.00 | BG87: 3023_2 | BH87: 5 | BI87: 15
A88: 3023 | B88: 5 | C88: 268.5 | D88: 90.2 | E88: 78.6 | F88: 0.0 | G88: 0.0 | H88: 0.0 | I88: 48.2 | J88: 0.0 | K88: 0.0 | L88: 16.7 | M88: 0.0 | N88: 0.7 | O88: 0.0 | P88: 0.0 | Q88: 0.0 | T88: 3023 | U88: 5 | V88: 268.5 | W88: 90.2 | X88: 78.6 | Y88: 0.0 | Z88: 0.0 | AA88: 0.0 | AB88: 48.2 | AC88: 0.0 | AD88: 0.0 | AE88: 16.7 | AF88: 0.0 | AG88: 0.7 | AH88: 0.0 | AI88: 0.0 | AJ88: 0.0 | AM88: 3023 | AN88: 5 | AO88: 1.00 | AP88: 1.00 | AQ88: 1.00 | AR88: 1.00 | AS88: 1.00 | AT88: 1.00 | AU88: 1.00 | AV88: 1.00 | AW88: 1.00 | AX88: 1.00 | AY88: 1.00 | AZ88: 1.00 | BA88: 1.00 | BB88: 1.00 | BC88: 1.00 | BG88: 3023_5 | BH88: 5 | BI88: 6
A89: 3023 | B89: 7 | C89: 1208.5 | D89: 128.3 | E89: 0.0 | F89: 0.0 | G89: 0.0 | H89: 0.0 | I89: 13.5 | J89: 0.0 | K89: 0.0 | L89: 0.0 | M89: 16.0 | N89: 0.0 | O89: 0.0 | P89: 0.1 | Q89: 0.0 | T89: 3023 | U89: 7 | V89: 1208.5 | W89: 128.3 | X89: 0.0 | Y89: 0.0 | Z89: 0.0 | AA89: 0.0 | AB89: 13.5 | AC89: 0.0 | AD89: 0.0 | AE89: 0.0 | AF89: 16.0 | AG89: 0.0 | AH89: 0.0 | AI89: 0.1 | AJ89: 0.0 | AM89: 3023 | AN89: 7 | AO89: 1.00 | AP89: 1.00 | AQ89: 1.00 | AR89: 1.00 | AS89: 1.00 | AT89: 1.00 | AU89: 1.00 | AV89: 1.00 | AW89: 1.00 | AX89: 1.00 | AY89: 1.00 | AZ89: 1.00 | BA89: 1.00 | BB89: 1.00 | BC89: 1.00 | BG89: 3023_7 | BH89: 5 | BI89: 63
A90: 3023 | B90: 8 | C90: 797.3 | D90: 373.0 | E90: 997.1 | F90: 108.1 | G90: 81.2 | H90: 77.2 | I90: 307.5 | J90: 0.0 | K90: 0.0 | L90: 30.4 | M90: 177.0 | N90: 3.3 | O90: 0.0 | P90: 7.5 | Q90: 13.3 | T90: 3023 | U90: 8 | V90: 797.3 | W90: 373.0 | X90: 997.1 | Y90: 108.1 | Z90: 81.2 | AA90: 77.2 | AB90: 307.5 | AC90: 0.0 | AD90: 0.0 | AE90: 30.4 | AF90: 177.0 | AG90: 3.3 | AH90: 0.0 | AI90: 7.5 | AJ90: 13.3 | AM90: 3023 | AN90: 8 | AO90: 1.00 | AP90: 1.00 | AQ90: 1.00 | AR90: 1.00 | AS90: 1.00 | AT90: 1.00 | AU90: 1.00 | AV90: 1.00 | AW90: 1.00 | AX90: 1.00 | AY90: 1.00 | AZ90: 1.00 | BA90: 1.00 | BB90: 1.00 | BC90: 1.00 | BG90: 3023_8 | BH90: 5 | BI90: 16
A91: 3026 | B91: 0 | C91: 612.2 | D91: 388.8 | E91: 1180.6 | F91: 269.4 | G91: 602.8 | H91: 144.0 | I91: 169.2 | J91: 6.0 | K91: 0.0 | L91: 0.0 | M91: 137.4 | N91: 0.0 | O91: 0.0 | P91: 0.0 | Q91: 0.0 | T91: 3026 | U91: 0 | V91: 612.2 | W91: 388.8 | X91: 1180.6 | Y91: 269.4 | Z91: 602.8 | AA91: 144.0 | AB91: 169.2 | AC91: 6.0 | AD91: 0.0 | AE91: 0.0 | AF91: 137.4 | AG91: 0.0 | AH91: 0.0 | AI91: 0.0 | AJ91: 0.0 | AM91: 3026 | AN91: 0 | AO91: 1.00 | AP91: 1.00 | AQ91: 1.00 | AR91: 1.00 | AS91: 1.00 | AT91: 1.00 | AU91: 1.00 | AV91: 1.00 | AW91: 1.00 | AX91: 1.00 | AY91: 1.00 | AZ91: 1.00 | BA91: 1.00 | BB91: 1.00 | BC91: 1.00 | BG91: 3026_0 | BH91: 1 | BI91: 47
A92: 3026 | B92: 1 | C92: 4221.3 | D92: 362.0 | E92: 13.0 | F92: 81.8 | G92: 48.0 | H92: 0.0 | I92: 19.8 | J92: 2.0 | K92: 0.0 | L92: 0.0 | M92: 44.2 | N92: 0.0 | O92: 0.0 | P92: 0.1 | Q92: 0.0 | T92: 3026 | U92: 1 | V92: 4221.3 | W92: 362.0 | X92: 13.0 | Y92: 81.8 | Z92: 48.0 | AA92: 0.0 | AB92: 19.8 | AC92: 2.0 | AD92: 0.0 | AE92: 0.0 | AF92: 44.2 | AG92: 0.0 | AH92: 0.0 | AI92: 0.1 | AJ92: 0.0 | AM92: 3026 | AN92: 1 | AO92: 1.00 | AP92: 1.00 | AQ92: 1.00 | AR92: 1.00 | AS92: 1.00 | AT92: 1.00 | AU92: 1.00 | AV92: 1.00 | AW92: 1.00 | AX92: 1.00 | AY92: 1.00 | AZ92: 1.00 | BA92: 1.00 | BB92: 1.00 | BC92: 1.00 | BG92: 3026_1 | BH92: 1 | BI92: 181
A93: 3026 | B93: 2 | C93: 67.9 | D93: 23.3 | E93: 0.0 | F93: 0.0 | G93: 0.0 | H93: 0.0 | I93: 0.0 | J93: 0.0 | K93: 0.0 | L93: 0.0 | M93: 25.5 | N93: 0.0 | O93: 3.2 | P93: 1.1 | Q93: 0.0 | T93: 3026 | U93: 2 | V93: 67.9 | W93: 23.3 | X93: 0.0 | Y93: 0.0 | Z93: 0.0 | AA93: 0.0 | AB93: 0.0 | AC93: 0.0 | AD93: 0.0 | AE93: 0.0 | AF93: 25.5 | AG93: 0.0 | AH93: 3.2 | AI93: 1.1 | AJ93: 0.0 | AM93: 3026 | AN93: 2 | AO93: 1.00 | AP93: 1.00 | AQ93: 1.00 | AR93: 1.00 | AS93: 1.00 | AT93: 1.00 | AU93: 1.00 | AV93: 1.00 | AW93: 1.00 | AX93: 1.00 | AY93: 1.00 | AZ93: 1.00 | BA93: 1.00 | BB93: 1.00 | BC93: 1.00 | BG93: 3026_2 | BH93: 1 | BI93: 11
A94: 3026 | B94: 5 | C94: 9306.5 | D94: 1887.4 | E94: 489.0 | F94: 206.4 | G94: 118.0 | H94: 18.3 | I94: 120.8 | J94: 8.9 | K94: 8.3 | L94: 35.9 | M94: 408.2 | N94: 4.4 | O94: 2.4 | P94: 0.1 | Q94: 0.0 | T94: 3026 | U94: 5 | V94: 9306.5 | W94: 1887.4 | X94: 489.0 | Y94: 206.4 | Z94: 118.0 | AA94: 18.3 | AB94: 120.8 | AC94: 8.9 | AD94: 8.3 | AE94: 35.9 | AF94: 408.2 | AG94: 4.4 | AH94: 2.4 | AI94: 0.1 | AJ94: 0.0 | AM94: 3026 | AN94: 5 | AO94: 1.00 | AP94: 1.00 | AQ94: 1.00 | AR94: 1.00 | AS94: 1.00 | AT94: 1.00 | AU94: 1.00 | AV94: 1.00 | AW94: 1.00 | AX94: 1.00 | AY94: 1.00 | AZ94: 1.00 | BA94: 1.00 | BB94: 1.00 | BC94: 1.00 | BG94: 3026_5 | BH94: 1 | BI94: 112
A95: 3026 | B95: 7 | C95: 7405.2 | D95: 844.0 | E95: 213.9 | F95: 73.6 | G95: 64.7 | H95: 0.0 | I95: 36.5 | J95: 0.0 | K95: 0.0 | L95: 7.7 | M95: 46.0 | N95: 2.6 | O95: 0.0 | P95: 0.2 | Q95: 0.0 | T95: 3026 | U95: 7 | V95: 7405.2 | W95: 844.0 | X95: 213.9 | Y95: 73.6 | Z95: 64.7 | AA95: 0.0 | AB95: 36.5 | AC95: 0.0 | AD95: 0.0 | AE95: 7.7 | AF95: 46.0 | AG95: 2.6 | AH95: 0.0 | AI95: 0.2 | AJ95: 0.0 | AM95: 3026 | AN95: 7 | AO95: 1.00 | AP95: 1.00 | AQ95: 1.00 | AR95: 1.00 | AS95: 1.00 | AT95: 1.00 | AU95: 1.00 | AV95: 1.00 | AW95: 1.00 | AX95: 1.00 | AY95: 1.00 | AZ95: 1.00 | BA95: 1.00 | BB95: 1.00 | BC95: 1.00 | BG95: 3026_7 | BH95: 1 | BI95: 275
A96: 3026 | B96: 8 | C96: 1752.9 | D96: 393.0 | E96: 486.9 | F96: 189.6 | G96: 298.7 | H96: 54.5 | I96: 48.8 | J96: 2.0 | K96: 0.0 | L96: 12.2 | M96: 86.9 | N96: 4.1 | O96: 1.0 | P96: 2.1 | Q96: 0.0 | T96: 3026 | U96: 8 | V96: 1752.9 | W96: 393.0 | X96: 486.9 | Y96: 189.6 | Z96: 298.7 | AA96: 54.5 | AB96: 48.8 | AC96: 2.0 | AD96: 0.0 | AE96: 12.2 | AF96: 86.9 | AG96: 4.1 | AH96: 1.0 | AI96: 2.1 | AJ96: 0.0 | AM96: 3026 | AN96: 8 | AO96: 1.00 | AP96: 1.00 | AQ96: 1.00 | AR96: 1.00 | AS96: 1.00 | AT96: 1.00 | AU96: 1.00 | AV96: 1.00 | AW96: 1.00 | AX96: 1.00 | AY96: 1.00 | AZ96: 1.00 | BA96: 1.00 | BB96: 1.00 | BC96: 1.00 | BG96: 3026_8 | BH96: 1 | BI96: 67
A97: 3027 | B97: 0 | C97: 3637.8 | D97: 2094.9 | E97: 14871.1 | F97: 4247.3 | G97: 5426.4 | H97: 2340.4 | I97: 223.4 | J97: 205.0 | K97: 194.9 | L97: 171.5 | M97: 1799.4 | N97: 40.9 | O97: 273.5 | P97: 0.3 | Q97: 0.4 | T97: 3027 | U97: 0 | V97: 3637.8 | W97: 2094.9 | X97: 14871.1 | Y97: 4247.3 | Z97: 5426.4 | AA97: 2340.4 | AB97: 223.4 | AC97: 205.0 | AD97: 194.9 | AE97: 171.5 | AF97: 1799.4 | AG97: 40.9 | AH97: 273.5 | AI97: 0.3 | AJ97: 0.4 | AM97: 3027 | AN97: 0 | AO97: 1.00 | AP97: 1.00 | AQ97: 1.00 | AR97: 1.00 | AS97: 1.00 | AT97: 1.00 | AU97: 1.00 | AV97: 1.00 | AW97: 1.00 | AX97: 1.00 | AY97: 1.00 | AZ97: 1.00 | BA97: 1.00 | BB97: 1.00 | BC97: 1.00 | BG97: 3027_0 | BH97: 8 | BI97: 307
A98: 3027 | B98: 1 | C98: 5785.0 | D98: 1777.3 | E98: 7859.6 | F98: 1853.0 | G98: 3288.8 | H98: 1604.6 | I98: 547.5 | J98: 3289.8 | K98: 567.6 | L98: 199.5 | M98: 975.9 | N98: 56.6 | O98: 1200.1 | P98: 0.8 | Q98: 3.5 | T98: 3027 | U98: 1 | V98: 5785.0 | W98: 1777.3 | X98: 7859.6 | Y98: 1853.0 | Z98: 3288.8 | AA98: 1604.6 | AB98: 547.5 | AC98: 3289.8 | AD98: 567.6 | AE98: 199.5 | AF98: 975.9 | AG98: 56.6 | AH98: 1200.1 | AI98: 0.8 | AJ98: 3.5 | AM98: 3027 | AN98: 1 | AO98: 1.00 | AP98: 1.00 | AQ98: 1.00 | AR98: 1.00 | AS98: 1.00 | AT98: 1.00 | AU98: 1.00 | AV98: 1.00 | AW98: 1.00 | AX98: 1.00 | AY98: 1.00 | AZ98: 1.00 | BA98: 1.00 | BB98: 1.00 | BC98: 1.00 | BG98: 3027_1 | BH98: 8 | BI98: 282
A99: 3027 | B99: 2 | C99: 146.3 | D99: 254.5 | E99: 279.7 | F99: 70.7 | G99: 298.3 | H99: 16.6 | I99: 9.0 | J99: 38.5 | K99: 5.0 | L99: 17.5 | M99: 70.0 | N99: 1.6 | O99: 84.1 | P99: 2.8 | Q99: 10.0 | T99: 3027 | U99: 2 | V99: 146.3 | W99: 254.5 | X99: 279.7 | Y99: 70.7 | Z99: 298.3 | AA99: 16.6 | AB99: 9.0 | AC99: 38.5 | AD99: 5.0 | AE99: 17.5 | AF99: 70.0 | AG99: 1.6 | AH99: 84.1 | AI99: 2.8 | AJ99: 10.0 | AM99: 3027 | AN99: 2 | AO99: 1.00 | AP99: 1.00 | AQ99: 1.00 | AR99: 1.00 | AS99: 1.00 | AT99: 1.00 | AU99: 1.00 | AV99: 1.00 | AW99: 1.00 | AX99: 1.00 | AY99: 1.00 | AZ99: 1.00 | BA99: 1.00 | BB99: 1.00 | BC99: 1.00 | BG99: 3027_2 | BH99: 8 | BI99: 25
A100: 3027 | B100: 5 | C100: 2472.4 | D100: 1761.4 | E100: 685.1 | F100: 282.5 | G100: 243.0 | H100: 8.6 | I100: 212.6 | J100: 7.9 | K100: 8.5 | L100: 159.7 | M100: 131.9 | N100: 5.3 | O100: 0.0 | P100: 0.0 | Q100: 0.0 | T100: 3027 | U100: 5 | V100: 2472.4 | W100: 1761.4 | X100: 685.1 | Y100: 282.5 | Z100: 243.0 | AA100: 8.6 | AB100: 212.6 | AC100: 7.9 | AD100: 8.5 | AE100: 159.7 | AF100: 131.9 | AG100: 5.3 | AH100: 0.0 | AI100: 0.0 | AJ100: 0.0 | AM100: 3027 | AN100: 5 | AO100: 1.00 | AP100: 1.00 | AQ100: 1.00 | AR100: 1.00 | AS100: 1.00 | AT100: 1.00 | AU100: 1.00 | AV100: 1.00 | AW100: 1.00 | AX100: 1.00 | AY100: 1.00 | AZ100: 1.00 | BA100: 1.00 | BB100: 1.00 | BC100: 1.00 | BG100: 3027_5 | BH100: 8 | BI100: 34
A101: 3027 | B101: 7 | C101: 8959.1 | D101: 2867.5 | E101: 343.8 | F101: 372.4 | G101: 436.0 | H101: 12.5 | I101: 65.5 | J101: 21.8 | K101: 25.3 | L101: 91.4 | M101: 145.4 | N101: 22.9 | O101: 0.3 | P101: 1.0 | Q101: 0.0 | T101: 3027 | U101: 7 | V101: 8959.1 | W101: 2867.5 | X101: 343.8 | Y101: 372.4 | Z101: 436.0 | AA101: 12.5 | AB101: 65.5 | AC101: 21.8 | AD101: 25.3 | AE101: 91.4 | AF101: 145.4 | AG101: 22.9 | AH101: 0.3 | AI101: 1.0 | AJ101: 0.0 | AM101: 3027 | AN101: 7 | AO101: 1.00 | AP101: 1.00 | AQ101: 1.00 | AR101: 1.00 | AS101: 1.00 | AT101: 1.00 | AU101: 1.00 | AV101: 1.00 | AW101: 1.00 | AX101: 1.00 | AY101: 1.00 | AZ101: 1.00 | BA101: 1.00 | BB101: 1.00 | BC101: 1.00 | BG101: 3027_7 | BH101: 8 | BI101: 439
A102: 3027 | B102: 8 | C102: 7765.6 | D102: 3276.2 | E102: 6014.1 | F102: 2832.9 | G102: 2995.9 | H102: 833.6 | I102: 288.4 | J102: 542.8 | K102: 140.2 | L102: 454.5 | M102: 1270.6 | N102: 130.9 | O102: 79.2 | P102: 0.7 | Q102: 0.0 | T102: 3027 | U102: 8 | V102: 7765.6 | W102: 3276.2 | X102: 6014.1 | Y102: 2832.9 | Z102: 2995.9 | AA102: 833.6 | AB102: 288.4 | AC102: 542.8 | AD102: 140.2 | AE102: 454.5 | AF102: 1270.6 | AG102: 130.9 | AH102: 79.2 | AI102: 0.7 | AJ102: 0.0 | AM102: 3027 | AN102: 8 | AO102: 1.00 | AP102: 1.00 | AQ102: 1.00 | AR102: 1.00 | AS102: 1.00 | AT102: 1.00 | AU102: 1.00 | AV102: 1.00 | AW102: 1.00 | AX102: 1.00 | AY102: 1.00 | AZ102: 1.00 | BA102: 1.00 | BB102: 1.00 | BC102: 1.00 | BG102: 3027_8 | BH102: 8 | BI102: 218
A103: 3028 | B103: 0 | C103: 254.8 | D103: 57.4 | E103: 152.3 | F103: 192.8 | G103: 202.2 | H103: 63.1 | I103: 0.0 | J103: 11.2 | K103: 0.0 | L103: 0.0 | M103: 0.0 | N103: 0.0 | O103: 0.0 | P103: 0.0 | Q103: 0.0 | T103: 3028 | U103: 0 | V103: 254.8 | W103: 57.4 | X103: 152.3 | Y103: 192.8 | Z103: 202.2 | AA103: 63.1 | AB103: 0.0 | AC103: 11.2 | AD103: 0.0 | AE103: 0.0 | AF103: 0.0 | AG103: 0.0 | AH103: 0.0 | AI103: 0.0 | AJ103: 0.0 | AM103: 3028 | AN103: 0 | AO103: 1.00 | AP103: 1.00 | AQ103: 1.00 | AR103: 1.00 | AS103: 1.00 | AT103: 1.00 | AU103: 1.00 | AV103: 1.00 | AW103: 1.00 | AX103: 1.00 | AY103: 1.00 | AZ103: 1.00 | BA103: 1.00 | BB103: 1.00 | BC103: 1.00 | BG103: 3028_0 | BH103: 4 | BI103: 10
A104: 3028 | B104: 1 | C104: 2039.0 | D104: 259.2 | E104: 19.9 | F104: 14.2 | G104: 30.8 | H104: 12.1 | I104: 0.0 | J104: 0.0 | K104: 0.0 | L104: 0.0 | M104: 13.5 | N104: 0.0 | O104: 0.0 | P104: 2.4 | Q104: 0.0 | T104: 3028 | U104: 1 | V104: 2039.0 | W104: 259.2 | X104: 19.9 | Y104: 14.2 | Z104: 30.8 | AA104: 12.1 | AB104: 0.0 | AC104: 0.0 | AD104: 0.0 | AE104: 0.0 | AF104: 13.5 | AG104: 0.0 | AH104: 0.0 | AI104: 2.4 | AJ104: 0.0 | AM104: 3028 | AN104: 1 | AO104: 1.00 | AP104: 1.00 | AQ104: 1.00 | AR104: 1.00 | AS104: 1.00 | AT104: 1.00 | AU104: 1.00 | AV104: 1.00 | AW104: 1.00 | AX104: 1.00 | AY104: 1.00 | AZ104: 1.00 | BA104: 1.00 | BB104: 1.00 | BC104: 1.00 | BG104: 3028_1 | BH104: 4 | BI104: 98
A105: 3028 | B105: 2 | C105: 71.4 | D105: 11.4 | E105: 10.9 | F105: 0.0 | G105: 4.3 | H105: 0.0 | I105: 0.0 | J105: 0.3 | K105: 0.0 | L105: 0.2 | M105: 0.5 | N105: 0.1 | O105: 1.5 | P105: 1.2 | Q105: 0.0 | T105: 3028 | U105: 2 | V105: 71.4 | W105: 11.4 | X105: 10.9 | Y105: 0.0 | Z105: 4.3 | AA105: 0.0 | AB105: 0.0 | AC105: 0.3 | AD105: 0.0 | AE105: 0.2 | AF105: 0.5 | AG105: 0.1 | AH105: 1.5 | AI105: 1.2 | AJ105: 0.0 | AM105: 3028 | AN105: 2 | AO105: 1.00 | AP105: 1.00 | AQ105: 1.00 | AR105: 1.00 | AS105: 1.00 | AT105: 1.00 | AU105: 1.00 | AV105: 1.00 | AW105: 1.00 | AX105: 1.00 | AY105: 1.00 | AZ105: 1.00 | BA105: 1.00 | BB105: 1.00 | BC105: 1.00 | BG105: 3028_2 | BH105: 4 | BI105: 4
A106: 3028 | B106: 5 | C106: 5894.7 | D106: 1585.7 | E106: 286.1 | F106: 146.2 | G106: 644.2 | H106: 0.0 | I106: 51.9 | J106: 0.0 | K106: 0.0 | L106: 0.0 | M106: 20.3 | N106: 0.0 | O106: 0.0 | P106: 0.1 | Q106: 0.0 | T106: 3028 | U106: 5 | V106: 5894.7 | W106: 1585.7 | X106: 286.1 | Y106: 146.2 | Z106: 644.2 | AA106: 0.0 | AB106: 51.9 | AC106: 0.0 | AD106: 0.0 | AE106: 0.0 | AF106: 20.3 | AG106: 0.0 | AH106: 0.0 | AI106: 0.1 | AJ106: 0.0 | AM106: 3028 | AN106: 5 | AO106: 1.00 | AP106: 1.00 | AQ106: 1.00 | AR106: 1.00 | AS106: 1.00 | AT106: 1.00 | AU106: 1.00 | AV106: 1.00 | AW106: 1.00 | AX106: 1.00 | AY106: 1.00 | AZ106: 1.00 | BA106: 1.00 | BB106: 1.00 | BC106: 1.00 | BG106: 3028_5 | BH106: 4 | BI106: 64
A107: 3028 | B107: 7 | C107: 9290.5 | D107: 955.3 | E107: 47.5 | F107: 177.8 | G107: 367.1 | H107: 0.0 | I107: 1.6 | J107: 2.4 | K107: 1.4 | L107: 30.7 | M107: 0.0 | N107: 10.2 | O107: 0.0 | P107: 0.3 | Q107: 0.0 | T107: 3028 | U107: 7 | V107: 9290.5 | W107: 955.3 | X107: 47.5 | Y107: 177.8 | Z107: 367.1 | AA107: 0.0 | AB107: 1.6 | AC107: 2.4 | AD107: 1.4 | AE107: 30.7 | AF107: 0.0 | AG107: 10.2 | AH107: 0.0 | AI107: 0.3 | AJ107: 0.0 | AM107: 3028 | AN107: 7 | AO107: 1.00 | AP107: 1.00 | AQ107: 1.00 | AR107: 1.00 | AS107: 1.00 | AT107: 1.00 | AU107: 1.00 | AV107: 1.00 | AW107: 1.00 | AX107: 1.00 | AY107: 1.00 | AZ107: 1.00 | BA107: 1.00 | BB107: 1.00 | BC107: 1.00 | BG107: 3028_7 | BH107: 4 | BI107: 213
A108: 3028 | B108: 8 | C108: 1095.4 | D108: 249.5 | E108: 89.5 | F108: 63.8 | G108: 159.8 | H108: 19.0 | I108: 3.1 | J108: 1.2 | K108: 0.0 | L108: 3.0 | M108: 193.5 | N108: 1.0 | O108: 0.9 | P108: 0.1 | Q108: 1.0 | T108: 3028 | U108: 8 | V108: 1095.4 | W108: 249.5 | X108: 89.5 | Y108: 63.8 | Z108: 159.8 | AA108: 19.0 | AB108: 3.1 | AC108: 1.2 | AD108: 0.0 | AE108: 3.0 | AF108: 193.5 | AG108: 1.0 | AH108: 0.9 | AI108: 0.1 | AJ108: 1.0 | AM108: 3028 | AN108: 8 | AO108: 1.00 | AP108: 1.00 | AQ108: 1.00 | AR108: 1.00 | AS108: 1.00 | AT108: 1.00 | AU108: 1.00 | AV108: 1.00 | AW108: 1.00 | AX108: 1.00 | AY108: 1.00 | AZ108: 1.00 | BA108: 1.00 | BB108: 1.00 | BC108: 1.00 | BG108: 3028_8 | BH108: 4 | BI108: 24
A109: 3029 | B109: 0 | C109: 3319.5 | D109: 1540.3 | E109: 15078.3 | F109: 3328.1 | G109: 3267.5 | H109: 3177.6 | I109: 349.2 | J109: 216.7 | K109: 338.6 | L109: 187.2 | M109: 1964.6 | N109: 16.6 | O109: 74.2 | P109: 1.9 | Q109: 0.0 | T109: 3029 | U109: 0 | V109: 3319.5 | W109: 1540.3 | X109: 15078.3 | Y109: 3328.1 | Z109: 3267.5 | AA109: 3177.6 | AB109: 349.2 | AC109: 216.7 | AD109: 338.6 | AE109: 187.2 | AF109: 1964.6 | AG109: 16.6 | AH109: 74.2 | AI109: 1.9 | AJ109: 0.0 | AM109: 3029 | AN109: 0 | AO109: 1.00 | AP109: 1.00 | AQ109: 1.00 | AR109: 1.00 | AS109: 1.00 | AT109: 1.00 | AU109: 1.00 | AV109: 1.00 | AW109: 1.00 | AX109: 1.00 | AY109: 1.00 | AZ109: 1.00 | BA109: 1.00 | BB109: 1.00 | BC109: 1.00 | BG109: 3029_0 | BH109: 8 | BI109: 304
A110: 3029 | B110: 1 | C110: 3293.5 | D110: 1123.0 | E110: 4937.2 | F110: 720.9 | G110: 452.6 | H110: 1068.4 | I110: 337.3 | J110: 1597.2 | K110: 748.1 | L110: 36.2 | M110: 296.5 | N110: 2.4 | O110: 518.8 | P110: 0.0 | Q110: 0.0 | T110: 3029 | U110: 1 | V110: 3293.5 | W110: 1123.0 | X110: 4937.2 | Y110: 720.9 | Z110: 452.6 | AA110: 1068.4 | AB110: 337.3 | AC110: 1597.2 | AD110: 748.1 | AE110: 36.2 | AF110: 296.5 | AG110: 2.4 | AH110: 518.8 | AI110: 0.0 | AJ110: 0.0 | AM110: 3029 | AN110: 1 | AO110: 1.00 | AP110: 1.00 | AQ110: 1.00 | AR110: 1.00 | AS110: 1.00 | AT110: 1.00 | AU110: 1.00 | AV110: 1.00 | AW110: 1.00 | AX110: 1.00 | AY110: 1.00 | AZ110: 1.00 | BA110: 1.00 | BB110: 1.00 | BC110: 1.00 | BG110: 3029_1 | BH110: 8 | BI110: 233
A111: 3029 | B111: 2 | C111: 127.6 | D111: 93.5 | E111: 115.9 | F111: 47.9 | G111: 54.9 | H111: 46.0 | I111: 6.2 | J111: 1.9 | K111: 0.0 | L111: 0.0 | M111: 0.0 | N111: 0.0 | O111: 30.8 | P111: 0.7 | Q111: 18.1 | T111: 3029 | U111: 2 | V111: 127.6 | W111: 93.5 | X111: 115.9 | Y111: 47.9 | Z111: 54.9 | AA111: 46.0 | AB111: 6.2 | AC111: 1.9 | AD111: 0.0 | AE111: 0.0 | AF111: 0.0 | AG111: 0.0 | AH111: 30.8 | AI111: 0.7 | AJ111: 18.1 | AM111: 3029 | AN111: 2 | AO111: 1.00 | AP111: 1.00 | AQ111: 1.00 | AR111: 1.00 | AS111: 1.00 | AT111: 1.00 | AU111: 1.00 | AV111: 1.00 | AW111: 1.00 | AX111: 1.00 | AY111: 1.00 | AZ111: 1.00 | BA111: 1.00 | BB111: 1.00 | BC111: 1.00 | BG111: 3029_2 | BH111: 8 | BI111: 21
A112: 3029 | B112: 5 | C112: 3181.6 | D112: 1540.3 | E112: 718.4 | F112: 377.7 | G112: 225.5 | H112: 8.6 | I112: 186.0 | J112: 16.6 | K112: 70.2 | L112: 14.6 | M112: 99.6 | N112: 4.5 | O112: 2.4 | P112: 0.0 | Q112: 0.0 | T112: 3029 | U112: 5 | V112: 3181.6 | W112: 1540.3 | X112: 718.4 | Y112: 377.7 | Z112: 225.5 | AA112: 8.6 | AB112: 186.0 | AC112: 16.6 | AD112: 70.2 | AE112: 14.6 | AF112: 99.6 | AG112: 4.5 | AH112: 2.4 | AI112: 0.0 | AJ112: 0.0 | AM112: 3029 | AN112: 5 | AO112: 1.00 | AP112: 1.00 | AQ112: 1.00 | AR112: 1.00 | AS112: 1.00 | AT112: 1.00 | AU112: 1.00 | AV112: 1.00 | AW112: 1.00 | AX112: 1.00 | AY112: 1.00 | AZ112: 1.00 | BA112: 1.00 | BB112: 1.00 | BC112: 1.00 | BG112: 3029_5 | BH112: 8 | BI112: 61
A113: 3029 | B113: 7 | C113: 4722.8 | D113: 629.8 | E113: 133.3 | F113: 111.7 | G113: 101.0 | H113: 0.0 | I113: 0.0 | J113: 1.6 | K113: 3.4 | L113: 0.2 | M113: 27.1 | N113: 0.1 | O113: 0.0 | P113: 0.0 | Q113: 0.0 | T113: 3029 | U113: 7 | V113: 4722.8 | W113: 629.8 | X113: 133.3 | Y113: 111.7 | Z113: 101.0 | AA113: 0.0 | AB113: 0.0 | AC113: 1.6 | AD113: 3.4 | AE113: 0.2 | AF113: 27.1 | AG113: 0.1 | AH113: 0.0 | AI113: 0.0 | AJ113: 0.0 | AM113: 3029 | AN113: 7 | AO113: 1.00 | AP113: 1.00 | AQ113: 1.00 | AR113: 1.00 | AS113: 1.00 | AT113: 1.00 | AU113: 1.00 | AV113: 1.00 | AW113: 1.00 | AX113: 1.00 | AY113: 1.00 | AZ113: 1.00 | BA113: 1.00 | BB113: 1.00 | BC113: 1.00 | BG113: 3029_7 | BH113: 8 | BI113: 264
A114: 3029 | B114: 8 | C114: 2729.2 | D114: 1056.0 | E114: 2011.3 | F114: 850.0 | G114: 1018.5 | H114: 266.4 | I114: 85.6 | J114: 239.4 | K114: 116.2 | L114: 30.8 | M114: 150.3 | N114: 3.1 | O114: 6.0 | P114: 0.9 | Q114: 2.1 | T114: 3029 | U114: 8 | V114: 2729.2 | W114: 1056.0 | X114: 2011.3 | Y114: 850.0 | Z114: 1018.5 | AA114: 266.4 | AB114: 85.6 | AC114: 239.4 | AD114: 116.2 | AE114: 30.8 | AF114: 150.3 | AG114: 3.1 | AH114: 6.0 | AI114: 0.9 | AJ114: 2.1 | AM114: 3029 | AN114: 8 | AO114: 1.00 | AP114: 1.00 | AQ114: 1.00 | AR114: 1.00 | AS114: 1.00 | AT114: 1.00 | AU114: 1.00 | AV114: 1.00 | AW114: 1.00 | AX114: 1.00 | AY114: 1.00 | AZ114: 1.00 | BA114: 1.00 | BB114: 1.00 | BC114: 1.00 | BG114: 3029_8 | BH114: 8 | BI114: 112
A115: 3030 | B115: 0 | C115: 6510.6 | D115: 3175.8 | E115: 14772.4 | F115: 3609.9 | G115: 7526.9 | H115: 2805.7 | I115: 3240.4 | J115: 0.0 | K115: 0.0 | L115: 376.3 | M115: 4270.3 | N115: 47.7 | O115: 65.3 | P115: 0.5 | Q115: 3.1 | T115: 3030 | U115: 0 | V115: 6510.6 | W115: 3175.8 | X115: 14772.4 | Y115: 3609.9 | Z115: 7526.9 | AA115: 2805.7 | AB115: 3240.4 | AC115: 0.0 | AD115: 0.0 | AE115: 376.3 | AF115: 4270.3 | AG115: 47.7 | AH115: 65.3 | AI115: 0.5 | AJ115: 3.1 | AM115: 3030 | AN115: 0 | AO115: 1.00 | AP115: 1.00 | AQ115: 1.00 | AR115: 1.00 | AS115: 1.00 | AT115: 1.00 | AU115: 1.00 | AV115: 1.00 | AW115: 1.00 | AX115: 1.00 | AY115: 1.00 | AZ115: 1.00 | BA115: 1.00 | BB115: 1.00 | BC115: 1.00 | BG115: 3030_0 | BH115: 6 | BI115: 240
A116: 3030 | B116: 1 | C116: 7735.7 | D116: 2820.1 | E116: 715.8 | F116: 260.1 | G116: 538.1 | H116: 103.7 | I116: 826.5 | J116: 92.0 | K116: 0.0 | L116: 76.2 | M116: 282.4 | N116: 24.9 | O116: 76.3 | P116: 4.2 | Q116: 21.0 | T116: 3030 | U116: 1 | V116: 7735.7 | W116: 2820.1 | X116: 715.8 | Y116: 260.1 | Z116: 538.1 | AA116: 103.7 | AB116: 826.5 | AC116: 92.0 | AD116: 0.0 | AE116: 76.2 | AF116: 282.4 | AG116: 24.9 | AH116: 76.3 | AI116: 4.2 | AJ116: 21.0 | AM116: 3030 | AN116: 1 | AO116: 1.00 | AP116: 1.00 | AQ116: 1.00 | AR116: 1.00 | AS116: 1.00 | AT116: 1.00 | AU116: 1.00 | AV116: 1.00 | AW116: 1.00 | AX116: 1.00 | AY116: 1.00 | AZ116: 1.00 | BA116: 1.00 | BB116: 1.00 | BC116: 1.00 | BG116: 3030_1 | BH116: 6 | BI116: 395
A117: 3030 | B117: 2 | C117: 603.3 | D117: 62.5 | E117: 67.2 | F117: 0.0 | G117: 28.6 | H117: 0.0 | I117: 88.1 | J117: 0.3 | K117: 0.0 | L117: 1.7 | M117: 123.1 | N117: 0.4 | O117: 51.4 | P117: 111.4 | Q117: 67.7 | T117: 3030 | U117: 2 | V117: 603.3 | W117: 62.5 | X117: 67.2 | Y117: 0.0 | Z117: 28.6 | AA117: 0.0 | AB117: 88.1 | AC117: 0.3 | AD117: 0.0 | AE117: 1.7 | AF117: 123.1 | AG117: 0.4 | AH117: 51.4 | AI117: 111.4 | AJ117: 67.7 | AM117: 3030 | AN117: 2 | AO117: 1.00 | AP117: 1.00 | AQ117: 1.00 | AR117: 1.00 | AS117: 1.00 | AT117: 1.00 | AU117: 1.00 | AV117: 1.00 | AW117: 1.00 | AX117: 1.00 | AY117: 1.00 | AZ117: 1.00 | BA117: 1.00 | BB117: 1.00 | BC117: 1.00 | BG117: 3030_2 | BH117: 6 | BI117: 67
A118: 3030 | B118: 5 | C118: 17646.5 | D118: 12511.9 | E118: 2280.2 | F118: 601.1 | G118: 1149.5 | H118: 40.6 | I118: 2759.3 | J118: 0.0 | K118: 0.0 | L118: 330.8 | M118: 789.0 | N118: 17.0 | O118: 16.8 | P118: 0.0 | Q118: 0.0 | T118: 3030 | U118: 5 | V118: 17646.5 | W118: 12511.9 | X118: 2280.2 | Y118: 601.1 | Z118: 1149.5 | AA118: 40.6 | AB118: 2759.3 | AC118: 0.0 | AD118: 0.0 | AE118: 330.8 | AF118: 789.0 | AG118: 17.0 | AH118: 16.8 | AI118: 0.0 | AJ118: 0.0 | AM118: 3030 | AN118: 5 | AO118: 1.00 | AP118: 1.00 | AQ118: 1.00 | AR118: 1.00 | AS118: 1.00 | AT118: 1.00 | AU118: 1.00 | AV118: 1.00 | AW118: 1.00 | AX118: 1.00 | AY118: 1.00 | AZ118: 1.00 | BA118: 1.00 | BB118: 1.00 | BC118: 1.00 | BG118: 3030_5 | BH118: 6 | BI118: 214
A119: 3030 | B119: 7 | C119: 31398.8 | D119: 5915.4 | E119: 515.4 | F119: 233.2 | G119: 350.9 | H119: 32.8 | I119: 518.6 | J119: 0.1 | K119: 0.0 | L119: 192.4 | M119: 394.3 | N119: 34.4 | O119: 1.7 | P119: 7.5 | Q119: 0.0 | T119: 3030 | U119: 7 | V119: 31398.8 | W119: 5915.4 | X119: 515.4 | Y119: 233.2 | Z119: 350.9 | AA119: 32.8 | AB119: 518.6 | AC119: 0.1 | AD119: 0.0 | AE119: 192.4 | AF119: 394.3 | AG119: 34.4 | AH119: 1.7 | AI119: 7.5 | AJ119: 0.0 | AM119: 3030 | AN119: 7 | AO119: 1.00 | AP119: 1.00 | AQ119: 1.00 | AR119: 1.00 | AS119: 1.00 | AT119: 1.00 | AU119: 1.00 | AV119: 1.00 | AW119: 1.00 | AX119: 1.00 | AY119: 1.00 | AZ119: 1.00 | BA119: 1.00 | BB119: 1.00 | BC119: 1.00 | BG119: 3030_7 | BH119: 6 | BI119: 967
A120: 3030 | B120: 8 | C120: 4895.6 | D120: 2700.1 | E120: 2229.1 | F120: 744.4 | G120: 1035.8 | H120: 271.5 | I120: 633.4 | J120: 2.4 | K120: 0.0 | L120: 94.6 | M120: 990.2 | N120: 12.2 | O120: 24.7 | P120: 28.9 | Q120: 1.2 | T120: 3030 | U120: 8 | V120: 4895.6 | W120: 2700.1 | X120: 2229.1 | Y120: 744.4 | Z120: 1035.8 | AA120: 271.5 | AB120: 633.4 | AC120: 2.4 | AD120: 0.0 | AE120: 94.6 | AF120: 990.2 | AG120: 12.2 | AH120: 24.7 | AI120: 28.9 | AJ120: 1.2 | AM120: 3030 | AN120: 8 | AO120: 1.00 | AP120: 1.00 | AQ120: 1.00 | AR120: 1.00 | AS120: 1.00 | AT120: 1.00 | AU120: 1.00 | AV120: 1.00 | AW120: 1.00 | AX120: 1.00 | AY120: 1.00 | AZ120: 1.00 | BA120: 1.00 | BB120: 1.00 | BC120: 1.00 | BG120: 3030_8 | BH120: 6 | BI120: 131
A121: 3031 | B121: 0 | C121: 373.5 | D121: 139.2 | E121: 1216.7 | F121: 246.0 | G121: 399.7 | H121: 172.7 | I121: 13.1 | J121: 36.0 | K121: 4.3 | L121: 62.3 | M121: 107.0 | N121: 20.8 | O121: 4.4 | P121: 0.2 | Q121: 0.0 | T121: 3031 | U121: 0 | V121: 373.5 | W121: 139.2 | X121: 1216.7 | Y121: 246.0 | Z121: 399.7 | AA121: 172.7 | AB121: 13.1 | AC121: 36.0 | AD121: 4.3 | AE121: 62.3 | AF121: 107.0 | AG121: 20.8 | AH121: 4.4 | AI121: 0.2 | AJ121: 0.0 | AM121: 3031 | AN121: 0 | AO121: 1.00 | AP121: 1.00 | AQ121: 1.00 | AR121: 1.00 | AS121: 1.00 | AT121: 1.00 | AU121: 1.00 | AV121: 1.00 | AW121: 1.00 | AX121: 1.00 | AY121: 1.00 | AZ121: 1.00 | BA121: 1.00 | BB121: 1.00 | BC121: 1.00 | BG121: 3031_0 | BH121: 4 | BI121: 55
A122: 3031 | B122: 1 | C122: 1059.9 | D122: 586.8 | E122: 76.9 | F122: 33.2 | G122: 221.6 | H122: 16.4 | I122: 36.0 | J122: 94.2 | K122: 14.0 | L122: 23.9 | M122: 67.8 | N122: 8.0 | O122: 179.5 | P122: 0.0 | Q122: 0.0 | T122: 3031 | U122: 1 | V122: 1059.9 | W122: 586.8 | X122: 76.9 | Y122: 33.2 | Z122: 221.6 | AA122: 16.4 | AB122: 36.0 | AC122: 94.2 | AD122: 14.0 | AE122: 23.9 | AF122: 67.8 | AG122: 8.0 | AH122: 179.5 | AI122: 0.0 | AJ122: 0.0 | AM122: 3031 | AN122: 1 | AO122: 1.00 | AP122: 1.00 | AQ122: 1.00 | AR122: 1.00 | AS122: 1.00 | AT122: 1.00 | AU122: 1.00 | AV122: 1.00 | AW122: 1.00 | AX122: 1.00 | AY122: 1.00 | AZ122: 1.00 | BA122: 1.00 | BB122: 1.00 | BC122: 1.00 | BG122: 3031_1 | BH122: 4 | BI122: 119
A123: 3031 | B123: 2 | C123: 18.4 | D123: 65.9 | E123: 38.4 | F123: 0.0 | G123: 182.7 | H123: 0.0 | I123: 23.0 | J123: 29.2 | K123: 3.1 | L123: 5.1 | M123: 0.9 | N123: 1.7 | O123: 78.4 | P123: 1.1 | Q123: 0.0 | T123: 3031 | U123: 2 | V123: 18.4 | W123: 65.9 | X123: 38.4 | Y123: 0.0 | Z123: 182.7 | AA123: 0.0 | AB123: 23.0 | AC123: 29.2 | AD123: 3.1 | AE123: 5.1 | AF123: 0.9 | AG123: 1.7 | AH123: 78.4 | AI123: 1.1 | AJ123: 0.0 | AM123: 3031 | AN123: 2 | AO123: 1.00 | AP123: 1.00 | AQ123: 1.00 | AR123: 1.00 | AS123: 1.00 | AT123: 1.00 | AU123: 1.00 | AV123: 1.00 | AW123: 1.00 | AX123: 1.00 | AY123: 1.00 | AZ123: 1.00 | BA123: 1.00 | BB123: 1.00 | BC123: 1.00 | BG123: 3031_2 | BH123: 4 | BI123: 51
A124: 3031 | B124: 5 | C124: 2364.6 | D124: 469.9 | E124: 128.0 | F124: 43.9 | G124: 94.1 | H124: 0.0 | I124: 65.2 | J124: 8.0 | K124: 8.3 | L124: 1.2 | M124: 65.5 | N124: 0.4 | O124: 0.0 | P124: 0.0 | Q124: 0.0 | T124: 3031 | U124: 5 | V124: 2364.6 | W124: 469.9 | X124: 128.0 | Y124: 43.9 | Z124: 94.1 | AA124: 0.0 | AB124: 65.2 | AC124: 8.0 | AD124: 8.3 | AE124: 1.2 | AF124: 65.5 | AG124: 0.4 | AH124: 0.0 | AI124: 0.0 | AJ124: 0.0 | AM124: 3031 | AN124: 5 | AO124: 1.00 | AP124: 1.00 | AQ124: 1.00 | AR124: 1.00 | AS124: 1.00 | AT124: 1.00 | AU124: 1.00 | AV124: 1.00 | AW124: 1.00 | AX124: 1.00 | AY124: 1.00 | AZ124: 1.00 | BA124: 1.00 | BB124: 1.00 | BC124: 1.00 | BG124: 3031_5 | BH124: 4 | BI124: 40
A125: 3031 | B125: 7 | C125: 4285.5 | D125: 503.9 | E125: 57.3 | F125: 0.0 | G125: 51.4 | H125: 0.0 | I125: 71.3 | J125: 0.0 | K125: 0.0 | L125: 12.1 | M125: 26.4 | N125: 0.4 | O125: 0.0 | P125: 0.2 | Q125: 0.0 | T125: 3031 | U125: 7 | V125: 4285.5 | W125: 503.9 | X125: 57.3 | Y125: 0.0 | Z125: 51.4 | AA125: 0.0 | AB125: 71.3 | AC125: 0.0 | AD125: 0.0 | AE125: 12.1 | AF125: 26.4 | AG125: 0.4 | AH125: 0.0 | AI125: 0.2 | AJ125: 0.0 | AM125: 3031 | AN125: 7 | AO125: 1.00 | AP125: 1.00 | AQ125: 1.00 | AR125: 1.00 | AS125: 1.00 | AT125: 1.00 | AU125: 1.00 | AV125: 1.00 | AW125: 1.00 | AX125: 1.00 | AY125: 1.00 | AZ125: 1.00 | BA125: 1.00 | BB125: 1.00 | BC125: 1.00 | BG125: 3031_7 | BH125: 4 | BI125: 188
A126: 3031 | B126: 8 | C126: 237.4 | D126: 144.8 | E126: 182.2 | F126: 29.0 | G126: 57.0 | H126: 2.0 | I126: 30.0 | J126: 0.0 | K126: 0.0 | L126: 0.0 | M126: 18.2 | N126: 0.0 | O126: 0.6 | P126: 0.0 | Q126: 0.0 | T126: 3031 | U126: 8 | V126: 237.4 | W126: 144.8 | X126: 182.2 | Y126: 29.0 | Z126: 57.0 | AA126: 2.0 | AB126: 30.0 | AC126: 0.0 | AD126: 0.0 | AE126: 0.0 | AF126: 18.2 | AG126: 0.0 | AH126: 0.6 | AI126: 0.0 | AJ126: 0.0 | AM126: 3031 | AN126: 8 | AO126: 1.00 | AP126: 1.00 | AQ126: 1.00 | AR126: 1.00 | AS126: 1.00 | AT126: 1.00 | AU126: 1.00 | AV126: 1.00 | AW126: 1.00 | AX126: 1.00 | AY126: 1.00 | AZ126: 1.00 | BA126: 1.00 | BB126: 1.00 | BC126: 1.00 | BG126: 3031_8 | BH126: 4 | BI126: 20
A127: 3032 | B127: 0 | C127: 799.6 | D127: 577.4 | E127: 2004.5 | F127: 459.5 | G127: 514.0 | H127: 433.9 | I127: 98.0 | J127: 6.8 | K127: 0.0 | L127: 31.6 | M127: 260.9 | N127: 3.4 | O127: 0.0 | P127: 0.1 | Q127: 0.0 | T127: 3032 | U127: 0 | V127: 799.6 | W127: 577.4 | X127: 2004.5 | Y127: 459.5 | Z127: 514.0 | AA127: 433.9 | AB127: 98.0 | AC127: 6.8 | AD127: 0.0 | AE127: 31.6 | AF127: 260.9 | AG127: 3.4 | AH127: 0.0 | AI127: 0.1 | AJ127: 0.0 | AM127: 3032 | AN127: 0 | AO127: 1.00 | AP127: 1.00 | AQ127: 1.00 | AR127: 1.00 | AS127: 1.00 | AT127: 1.00 | AU127: 1.00 | AV127: 1.00 | AW127: 1.00 | AX127: 1.00 | AY127: 1.00 | AZ127: 1.00 | BA127: 1.00 | BB127: 1.00 | BC127: 1.00 | BG127: 3032_0 | BH127: 7 | BI127: 54
A128: 3032 | B128: 1 | C128: 5895.7 | D128: 623.7 | E128: 50.7 | F128: 7.2 | G128: 52.2 | H128: 1.0 | I128: 176.1 | J128: 0.0 | K128: 11.0 | L128: 2.0 | M128: 199.5 | N128: 0.0 | O128: 2.7 | P128: 0.7 | Q128: 0.0 | T128: 3032 | U128: 1 | V128: 5895.7 | W128: 623.7 | X128: 50.7 | Y128: 7.2 | Z128: 52.2 | AA128: 1.0 | AB128: 176.1 | AC128: 0.0 | AD128: 11.0 | AE128: 2.0 | AF128: 199.5 | AG128: 0.0 | AH128: 2.7 | AI128: 0.7 | AJ128: 0.0 | AM128: 3032 | AN128: 1 | AO128: 1.00 | AP128: 1.00 | AQ128: 1.00 | AR128: 1.00 | AS128: 1.00 | AT128: 1.00 | AU128: 1.00 | AV128: 1.00 | AW128: 1.00 | AX128: 1.00 | AY128: 1.00 | AZ128: 1.00 | BA128: 1.00 | BB128: 1.00 | BC128: 1.00 | BG128: 3032_1 | BH128: 7 | BI128: 329
A129: 3032 | B129: 2 | C129: 58.5 | D129: 0.0 | E129: 0.0 | F129: 0.0 | G129: 0.0 | H129: 0.0 | I129: 0.0 | J129: 0.0 | K129: 0.0 | L129: 0.0 | M129: 0.0 | N129: 0.0 | O129: 0.0 | P129: 0.0 | Q129: 0.0 | T129: 3032 | U129: 2 | V129: 58.5 | W129: 0.0 | X129: 0.0 | Y129: 0.0 | Z129: 0.0 | AA129: 0.0 | AB129: 0.0 | AC129: 0.0 | AD129: 0.0 | AE129: 0.0 | AF129: 0.0 | AG129: 0.0 | AH129: 0.0 | AI129: 0.0 | AJ129: 0.0 | AM129: 3032 | AN129: 2 | AO129: 1.00 | AP129: 1.00 | AQ129: 1.00 | AR129: 1.00 | AS129: 1.00 | AT129: 1.00 | AU129: 1.00 | AV129: 1.00 | AW129: 1.00 | AX129: 1.00 | AY129: 1.00 | AZ129: 1.00 | BA129: 1.00 | BB129: 1.00 | BC129: 1.00 | BG129: 3032_2 | BH129: 7 | BI129: 8
A130: =AM130 -> 3032 | B130: =AN130 -> 5 | C130: =V130*AO130 -> 15703.9 | D130: =W130*AP130 -> 3016.0 | E130: =X130*AQ130 -> 645.5 | F130: =Y130*AR130 -> 145.6 | G130: =Z130*AS130 -> 143.3 | H130: =AA130*AT130 -> 24.5 | I130: =AB130*AU130 -> 530.3 | J130: =AC130*AV130 -> 0.2 | K130: =AD130*AW130 -> 5.8 | L130: =AE130*AX130 -> 7.0 | M130: =AF130*AY130 -> 210.9 | N130: =AG130*AZ130 -> 0.5 | O130: =AH130*BA130 -> 1.0 | P130: =AI130*BB130 -> 1.8 | Q130: =AJ130*BC130 -> 0.0 | T130: 3032 | U130: 5 | V130: 15703.9 | W130: 3016.0 | X130: 645.5 | Y130: 145.6 | Z130: 143.3 | AA130: 24.5 | AB130: 530.3 | AC130: 0.2 | AD130: 5.8 | AE130: 7.0 | AF130: 210.9 | AG130: 0.5 | AH130: 1.0 | AI130: 1.8 | AJ130: 0.0 | AM130: 3032 | AN130: 5 | AO130: 1.00 | AP130: 1.00 | AQ130: 1.00 | AR130: 1.00 | AS130: 1.00 | AT130: 1.00 | AU130: 1.00 | AV130: 1.00 | AW130: 1.00 | AX130: 1.00 | AY130: 1.00 | AZ130: 1.00 | BA130: 1.00 | BB130: 1.00 | BC130: 1.00 | BG130: 3032_5 | BH130: 7 | BI130: 218
A131: 3032 | B131: 7 | C131: 8851.0 | D131: 1140.6 | E131: 150.6 | F131: 63.6 | G131: 66.1 | H131: 8.6 | I131: 45.3 | J131: 0.0 | K131: 0.0 | L131: 37.1 | M131: 194.7 | N131: 12.4 | O131: 1.5 | P131: 2.7 | Q131: 0.0 | T131: 3032 | U131: 7 | V131: 8851.0 | W131: 1140.6 | X131: 150.6 | Y131: 63.6 | Z131: 66.1 | AA131: 8.6 | AB131: 45.3 | AC131: 0.0 | AD131: 0.0 | AE131: 37.1 | AF131: 194.7 | AG131: 12.4 | AH131: 1.5 | AI131: 2.7 | AJ131: 0.0 | AM131: 3032 | AN131: 7 | AO131: 1.00 | AP131: 1.00 | AQ131: 1.00 | AR131: 1.00 | AS131: 1.00 | AT131: 1.00 | AU131: 1.00 | AV131: 1.00 | AW131: 1.00 | AX131: 1.00 | AY131: 1.00 | AZ131: 1.00 | BA131: 1.00 | BB131: 1.00 | BC131: 1.00 | BG131: 3032_7 | BH131: 7 | BI131: 326
A132: 3032 | B132: 8 | C132: 2205.5 | D132: 289.9 | E132: 433.0 | F132: 249.6 | G132: 203.1 | H132: 55.9 | I132: 48.8 | J132: 13.8 | K132: 11.7 | L132: 21.6 | M132: 12.0 | N132: 5.0 | O132: 6.3 | P132: 0.5 | Q132: 0.0 | T132: 3032 | U132: 8 | V132: 2205.5 | W132: 289.9 | X132: 433.0 | Y132: 249.6 | Z132: 203.1 | AA132: 55.9 | AB132: 48.8 | AC132: 13.8 | AD132: 11.7 | AE132: 21.6 | AF132: 12.0 | AG132: 5.0 | AH132: 6.3 | AI132: 0.5 | AJ132: 0.0 | AM132: 3032 | AN132: 8 | AO132: 1.00 | AP132: 1.00 | AQ132: 1.00 | AR132: 1.00 | AS132: 1.00 | AT132: 1.00 | AU132: 1.00 | AV132: 1.00 | AW132: 1.00 | AX132: 1.00 | AY132: 1.00 | AZ132: 1.00 | BA132: 1.00 | BB132: 1.00 | BC132: 1.00 | BG132: 3032_8 | BH132: 7 | BI132: 62
A133: 3033 | B133: 0 | C133: 2078.3 | D133: 1337.6 | E133: 3104.3 | F133: 827.7 | G133: 706.0 | H133: 569.3 | I133: 1815.8 | J133: 34.2 | K133: 0.0 | L133: 40.4 | M133: 902.2 | N133: 2.7 | O133: 10.3 | P133: 1.1 | Q133: 4.8 | T133: 3033 | U133: 0 | V133: 2078.3 | W133: 1337.6 | X133: 3104.3 | Y133: 827.7 | Z133: 706.0 | AA133: 569.3 | AB133: 1815.8 | AC133: 34.2 | AD133: 0.0 | AE133: 40.4 | AF133: 902.2 | AG133: 2.7 | AH133: 10.3 | AI133: 1.1 | AJ133: 4.8 | AM133: 3033 | AN133: 0 | AO133: 1.00 | AP133: 1.00 | AQ133: 1.00 | AR133: 1.00 | AS133: 1.00 | AT133: 1.00 | AU133: 1.00 | AV133: 1.00 | AW133: 1.00 | AX133: 1.00 | AY133: 1.00 | AZ133: 1.00 | BA133: 1.00 | BB133: 1.00 | BC133: 1.00 | BG133: 3033_0 | BH133: 6 | BI133: 145
A134: 3033 | B134: 1 | C134: 10326.3 | D134: 3088.6 | E134: 430.2 | F134: 101.0 | G134: 208.9 | H134: 29.3 | I134: 749.3 | J134: 106.0 | K134: 17.3 | L134: 90.2 | M134: 261.0 | N134: 18.1 | O134: 364.2 | P134: 26.4 | Q134: 7.7 | T134: 3033 | U134: 1 | V134: 10326.3 | W134: 3088.6 | X134: 430.2 | Y134: 101.0 | Z134: 208.9 | AA134: 29.3 | AB134: 749.3 | AC134: 106.0 | AD134: 17.3 | AE134: 90.2 | AF134: 261.0 | AG134: 18.1 | AH134: 364.2 | AI134: 26.4 | AJ134: 7.7 | AM134: 3033 | AN134: 1 | AO134: 1.00 | AP134: 1.00 | AQ134: 1.00 | AR134: 1.00 | AS134: 1.00 | AT134: 1.00 | AU134: 1.00 | AV134: 1.00 | AW134: 1.00 | AX134: 1.00 | AY134: 1.00 | AZ134: 1.00 | BA134: 1.00 | BB134: 1.00 | BC134: 1.00 | BG134: 3033_1 | BH134: 6 | BI134: 631
A135: 3033 | B135: 2 | C135: 727.1 | D135: 233.5 | E135: 75.0 | F135: 35.4 | G135: 65.1 | H135: 0.0 | I135: 91.3 | J135: 8.5 | K135: 0.0 | L135: 0.3 | M135: 64.8 | N135: 0.1 | O135: 96.0 | P135: 239.3 | Q135: 16.8 | T135: 3033 | U135: 2 | V135: 727.1 | W135: 233.5 | X135: 75.0 | Y135: 35.4 | Z135: 65.1 | AA135: 0.0 | AB135: 91.3 | AC135: 8.5 | AD135: 0.0 | AE135: 0.3 | AF135: 64.8 | AG135: 0.1 | AH135: 96.0 | AI135: 239.3 | AJ135: 16.8 | AM135: 3033 | AN135: 2 | AO135: 1.00 | AP135: 1.00 | AQ135: 1.00 | AR135: 1.00 | AS135: 1.00 | AT135: 1.00 | AU135: 1.00 | AV135: 1.00 | AW135: 1.00 | AX135: 1.00 | AY135: 1.00 | AZ135: 1.00 | BA135: 1.00 | BB135: 1.00 | BC135: 1.00 | BG135: 3033_2 | BH135: 6 | BI135: 79
A136: 3033 | B136: 5 | C136: 18643.2 | D136: 11765.5 | E136: 1533.4 | F136: 432.3 | G136: 462.9 | H136: 42.5 | I136: 2843.6 | J136: 0.0 | K136: 1.1 | L136: 189.8 | M136: 512.0 | N136: 19.1 | O136: 29.4 | P136: 12.1 | Q136: 1.8 | T136: 3033 | U136: 5 | V136: 18643.2 | W136: 11765.5 | X136: 1533.4 | Y136: 432.3 | Z136: 462.9 | AA136: 42.5 | AB136: 2843.6 | AC136: 0.0 | AD136: 1.1 | AE136: 189.8 | AF136: 512.0 | AG136: 19.1 | AH136: 29.4 | AI136: 12.1 | AJ136: 1.8 | AM136: 3033 | AN136: 5 | AO136: 1.00 | AP136: 1.00 | AQ136: 1.00 | AR136: 1.00 | AS136: 1.00 | AT136: 1.00 | AU136: 1.00 | AV136: 1.00 | AW136: 1.00 | AX136: 1.00 | AY136: 1.00 | AZ136: 1.00 | BA136: 1.00 | BB136: 1.00 | BC136: 1.00 | BG136: 3033_5 | BH136: 6 | BI136: 303
A137: 3033 | B137: 7 | C137: 34117.5 | D137: 7871.6 | E137: 766.1 | F137: 826.3 | G137: 591.1 | H137: 39.2 | I137: 867.3 | J137: 13.6 | K137: 11.1 | L137: 345.2 | M137: 356.1 | N137: 52.6 | O137: 22.2 | P137: 8.5 | Q137: 0.3 | T137: 3033 | U137: 7 | V137: 34117.5 | W137: 7871.6 | X137: 766.1 | Y137: 826.3 | Z137: 591.1 | AA137: 39.2 | AB137: 867.3 | AC137: 13.6 | AD137: 11.1 | AE137: 345.2 | AF137: 356.1 | AG137: 52.6 | AH137: 22.2 | AI137: 8.5 | AJ137: 0.3 | AM137: 3033 | AN137: 7 | AO137: 1.00 | AP137: 1.00 | AQ137: 1.00 | AR137: 1.00 | AS137: 1.00 | AT137: 1.00 | AU137: 1.00 | AV137: 1.00 | AW137: 1.00 | AX137: 1.00 | AY137: 1.00 | AZ137: 1.00 | BA137: 1.00 | BB137: 1.00 | BC137: 1.00 | BG137: 3033_7 | BH137: 6 | BI137: 1245
A138: 3033 | B138: 8 | C138: 4979.9 | D138: 2858.6 | E138: 1998.3 | F138: 901.5 | G138: 777.6 | H138: 261.6 | I138: 762.7 | J138: 71.1 | K138: 45.1 | L138: 601.5 | M138: 1004.6 | N138: 172.4 | O138: 91.3 | P138: 40.4 | Q138: 0.5 | T138: 3033 | U138: 8 | V138: 4979.9 | W138: 2858.6 | X138: 1998.3 | Y138: 901.5 | Z138: 777.6 | AA138: 261.6 | AB138: 762.7 | AC138: 71.1 | AD138: 45.1 | AE138: 601.5 | AF138: 1004.6 | AG138: 172.4 | AH138: 91.3 | AI138: 40.4 | AJ138: 0.5 | AM138: 3033 | AN138: 8 | AO138: 1.00 | AP138: 1.00 | AQ138: 1.00 | AR138: 1.00 | AS138: 1.00 | AT138: 1.00 | AU138: 1.00 | AV138: 1.00 | AW138: 1.00 | AX138: 1.00 | AY138: 1.00 | AZ138: 1.00 | BA138: 1.00 | BB138: 1.00 | BC138: 1.00 | BG138: 3033_8 | BH138: 6 | BI138: 226
A139: 3034 | B139: 0 | C139: 1507.3 | D139: 404.8 | E139: 3303.9 | F139: 447.6 | G139: 1934.7 | H139: 789.4 | I139: 247.9 | J139: 0.0 | K139: 0.0 | L139: 4.2 | M139: 1457.3 | N139: 0.0 | O139: 54.0 | P139: 3.0 | Q139: 0.0 | T139: 3034 | U139: 0 | V139: 1507.3 | W139: 404.8 | X139: 3303.9 | Y139: 447.6 | Z139: 1934.7 | AA139: 789.4 | AB139: 247.9 | AC139: 0.0 | AD139: 0.0 | AE139: 4.2 | AF139: 1457.3 | AG139: 0.0 | AH139: 54.0 | AI139: 3.0 | AJ139: 0.0 | AM139: 3034 | AN139: 0 | AO139: 1.00 | AP139: 1.00 | AQ139: 1.00 | AR139: 1.00 | AS139: 1.00 | AT139: 1.00 | AU139: 1.00 | AV139: 1.00 | AW139: 1.00 | AX139: 1.00 | AY139: 1.00 | AZ139: 1.00 | BA139: 1.00 | BB139: 1.00 | BC139: 1.00 | BG139: 3034_0 | BH139: 5 | BI139: 74
A140: 3034 | B140: 1 | C140: 1152.2 | D140: 103.9 | E140: 133.2 | F140: 17.9 | G140: 57.2 | H140: 30.9 | I140: 41.3 | J140: 29.2 | K140: 0.0 | L140: 16.3 | M140: 58.5 | N140: 0.0 | O140: 0.0 | P140: 0.0 | Q140: 4.4 | T140: 3034 | U140: 1 | V140: 1152.2 | W140: 103.9 | X140: 133.2 | Y140: 17.9 | Z140: 57.2 | AA140: 30.9 | AB140: 41.3 | AC140: 29.2 | AD140: 0.0 | AE140: 16.3 | AF140: 58.5 | AG140: 0.0 | AH140: 0.0 | AI140: 0.0 | AJ140: 4.4 | AM140: 3034 | AN140: 1 | AO140: 1.00 | AP140: 1.00 | AQ140: 1.00 | AR140: 1.00 | AS140: 1.00 | AT140: 1.00 | AU140: 1.00 | AV140: 1.00 | AW140: 1.00 | AX140: 1.00 | AY140: 1.00 | AZ140: 1.00 | BA140: 1.00 | BB140: 1.00 | BC140: 1.00 | BG140: 3034_1 | BH140: 5 | BI140: 84
A141: 3034 | B141: 2 | C141: 63.6 | D141: 31.9 | E141: 50.2 | F141: 0.0 | G141: 0.0 | H141: 0.0 | I141: 0.0 | J141: 0.0 | K141: 0.0 | L141: 0.0 | M141: 7.9 | N141: 0.0 | O141: 20.9 | P141: 44.5 | Q141: 108.5 | T141: 3034 | U141: 2 | V141: 63.6 | W141: 31.9 | X141: 50.2 | Y141: 0.0 | Z141: 0.0 | AA141: 0.0 | AB141: 0.0 | AC141: 0.0 | AD141: 0.0 | AE141: 0.0 | AF141: 7.9 | AG141: 0.0 | AH141: 20.9 | AI141: 44.5 | AJ141: 108.5 | AM141: 3034 | AN141: 2 | AO141: 1.00 | AP141: 1.00 | AQ141: 1.00 | AR141: 1.00 | AS141: 1.00 | AT141: 1.00 | AU141: 1.00 | AV141: 1.00 | AW141: 1.00 | AX141: 1.00 | AY141: 1.00 | AZ141: 1.00 | BA141: 1.00 | BB141: 1.00 | BC141: 1.00 | BG141: 3034_2 | BH141: 5 | BI141: 26
A142: 3034 | B142: 5 | C142: 835.5 | D142: 344.3 | E142: 152.6 | F142: 0.0 | G142: 25.7 | H142: 0.0 | I142: 188.2 | J142: 0.0 | K142: 0.0 | L142: 9.9 | M142: 59.0 | N142: 2.2 | O142: 0.0 | P142: 0.0 | Q142: 0.0 | T142: 3034 | U142: 5 | V142: 835.5 | W142: 344.3 | X142: 152.6 | Y142: 0.0 | Z142: 25.7 | AA142: 0.0 | AB142: 188.2 | AC142: 0.0 | AD142: 0.0 | AE142: 9.9 | AF142: 59.0 | AG142: 2.2 | AH142: 0.0 | AI142: 0.0 | AJ142: 0.0 | AM142: 3034 | AN142: 5 | AO142: 1.00 | AP142: 1.00 | AQ142: 1.00 | AR142: 1.00 | AS142: 1.00 | AT142: 1.00 | AU142: 1.00 | AV142: 1.00 | AW142: 1.00 | AX142: 1.00 | AY142: 1.00 | AZ142: 1.00 | BA142: 1.00 | BB142: 1.00 | BC142: 1.00 | BG142: 3034_5 | BH142: 5 | BI142: 12
A143: 3034 | B143: 7 | C143: 2589.7 | D143: 192.5 | E143: 16.7 | F143: 5.0 | G143: 67.5 | H143: 0.0 | I143: 52.1 | J143: 0.0 | K143: 0.0 | L143: 19.6 | M143: 64.7 | N143: 6.5 | O143: 3.2 | P143: 0.0 | Q143: 0.0 | T143: 3034 | U143: 7 | V143: 2589.7 | W143: 192.5 | X143: 16.7 | Y143: 5.0 | Z143: 67.5 | AA143: 0.0 | AB143: 52.1 | AC143: 0.0 | AD143: 0.0 | AE143: 19.6 | AF143: 64.7 | AG143: 6.5 | AH143: 3.2 | AI143: 0.0 | AJ143: 0.0 | AM143: 3034 | AN143: 7 | AO143: 1.00 | AP143: 1.00 | AQ143: 1.00 | AR143: 1.00 | AS143: 1.00 | AT143: 1.00 | AU143: 1.00 | AV143: 1.00 | AW143: 1.00 | AX143: 1.00 | AY143: 1.00 | AZ143: 1.00 | BA143: 1.00 | BB143: 1.00 | BC143: 1.00 | BG143: 3034_7 | BH143: 5 | BI143: 126
A144: 3034 | B144: 8 | C144: 645.8 | D144: 211.7 | E144: 375.3 | F144: 12.6 | G144: 177.6 | H144: 8.4 | I144: 39.4 | J144: 0.0 | K144: 0.0 | L144: 3.2 | M144: 57.6 | N144: 0.4 | O144: 0.4 | P144: 1.8 | Q144: 0.0 | T144: 3034 | U144: 8 | V144: 645.8 | W144: 211.7 | X144: 375.3 | Y144: 12.6 | Z144: 177.6 | AA144: 8.4 | AB144: 39.4 | AC144: 0.0 | AD144: 0.0 | AE144: 3.2 | AF144: 57.6 | AG144: 0.4 | AH144: 0.4 | AI144: 1.8 | AJ144: 0.0 | AM144: 3034 | AN144: 8 | AO144: 1.00 | AP144: 1.00 | AQ144: 1.00 | AR144: 1.00 | AS144: 1.00 | AT144: 1.00 | AU144: 1.00 | AV144: 1.00 | AW144: 1.00 | AX144: 1.00 | AY144: 1.00 | AZ144: 1.00 | BA144: 1.00 | BB144: 1.00 | BC144: 1.00 | BG144: 3034_8 | BH144: 5 | BI144: 23
A145: 3035 | B145: 0 | C145: 2410.7 | D145: 774.5 | E145: 21483.7 | F145: 3488.9 | G145: 4529.9 | H145: 4599.9 | I145: 463.1 | J145: 6.7 | K145: 1614.7 | L145: 28.2 | M145: 2404.4 | N145: 0.0 | O145: 379.4 | P145: 2.4 | Q145: 10.4 | T145: 3035 | U145: 0 | V145: 2410.7 | W145: 774.5 | X145: 21483.7 | Y145: 3488.9 | Z145: 4529.9 | AA145: 4599.9 | AB145: 463.1 | AC145: 6.7 | AD145: 1614.7 | AE145: 28.2 | AF145: 2404.4 | AG145: 0.0 | AH145: 379.4 | AI145: 2.4 | AJ145: 10.4 | AM145: 3035 | AN145: 0 | AO145: 1.00 | AP145: 1.00 | AQ145: 1.00 | AR145: 1.00 | AS145: 1.00 | AT145: 1.00 | AU145: 1.00 | AV145: 1.00 | AW145: 1.00 | AX145: 1.00 | AY145: 1.00 | AZ145: 1.00 | BA145: 1.00 | BB145: 1.00 | BC145: 1.00 | BG145: 3035_0 | BH145: 2 | BI145: 353
A146: 3035 | B146: 1 | C146: 3524.0 | D146: 1060.5 | E146: 6793.5 | F146: 1685.2 | G146: 1707.1 | H146: 1024.9 | I146: 1221.1 | J146: 2674.6 | K146: 2581.4 | L146: 187.6 | M146: 890.6 | N146: 27.2 | O146: 3293.7 | P146: 15.6 | Q146: 6.5 | T146: 3035 | U146: 1 | V146: 3524.0 | W146: 1060.5 | X146: 6793.5 | Y146: 1685.2 | Z146: 1707.1 | AA146: 1024.9 | AB146: 1221.1 | AC146: 2674.6 | AD146: 2581.4 | AE146: 187.6 | AF146: 890.6 | AG146: 27.2 | AH146: 3293.7 | AI146: 15.6 | AJ146: 6.5 | AM146: 3035 | AN146: 1 | AO146: 1.00 | AP146: 1.00 | AQ146: 1.00 | AR146: 1.00 | AS146: 1.00 | AT146: 1.00 | AU146: 1.00 | AV146: 1.00 | AW146: 1.00 | AX146: 1.00 | AY146: 1.00 | AZ146: 1.00 | BA146: 1.00 | BB146: 1.00 | BC146: 1.00 | BG146: 3035_1 | BH146: 2 | BI146: 252
A147: 3035 | B147: 2 | C147: 57.8 | D147: 23.7 | E147: 125.6 | F147: 10.5 | G147: 31.5 | H147: 28.5 | I147: 0.0 | J147: 5.9 | K147: 0.0 | L147: 1.0 | M147: 31.8 | N147: 0.0 | O147: 19.3 | P147: 70.6 | Q147: 96.8 | T147: 3035 | U147: 2 | V147: 57.8 | W147: 23.7 | X147: 125.6 | Y147: 10.5 | Z147: 31.5 | AA147: 28.5 | AB147: 0.0 | AC147: 5.9 | AD147: 0.0 | AE147: 1.0 | AF147: 31.8 | AG147: 0.0 | AH147: 19.3 | AI147: 70.6 | AJ147: 96.8 | AM147: 3035 | AN147: 2 | AO147: 1.00 | AP147: 1.00 | AQ147: 1.00 | AR147: 1.00 | AS147: 1.00 | AT147: 1.00 | AU147: 1.00 | AV147: 1.00 | AW147: 1.00 | AX147: 1.00 | AY147: 1.00 | AZ147: 1.00 | BA147: 1.00 | BB147: 1.00 | BC147: 1.00 | BG147: 3035_2 | BH147: 2 | BI147: 38
A148: 3035 | B148: 5 | C148: 182.0 | D148: 48.2 | E148: 54.8 | F148: 31.8 | G148: 34.0 | H148: 4.5 | I148: 60.7 | J148: 2.0 | K148: 0.0 | L148: 0.0 | M148: 14.6 | N148: 0.0 | O148: 0.0 | P148: 0.1 | Q148: 0.0 | T148: 3035 | U148: 5 | V148: 182.0 | W148: 48.2 | X148: 54.8 | Y148: 31.8 | Z148: 34.0 | AA148: 4.5 | AB148: 60.7 | AC148: 2.0 | AD148: 0.0 | AE148: 0.0 | AF148: 14.6 | AG148: 0.0 | AH148: 0.0 | AI148: 0.1 | AJ148: 0.0 | AM148: 3035 | AN148: 5 | AO148: 1.00 | AP148: 1.00 | AQ148: 1.00 | AR148: 1.00 | AS148: 1.00 | AT148: 1.00 | AU148: 1.00 | AV148: 1.00 | AW148: 1.00 | AX148: 1.00 | AY148: 1.00 | AZ148: 1.00 | BA148: 1.00 | BB148: 1.00 | BC148: 1.00 | BG148: 3035_5 | BH148: 2 | BI148: 7
A149: 3035 | B149: 7 | C149: 4538.2 | D149: 649.1 | E149: 97.1 | F149: 46.1 | G149: 37.0 | H149: 0.0 | I149: 61.2 | J149: 0.0 | K149: 0.0 | L149: 22.9 | M149: 0.0 | N149: 1.6 | O149: 0.0 | P149: 0.5 | Q149: 0.0 | T149: 3035 | U149: 7 | V149: 4538.2 | W149: 649.1 | X149: 97.1 | Y149: 46.1 | Z149: 37.0 | AA149: 0.0 | AB149: 61.2 | AC149: 0.0 | AD149: 0.0 | AE149: 22.9 | AF149: 0.0 | AG149: 1.6 | AH149: 0.0 | AI149: 0.5 | AJ149: 0.0 | AM149: 3035 | AN149: 7 | AO149: 1.00 | AP149: 1.00 | AQ149: 1.00 | AR149: 1.00 | AS149: 1.00 | AT149: 1.00 | AU149: 1.00 | AV149: 1.00 | AW149: 1.00 | AX149: 1.00 | AY149: 1.00 | AZ149: 1.00 | BA149: 1.00 | BB149: 1.00 | BC149: 1.00 | BG149: 3035_7 | BH149: 2 | BI149: 208
A150: 3035 | B150: 8 | C150: 895.0 | D150: 283.9 | E150: 2490.9 | F150: 546.5 | G150: 394.4 | H150: 570.9 | I150: 169.4 | J150: 89.7 | K150: 266.1 | L150: 36.8 | M150: 165.2 | N150: 0.0 | O150: 117.7 | P150: 2.0 | Q150: 0.6 | T150: 3035 | U150: 8 | V150: 895.0 | W150: 283.9 | X150: 2490.9 | Y150: 546.5 | Z150: 394.4 | AA150: 570.9 | AB150: 169.4 | AC150: 89.7 | AD150: 266.1 | AE150: 36.8 | AF150: 165.2 | AG150: 0.0 | AH150: 117.7 | AI150: 2.0 | AJ150: 0.6 | AM150: 3035 | AN150: 8 | AO150: 1.00 | AP150: 1.00 | AQ150: 1.00 | AR150: 1.00 | AS150: 1.00 | AT150: 1.00 | AU150: 1.00 | AV150: 1.00 | AW150: 1.00 | AX150: 1.00 | AY150: 1.00 | AZ150: 1.00 | BA150: 1.00 | BB150: 1.00 | BC150: 1.00 | BG150: 3035_8 | BH150: 2 | BI150: 60
A151: 3036 | B151: 0 | C151: 1237.9 | D151: 951.0 | E151: 740.2 | F151: 395.0 | G151: 751.0 | H151: 99.4 | I151: 547.2 | J151: 0.0 | K151: 3.7 | L151: 18.4 | M151: 847.6 | N151: 6.1 | O151: 0.0 | P151: 0.0 | Q151: 0.0 | T151: 3036 | U151: 0 | V151: 1237.9 | W151: 951.0 | X151: 740.2 | Y151: 395.0 | Z151: 751.0 | AA151: 99.4 | AB151: 547.2 | AC151: 0.0 | AD151: 3.7 | AE151: 18.4 | AF151: 847.6 | AG151: 6.1 | AH151: 0.0 | AI151: 0.0 | AJ151: 0.0 | AM151: 3036 | AN151: 0 | AO151: 1.00 | AP151: 1.00 | AQ151: 1.00 | AR151: 1.00 | AS151: 1.00 | AT151: 1.00 | AU151: 1.00 | AV151: 1.00 | AW151: 1.00 | AX151: 1.00 | AY151: 1.00 | AZ151: 1.00 | BA151: 1.00 | BB151: 1.00 | BC151: 1.00 | BG151: 3036_0 | BH151: 4 | BI151: 40
A152: 3036 | B152: 1 | C152: 6322.9 | D152: 1525.0 | E152: 187.6 | F152: 352.6 | G152: 579.3 | H152: 69.8 | I152: 23.2 | J152: 113.6 | K152: 80.1 | L152: 58.4 | M152: 71.2 | N152: 11.4 | O152: 2.7 | P152: 0.2 | Q152: 0.0 | T152: 3036 | U152: 1 | V152: 6322.9 | W152: 1525.0 | X152: 187.6 | Y152: 352.6 | Z152: 579.3 | AA152: 69.8 | AB152: 23.2 | AC152: 113.6 | AD152: 80.1 | AE152: 58.4 | AF152: 71.2 | AG152: 11.4 | AH152: 2.7 | AI152: 0.2 | AJ152: 0.0 | AM152: 3036 | AN152: 1 | AO152: 1.00 | AP152: 1.00 | AQ152: 1.00 | AR152: 1.00 | AS152: 1.00 | AT152: 1.00 | AU152: 1.00 | AV152: 1.00 | AW152: 1.00 | AX152: 1.00 | AY152: 1.00 | AZ152: 1.00 | BA152: 1.00 | BB152: 1.00 | BC152: 1.00 | BG152: 3036_1 | BH152: 4 | BI152: 258
A153: 3036 | B153: 2 | C153: 143.3 | D153: 23.5 | E153: 0.0 | F153: 1.7 | G153: 25.0 | H153: 0.0 | I153: 0.0 | J153: 0.0 | K153: 16.8 | L153: 0.8 | M153: 0.0 | N153: 0.3 | O153: 11.9 | P153: 21.1 | Q153: 3.0 | T153: 3036 | U153: 2 | V153: 143.3 | W153: 23.5 | X153: 0.0 | Y153: 1.7 | Z153: 25.0 | AA153: 0.0 | AB153: 0.0 | AC153: 0.0 | AD153: 16.8 | AE153: 0.8 | AF153: 0.0 | AG153: 0.3 | AH153: 11.9 | AI153: 21.1 | AJ153: 3.0 | AM153: 3036 | AN153: 2 | AO153: 1.00 | AP153: 1.00 | AQ153: 1.00 | AR153: 1.00 | AS153: 1.00 | AT153: 1.00 | AU153: 1.00 | AV153: 1.00 | AW153: 1.00 | AX153: 1.00 | AY153: 1.00 | AZ153: 1.00 | BA153: 1.00 | BB153: 1.00 | BC153: 1.00 | BG153: 3036_2 | BH153: 4 | BI153: 14
A154: 3036 | B154: 5 | C154: 20815.3 | D154: 8775.8 | E154: 974.1 | F154: 876.1 | G154: 1719.7 | H154: 42.0 | I154: 548.9 | J154: 4.3 | K154: 5.5 | L154: 60.9 | M154: 162.2 | N154: 6.9 | O154: 0.5 | P154: 0.0 | Q154: 0.0 | T154: 3036 | U154: 5 | V154: 20815.3 | W154: 8775.8 | X154: 974.1 | Y154: 876.1 | Z154: 1719.7 | AA154: 42.0 | AB154: 548.9 | AC154: 4.3 | AD154: 5.5 | AE154: 60.9 | AF154: 162.2 | AG154: 6.9 | AH154: 0.5 | AI154: 0.0 | AJ154: 0.0 | AM154: 3036 | AN154: 5 | AO154: 1.00 | AP154: 1.00 | AQ154: 1.00 | AR154: 1.00 | AS154: 1.00 | AT154: 1.00 | AU154: 1.00 | AV154: 1.00 | AW154: 1.00 | AX154: 1.00 | AY154: 1.00 | AZ154: 1.00 | BA154: 1.00 | BB154: 1.00 | BC154: 1.00 | BG154: 3036_5 | BH154: 4 | BI154: 250
A155: 3036 | B155: 7 | C155: 24191.1 | D155: 4105.7 | E155: 147.6 | F155: 502.9 | G155: 1333.4 | H155: 0.1 | I155: 12.3 | J155: 1.0 | K155: 37.3 | L155: 134.0 | M155: 85.1 | N155: 43.4 | O155: 3.8 | P155: 0.2 | Q155: 0.0 | T155: 3036 | U155: 7 | V155: 24191.1 | W155: 4105.7 | X155: 147.6 | Y155: 502.9 | Z155: 1333.4 | AA155: 0.1 | AB155: 12.3 | AC155: 1.0 | AD155: 37.3 | AE155: 134.0 | AF155: 85.1 | AG155: 43.4 | AH155: 3.8 | AI155: 0.2 | AJ155: 0.0 | AM155: 3036 | AN155: 7 | AO155: 1.00 | AP155: 1.00 | AQ155: 1.00 | AR155: 1.00 | AS155: 1.00 | AT155: 1.00 | AU155: 1.00 | AV155: 1.00 | AW155: 1.00 | AX155: 1.00 | AY155: 1.00 | AZ155: 1.00 | BA155: 1.00 | BB155: 1.00 | BC155: 1.00 | BG155: 3036_7 | BH155: 4 | BI155: 603
A156: 3036 | B156: 8 | C156: 4875.9 | D156: 1900.9 | E156: 429.7 | F156: 1022.7 | G156: 931.3 | H156: 256.5 | I156: 87.8 | J156: 47.3 | K156: 44.0 | L156: 156.6 | M156: 290.0 | N156: 22.2 | O156: 2.6 | P156: 1.2 | Q156: 0.0 | T156: 3036 | U156: 8 | V156: 4875.9 | W156: 1900.9 | X156: 429.7 | Y156: 1022.7 | Z156: 931.3 | AA156: 256.5 | AB156: 87.8 | AC156: 47.3 | AD156: 44.0 | AE156: 156.6 | AF156: 290.0 | AG156: 22.2 | AH156: 2.6 | AI156: 1.2 | AJ156: 0.0 | AM156: 3036 | AN156: 8 | AO156: 1.00 | AP156: 1.00 | AQ156: 1.00 | AR156: 1.00 | AS156: 1.00 | AT156: 1.00 | AU156: 1.00 | AV156: 1.00 | AW156: 1.00 | AX156: 1.00 | AY156: 1.00 | AZ156: 1.00 | BA156: 1.00 | BB156: 1.00 | BC156: 1.00 | BG156: 3036_8 | BH156: 4 | BI156: 86
A157: 3037 | B157: 0 | C157: 500.8 | D157: 171.0 | E157: 966.8 | F157: 183.7 | G157: 560.6 | H157: 187.1 | I157: 0.0 | J157: 0.0 | K157: 1.9 | L157: 0.0 | M157: 51.7 | N157: 0.0 | O157: 0.0 | P157: 0.0 | Q157: 0.0 | T157: 3037 | U157: 0 | V157: 500.8 | W157: 171.0 | X157: 966.8 | Y157: 183.7 | Z157: 560.6 | AA157: 187.1 | AB157: 0.0 | AC157: 0.0 | AD157: 1.9 | AE157: 0.0 | AF157: 51.7 | AG157: 0.0 | AH157: 0.0 | AI157: 0.0 | AJ157: 0.0 | AM157: 3037 | AN157: 0 | AO157: 1.00 | AP157: 1.00 | AQ157: 1.00 | AR157: 1.00 | AS157: 1.00 | AT157: 1.00 | AU157: 1.00 | AV157: 1.00 | AW157: 1.00 | AX157: 1.00 | AY157: 1.00 | AZ157: 1.00 | BA157: 1.00 | BB157: 1.00 | BC157: 1.00 | BG157: 3037_0 | BH157: 8 | BI157: 28
A158: 3037 | B158: 1 | C158: 1089.3 | D158: 59.1 | E158: 45.0 | F158: 2.8 | G158: 12.9 | H158: 1.0 | I158: 9.1 | J158: 26.7 | K158: 0.0 | L158: 10.3 | M158: 6.4 | N158: 3.3 | O158: 0.0 | P158: 0.0 | Q158: 0.0 | T158: 3037 | U158: 1 | V158: 1089.3 | W158: 59.1 | X158: 45.0 | Y158: 2.8 | Z158: 12.9 | AA158: 1.0 | AB158: 9.1 | AC158: 26.7 | AD158: 0.0 | AE158: 10.3 | AF158: 6.4 | AG158: 3.3 | AH158: 0.0 | AI158: 0.0 | AJ158: 0.0 | AM158: 3037 | AN158: 1 | AO158: 1.00 | AP158: 1.00 | AQ158: 1.00 | AR158: 1.00 | AS158: 1.00 | AT158: 1.00 | AU158: 1.00 | AV158: 1.00 | AW158: 1.00 | AX158: 1.00 | AY158: 1.00 | AZ158: 1.00 | BA158: 1.00 | BB158: 1.00 | BC158: 1.00 | BG158: 3037_1 | BH158: 8 | BI158: 58
A159: 3037 | B159: 2 | C159: 0.3 | D159: 0.0 | E159: 0.0 | F159: 0.0 | G159: 0.0 | H159: 0.0 | I159: 0.0 | J159: 0.0 | K159: 0.0 | L159: 0.0 | M159: 0.0 | N159: 0.0 | O159: 0.0 | P159: 4.0 | Q159: 0.0 | T159: 3037 | U159: 2 | V159: 0.3 | W159: 0.0 | X159: 0.0 | Y159: 0.0 | Z159: 0.0 | AA159: 0.0 | AB159: 0.0 | AC159: 0.0 | AD159: 0.0 | AE159: 0.0 | AF159: 0.0 | AG159: 0.0 | AH159: 0.0 | AI159: 4.0 | AJ159: 0.0 | AM159: 3037 | AN159: 2 | AO159: 1.00 | AP159: 1.00 | AQ159: 1.00 | AR159: 1.00 | AS159: 1.00 | AT159: 1.00 | AU159: 1.00 | AV159: 1.00 | AW159: 1.00 | AX159: 1.00 | AY159: 1.00 | AZ159: 1.00 | BA159: 1.00 | BB159: 1.00 | BC159: 1.00 | BG159: 3037_2 | BH159: 8 | BI159: 1
A160: 3037 | B160: 5 | C160: 2152.3 | D160: 548.3 | E160: 194.1 | F160: 13.7 | G160: 84.3 | H160: 0.0 | I160: 3.2 | J160: 0.0 | K160: 0.0 | L160: 8.2 | M160: 5.3 | N160: 0.0 | O160: 1.0 | P160: 0.0 | Q160: 0.0 | T160: 3037 | U160: 5 | V160: 2152.3 | W160: 548.3 | X160: 194.1 | Y160: 13.7 | Z160: 84.3 | AA160: 0.0 | AB160: 3.2 | AC160: 0.0 | AD160: 0.0 | AE160: 8.2 | AF160: 5.3 | AG160: 0.0 | AH160: 1.0 | AI160: 0.0 | AJ160: 0.0 | AM160: 3037 | AN160: 5 | AO160: 1.00 | AP160: 1.00 | AQ160: 1.00 | AR160: 1.00 | AS160: 1.00 | AT160: 1.00 | AU160: 1.00 | AV160: 1.00 | AW160: 1.00 | AX160: 1.00 | AY160: 1.00 | AZ160: 1.00 | BA160: 1.00 | BB160: 1.00 | BC160: 1.00 | BG160: 3037_5 | BH160: 8 | BI160: 27
A161: 3037 | B161: 7 | C161: 1173.6 | D161: 304.5 | E161: 36.8 | F161: 55.3 | G161: 42.7 | H161: 8.4 | I161: 0.0 | J161: 0.0 | K161: 0.0 | L161: 7.9 | M161: 13.7 | N161: 2.6 | O161: 0.0 | P161: 0.0 | Q161: 0.0 | T161: 3037 | U161: 7 | V161: 1173.6 | W161: 304.5 | X161: 36.8 | Y161: 55.3 | Z161: 42.7 | AA161: 8.4 | AB161: 0.0 | AC161: 0.0 | AD161: 0.0 | AE161: 7.9 | AF161: 13.7 | AG161: 2.6 | AH161: 0.0 | AI161: 0.0 | AJ161: 0.0 | AM161: 3037 | AN161: 7 | AO161: 1.00 | AP161: 1.00 | AQ161: 1.00 | AR161: 1.00 | AS161: 1.00 | AT161: 1.00 | AU161: 1.00 | AV161: 1.00 | AW161: 1.00 | AX161: 1.00 | AY161: 1.00 | AZ161: 1.00 | BA161: 1.00 | BB161: 1.00 | BC161: 1.00 | BG161: 3037_7 | BH161: 8 | BI161: 57
A162: 3037 | B162: 8 | C162: 646.9 | D162: 179.2 | E162: 265.1 | F162: 126.1 | G162: 114.0 | H162: 104.3 | I162: 0.0 | J162: 1.3 | K162: 0.0 | L162: 4.8 | M162: 15.7 | N162: 0.0 | O162: 2.8 | P162: 0.0 | Q162: 0.0 | T162: 3037 | U162: 8 | V162: 646.9 | W162: 179.2 | X162: 265.1 | Y162: 126.1 | Z162: 114.0 | AA162: 104.3 | AB162: 0.0 | AC162: 1.3 | AD162: 0.0 | AE162: 4.8 | AF162: 15.7 | AG162: 0.0 | AH162: 2.8 | AI162: 0.0 | AJ162: 0.0 | AM162: 3037 | AN162: 8 | AO162: 1.00 | AP162: 1.00 | AQ162: 1.00 | AR162: 1.00 | AS162: 1.00 | AT162: 1.00 | AU162: 1.00 | AV162: 1.00 | AW162: 1.00 | AX162: 1.00 | AY162: 1.00 | AZ162: 1.00 | BA162: 1.00 | BB162: 1.00 | BC162: 1.00 | BG162: 3037_8 | BH162: 8 | BI162: 25
A163: 3038 | B163: 0 | C163: 2029.7 | D163: 1070.5 | E163: 7858.4 | F163: 1379.9 | G163: 3370.3 | H163: 1790.9 | I163: 529.6 | J163: 0.0 | K163: 3.2 | L163: 18.3 | M163: 738.1 | N163: 6.1 | O163: 11.1 | P163: 0.2 | Q163: 0.0 | T163: 3038 | U163: 0 | V163: 2029.7 | W163: 1070.5 | X163: 7858.4 | Y163: 1379.9 | Z163: 3370.3 | AA163: 1790.9 | AB163: 529.6 | AC163: 0.0 | AD163: 3.2 | AE163: 18.3 | AF163: 738.1 | AG163: 6.1 | AH163: 11.1 | AI163: 0.2 | AJ163: 0.0 | AM163: 3038 | AN163: 0 | AO163: 1.00 | AP163: 1.00 | AQ163: 1.00 | AR163: 1.00 | AS163: 1.00 | AT163: 1.00 | AU163: 1.00 | AV163: 1.00 | AW163: 1.00 | AX163: 1.00 | AY163: 1.00 | AZ163: 1.00 | BA163: 1.00 | BB163: 1.00 | BC163: 1.00 | BG163: 3038_0 | BH163: 6 | BI163: 200
A164: 3038 | B164: 1 | C164: 1608.1 | D164: 495.4 | E164: 36.7 | F164: 0.0 | G164: 34.1 | H164: 0.0 | I164: 44.8 | J164: 0.0 | K164: 0.0 | L164: 1.6 | M164: 7.5 | N164: 0.0 | O164: 20.6 | P164: 0.0 | Q164: 0.0 | T164: 3038 | U164: 1 | V164: 1608.1 | W164: 495.4 | X164: 36.7 | Y164: 0.0 | Z164: 34.1 | AA164: 0.0 | AB164: 44.8 | AC164: 0.0 | AD164: 0.0 | AE164: 1.6 | AF164: 7.5 | AG164: 0.0 | AH164: 20.6 | AI164: 0.0 | AJ164: 0.0 | AM164: 3038 | AN164: 1 | AO164: 1.00 | AP164: 1.00 | AQ164: 1.00 | AR164: 1.00 | AS164: 1.00 | AT164: 1.00 | AU164: 1.00 | AV164: 1.00 | AW164: 1.00 | AX164: 1.00 | AY164: 1.00 | AZ164: 1.00 | BA164: 1.00 | BB164: 1.00 | BC164: 1.00 | BG164: 3038_1 | BH164: 6 | BI164: 200
A165: 3038 | B165: 2 | C165: 75.8 | D165: 33.4 | E165: 0.0 | F165: 0.0 | G165: 0.0 | H165: 8.0 | I165: 4.8 | J165: 0.0 | K165: 0.0 | L165: 0.0 | M165: 1.0 | N165: 0.0 | O165: 28.2 | P165: 29.6 | Q165: 13.9 | T165: 3038 | U165: 2 | V165: 75.8 | W165: 33.4 | X165: 0.0 | Y165: 0.0 | Z165: 0.0 | AA165: 8.0 | AB165: 4.8 | AC165: 0.0 | AD165: 0.0 | AE165: 0.0 | AF165: 1.0 | AG165: 0.0 | AH165: 28.2 | AI165: 29.6 | AJ165: 13.9 | AM165: 3038 | AN165: 2 | AO165: 1.00 | AP165: 1.00 | AQ165: 1.00 | AR165: 1.00 | AS165: 1.00 | AT165: 1.00 | AU165: 1.00 | AV165: 1.00 | AW165: 1.00 | AX165: 1.00 | AY165: 1.00 | AZ165: 1.00 | BA165: 1.00 | BB165: 1.00 | BC165: 1.00 | BG165: 3038_2 | BH165: 6 | BI165: 13
A166: 3038 | B166: 5 | C166: 1899.8 | D166: 1589.4 | E166: 569.1 | F166: 188.9 | G166: 169.3 | H166: 30.0 | I166: 217.2 | J166: 0.0 | K166: 0.0 | L166: 28.2 | M166: 43.2 | N166: 0.0 | O166: 0.3 | P166: 0.0 | Q166: 0.0 | T166: 3038 | U166: 5 | V166: 1899.8 | W166: 1589.4 | X166: 569.1 | Y166: 188.9 | Z166: 169.3 | AA166: 30.0 | AB166: 217.2 | AC166: 0.0 | AD166: 0.0 | AE166: 28.2 | AF166: 43.2 | AG166: 0.0 | AH166: 0.3 | AI166: 0.0 | AJ166: 0.0 | AM166: 3038 | AN166: 5 | AO166: 1.00 | AP166: 1.00 | AQ166: 1.00 | AR166: 1.00 | AS166: 1.00 | AT166: 1.00 | AU166: 1.00 | AV166: 1.00 | AW166: 1.00 | AX166: 1.00 | AY166: 1.00 | AZ166: 1.00 | BA166: 1.00 | BB166: 1.00 | BC166: 1.00 | BG166: 3038_5 | BH166: 6 | BI166: 33
A167: 3038 | B167: 7 | C167: 5638.1 | D167: 1006.7 | E167: 48.0 | F167: 13.2 | G167: 154.2 | H167: 0.0 | I167: 60.5 | J167: 0.0 | K167: 0.0 | L167: 10.5 | M167: 75.5 | N167: 0.9 | O167: 0.0 | P167: 0.3 | Q167: 0.0 | T167: 3038 | U167: 7 | V167: 5638.1 | W167: 1006.7 | X167: 48.0 | Y167: 13.2 | Z167: 154.2 | AA167: 0.0 | AB167: 60.5 | AC167: 0.0 | AD167: 0.0 | AE167: 10.5 | AF167: 75.5 | AG167: 0.9 | AH167: 0.0 | AI167: 0.3 | AJ167: 0.0 | AM167: 3038 | AN167: 7 | AO167: 1.00 | AP167: 1.00 | AQ167: 1.00 | AR167: 1.00 | AS167: 1.00 | AT167: 1.00 | AU167: 1.00 | AV167: 1.00 | AW167: 1.00 | AX167: 1.00 | AY167: 1.00 | AZ167: 1.00 | BA167: 1.00 | BB167: 1.00 | BC167: 1.00 | BG167: 3038_7 | BH167: 6 | BI167: 298
A168: 3038 | B168: 8 | C168: 1596.8 | D168: 753.3 | E168: 937.0 | F168: 307.8 | G168: 490.0 | H168: 53.9 | I168: 166.2 | J168: 1.6 | K168: 1.0 | L168: 29.9 | M168: 56.0 | N168: 4.0 | O168: 20.8 | P168: 2.7 | Q168: 1.5 | T168: 3038 | U168: 8 | V168: 1596.8 | W168: 753.3 | X168: 937.0 | Y168: 307.8 | Z168: 490.0 | AA168: 53.9 | AB168: 166.2 | AC168: 1.6 | AD168: 1.0 | AE168: 29.9 | AF168: 56.0 | AG168: 4.0 | AH168: 20.8 | AI168: 2.7 | AJ168: 1.5 | AM168: 3038 | AN168: 8 | AO168: 1.00 | AP168: 1.00 | AQ168: 1.00 | AR168: 1.00 | AS168: 1.00 | AT168: 1.00 | AU168: 1.00 | AV168: 1.00 | AW168: 1.00 | AX168: 1.00 | AY168: 1.00 | AZ168: 1.00 | BA168: 1.00 | BB168: 1.00 | BC168: 1.00 | BG168: 3038_8 | BH168: 6 | BI168: 66
A169: 3039 | B169: 0 | C169: 3521.7 | D169: 1621.3 | E169: 26959.8 | F169: 6365.4 | G169: 8032.8 | H169: 6215.0 | I169: 253.6 | J169: 450.7 | K169: 68.0 | L169: 440.1 | M169: 2195.4 | N169: 52.0 | O169: 2001.4 | P169: 1.4 | Q169: 11.3 | T169: 3039 | U169: 0 | V169: 3521.7 | W169: 1621.3 | X169: 26959.8 | Y169: 6365.4 | Z169: 8032.8 | AA169: 6215.0 | AB169: 253.6 | AC169: 450.7 | AD169: 68.0 | AE169: 440.1 | AF169: 2195.4 | AG169: 52.0 | AH169: 2001.4 | AI169: 1.4 | AJ169: 11.3 | AM169: 3039 | AN169: 0 | AO169: 1.00 | AP169: 1.00 | AQ169: 1.00 | AR169: 1.00 | AS169: 1.00 | AT169: 1.00 | AU169: 1.00 | AV169: 1.00 | AW169: 1.00 | AX169: 1.00 | AY169: 1.00 | AZ169: 1.00 | BA169: 1.00 | BB169: 1.00 | BC169: 1.00 | BG169: 3039_0 | BH169: 8 | BI169: 505
A170: 3039 | B170: 1 | C170: 3395.5 | D170: 1258.1 | E170: 15553.2 | F170: 3688.4 | G170: 3875.2 | H170: 2663.0 | I170: 644.2 | J170: 3468.6 | K170: 405.3 | L170: 271.3 | M170: 1543.4 | N170: 20.4 | O170: 4248.6 | P170: 32.8 | Q170: 9.7 | T170: 3039 | U170: 1 | V170: 3395.5 | W170: 1258.1 | X170: 15553.2 | Y170: 3688.4 | Z170: 3875.2 | AA170: 2663.0 | AB170: 644.2 | AC170: 3468.6 | AD170: 405.3 | AE170: 271.3 | AF170: 1543.4 | AG170: 20.4 | AH170: 4248.6 | AI170: 32.8 | AJ170: 9.7 | AM170: 3039 | AN170: 1 | AO170: 1.00 | AP170: 1.00 | AQ170: 1.00 | AR170: 1.00 | AS170: 1.00 | AT170: 1.00 | AU170: 1.00 | AV170: 1.00 | AW170: 1.00 | AX170: 1.00 | AY170: 1.00 | AZ170: 1.00 | BA170: 1.00 | BB170: 1.00 | BC170: 1.00 | BG170: 3039_1 | BH170: 8 | BI170: 303
A171: 3039 | B171: 2 | C171: 82.4 | D171: 23.7 | E171: 344.4 | F171: 59.4 | G171: 176.8 | H171: 22.5 | I171: 0.0 | J171: 30.5 | K171: 4.0 | L171: 0.0 | M171: 97.8 | N171: 0.0 | O171: 140.2 | P171: 0.0 | Q171: 0.8 | T171: 3039 | U171: 2 | V171: 82.4 | W171: 23.7 | X171: 344.4 | Y171: 59.4 | Z171: 176.8 | AA171: 22.5 | AB171: 0.0 | AC171: 30.5 | AD171: 4.0 | AE171: 0.0 | AF171: 97.8 | AG171: 0.0 | AH171: 140.2 | AI171: 0.0 | AJ171: 0.8 | AM171: 3039 | AN171: 2 | AO171: 1.00 | AP171: 1.00 | AQ171: 1.00 | AR171: 1.00 | AS171: 1.00 | AT171: 1.00 | AU171: 1.00 | AV171: 1.00 | AW171: 1.00 | AX171: 1.00 | AY171: 1.00 | AZ171: 1.00 | BA171: 1.00 | BB171: 1.00 | BC171: 1.00 | BG171: 3039_2 | BH171: 8 | BI171: 51
A172: 3039 | B172: 5 | C172: 298.2 | D172: 630.2 | E172: 321.9 | F172: 57.9 | G172: 65.8 | H172: 6.7 | I172: 144.4 | J172: 0.0 | K172: 0.0 | L172: 27.9 | M172: 6.5 | N172: 1.1 | O172: 0.0 | P172: 0.0 | Q172: 0.0 | T172: 3039 | U172: 5 | V172: 298.2 | W172: 630.2 | X172: 321.9 | Y172: 57.9 | Z172: 65.8 | AA172: 6.7 | AB172: 144.4 | AC172: 0.0 | AD172: 0.0 | AE172: 27.9 | AF172: 6.5 | AG172: 1.1 | AH172: 0.0 | AI172: 0.0 | AJ172: 0.0 | AM172: 3039 | AN172: 5 | AO172: 1.00 | AP172: 1.00 | AQ172: 1.00 | AR172: 1.00 | AS172: 1.00 | AT172: 1.00 | AU172: 1.00 | AV172: 1.00 | AW172: 1.00 | AX172: 1.00 | AY172: 1.00 | AZ172: 1.00 | BA172: 1.00 | BB172: 1.00 | BC172: 1.00 | BG172: 3039_5 | BH172: 8 | BI172: 13
A173: 3039 | B173: 7 | C173: 3452.7 | D173: 1090.8 | E173: 237.1 | F173: 106.5 | G173: 83.3 | H173: 27.8 | I173: 2.9 | J173: 0.0 | K173: 0.0 | L173: 10.0 | M173: 12.5 | N173: 3.3 | O173: 0.0 | P173: 0.0 | Q173: 0.0 | T173: 3039 | U173: 7 | V173: 3452.7 | W173: 1090.8 | X173: 237.1 | Y173: 106.5 | Z173: 83.3 | AA173: 27.8 | AB173: 2.9 | AC173: 0.0 | AD173: 0.0 | AE173: 10.0 | AF173: 12.5 | AG173: 3.3 | AH173: 0.0 | AI173: 0.0 | AJ173: 0.0 | AM173: 3039 | AN173: 7 | AO173: 1.00 | AP173: 1.00 | AQ173: 1.00 | AR173: 1.00 | AS173: 1.00 | AT173: 1.00 | AU173: 1.00 | AV173: 1.00 | AW173: 1.00 | AX173: 1.00 | AY173: 1.00 | AZ173: 1.00 | BA173: 1.00 | BB173: 1.00 | BC173: 1.00 | BG173: 3039_7 | BH173: 8 | BI173: 244
A174: 3039 | B174: 8 | C174: 2763.1 | D174: 1271.3 | E174: 11252.0 | F174: 3019.6 | G174: 3173.9 | H174: 2566.0 | I174: 637.0 | J174: 836.5 | K174: 217.9 | L174: 353.2 | M174: 674.7 | N174: 103.8 | O174: 1237.5 | P174: 0.9 | Q174: 3.4 | T174: 3039 | U174: 8 | V174: 2763.1 | W174: 1271.3 | X174: 11252.0 | Y174: 3019.6 | Z174: 3173.9 | AA174: 2566.0 | AB174: 637.0 | AC174: 836.5 | AD174: 217.9 | AE174: 353.2 | AF174: 674.7 | AG174: 103.8 | AH174: 1237.5 | AI174: 0.9 | AJ174: 3.4 | AM174: 3039 | AN174: 8 | AO174: 1.00 | AP174: 1.00 | AQ174: 1.00 | AR174: 1.00 | AS174: 1.00 | AT174: 1.00 | AU174: 1.00 | AV174: 1.00 | AW174: 1.00 | AX174: 1.00 | AY174: 1.00 | AZ174: 1.00 | BA174: 1.00 | BB174: 1.00 | BC174: 1.00 | BG174: 3039_8 | BH174: 8 | BI174: 180
A175: 3041 | B175: 0 | C175: 1844.7 | D175: 1170.5 | E175: 14273.5 | F175: 2684.4 | G175: 3844.7 | H175: 2622.0 | I175: 3242.9 | J175: 215.0 | K175: 766.5 | L175: 622.3 | M175: 1742.4 | N175: 169.8 | O175: 145.8 | P175: 0.5 | Q175: 2.4 | T175: 3041 | U175: 0 | V175: 1844.7 | W175: 1170.5 | X175: 14273.5 | Y175: 2684.4 | Z175: 3844.7 | AA175: 2622.0 | AB175: 3242.9 | AC175: 215.0 | AD175: 766.5 | AE175: 622.3 | AF175: 1742.4 | AG175: 169.8 | AH175: 145.8 | AI175: 0.5 | AJ175: 2.4 | AM175: 3041 | AN175: 0 | AO175: 1.00 | AP175: 1.00 | AQ175: 1.00 | AR175: 1.00 | AS175: 1.00 | AT175: 1.00 | AU175: 1.00 | AV175: 1.00 | AW175: 1.00 | AX175: 1.00 | AY175: 1.00 | AZ175: 1.00 | BA175: 1.00 | BB175: 1.00 | BC175: 1.00 | BG175: 3041_0 | BH175: 1 | BI175: 236
A176: 3041 | B176: 1 | C176: 2242.4 | D176: 1256.4 | E176: 5857.7 | F176: 1264.3 | G176: 2599.3 | H176: 1098.1 | I176: 2153.0 | J176: 1676.8 | K176: 2025.6 | L176: 417.2 | M176: 830.6 | N176: 114.7 | O176: 887.3 | P176: 0.0 | Q176: 23.4 | T176: 3041 | U176: 1 | V176: 2242.4 | W176: 1256.4 | X176: 5857.7 | Y176: 1264.3 | Z176: 2599.3 | AA176: 1098.1 | AB176: 2153.0 | AC176: 1676.8 | AD176: 2025.6 | AE176: 417.2 | AF176: 830.6 | AG176: 114.7 | AH176: 887.3 | AI176: 0.0 | AJ176: 23.4 | AM176: 3041 | AN176: 1 | AO176: 1.00 | AP176: 1.00 | AQ176: 1.00 | AR176: 1.00 | AS176: 1.00 | AT176: 1.00 | AU176: 1.00 | AV176: 1.00 | AW176: 1.00 | AX176: 1.00 | AY176: 1.00 | AZ176: 1.00 | BA176: 1.00 | BB176: 1.00 | BC176: 1.00 | BG176: 3041_1 | BH176: 1 | BI176: 185
A177: 3041 | B177: 2 | C177: 60.6 | D177: 44.1 | E177: 188.9 | F177: 24.2 | G177: 10.1 | H177: 12.0 | I177: 150.4 | J177: 12.9 | K177: 37.2 | L177: 37.4 | M177: 0.0 | N177: 2.0 | O177: 49.8 | P177: 3.4 | Q177: 16.7 | T177: 3041 | U177: 2 | V177: 60.6 | W177: 44.1 | X177: 188.9 | Y177: 24.2 | Z177: 10.1 | AA177: 12.0 | AB177: 150.4 | AC177: 12.9 | AD177: 37.2 | AE177: 37.4 | AF177: 0.0 | AG177: 2.0 | AH177: 49.8 | AI177: 3.4 | AJ177: 16.7 | AM177: 3041 | AN177: 2 | AO177: 1.00 | AP177: 1.00 | AQ177: 1.00 | AR177: 1.00 | AS177: 1.00 | AT177: 1.00 | AU177: 1.00 | AV177: 1.00 | AW177: 1.00 | AX177: 1.00 | AY177: 1.00 | AZ177: 1.00 | BA177: 1.00 | BB177: 1.00 | BC177: 1.00 | BG177: 3041_2 | BH177: 1 | BI177: 20
A178: 3041 | B178: 5 | C178: 253.8 | D178: 286.6 | E178: 135.2 | F178: 27.0 | G178: 65.7 | H178: 11.2 | I178: 90.0 | J178: 9.0 | K178: 14.2 | L178: 160.7 | M178: 25.2 | N178: 50.6 | O178: 4.6 | P178: 0.0 | Q178: 0.0 | T178: 3041 | U178: 5 | V178: 253.8 | W178: 286.6 | X178: 135.2 | Y178: 27.0 | Z178: 65.7 | AA178: 11.2 | AB178: 90.0 | AC178: 9.0 | AD178: 14.2 | AE178: 160.7 | AF178: 25.2 | AG178: 50.6 | AH178: 4.6 | AI178: 0.0 | AJ178: 0.0 | AM178: 3041 | AN178: 5 | AO178: 1.00 | AP178: 1.00 | AQ178: 1.00 | AR178: 1.00 | AS178: 1.00 | AT178: 1.00 | AU178: 1.00 | AV178: 1.00 | AW178: 1.00 | AX178: 1.00 | AY178: 1.00 | AZ178: 1.00 | BA178: 1.00 | BB178: 1.00 | BC178: 1.00 | BG178: 3041_5 | BH178: 1 | BI178: 4
A179: 3041 | B179: 7 | C179: 2883.1 | D179: 772.3 | E179: 51.6 | F179: 75.0 | G179: 65.2 | H179: 20.7 | I179: 105.3 | J179: 1.4 | K179: 7.5 | L179: 23.3 | M179: 0.0 | N179: 2.7 | O179: 0.0 | P179: 0.2 | Q179: 0.0 | T179: 3041 | U179: 7 | V179: 2883.1 | W179: 772.3 | X179: 51.6 | Y179: 75.0 | Z179: 65.2 | AA179: 20.7 | AB179: 105.3 | AC179: 1.4 | AD179: 7.5 | AE179: 23.3 | AF179: 0.0 | AG179: 2.7 | AH179: 0.0 | AI179: 0.2 | AJ179: 0.0 | AM179: 3041 | AN179: 7 | AO179: 1.00 | AP179: 1.00 | AQ179: 1.00 | AR179: 1.00 | AS179: 1.00 | AT179: 1.00 | AU179: 1.00 | AV179: 1.00 | AW179: 1.00 | AX179: 1.00 | AY179: 1.00 | AZ179: 1.00 | BA179: 1.00 | BB179: 1.00 | BC179: 1.00 | BG179: 3041_7 | BH179: 1 | BI179: 152
A180: 3041 | B180: 8 | C180: 1307.2 | D180: 826.0 | E180: 1813.2 | F180: 436.4 | G180: 567.9 | H180: 240.3 | I180: 265.2 | J180: 71.6 | K180: 191.9 | L180: 49.0 | M180: 263.8 | N180: 2.5 | O180: 28.8 | P180: 0.1 | Q180: 0.0 | T180: 3041 | U180: 8 | V180: 1307.2 | W180: 826.0 | X180: 1813.2 | Y180: 436.4 | Z180: 567.9 | AA180: 240.3 | AB180: 265.2 | AC180: 71.6 | AD180: 191.9 | AE180: 49.0 | AF180: 263.8 | AG180: 2.5 | AH180: 28.8 | AI180: 0.1 | AJ180: 0.0 | AM180: 3041 | AN180: 8 | AO180: 1.00 | AP180: 1.00 | AQ180: 1.00 | AR180: 1.00 | AS180: 1.00 | AT180: 1.00 | AU180: 1.00 | AV180: 1.00 | AW180: 1.00 | AX180: 1.00 | AY180: 1.00 | AZ180: 1.00 | BA180: 1.00 | BB180: 1.00 | BC180: 1.00 | BG180: 3041_8 | BH180: 1 | BI180: 51
A181: 3042 | B181: 0 | C181: 1.1 | D181: 15.6 | E181: 40.1 | F181: 0.0 | G181: 49.6 | H181: 24.2 | I181: 0.0 | J181: 0.0 | K181: 0.0 | L181: 0.0 | M181: 0.0 | N181: 0.0 | O181: 0.0 | P181: 0.0 | Q181: 0.0 | T181: 3042 | U181: 0 | V181: 1.1 | W181: 15.6 | X181: 40.1 | Y181: 0.0 | Z181: 49.6 | AA181: 24.2 | AB181: 0.0 | AC181: 0.0 | AD181: 0.0 | AE181: 0.0 | AF181: 0.0 | AG181: 0.0 | AH181: 0.0 | AI181: 0.0 | AJ181: 0.0 | AM181: 3042 | AN181: 0 | AO181: 1.00 | AP181: 1.00 | AQ181: 1.00 | AR181: 1.00 | AS181: 1.00 | AT181: 1.00 | AU181: 1.00 | AV181: 1.00 | AW181: 1.00 | AX181: 1.00 | AY181: 1.00 | AZ181: 1.00 | BA181: 1.00 | BB181: 1.00 | BC181: 1.00 | BG181: 3042_0 | BH181: 4 | BI181: 5
A182: 3042 | B182: 1 | C182: 1783.5 | D182: 93.0 | E182: 0.0 | F182: 0.0 | G182: 0.0 | H182: 0.0 | I182: 3.7 | J182: 0.0 | K182: 0.0 | L182: 0.0 | M182: 0.0 | N182: 0.0 | O182: 0.0 | P182: 0.0 | Q182: 0.0 | T182: 3042 | U182: 1 | V182: 1783.5 | W182: 93.0 | X182: 0.0 | Y182: 0.0 | Z182: 0.0 | AA182: 0.0 | AB182: 3.7 | AC182: 0.0 | AD182: 0.0 | AE182: 0.0 | AF182: 0.0 | AG182: 0.0 | AH182: 0.0 | AI182: 0.0 | AJ182: 0.0 | AM182: 3042 | AN182: 1 | AO182: 1.00 | AP182: 1.00 | AQ182: 1.00 | AR182: 1.00 | AS182: 1.00 | AT182: 1.00 | AU182: 1.00 | AV182: 1.00 | AW182: 1.00 | AX182: 1.00 | AY182: 1.00 | AZ182: 1.00 | BA182: 1.00 | BB182: 1.00 | BC182: 1.00 | BG182: 3042_1 | BH182: 4 | BI182: 95
A183: 3042 | B183: 2 | C183: 2.3 | D183: 0.0 | E183: 0.0 | F183: 0.0 | G183: 0.0 | H183: 0.0 | I183: 0.0 | J183: 0.0 | K183: 0.0 | L183: 0.0 | M183: 0.0 | N183: 0.0 | O183: 0.0 | P183: 0.1 | Q183: 0.5 | T183: 3042 | U183: 2 | V183: 2.3 | W183: 0.0 | X183: 0.0 | Y183: 0.0 | Z183: 0.0 | AA183: 0.0 | AB183: 0.0 | AC183: 0.0 | AD183: 0.0 | AE183: 0.0 | AF183: 0.0 | AG183: 0.0 | AH183: 0.0 | AI183: 0.1 | AJ183: 0.5 | AM183: 3042 | AN183: 2 | AO183: 1.00 | AP183: 1.00 | AQ183: 1.00 | AR183: 1.00 | AS183: 1.00 | AT183: 1.00 | AU183: 1.00 | AV183: 1.00 | AW183: 1.00 | AX183: 1.00 | AY183: 1.00 | AZ183: 1.00 | BA183: 1.00 | BB183: 1.00 | BC183: 1.00 | BG183: 3042_2 | BH183: 4 | BI183: 4
A184: 3042 | B184: 5 | C184: 1637.0 | D184: 143.0 | E184: 0.0 | F184: 0.0 | G184: 0.0 | H184: 0.0 | I184: 0.0 | J184: 0.0 | K184: 0.0 | L184: 0.0 | M184: 0.0 | N184: 0.0 | O184: 0.0 | P184: 0.0 | Q184: 0.0 | T184: 3042 | U184: 5 | V184: 1637.0 | W184: 143.0 | X184: 0.0 | Y184: 0.0 | Z184: 0.0 | AA184: 0.0 | AB184: 0.0 | AC184: 0.0 | AD184: 0.0 | AE184: 0.0 | AF184: 0.0 | AG184: 0.0 | AH184: 0.0 | AI184: 0.0 | AJ184: 0.0 | AM184: 3042 | AN184: 5 | AO184: 1.00 | AP184: 1.00 | AQ184: 1.00 | AR184: 1.00 | AS184: 1.00 | AT184: 1.00 | AU184: 1.00 | AV184: 1.00 | AW184: 1.00 | AX184: 1.00 | AY184: 1.00 | AZ184: 1.00 | BA184: 1.00 | BB184: 1.00 | BC184: 1.00 | BG184: 3042_5 | BH184: 4 | BI184: 20
A185: 3042 | B185: 7 | C185: 1518.8 | D185: 57.0 | E185: 8.2 | F185: 0.0 | G185: 0.0 | H185: 0.0 | I185: 153.9 | J185: 0.0 | K185: 0.0 | L185: 0.0 | M185: 0.0 | N185: 0.0 | O185: 0.0 | P185: 0.0 | Q185: 0.0 | T185: 3042 | U185: 7 | V185: 1518.8 | W185: 57.0 | X185: 8.2 | Y185: 0.0 | Z185: 0.0 | AA185: 0.0 | AB185: 153.9 | AC185: 0.0 | AD185: 0.0 | AE185: 0.0 | AF185: 0.0 | AG185: 0.0 | AH185: 0.0 | AI185: 0.0 | AJ185: 0.0 | AM185: 3042 | AN185: 7 | AO185: 1.00 | AP185: 1.00 | AQ185: 1.00 | AR185: 1.00 | AS185: 1.00 | AT185: 1.00 | AU185: 1.00 | AV185: 1.00 | AW185: 1.00 | AX185: 1.00 | AY185: 1.00 | AZ185: 1.00 | BA185: 1.00 | BB185: 1.00 | BC185: 1.00 | BG185: 3042_7 | BH185: 4 | BI185: 54
A186: 3042 | B186: 8 | C186: 356.3 | D186: 13.8 | E186: 38.8 | F186: 0.0 | G186: 17.0 | H186: 0.0 | I186: 0.0 | J186: 0.0 | K186: 0.0 | L186: 0.0 | M186: 0.0 | N186: 0.0 | O186: 0.4 | P186: 0.0 | Q186: 1.0 | T186: 3042 | U186: 8 | V186: 356.3 | W186: 13.8 | X186: 38.8 | Y186: 0.0 | Z186: 17.0 | AA186: 0.0 | AB186: 0.0 | AC186: 0.0 | AD186: 0.0 | AE186: 0.0 | AF186: 0.0 | AG186: 0.0 | AH186: 0.4 | AI186: 0.0 | AJ186: 1.0 | AM186: 3042 | AN186: 8 | AO186: 1.00 | AP186: 1.00 | AQ186: 1.00 | AR186: 1.00 | AS186: 1.00 | AT186: 1.00 | AU186: 1.00 | AV186: 1.00 | AW186: 1.00 | AX186: 1.00 | AY186: 1.00 | AZ186: 1.00 | BA186: 1.00 | BB186: 1.00 | BC186: 1.00 | BG186: 3042_8 | BH186: 4 | BI186: 32
A187: 3043 | B187: 0 | C187: 456.4 | D187: 173.6 | E187: 740.6 | F187: 92.0 | G187: 193.7 | H187: 96.5 | I187: 561.7 | J187: 0.0 | K187: 0.0 | L187: 5.4 | M187: 389.2 | N187: 1.8 | O187: 0.0 | P187: 0.0 | Q187: 0.0 | T187: 3043 | U187: 0 | V187: 456.4 | W187: 173.6 | X187: 740.6 | Y187: 92.0 | Z187: 193.7 | AA187: 96.5 | AB187: 561.7 | AC187: 0.0 | AD187: 0.0 | AE187: 5.4 | AF187: 389.2 | AG187: 1.8 | AH187: 0.0 | AI187: 0.0 | AJ187: 0.0 | AM187: 3043 | AN187: 0 | AO187: 1.00 | AP187: 1.00 | AQ187: 1.00 | AR187: 1.00 | AS187: 1.00 | AT187: 1.00 | AU187: 1.00 | AV187: 1.00 | AW187: 1.00 | AX187: 1.00 | AY187: 1.00 | AZ187: 1.00 | BA187: 1.00 | BB187: 1.00 | BC187: 1.00 | BG187: 3043_0 | BH187: 5 | BI187: 36
A188: 3043 | B188: 1 | C188: 734.4 | D188: 214.0 | E188: 635.2 | F188: 10.1 | G188: 58.5 | H188: 58.6 | I188: 652.9 | J188: 263.3 | K188: 1.2 | L188: 29.2 | M188: 319.9 | N188: 8.2 | O188: 149.4 | P188: 0.0 | Q188: 0.5 | T188: 3043 | U188: 1 | V188: 734.4 | W188: 214.0 | X188: 635.2 | Y188: 10.1 | Z188: 58.5 | AA188: 58.6 | AB188: 652.9 | AC188: 263.3 | AD188: 1.2 | AE188: 29.2 | AF188: 319.9 | AG188: 8.2 | AH188: 149.4 | AI188: 0.0 | AJ188: 0.5 | AM188: 3043 | AN188: 1 | AO188: 1.00 | AP188: 1.00 | AQ188: 1.00 | AR188: 1.00 | AS188: 1.00 | AT188: 1.00 | AU188: 1.00 | AV188: 1.00 | AW188: 1.00 | AX188: 1.00 | AY188: 1.00 | AZ188: 1.00 | BA188: 1.00 | BB188: 1.00 | BC188: 1.00 | BG188: 3043_1 | BH188: 5 | BI188: 65
A189: 3043 | B189: 2 | C189: 16.0 | D189: 0.0 | E189: 0.0 | F189: 0.0 | G189: 0.0 | H189: 0.0 | I189: 0.0 | J189: 0.0 | K189: 0.0 | L189: 0.0 | M189: 0.2 | N189: 0.0 | O189: 5.4 | P189: 13.2 | Q189: 5.7 | T189: 3043 | U189: 2 | V189: 16.0 | W189: 0.0 | X189: 0.0 | Y189: 0.0 | Z189: 0.0 | AA189: 0.0 | AB189: 0.0 | AC189: 0.0 | AD189: 0.0 | AE189: 0.0 | AF189: 0.2 | AG189: 0.0 | AH189: 5.4 | AI189: 13.2 | AJ189: 5.7 | AM189: 3043 | AN189: 2 | AO189: 1.00 | AP189: 1.00 | AQ189: 1.00 | AR189: 1.00 | AS189: 1.00 | AT189: 1.00 | AU189: 1.00 | AV189: 1.00 | AW189: 1.00 | AX189: 1.00 | AY189: 1.00 | AZ189: 1.00 | BA189: 1.00 | BB189: 1.00 | BC189: 1.00 | BG189: 3043_2 | BH189: 5 | BI189: 9
A190: 3043 | B190: 5 | C190: 124.2 | D190: 219.8 | E190: 75.5 | F190: 26.1 | G190: 15.7 | H190: 0.0 | I190: 21.0 | J190: 0.0 | K190: 0.0 | L190: 6.8 | M190: 4.9 | N190: 2.3 | O190: 0.0 | P190: 0.0 | Q190: 0.0 | T190: 3043 | U190: 5 | V190: 124.2 | W190: 219.8 | X190: 75.5 | Y190: 26.1 | Z190: 15.7 | AA190: 0.0 | AB190: 21.0 | AC190: 0.0 | AD190: 0.0 | AE190: 6.8 | AF190: 4.9 | AG190: 2.3 | AH190: 0.0 | AI190: 0.0 | AJ190: 0.0 | AM190: 3043 | AN190: 5 | AO190: 1.00 | AP190: 1.00 | AQ190: 1.00 | AR190: 1.00 | AS190: 1.00 | AT190: 1.00 | AU190: 1.00 | AV190: 1.00 | AW190: 1.00 | AX190: 1.00 | AY190: 1.00 | AZ190: 1.00 | BA190: 1.00 | BB190: 1.00 | BC190: 1.00 | BG190: 3043_5 | BH190: 5 | BI190: 12
A191: 3043 | B191: 7 | C191: 4458.4 | D191: 480.5 | E191: 59.2 | F191: 29.4 | G191: 71.9 | H191: 0.0 | I191: 44.1 | J191: 0.0 | K191: 0.0 | L191: 4.2 | M191: 63.4 | N191: 1.4 | O191: 0.1 | P191: 0.4 | Q191: 0.0 | T191: 3043 | U191: 7 | V191: 4458.4 | W191: 480.5 | X191: 59.2 | Y191: 29.4 | Z191: 71.9 | AA191: 0.0 | AB191: 44.1 | AC191: 0.0 | AD191: 0.0 | AE191: 4.2 | AF191: 63.4 | AG191: 1.4 | AH191: 0.1 | AI191: 0.4 | AJ191: 0.0 | AM191: 3043 | AN191: 7 | AO191: 1.00 | AP191: 1.00 | AQ191: 1.00 | AR191: 1.00 | AS191: 1.00 | AT191: 1.00 | AU191: 1.00 | AV191: 1.00 | AW191: 1.00 | AX191: 1.00 | AY191: 1.00 | AZ191: 1.00 | BA191: 1.00 | BB191: 1.00 | BC191: 1.00 | BG191: 3043_7 | BH191: 5 | BI191: 158
A192: 3043 | B192: 8 | C192: 312.4 | D192: 143.3 | E192: 168.6 | F192: 30.7 | G192: 48.9 | H192: 0.0 | I192: 85.9 | J192: 0.0 | K192: 0.0 | L192: 0.0 | M192: 31.9 | N192: 0.0 | O192: 2.0 | P192: 0.2 | Q192: 0.0 | T192: 3043 | U192: 8 | V192: 312.4 | W192: 143.3 | X192: 168.6 | Y192: 30.7 | Z192: 48.9 | AA192: 0.0 | AB192: 85.9 | AC192: 0.0 | AD192: 0.0 | AE192: 0.0 | AF192: 31.9 | AG192: 0.0 | AH192: 2.0 | AI192: 0.2 | AJ192: 0.0 | AM192: 3043 | AN192: 8 | AO192: 1.00 | AP192: 1.00 | AQ192: 1.00 | AR192: 1.00 | AS192: 1.00 | AT192: 1.00 | AU192: 1.00 | AV192: 1.00 | AW192: 1.00 | AX192: 1.00 | AY192: 1.00 | AZ192: 1.00 | BA192: 1.00 | BB192: 1.00 | BC192: 1.00 | BG192: 3043_8 | BH192: 5 | BI192: 19
A193: 3044 | B193: 0 | C193: 7003.6 | D193: 2389.0 | E193: 19584.1 | F193: 4298.2 | G193: 8094.8 | H193: 3851.7 | I193: 1607.8 | J193: 0.0 | K193: 47.4 | L193: 264.9 | M193: 5317.8 | N193: 1.0 | O193: 0.7 | P193: 0.0 | Q193: 5.9 | T193: 3044 | U193: 0 | V193: 7003.6 | W193: 2389.0 | X193: 19584.1 | Y193: 4298.2 | Z193: 8094.8 | AA193: 3851.7 | AB193: 1607.8 | AC193: 0.0 | AD193: 47.4 | AE193: 264.9 | AF193: 5317.8 | AG193: 1.0 | AH193: 0.7 | AI193: 0.0 | AJ193: 5.9 | AM193: 3044 | AN193: 0 | AO193: 1.00 | AP193: 1.00 | AQ193: 1.00 | AR193: 1.00 | AS193: 1.00 | AT193: 1.00 | AU193: 1.00 | AV193: 1.00 | AW193: 1.00 | AX193: 1.00 | AY193: 1.00 | AZ193: 1.00 | BA193: 1.00 | BB193: 1.00 | BC193: 1.00 | BG193: 3044_0 | BH193: 5 | BI193: 170
A194: =AM194 -> 3044 | B194: =AN194 -> 1 | C194: =V194*AO194 -> 2909.7 | D194: =W194*AP194 -> 781.8 | E194: =X194*AQ194 -> 358.9 | F194: =Y194*AR194 -> 94.9 | G194: =Z194*AS194 -> 134.1 | H194: =AA194*AT194 -> 52.1 | I194: =AB194*AU194 -> 54.4 | J194: =AC194*AV194 -> 18.7 | K194: =AD194*AW194 -> 2.9 | L194: =AE194*AX194 -> 7.9 | M194: =AF194*AY194 -> 419.7 | N194: =AG194*AZ194 -> 2.6 | O194: =AH194*BA194 -> 174.8 | P194: =AI194*BB194 -> 1.5 | Q194: =AJ194*BC194 -> 23.7 | T194: 3044 | U194: 1 | V194: 2909.7 | W194: 781.8 | X194: 358.9 | Y194: 94.9 | Z194: 134.1 | AA194: 52.1 | AB194: 54.4 | AC194: 18.7 | AD194: 2.9 | AE194: 7.9 | AF194: 419.7 | AG194: 2.6 | AH194: 174.8 | AI194: 1.5 | AJ194: 23.7 | AM194: 3044 | AN194: 1 | AO194: 1.00 | AP194: 1.00 | AQ194: 1.00 | AR194: 1.00 | AS194: 1.00 | AT194: 1.00 | AU194: 1.00 | AV194: 1.00 | AW194: 1.00 | AX194: 1.00 | AY194: 1.00 | AZ194: 1.00 | BA194: 1.00 | BB194: 1.00 | BC194: 1.00 | BG194: 3044_1 | BH194: 5 | BI194: 124
A195: 3044 | B195: 2 | C195: 295.2 | D195: 40.7 | E195: 51.5 | F195: 0.0 | G195: 0.0 | H195: 0.0 | I195: 6.3 | J195: 0.5 | K195: 0.0 | L195: 1.0 | M195: 21.6 | N195: 0.0 | O195: 18.0 | P195: 10.7 | Q195: 4.2 | T195: 3044 | U195: 2 | V195: 295.2 | W195: 40.7 | X195: 51.5 | Y195: 0.0 | Z195: 0.0 | AA195: 0.0 | AB195: 6.3 | AC195: 0.5 | AD195: 0.0 | AE195: 1.0 | AF195: 21.6 | AG195: 0.0 | AH195: 18.0 | AI195: 10.7 | AJ195: 4.2 | AM195: 3044 | AN195: 2 | AO195: 1.00 | AP195: 1.00 | AQ195: 1.00 | AR195: 1.00 | AS195: 1.00 | AT195: 1.00 | AU195: 1.00 | AV195: 1.00 | AW195: 1.00 | AX195: 1.00 | AY195: 1.00 | AZ195: 1.00 | BA195: 1.00 | BB195: 1.00 | BC195: 1.00 | BG195: 3044_2 | BH195: 5 | BI195: 12
A196: 3044 | B196: 5 | C196: 989.8 | D196: 1493.0 | E196: 651.5 | F196: 126.6 | G196: 445.2 | H196: 80.3 | I196: 320.7 | J196: 0.0 | K196: 2.9 | L196: 11.7 | M196: 50.0 | N196: 0.0 | O196: 0.0 | P196: 0.0 | Q196: 0.0 | T196: 3044 | U196: 5 | V196: 989.8 | W196: 1493.0 | X196: 651.5 | Y196: 126.6 | Z196: 445.2 | AA196: 80.3 | AB196: 320.7 | AC196: 0.0 | AD196: 2.9 | AE196: 11.7 | AF196: 50.0 | AG196: 0.0 | AH196: 0.0 | AI196: 0.0 | AJ196: 0.0 | AM196: 3044 | AN196: 5 | AO196: 1.00 | AP196: 1.00 | AQ196: 1.00 | AR196: 1.00 | AS196: 1.00 | AT196: 1.00 | AU196: 1.00 | AV196: 1.00 | AW196: 1.00 | AX196: 1.00 | AY196: 1.00 | AZ196: 1.00 | BA196: 1.00 | BB196: 1.00 | BC196: 1.00 | BG196: 3044_5 | BH196: 5 | BI196: 16
A197: 3044 | B197: 7 | C197: 10184.0 | D197: 2685.8 | E197: 66.2 | F197: 26.5 | G197: 88.6 | H197: 0.0 | I197: 130.2 | J197: 0.0 | K197: 0.0 | L197: 234.0 | M197: 41.4 | N197: 17.5 | O197: 0.4 | P197: 0.2 | Q197: 0.1 | T197: 3044 | U197: 7 | V197: 10184.0 | W197: 2685.8 | X197: 66.2 | Y197: 26.5 | Z197: 88.6 | AA197: 0.0 | AB197: 130.2 | AC197: 0.0 | AD197: 0.0 | AE197: 234.0 | AF197: 41.4 | AG197: 17.5 | AH197: 0.4 | AI197: 0.2 | AJ197: 0.1 | AM197: 3044 | AN197: 7 | AO197: 1.00 | AP197: 1.00 | AQ197: 1.00 | AR197: 1.00 | AS197: 1.00 | AT197: 1.00 | AU197: 1.00 | AV197: 1.00 | AW197: 1.00 | AX197: 1.00 | AY197: 1.00 | AZ197: 1.00 | BA197: 1.00 | BB197: 1.00 | BC197: 1.00 | BG197: 3044_7 | BH197: 5 | BI197: 221
A198: 3044 | B198: 8 | C198: 1214.6 | D198: 1327.0 | E198: 1215.5 | F198: 275.3 | G198: 713.7 | H198: 160.8 | I198: 114.3 | J198: 0.0 | K198: 0.0 | L198: 111.7 | M198: 257.4 | N198: 34.7 | O198: 0.0 | P198: 2.9 | Q198: 0.0 | T198: 3044 | U198: 8 | V198: 1214.6 | W198: 1327.0 | X198: 1215.5 | Y198: 275.3 | Z198: 713.7 | AA198: 160.8 | AB198: 114.3 | AC198: 0.0 | AD198: 0.0 | AE198: 111.7 | AF198: 257.4 | AG198: 34.7 | AH198: 0.0 | AI198: 2.9 | AJ198: 0.0 | AM198: 3044 | AN198: 8 | AO198: 1.00 | AP198: 1.00 | AQ198: 1.00 | AR198: 1.00 | AS198: 1.00 | AT198: 1.00 | AU198: 1.00 | AV198: 1.00 | AW198: 1.00 | AX198: 1.00 | AY198: 1.00 | AZ198: 1.00 | BA198: 1.00 | BB198: 1.00 | BC198: 1.00 | BG198: 3044_8 | BH198: 5 | BI198: 31
A199: 3045 | B199: 0 | C199: 19.6 | D199: 0.0 | E199: 36.8 | F199: 11.1 | G199: 0.0 | H199: 25.3 | I199: 0.0 | J199: 0.0 | K199: 0.0 | L199: 0.0 | M199: 34.5 | N199: 0.0 | O199: 0.0 | P199: 0.0 | Q199: 0.0 | T199: 3045 | U199: 0 | V199: 19.6 | W199: 0.0 | X199: 36.8 | Y199: 11.1 | Z199: 0.0 | AA199: 25.3 | AB199: 0.0 | AC199: 0.0 | AD199: 0.0 | AE199: 0.0 | AF199: 34.5 | AG199: 0.0 | AH199: 0.0 | AI199: 0.0 | AJ199: 0.0 | AM199: 3045 | AN199: 0 | AO199: 1.00 | AP199: 1.00 | AQ199: 1.00 | AR199: 1.00 | AS199: 1.00 | AT199: 1.00 | AU199: 1.00 | AV199: 1.00 | AW199: 1.00 | AX199: 1.00 | AY199: 1.00 | AZ199: 1.00 | BA199: 1.00 | BB199: 1.00 | BC199: 1.00 | BG199: 3045_0 | BH199: 4 | BI199: 4
A200: 3045 | B200: 1 | C200: 3620.3 | D200: 183.9 | E200: 8.8 | F200: 0.0 | G200: 0.0 | H200: 0.0 | I200: 9.2 | J200: 12.1 | K200: 0.0 | L200: 7.0 | M200: 0.0 | N200: 2.3 | O200: 0.0 | P200: 0.0 | Q200: 0.0 | T200: 3045 | U200: 1 | V200: 3620.3 | W200: 183.9 | X200: 8.8 | Y200: 0.0 | Z200: 0.0 | AA200: 0.0 | AB200: 9.2 | AC200: 12.1 | AD200: 0.0 | AE200: 7.0 | AF200: 0.0 | AG200: 2.3 | AH200: 0.0 | AI200: 0.0 | AJ200: 0.0 | AM200: 3045 | AN200: 1 | AO200: 1.00 | AP200: 1.00 | AQ200: 1.00 | AR200: 1.00 | AS200: 1.00 | AT200: 1.00 | AU200: 1.00 | AV200: 1.00 | AW200: 1.00 | AX200: 1.00 | AY200: 1.00 | AZ200: 1.00 | BA200: 1.00 | BB200: 1.00 | BC200: 1.00 | BG200: 3045_1 | BH200: 4 | BI200: 138
... 328 more rows

Sheet Embedded emissions outputs (hidden)
B1: This sheet tabulates the estimated fertilier use by crops, products and embedded carbon footprints (i.e, carbon emissions at the production sites)
B2: National | D2: Fertiliser use by crops | L2: Fertiliser use by product | S2: Total footprints | Z2: Area | AA2: Areal specific carbon footprints | AD2: kg CO2 e / ha) | AG2: Total | AH2: Average
D3: Total | E3: Total | F3: Total | G3: Total | H3: Total | I3: Total | J3: Total | K3: Total | L3: Total | M3: Total | N3: Total | O3: Total | P3: Total | Q3: Total | R3: Total | S3: Total | T3: Total | U3: Total | V3: Total | W3: Total | X3: Total | Y3: Total | Z3: Total | AA3: Average | AB3: Average | AC3: Average | AD3: Average | AE3: Average | AF3: Average
C4: t | D4: =SUM(D10:D5000)/1000 -> 162024 | E4: 329171 | F4: 42991 | G4: 41169 | H4: 10875 | I4: 5685 | J4: 41071 | K4: =SUM(D4:J4) -> 632986 | L4: =SUM(L10:L5000)/1000 -> 277000 | M4: 149641 | N4: 10195 | O4: 101159 | P4: 23000 | Q4: 71991 | R4: =SUM(L4:Q4) -> 632986 | S4: =SUM(S10:S5000)/1000 -> 947331 | T4: 285622 | U4: 35920 | V4: 263547 | W4: 66134 | X4: 193190 | Y4: =SUM(S4:X4) -> 1791744 | Z4: =SUM(Z10:Z5000) -> 6050789.6 | AA4: =AVERAGE(AA10:AA5000) -> 128.1 | AB4: 37.5 | AC4: 5.2 | AD4: 31.3 | AE4: 10.4 | AF4: 37.3 | AG4: =SUM(AG10:AG5000)/1000 -> 1791744 | AH4: =AVERAGE(AH10:AH5000) -> 249.9
C5: % | D5: =D4/$K$4*100 -> 25.6 | E5: 52.0 | F5: 6.8 | G5: 6.5 | H5: 1.7 | I5: 0.9 | J5: 6.5 | K5: =SUM(D5:J5) -> 100 | L5: =L4/$R$4*100 -> 43.8 | M5: 23.6 | N5: 1.6 | O5: 16.0 | P5: 3.6 | Q5: 11.4 | R5: =SUM(L5:Q5) -> 100 | S5: =S4/$Y$4*100 -> 52.9 | T5: 15.9 | U5: 2.0 | V5: 14.7 | W5: 3.7 | X5: 10.8 | Y5: =SUM(S5:X5) -> 100
B7: Catchment | C7: RFTnum | D7: Fertiliser use by crops | L7: Fertiliser use by product | S7: Total footprints | Z7: Total area | AA7: Areal specific carbon footprints | AD7: kg CO2 e / ha) | AG7: Total footprints | AH7: Areal specific
D8: grass | E8: winter cereal | F8: spring cereal | G8: OSR | H8: Potatoes | I8: Sugarbeet | J8: Other tillage | L8: AN | M8: Urea | N8: CAN | O8: UAN | P8: Low N | Q8: High N | S8: AN | T8: Urea | U8: CAN | V8: UAN | W8: Low N | X8: High N | AA8: AN | AB8: Urea | AC8: CAN | AD8: UAN | AE8: Low N | AF8: High N | AG8: per spatial unit | AH8: footprints
D9: kg | E9: kg | F9: kg | G9: kg | H9: kg | I9: kg | J9: kg | L9: kg | M9: kg | N9: kg | O9: kg | P9: kg | Q9: kg | S9: kg CO2e | T9: kg CO2e | U9: kg CO2e | V9: kg CO2e | W9: kg CO2e | X9: kg CO2e | Z9: ha | AA9: kg CO2 e / ha | AB9: kg CO2 e / ha | AC9: kg CO2 e / ha | AD9: kg CO2 e / ha | AE9: kg CO2 e / ha | AF9: kg CO2 e / ha | AG9: kg CO2e | AH9: kg CO2 e / ha
B10: 3000 | C10: 0 | D10: 158134.9923 | E10: 499958.8097 | F10: 98454.46725 | G10: 33243.04525 | H10: 0 | I10: 0 | J10: 50851.8693 | L10: 379224 | M10: 205509 | N10: 12973 | O10: 142586 | P10: 20469 | Q10: 79882 | S10: 1295704.346 | T10: 392259.2886 | U10: 45705.96612 | V10: 371476.319 | W10: 58858.12576 | X10: 214365.9043 | Z10: =SUM(Landuse!C2:Q2) -> 7178.2 | AA10: =IF(Z10<>0,S10/Z10,"") -> 180.5 | AB10: =IF(Z10<>0,T10/Z10,"") -> 54.6 | AC10: =IF(Z10<>0,U10/Z10,"") -> 6.4 | AD10: =IF(Z10<>0,V10/Z10,"") -> 51.8 | AE10: =IF(Z10<>0,W10/Z10,"") -> 8.2 | AF10: =IF(Z10<>0,X10/Z10,"") -> 29.9 | AG10: =SUM(S10:X10) -> 2378370.0 | AH10: =IF(Z10<>0,AG10/Z10,"") -> 331.3325339
B11: 3000 | C11: 1 | D11: 246680.3451 | E11: 43276.5193 | F11: 6708.615597 | G11: 0 | H11: 1287.911153 | I11: 684.9410553 | J11: 13249.71051 | L11: 122169.3698 | M11: 62121.89932 | N11: 5831.574785 | O11: 24263.1474 | P11: 8399.029163 | Q11: 89103.0222 | S11: 417419.751 | T11: 118573.3117 | U11: 20545.39607 | V11: 63212.29265 | W11: 24150.65244 | X11: 239110.6332 | Z11: =SUM(Landuse!C3:Q3) -> 6321.8 | AA11: =IF(Z11<>0,S11/Z11,"") -> 66.0 | AB11: =IF(Z11<>0,T11/Z11,"") -> 18.8 | AC11: =IF(Z11<>0,U11/Z11,"") -> 3.2 | AD11: =IF(Z11<>0,V11/Z11,"") -> 10.0 | AE11: =IF(Z11<>0,W11/Z11,"") -> 3.8 | AF11: =IF(Z11<>0,X11/Z11,"") -> 37.8 | AG11: =SUM(S11:X11) -> 883012.0 | AH11: =IF(Z11<>0,AG11/Z11,"") -> 139.6766179
B12: 3000 | C12: 2 | D12: 12683.63814 | E12: 4346.157011 | F12: 1821.72 | G12: 461.7065918 | H12: 257.8218476 | I12: 0 | J12: 17876.4104 | L12: 15967.06485 | M12: 6676.732905 | N12: 639.1248418 | O12: 3587.335874 | P12: 4092.456157 | Q12: 6484.739365 | S12: 54555.1495 | T12: 12744.01363 | U12: 2251.719904 | V12: 9346.014405 | W12: 11767.48936 | X12: 17401.99263 | Z12: =SUM(Landuse!C4:Q4) -> 635.1 | AA12: 85.9 | AB12: 20.1 | AC12: 3.5 | AD12: 14.7 | AE12: 18.5 | AF12: 27.4 | AG12: 108066.4 | AH12: 170.1679171
B13: 3000 | C13: 5 | D13: 367991.4658 | E13: 117149.8983 | F13: 12230.24778 | G13: 4252.392729 | H13: 0 | I13: 0 | J13: 34702.73099 | L13: 216186.0059 | M13: 110633.5864 | N13: 9653.660159 | O13: 49421.50146 | P13: 14848.51796 | Q13: 135583.4637 | S13: 738649.2119 | T13: 211168.5391 | U13: 34011.09972 | V13: 128756.8493 | W13: 42695.57702 | X13: 363842.2924 | Z13: =SUM(Landuse!C5:Q5) -> 5010.3 | AA13: 147.4 | AB13: 42.1 | AC13: 6.8 | AD13: 25.7 | AE13: 8.5 | AF13: 72.6 | AG13: 1519123.6 | AH13: 303.1997028
B14: 3000 | C14: 7 | D14: 631970.6078 | E14: 37341.18904 | F14: 16095.15039 | G14: 9890.25269 | H14: 133.5987624 | I14: 15.64483216 | J14: 14316.66416 | L14: 271504.2994 | M14: 138171.3745 | N14: 13549.73556 | O14: 46892.38122 | P14: 14818.80457 | Q14: 224826.5124 | S14: 927656.885 | T14: 263730.4659 | U14: 47737.47985 | V14: 122167.783 | W14: 42610.13886 | X14: 603328.6908 | Z14: =SUM(Landuse!C6:Q6) -> 16451.9 | AA14: 56.4 | AB14: 16.0 | AC14: 2.9 | AD14: 7.4 | AE14: 2.6 | AF14: 36.7 | AG14: 2007231.4 | AH14: 122.0058186
B15: 3000 | C15: 8 | D15: 273382.7883 | E15: 223661.19 | F15: 45279.4525 | G15: 5617.215494 | H15: 282.3584431 | I15: 0 | J15: 48125.85467 | L15: 253407.5404 | M15: 131568.1721 | N15: 10097.01263 | O15: 74203.26414 | P15: 17921.2507 | Q15: 109151.6194 | S15: 865825.1453 | T15: 251126.8015 | U15: 35573.08812 | V15: 193320.28 | W15: 51530.94349 | X15: 292911.6453 | Z15: =SUM(Landuse!C7:Q7) -> 7180.8 | AA15: 120.6 | AB15: 35.0 | AC15: 5.0 | AD15: 26.9 | AE15: 7.2 | AF15: 40.8 | AG15: 1690287.9 | AH15: 235.3900388
B16: 3001 | C16: 0 | D16: 85781.93336 | E16: 1023127.815 | F16: 132388.6944 | G16: 132228.0344 | H16: 5397.111074 | I16: 1398.472522 | J16: 82184.88059 | L16: 674525.3562 | M16: 375806.8805 | N16: 21191.63626 | O16: 283110.1624 | P16: 35932.87685 | Q16: 71940.02917 | S16: 2304671.02 | T16: 717310.1089 | U16: 74660.88947 | V16: 737581.244 | W16: 103321.7534 | X16: 193053.2265 | Z16: =SUM(Landuse!C8:Q8) -> 10092.0 | AA16: 228.4 | AB16: 71.1 | AC16: 7.4 | AD16: 73.1 | AE16: 10.2 | AF16: 19.1 | AG16: 4130598.2 | AH16: 409.2954663
B17: 3001 | C17: 1 | D17: 290933.2713 | E17: 442960.9081 | F17: 22011.90784 | G17: 25657.88547 | H17: 54275.54609 | I17: 4814.452596 | J17: 63880.12317 | L17: 378282.0815 | M17: 200885.2637 | N17: 13979.12448 | O17: 133535.562 | P17: 58728.07163 | Q17: 119123.9914 | S17: 1292487.736 | T17: 383433.7204 | U17: 49250.27285 | V17: 347897.5289 | W17: 168867.2844 | X17: 319672.8045 | Z17: =SUM(Landuse!C9:Q9) -> 12140.6 | AA17: 106.5 | AB17: 31.6 | AC17: 4.1 | AD17: 28.7 | AE17: 13.9 | AF17: 26.3 | AG17: 2561609.3 | AH17: 210.9946833
B18: 3001 | C18: 2 | D18: 4924.4699 | E18: 19527.218 | F18: 6445.563192 | G18: 0 | H18: 2387.092912 | I18: 1615.108 | J18: 4285.874079 | L18: 17085.25399 | M18: 8776.917319 | N18: 710.0474138 | O18: 6437.984795 | P18: 2905.642962 | Q18: 3269.479601 | S18: 58375.69987 | T18: 16752.67763 | U18: 2501.589345 | V18: 16772.75303 | W18: 8354.91483 | X18: 8773.746595 | Z18: =SUM(Landuse!C10:Q10) -> 440.0 | AA18: 132.7 | AB18: 38.1 | AC18: 5.7 | AD18: 38.1 | AE18: 19.0 | AF18: 19.9 | AG18: 111531.4 | AH18: 253.4517837
B19: 3001 | C19: 5 | D19: 959496.8799 | E19: 58529.54555 | F19: 2804.152807 | G19: 0 | H19: 0 | I19: 0 | J19: 248.8101807 | L19: 387108.9736 | M19: 198254.8735 | N19: 19657.61962 | O19: 61806.42362 | P19: 17343.71321 | Q19: 336907.7848 | S19: 1322646.843 | T19: 378413.0422 | U19: 69256.34941 | V19: 161023.0393 | W19: 49870.28639 | X19: 904102.1479 | Z19: =SUM(Landuse!C11:Q11) -> 9717.2 | AA19: 136.1 | AB19: 38.9 | AC19: 7.1 | AD19: 16.6 | AE19: 5.1 | AF19: 93.0 | AG19: 2885311.7 | AH19: 296.9277819
B20: 3001 | C20: 7 | D20: 240122.9095 | E20: 23885.49341 | F20: 3053.430022 | G20: 0 | H20: 0 | I20: 23.4882368 | J20: 2134.936819 | L20: 103302.3931 | M20: 52970.83352 | N20: 5124.935087 | O20: 17988.10978 | P20: 4903.748307 | Q20: 84930.23828 | S20: 352956.3854 | T20: 101106.4893 | U20: 18055.81255 | V20: 46864.06265 | W20: 14100.28692 | X20: 227912.8423 | Z20: =SUM(Landuse!C12:Q12) -> 6712.4 | AA20: 52.6 | AB20: 15.1 | AC20: 2.7 | AD20: 7.0 | AE20: 2.1 | AF20: 34.0 | AG20: 760995.9 | AH20: 113.3721654
B21: 3001 | C21: 8 | D21: 134376.2973 | E21: 113369.3349 | F21: 19407.97085 | G21: 13994.46425 | H21: 3960.341701 | I21: 0 | J21: 9224.498712 | L21: 123562.6067 | M21: 66216.58007 | N21: 4861.383194 | O21: 39094.69521 | P21: 8490.794233 | Q21: 52106.84831 | S21: 422180.0651 | T21: 126388.9107 | U21: 17127.28497 | V21: 101852.6275 | W21: 24414.51465 | X21: 139830.2906 | Z21: =SUM(Landuse!C13:Q13) -> 3707.2 | AA21: 113.9 | AB21: 34.1 | AC21: 4.6 | AD21: 27.5 | AE21: 6.6 | AF21: 37.7 | AG21: 831793.7 | AH21: 224.3732528
B22: 3002 | C22: 0 | D22: 14567.57085 | E22: 340725.8287 | F22: 71605.09413 | G22: 32992.67392 | H22: 8686.651596 | I22: 167.5212 | J22: 43807.1611 | L22: 235377.1189 | M22: 127951.9571 | N22: 7392.474943 | O22: 98380.75605 | P22: 20118.06915 | Q22: 23332.12543 | S22: 804989.7465 | T22: 244224.4595 | U22: 26044.65025 | V22: 256309.4161 | W22: 57847.69721 | X22: 62612.45855 | Z22: =SUM(Landuse!C14:Q14) -> 3471.8 | AA22: 231.9 | AB22: 70.3 | AC22: 7.5 | AD22: 73.8 | AE22: 16.7 | AF22: 18.0 | AG22: 1452028.4 | AH22: 418.2351471
B23: 3002 | C23: 1 | D23: 125685.9825 | E23: 360397.9103 | F23: 152294.843 | G23: 31890.13027 | H23: 150402.0778 | I23: 2861.323338 | J23: 167850.6696 | L23: 396801.8893 | M23: 194911.9129 | N23: 13603.87919 | O23: 160380.5523 | P23: 142489.5214 | Q23: 83195.18174 | S23: 1357062.461 | T23: 372032.2663 | U23: 47928.2349 | V23: 417836.2452 | W23: 409715.7949 | X23: 223256.7661 | Z23: =SUM(Landuse!C15:Q15) -> 11064.8 | AA23: 122.6 | AB23: 33.6 | AC23: 4.3 | AD23: 37.8 | AE23: 37.0 | AF23: 20.2 | AG23: 2827831.8 | AH23: 255.5694682
B24: 3002 | C24: 2 | D24: 30339.23045 | E24: 34578.44353 | F24: 27334.67898 | G24: 5710.73 | H24: 14102.74305 | I24: 937.0296 | J24: 22853.14045 | L24: 55139.92063 | M24: 26796.30313 | N24: 2106.520749 | O24: 19917.99898 | P24: 15497.01689 | Q24: 16398.23568 | S24: 188578.5286 | T24: 51146.63972 | U24: 7421.546448 | V24: 51891.96439 | W24: 44560.27733 | X24: 44005.15738 | Z24: =SUM(Landuse!C16:Q16) -> 1579.1 | AA24: 119.4 | AB24: 32.4 | AC24: 4.7 | AD24: 32.9 | AE24: 28.2 | AF24: 27.9 | AG24: 387604.1 | AH24: 245.4551776
B25: 3002 | C25: 7 | D25: 33914.25464 | E25: 0 | F25: 1556.2452 | G25: 0 | H25: 365.9085 | I25: 0 | J25: 523.8167745 | L25: 13636.10988 | M25: 6844.434992 | N25: 701.9281056 | O25: 2135.986721 | P25: 974.0655151 | Q25: 12067.69991 | S25: 46635.49578 | T25: 13064.10996 | U25: 2472.983967 | V25: 5564.843485 | W25: 2800.837723 | X25: 32384.03473 | Z25: =SUM(Landuse!C17:Q17) -> 802.6 | AA25: 58.1 | AB25: 16.3 | AC25: 3.1 | AD25: 6.9 | AE25: 3.5 | AF25: 40.3 | AG25: 102922.3 | AH25: 128.2382662
B26: 3002 | C26: 8 | D26: 28530.44202 | E26: 35604.49971 | F26: 8214.269326 | G26: 6848.34 | H26: 4596.355824 | I26: 278.0232 | J26: 9362.319826 | L26: 39175.3877 | M26: 20461.81446 | N26: 1461.347458 | O26: 13824.62735 | P26: 6025.74609 | Q26: 12485.32685 | S26: 133979.8259 | T26: 39055.8745 | U26: 5148.517071 | V26: 36017.02514 | W26: 17326.49056 | X26: 33504.74916 | Z26: =SUM(Landuse!C18:Q18) -> 996.5 | AA26: 134.4 | AB26: 39.2 | AC26: 5.2 | AD26: 36.1 | AE26: 17.4 | AF26: 33.6 | AG26: 265032.5 | AH26: 265.9579369
B27: 3004 | C27: 0 | D27: 229596.042 | E27: 1822764.183 | F27: 191366.1926 | G27: 170997.042 | H27: 2005.904678 | I27: 0 | J27: 269800.8633 | L27: 1236629.142 | M27: 672896.8447 | N27: 39404.28128 | O27: 492196.852 | P27: 83408.16158 | Q27: 161994.946 | S27: 4229271.667 | T27: 1284371.665 | U27: 138826.4055 | V27: 1282310.615 | W27: 239832.6619 | X27: 434718.2973 | Z27: =SUM(Landuse!C19:Q19) -> 19961.1 | AA27: 211.9 | AB27: 64.3 | AC27: 7.0 | AD27: 64.2 | AE27: 12.0 | AF27: 21.8 | AG27: 7609331.3 | AH27: 381.2072076
B28: 3004 | C28: 1 | D28: 211389.6166 | E28: 121332.1441 | F28: 7495.826876 | G28: 17292.58171 | H28: 15874.73286 | I28: 507.8914 | J28: 86849.87019 | L28: 188937.238 | M28: 92860.29643 | N28: 7618.05799 | O28: 52359.29794 | P28: 33178.55949 | Q28: 85789.21394 | S28: 646165.3539 | T28: 177244.305 | U28: 26839.40865 | V28: 136410.6317 | W28: 95401.96173 | X28: 230217.9293 | Z28: =SUM(Landuse!C20:Q20) -> 7694.0 | AA28: 84.0 | AB28: 23.0 | AC28: 3.5 | AD28: 17.7 | AE28: 12.4 | AF28: 29.9 | AG28: 1312279.6 | AH28: 170.5581901
B29: 3004 | C29: 2 | D29: 37797.42057 | E29: 1467.4317 | F29: 581.9916 | G29: 3833.68 | H29: 0 | I29: 0 | J29: 45044.24288 | L29: 37120.6036 | M29: 15168.49142 | N29: 1554.891266 | O29: 7221.847962 | P29: 9829.106584 | Q29: 17829.82592 | S29: 126952.4643 | T29: 28952.40294 | U29: 5478.084066 | V29: 18814.93606 | W29: 28262.71136 | X29: 47846.87275 | Z29: =SUM(Landuse!C21:Q21) -> 1583.2 | AA29: 80.2 | AB29: 18.3 | AC29: 3.5 | AD29: 11.9 | AE29: 17.9 | AF29: 30.2 | AG29: 256307.5 | AH29: 161.8931968
B30: 3004 | C30: 5 | D30: 384300.0278 | E30: 44535.52268 | F30: 18551.97438 | G30: 6215 | H30: 0 | I30: 222.8548 | J30: 39361.67303 | L30: 193579.6408 | M30: 96411.15865 | N30: 9222.86657 | O30: 37320.73736 | P30: 15579.07994 | Q30: 141073.5693 | S30: 662042.3716 | T30: 184021.9067 | U30: 32493.3579 | V30: 97230.97063 | W30: 44796.24226 | X30: 378575.1556 | Z30: =SUM(Landuse!C22:Q22) -> 4776.2 | AA30: 138.6 | AB30: 38.5 | AC30: 6.8 | AD30: 20.4 | AE30: 9.4 | AF30: 79.3 | AG30: 1399160.0 | AH30: 292.9419096
B31: 3004 | C31: 7 | D31: 535655.0802 | E31: 37547.02287 | F31: 4547.259363 | G31: 0 | H31: 0 | I31: 217.8104622 | J31: 37256.26851 | L31: 236734.3305 | M31: 118005.9177 | N31: 11723.18999 | O31: 39265.51904 | P31: 17307.14904 | Q31: 192187.3351 | S31: 809631.4102 | T31: 225240.2553 | U31: 41302.32236 | V31: 102297.6714 | W31: 49765.14943 | X31: 515740.4793 | Z31: =SUM(Landuse!C23:Q23) -> 14376.1 | AA31: 56.3 | AB31: 15.7 | AC31: 2.9 | AD31: 7.1 | AE31: 3.5 | AF31: 35.9 | AG31: 1743977.3 | AH31: 121.3106863
B32: 3004 | C32: 8 | D32: 364626.484 | E32: 374839.3044 | F32: 82349.71989 | G32: 16343.44594 | H32: 2766.870794 | I32: 336.7278751 | J32: 104361.0926 | L32: 406872.6087 | M32: 209694.9115 | N32: 15714.37322 | O32: 125064.8745 | P32: 34950.70634 | Q32: 153326.1711 | S32: 1391504.322 | T32: 400248.8715 | U32: 55363.77972 | V32: 325829.0163 | W32: 100497.6105 | X32: 411455.38 | Z32: =SUM(Landuse!C24:Q24) -> 10768.7 | AA32: 129.2 | AB32: 37.2 | AC32: 5.1 | AD32: 30.3 | AE32: 9.3 | AF32: 38.2 | AG32: 2684899.0 | AH32: 249.3242976
B33: 3005 | C33: 0 | D33: 584614.3355 | E33: 3028966.76 | F33: 530858.3749 | G33: 257730.4921 | H33: 1773.537885 | I33: 0 | J33: 475507.4154 | L33: 2228430.296 | M33: 1199710.756 | N33: 73502.82142 | O33: 862236.754 | P33: 151528.9279 | Q33: 364041.3602 | S33: 7621231.612 | T33: 2289911.914 | U33: 258959.9952 | V33: 2246368.17 | W33: 435707.7945 | X33: 976915.9113 | Z33: =SUM(Landuse!C25:Q25) -> 39515.4 | AA33: 192.9 | AB33: 57.9 | AC33: 6.6 | AD33: 56.8 | AE33: 11.0 | AF33: 24.7 | AG33: 13829095.4 | AH33: 349.9675476
B34: 3005 | C34: 1 | D34: 631359.8082 | E34: 74399.3302 | F34: 17083.25689 | G34: 5805.486627 | H34: 13121.72458 | I34: 426.4838154 | J34: 68254.63073 | L34: 313872.6153 | M34: 155530.4287 | N34: 14931.35502 | O34: 60776.16819 | P34: 34580.42204 | Q34: 230759.7318 | S34: 1073444.344 | T34: 296864.0399 | U34: 52605.10481 | V34: 158338.9355 | W34: 99432.89134 | X34: 619250.663 | Z34: =SUM(Landuse!C26:Q26) -> 17139.9 | AA34: 62.6 | AB34: 17.3 | AC34: 3.1 | AD34: 9.2 | AE34: 5.8 | AF34: 36.1 | AG34: 2299936.0 | AH34: 134.1861802
B35: 3005 | C35: 2 | D35: 38670.31677 | E35: 12673.3824 | F35: 4616.325296 | G35: 0 | H35: 1416.830417 | I35: 122.2576717 | J35: 32182.43966 | L35: 37390.30645 | M35: 16469.66981 | N35: 1553.354575 | O35: 8490.896835 | P35: 8341.261741 | Q35: 17436.06281 | S35: 127874.8481 | T35: 31435.98816 | U35: 5472.670102 | V35: 22121.16371 | W35: 23984.54742 | X35: 46790.19764 | Z35: =SUM(Landuse!C27:Q27) -> 1508.8 | AA35: 84.8 | AB35: 20.8 | AC35: 3.6 | AD35: 14.7 | AE35: 15.9 | AF35: 31.0 | AG35: 257679.4 | AH35: 170.7868737
B36: 3005 | C36: 5 | D36: 3537779.356 | E36: 698920.0652 | F36: 64433.40567 | G36: 17817.01438 | H36: 0 | I36: 103.3820255 | J36: 296352.9821 | L36: 1823855.221 | M36: 922728.9846 | N36: 85118.4522 | O36: 367777.4258 | P36: 129677.8785 | Q36: 1286248.244 | S36: 6237584.856 | T36: 1761231.268 | U36: 299883.3725 | V36: 958163.1718 | W36: 372877.0687 | X36: 3451685.749 | Z36: =SUM(Landuse!C28:Q28) -> 42794.1 | AA36: 145.8 | AB36: 41.2 | AC36: 7.0 | AD36: 22.4 | AE36: 8.7 | AF36: 80.7 | AG36: 13081425.5 | AH36: 305.6830772
B37: 3005 | C37: 7 | D37: 2130714.238 | E37: 164057.1689 | F37: 45125.41814 | G37: 4241.161736 | H37: 500.6659854 | I37: 40.3099255 | J37: 74090.11378 | L37: 928811.0192 | M37: 469843.8498 | N37: 46092.9197 | O37: 158925.3986 | P37: 55023.07114 | Q37: 760072.8185 | S37: 3176533.686 | T37: 896800.353 | U37: 162391.3482 | V37: 414045.1624 | W37: 158213.889 | X37: 2039678.211 | Z37: =SUM(Landuse!C29:Q29) -> 57577.5 | AA37: 55.2 | AB37: 15.6 | AC37: 2.8 | AD37: 7.2 | AE37: 2.7 | AF37: 35.4 | AG37: 6847662.6 | AH37: 118.9295881
B38: 3005 | C38: 8 | D38: 694493.6852 | E38: 857932.9997 | F38: 136396.165 | G38: 45747.90558 | H38: 1463.634 | I38: 327.1998198 | J38: 161683.0872 | L38: 823058.2231 | M38: 433108.8649 | N38: 31060.69971 | O38: 264164.0677 | P38: 57566.62684 | Q38: 289086.1943 | S38: 2814859.123 | T38: 826683.5526 | U38: 109430.883 | V38: 688221.3622 | W38: 165527.6545 | X38: 775771.4749 | Z38: =SUM(Landuse!C30:Q30) -> 20263.3 | AA38: 138.9 | AB38: 40.8 | AC38: 5.4 | AD38: 34.0 | AE38: 8.2 | AF38: 38.3 | AG38: 5380494.1 | AH38: 265.5288664
B39: 3006 | C39: 0 | D39: 525586.9505 | E39: 3391129.464 | F39: 962012.0872 | G39: 686915.9831 | H39: 1559.61 | I39: 151.6746 | J39: 530924.8948 | L39: 2782074.625 | M39: 1511011.897 | N39: 91501.17221 | O39: 1130019.67 | P39: 180253.718 | Q39: 403419.5827 | S39: 9514695.217 | T39: 2884098.628 | U39: 322370.5249 | V39: 2944017.645 | W39: 518303.3434 | X39: 1082588.553 | Z39: =SUM(Landuse!C31:Q31) -> 48810.9 | AA39: 194.9 | AB39: 59.1 | AC39: 6.6 | AD39: 60.3 | AE39: 10.6 | AF39: 22.2 | AG39: 17266073.9 | AH39: 353.7339093
B40: 3006 | C40: 1 | D40: 256531.2643 | E40: 69148.89052 | F40: 22354.81901 | G40: 4344.03 | H40: 476.2964013 | I40: 325.1710952 | J40: 46376.74618 | L40: 161890.3711 | M40: 80353.69606 | N40: 7225.738954 | O40: 36772.27367 | P40: 15393.73996 | Q40: 97921.3978 | S40: 553665.0691 | T40: 153372.7067 | U40: 25457.21768 | V40: 95802.06915 | W40: 44263.31382 | X40: 262775.0086 | Z40: =SUM(Landuse!C32:Q32) -> 7289.2 | AA40: 76.0 | AB40: 21.0 | AC40: 3.5 | AD40: 13.1 | AE40: 6.1 | AF40: 36.1 | AG40: 1135335.4 | AH40: 155.7564242
B41: 3006 | C41: 2 | D41: 11730.61373 | E41: 17007.14438 | F41: 9257.159446 | G41: 0 | H41: 28.7928 | I41: 0 | J41: 11409.10603 | L41: 21871.0422 | M41: 10550.28612 | N41: 818.8163361 | O41: 6793.812874 | P41: 2913.971243 | Q41: 6484.887618 | S41: 74798.96433 | T41: 20137.54212 | U41: 2884.796398 | V41: 17699.7848 | W41: 8378.862051 | X41: 17402.39047 | Z41: =SUM(Landuse!C33:Q33) -> 697.2 | AA41: 107.3 | AB41: 28.9 | AC41: 4.1 | AD41: 25.4 | AE41: 12.0 | AF41: 25.0 | AG41: 141302.3 | AH41: 202.6695429
B42: 3006 | C42: 5 | D42: 783276.3197 | E42: 379109.1097 | F42: 35623.97418 | G42: 28711.52582 | H42: 0 | I42: 0 | J42: 78919.20302 | L42: 536991.0025 | M42: 279490.5118 | N42: 22820.37996 | O42: 139379.0578 | P42: 34288.84677 | Q42: 292670.3335 | S42: 1836509.228 | T42: 533469.1297 | U42: 80399.16526 | V42: 363121.4718 | W42: 98594.49288 | X42: 785389.6201 | Z42: =SUM(Landuse!C34:Q34) -> 11604.1 | AA42: 158.3 | AB42: 46.0 | AC42: 6.9 | AD42: 31.3 | AE42: 8.5 | AF42: 67.7 | AG42: 3697483.1 | AH42: 318.6348357
B43: 3006 | C43: 7 | D43: 765913.4482 | E43: 79263.3374 | F43: 35245.96471 | G43: 0 | H43: 0 | I43: 0 | J43: 30877.08791 | L43: 353448.3658 | M43: 178810.7368 | N43: 17245.21983 | O43: 64724.93748 | P43: 21156.96558 | Q43: 275913.6127 | S43: 1208793.411 | T43: 341299.6295 | U43: 60757.15134 | V43: 168626.5851 | W43: 60834.95039 | X43: 740422.4571 | Z43: =SUM(Landuse!C35:Q35) -> 22224.4 | AA43: 54.4 | AB43: 15.4 | AC43: 2.7 | AD43: 7.6 | AE43: 2.7 | AF43: 33.3 | AG43: 2580734.2 | AH43: 116.1218965
B44: 3006 | C44: 8 | D44: 406920.1598 | E44: 961222.3703 | F44: 220904.8036 | G44: 151803.0112 | H44: 0 | I44: 2671.738337 | J44: 121710.6785 | L44: 831223.2074 | M44: 450191.4777 | N44: 29289.5173 | O44: 310517.6709 | P44: 47799.99765 | Q44: 196210.8908 | S44: 2842783.369 | T44: 859289.4772 | U44: 103190.7771 | V44: 808985.4778 | W44: 137444.5913 | X44: 526537.8118 | Z44: =SUM(Landuse!C36:Q36) -> 18424.5 | AA44: 154.3 | AB44: 46.6 | AC44: 5.6 | AD44: 43.9 | AE44: 7.5 | AF44: 28.6 | AG44: 5278231.5 | AH44: 286.4795575
B45: 3007 | C45: 0 | D45: 874385.5623 | E45: 8239577.92 | F45: 564427.588 | G45: 795707.0555 | H45: 24085.70666 | I45: 10562.81435 | J45: 1023287.461 | L45: 5319827.787 | M45: 2926233.634 | N45: 167483.966 | O45: 2154634.867 | P45: 337564.96 | Q45: 626288.8944 | S45: 18193811.03 | T45: 5585360.661 | U45: 590067.7853 | V45: 5613427.126 | W45: 970637.6617 | X45: 1680665.037 | Z45: =SUM(Landuse!C37:Q37) -> 81845.8 | AA45: 222.3 | AB45: 68.2 | AC45: 7.2 | AD45: 68.6 | AE45: 11.9 | AF45: 20.5 | AG45: 32633969.3 | AH45: 398.725239
B46: 3007 | C46: 1 | D46: 451408.6413 | E46: 510200.3885 | F46: 47769.64404 | G46: 18834.01798 | H46: 38486.78781 | I46: 7780.477471 | J46: 166256.8887 | L46: 525015.569 | M46: 268177.2124 | N46: 20393.86515 | O46: 164650.2661 | P46: 73092.34776 | Q46: 189407.5855 | S46: 1795553.246 | T46: 511875.2088 | U46: 71850.23812 | V46: 428960.0452 | W46: 210170.4677 | X46: 508280.9379 | Z46: =SUM(Landuse!C38:Q38) -> 17649.6 | AA46: 101.7 | AB46: 29.0 | AC46: 4.1 | AD46: 24.3 | AE46: 11.9 | AF46: 28.8 | AG46: 3526690.1 | AH46: 199.8170517
B47: 3007 | C47: 2 | D47: 44721.55576 | E47: 130241.5148 | F47: 22918.1964 | G47: 0 | H47: 3595.020964 | I47: 897.1786301 | J47: 91678.54736 | L47: 131641.4131 | M47: 62668.48802 | N47: 4659.479642 | O47: 42061.02571 | P47: 23467.26559 | Q47: 29554.34182 | S47: 450213.6328 | T47: 119616.5965 | U47: 16415.95251 | V47: 109580.7491 | W47: 67478.01015 | X47: 79309.96291 | Z47: =SUM(Landuse!C39:Q39) -> 3821.4 | AA47: 117.8 | AB47: 31.3 | AC47: 4.3 | AD47: 28.7 | AE47: 17.7 | AF47: 20.8 | AG47: 842614.9 | AH47: 220.4970388
B48: 3007 | C48: 5 | D48: 623227.9483 | E48: 210846.6021 | F48: 10611.42687 | G48: 1873.520117 | H48: 0 | I48: 194.9636225 | J48: 60908.73192 | L48: 366276.2913 | M48: 187426.0131 | N48: 16320.18403 | O48: 83236.90474 | P48: 25393.87633 | Q48: 229009.9234 | S48: 1252664.916 | T48: 357743.7798 | U48: 57498.12997 | V48: 216855.4432 | W48: 73017.80595 | X48: 614554.9997 | Z48: =SUM(Landuse!C40:Q40) -> 8069.9 | AA48: 155.2 | AB48: 44.3 | AC48: 7.1 | AD48: 26.9 | AE48: 9.0 | AF48: 76.2 | AG48: 2572335.1 | AH48: 318.7580899
B49: 3007 | C49: 7 | D49: 1592750.134 | E49: 208235.6964 | F49: 32402.3636 | G49: 15717.28536 | H49: 11.997 | I49: 234.9958 | J49: 58685.45712 | L49: 741373.7731 | M49: 378479.0145 | N49: 35827.46362 | O49: 139791.7013 | P49: 42469.61067 | Q49: 570096.3662 | S49: 2535498.304 | T49: 722410.4645 | U49: 126224.8119 | V49: 364196.5235 | W49: 122117.5432 | X49: 1529870.702 | Z49: =SUM(Landuse!C41:Q41) -> 41315.4 | AA49: 61.4 | AB49: 17.5 | AC49: 3.1 | AD49: 8.8 | AE49: 3.0 | AF49: 37.0 | AG49: 5400318.3 | AH49: 130.7096005
B50: 3007 | C50: 8 | D50: 792423.4259 | E50: 1313767.511 | F50: 127645.6672 | G50: 64883.5272 | H50: 13552.82656 | I50: 1279.447481 | J50: 148520.989 | L50: 1076925.41 | M50: 579139.8538 | N50: 39146.54393 | O50: 368170.4739 | P50: 68829.65494 | Q50: 329861.4578 | S50: 3683084.902 | T50: 1105415.822 | U50: 137918.3633 | V50: 959187.1724 | W50: 197913.4781 | X50: 885193.1178 | Z50: =SUM(Landuse!C42:Q42) -> 24269.3 | AA50: 151.8 | AB50: 45.5 | AC50: 5.7 | AD50: 39.5 | AE50: 8.2 | AF50: 36.5 | AG50: 6968712.9 | AH50: 287.1416475
B51: 3008 | C51: 0 | D51: 357969.1324 | E51: 7031621.409 | F51: 880549.2321 | G51: 1186370.153 | H51: 18101.15685 | I51: 219001.2615 | J51: 569557.6871 | L51: 4754924.003 | M51: 2658616.318 | N51: 164646.2514 | O51: 2017344.626 | P51: 239539.7344 | Q51: 428099.0987 | S51: 16261840.09 | T51: 5074554.139 | U51: 580070.1476 | V51: 5255747.608 | W51: 688774.9476 | X51: 1148816.774 | Z51: =SUM(Landuse!C43:Q43) -> 70626.4 | AA51: 230.3 | AB51: 71.9 | AC51: 8.2 | AD51: 74.4 | AE51: 9.8 | AF51: 16.3 | AG51: 29009803.7 | AH51: 410.7500677
B52: 3008 | C52: 1 | D52: 498608.0588 | E52: 4271972.794 | F52: 806981.5268 | G52: 787943.0674 | H52: 576184.2911 | I52: 623767.6704 | J52: 430719.06 | L52: 3488727.472 | M52: 1891238.139 | N52: 160935.8132 | O52: 1466931.786 | P52: 560024.9187 | Q52: 428318.339 | S52: 11931447.96 | T52: 3609844.061 | U52: 566997.7916 | V52: 3821768.042 | W52: 1610301.251 | X52: 1149405.112 | Z52: =SUM(Landuse!C44:Q44) -> 73732.6 | AA52: 161.8 | AB52: 49.0 | AC52: 7.7 | AD52: 51.8 | AE52: 21.8 | AF52: 15.6 | AG52: 22689764.2 | AH52: 307.7303563
B53: 3008 | C53: 2 | D53: 30205.89947 | E53: 255520.0767 | F53: 85894.55956 | G53: 47972.9 | H53: 8054.7858 | I53: 31133.11399 | J53: 42633.39844 | L53: 227813.967 | M53: 121761.6057 | N53: 10007.85796 | O53: 90711.71362 | P53: 20315.68236 | Q53: 30803.90741 | S53: 779123.767 | T53: 232408.812 | U53: 35258.98462 | V53: 236329.4133 | W53: 58415.91621 | X53: 82663.20964 | Z53: =SUM(Landuse!C45:Q45) -> 4802.2 | AA53: 162.2 | AB53: 48.4 | AC53: 7.3 | AD53: 49.2 | AE53: 12.2 | AF53: 17.2 | AG53: 1424200.1 | AH53: 296.5730862
B54: 3008 | C54: 5 | D54: 181749.6421 | E54: 133440.556 | F54: 6262.302947 | G54: 10064.58499 | H54: 2433.472638 | I54: 777.9253789 | J54: 30204.78962 | L54: 152870.1462 | M54: 79821.56207 | N54: 6190.776629 | O54: 43831.89014 | P54: 12392.88875 | Q54: 69826.00978 | S54: 522815.9002 | T54: 152357.012 | U54: 21810.91087 | V54: 114194.3467 | W54: 35634.63625 | X54: 187380.192 | Z54: =SUM(Landuse!C46:Q46) -> 3306.4 | AA54: 158.1 | AB54: 46.1 | AC54: 6.6 | AD54: 34.5 | AE54: 10.8 | AF54: 56.7 | AG54: 1034193.0 | AH54: 312.7891742
B55: 3008 | C55: 7 | D55: 318565.1888 | E55: 10702.31972 | F55: 9680.986044 | G55: 1836.9054 | H55: 0 | I55: 1403.95957 | J55: 14393.37235 | L55: 136292.4542 | M55: 68218.68827 | N55: 6963.47416 | O55: 22150.02821 | P55: 8842.418649 | Q55: 114115.6683 | S55: 466120.1934 | T55: 130210.3747 | U55: 24533.22472 | V55: 57707.02549 | W55: 25425.57901 | X55: 306232.8195 | Z55: =SUM(Landuse!C47:Q47) -> 8889.5 | AA55: 52.4 | AB55: 14.6 | AC55: 2.8 | AD55: 6.5 | AE55: 2.9 | AF55: 34.4 | AG55: 1010229.2 | AH55: 113.642607
B56: 3008 | C56: 8 | D56: 235567.9235 | E56: 1219319.08 | F56: 207982.0819 | G56: 181974.7765 | H56: 42163.54987 | I56: 43762.66437 | J56: 132459.1541 | L56: 927025.8601 | M56: 506775.1066 | N56: 33793.56118 | O56: 373400.2232 | P56: 78267.63345 | Q56: 143966.8456 | S56: 3170428.442 | T56: 967291.7814 | U56: 119059.1092 | V56: 972812.1336 | W56: 225051.5359 | X56: 386339.3491 | Z56: =SUM(Landuse!C48:Q48) -> 18647.1 | AA56: 170.0 | AB56: 51.9 | AC56: 6.4 | AD56: 52.2 | AE56: 12.1 | AF56: 20.7 | AG56: 5840982.4 | AH56: 313.2379365
B57: 3009 | C57: 0 | D57: 390683.3179 | E57: 11365844.52 | F57: 1116630.382 | G57: 1109441.36 | H57: 20642.60878 | I57: 290379.6924 | J57: 890208.1696 | L57: 7088363.226 | M57: 3948542.704 | N57: 239988.0413 | O57: 2973285.602 | P57: 353915.3822 | Q57: 579735.0983 | S57: 24242202.23 | T57: 7536662.43 | U57: 845509.068 | V57: 7746241.514 | W57: 1017651.829 | X57: 1555736.528 | Z57: =SUM(Landuse!C49:Q49) -> 99839.0 | AA57: 242.8 | AB57: 75.5 | AC57: 8.5 | AD57: 77.6 | AE57: 10.2 | AF57: 15.6 | AG57: 42944003.6 | AH57: 430.1325136
B58: 3009 | C58: 1 | D58: 689990.1287 | E58: 6279247.321 | F58: 685612.5993 | G58: 479012.044 | H58: 1177606.453 | I58: 735547.7968 | J58: 812167.7756 | L58: 4629423.849 | M58: 2466526.446 | N58: 203152.1174 | O58: 1946172.565 | P58: 1051174.088 | Q58: 562735.0538 | S58: 15832629.56 | T58: 4707908.357 | U58: 715731.3195 | V58: 5070324.461 | W58: 3022556.483 | X58: 1510116.399 | Z58: =SUM(Landuse!C50:Q50) -> 98467.3 | AA58: 160.8 | AB58: 47.8 | AC58: 7.3 | AD58: 51.5 | AE58: 30.7 | AF58: 15.3 | AG58: 30859266.6 | AH58: 313.3959917
B59: 3009 | C59: 2 | D59: 53130.34387 | E59: 235700.1239 | F59: 32608.34411 | G59: 38975.23781 | H59: 20004.0162 | I59: 22929.60101 | J59: 62515.83076 | L59: 205341.9558 | M59: 107786.3058 | N59: 8611.300245 | O59: 78932.3943 | P59: 30767.30885 | Q59: 34424.23263 | S59: 702269.489 | T59: 205733.8776 | U59: 30338.73023 | V59: 205640.9882 | W59: 88468.62755 | X59: 92378.46099 | Z59: =SUM(Landuse!C51:Q51) -> 4566.6 | AA59: 153.8 | AB59: 45.1 | AC59: 6.6 | AD59: 45.0 | AE59: 19.4 | AF59: 20.2 | AG59: 1324830.2 | AH59: 290.1151564
B60: 3009 | C60: 5 | D60: 60491.90867 | E60: 63479.37775 | F60: 4591.86283 | G60: 5524.544635 | H60: 2999.25 | I60: 2209.9318 | J60: 11163.62959 | L60: 63737.93511 | M60: 33650.1217 | N60: 2603.244501 | O60: 20251.42706 | P60: 6105.512483 | Q60: 24112.26442 | S60: 217983.7381 | T60: 64228.66028 | U60: 9171.568797 | V60: 52760.6379 | W60: 17555.85165 | X60: 64705.98493 | Z60: =SUM(Landuse!C52:Q52) -> 1365.1 | AA60: 159.7 | AB60: 47.1 | AC60: 6.7 | AD60: 38.6 | AE60: 12.9 | AF60: 47.4 | AG60: 426406.4 | AH60: 312.3608022
B61: 3009 | C61: 7 | D61: 590992.6085 | E61: 12525.92298 | F61: 13290.86007 | G61: 1942.846406 | H61: 535.7495959 | I61: 272.388622 | J61: 21015.31949 | L61: 242963.1132 | M61: 121779.7572 | N61: 12392.40598 | O61: 37738.88752 | P61: 15343.6047 | Q61: 210357.9271 | S61: 830933.847 | T61: 232443.4582 | U61: 43660.05729 | V61: 98320.36888 | W61: 44119.15439 | X61: 564501.8081 | Z61: =SUM(Landuse!C53:Q53) -> 16218.5 | AA61: 51.2 | AB61: 14.3 | AC61: 2.7 | AD61: 6.1 | AE61: 2.7 | AF61: 34.8 | AG61: 1813978.7 | AH61: 111.8463084
B62: 3009 | C62: 8 | D62: 120656.1882 | E62: 607913.5762 | F62: 80639.90998 | G62: 38088.81293 | H62: 19303.96933 | I62: 21757.56715 | J62: 45086.7413 | L62: 420865.8825 | M62: 230389.2009 | N62: 15482.2924 | O62: 166194.3111 | P62: 32567.00912 | Q62: 67948.06894 | S62: 1439361.318 | T62: 439748.4756 | U62: 54546.12883 | V62: 432982.7147 | W62: 93643.50369 | X62: 182340.6814 | Z62: =SUM(Landuse!C54:Q54) -> 8359.7 | AA62: 172.2 | AB62: 52.6 | AC62: 6.5 | AD62: 51.8 | AE62: 11.2 | AF62: 21.8 | AG62: 2642622.8 | AH62: 316.1149236
B63: 3012 | C63: 0 | D63: 323376.0065 | E63: 2494859.394 | F63: 295325.0615 | G63: 298865.4043 | H63: 1557.620619 | I63: 673.1881114 | J63: 223561.3889 | L63: 1672713.139 | M63: 927618.5022 | N63: 53221.7927 | O63: 684547.0639 | P63: 85648.18018 | Q63: 214469.3853 | S63: 5720678.936 | T63: 1770563.988 | U63: 187507.2945 | V63: 1783436.775 | W63: 246273.6338 | X63: 575535.0296 | Z63: =SUM(Landuse!C55:Q55) -> 26602.4 | AA63: 215.0 | AB63: 66.6 | AC63: 7.0 | AD63: 67.0 | AE63: 9.3 | AF63: 21.6 | AG63: 10283995.7 | AH63: 386.5818334
B64: 3012 | C64: 1 | D64: 141970.9518 | E64: 187306.9989 | F64: 12857.65647 | G64: 31383.90543 | H64: 21487.76894 | I64: 42.35437662 | J64: 33474.02038 | L64: 179128.9781 | M64: 95479.85399 | N64: 6513.546546 | O64: 63561.66571 | P64: 25765.33499 | Q64: 58074.27694 | S64: 612621.1051 | T64: 182244.3069 | U64: 22948.07124 | V64: 165595.9365 | W64: 74085.90188 | X64: 155844.0644 | Z64: =SUM(Landuse!C56:Q56) -> 5787.1 | AA64: 105.9 | AB64: 31.5 | AC64: 4.0 | AD64: 28.6 | AE64: 12.8 | AF64: 26.9 | AG64: 1213339.4 | AH64: 209.6626118
B65: 3012 | C65: 2 | D65: 11145.35861 | E65: 53075.2908 | F65: 3790.1364 | G65: 0 | H65: 0 | I65: 0 | J65: 19061.75703 | L65: 39829.51235 | M65: 20242.40314 | N65: 1322.916687 | O65: 13881.7693 | P65: 4633.458586 | Q65: 7162.482768 | S65: 136216.9322 | T65: 38637.07972 | U65: 4660.807468 | V65: 36165.89593 | W65: 13323.09315 | X65: 19220.73738 | Z65: =SUM(Landuse!C57:Q57) -> 869.9 | AA65: 156.6 | AB65: 44.4 | AC65: 5.4 | AD65: 41.6 | AE65: 15.3 | AF65: 22.1 | AG65: 248224.5 | AH65: 285.3449453
B66: 3012 | C66: 5 | D66: 163902.2126 | E66: 64351.98452 | F66: 6552.9024 | G66: 0 | H66: 0 | I66: 0 | J66: 18997.17235 | L66: 103398.8208 | M66: 52837.38972 | N66: 4520.243701 | O66: 24540.33182 | P66: 7448.71376 | Q66: 61058.77199 | S66: 353623.9673 | T66: 100851.7825 | U66: 15925.40619 | V66: 63934.43569 | W66: 21418.10603 | X66: 163853.0464 | Z66: =SUM(Landuse!C58:Q58) -> 2290.6 | AA66: 154.4 | AB66: 44.0 | AC66: 7.0 | AD66: 27.9 | AE66: 9.4 | AF66: 71.5 | AG66: 719606.7 | AH66: 314.1586996
B67: 3012 | C67: 7 | D67: 498601.3681 | E67: 29434.7654 | F67: 9953.973723 | G67: 0 | H67: 0 | I67: 0 | J67: 10677.0698 | L67: 209342.5975 | M67: 106119.3619 | N67: 10530.77723 | O67: 34370.56066 | P67: 11343.31111 | Q67: 176960.5686 | S67: 715951.6835 | T67: 202552.1484 | U67: 37101.29717 | V67: 89544.93427 | W67: 32616.67021 | X67: 474878.9947 | Z67: =SUM(Landuse!C59:Q59) -> 13149.7 | AA67: 54.4 | AB67: 15.4 | AC67: 2.8 | AD67: 6.8 | AE67: 2.5 | AF67: 36.1 | AG67: 1552645.7 | AH67: 118.0741723
B68: 3012 | C68: 8 | D68: 244257.2989 | E68: 418316.4183 | F68: 47073.94597 | G68: 34945.9085 | H68: 0 | I68: 0 | J68: 78546.04101 | L68: 362345.418 | M68: 192505.1847 | N68: 13073.74625 | O68: 123562.9595 | P68: 25559.14864 | Q68: 106093.1557 | S68: 1239221.33 | T68: 367438.4961 | U68: 46060.50762 | V68: 321916.1073 | W68: 73493.03159 | X68: 284704.166 | Z68: =SUM(Landuse!C60:Q60) -> 8698.3 | AA68: 142.5 | AB68: 42.2 | AC68: 5.3 | AD68: 37.0 | AE68: 8.4 | AF68: 32.7 | AG68: 2332833.6 | AH68: 268.1932005
B69: 3017 | C69: 0 | D69: 200661.4991 | E69: 2359852.789 | F69: 290269.2181 | G69: 235782.3613 | H69: 1234.474421 | I69: 178.7089554 | J69: 282091.3824 | L69: 1559852.546 | M69: 856694.8635 | N69: 49005.87471 | O69: 637787.6872 | P69: 93036.96711 | Q69: 173692.4948 | S69: 5334695.706 | T69: 1635190.62 | U69: 172654.0674 | V69: 1661615.506 | W69: 267519.4256 | X69: 466109.0205 | Z69: =SUM(Landuse!C61:Q61) -> 23688.4 | AA69: 225.2 | AB69: 69.0 | AC69: 7.3 | AD69: 70.1 | AE69: 11.3 | AF69: 19.7 | AG69: 9537784.3 | AH69: 402.6358901
B70: 3017 | C70: 1 | D70: 91785.83595 | E70: 260.19 | F70: 0 | G70: 0 | H70: 0 | I70: 0 | J70: 5706.697871 | L70: 36942.40808 | M70: 18247.68493 | N70: 1895.570839 | O70: 5247.170445 | P70: 2751.04256 | Q70: 32668.84696 | S70: 126343.0356 | T70: 34829.72117 | U70: 6678.342491 | V70: 13670.34822 | W70: 7910.375287 | X70: 87667.83089 | Z70: =SUM(Landuse!C62:Q62) -> 2475.5 | AA70: 51.0 | AB70: 14.1 | AC70: 2.7 | AD70: 5.5 | AE70: 3.2 | AF70: 35.4 | AG70: 277099.7 | AH70: 111.9365574
B71: 3017 | C71: 2 | D71: 8856.970018 | E71: 16638.07776 | F71: 2866.451109 | G71: 10823.21551 | H71: 0 | I71: 0 | J71: 6391.69814 | L71: 20021.87183 | M71: 10823.79135 | N71: 692.3362807 | O71: 7805.714374 | P71: 1790.351944 | Q71: 4442.346756 | S71: 68474.80164 | T71: 20659.58703 | U71: 2439.190721 | V71: 20336.07154 | W71: 5147.995883 | X71: 11921.17079 | Z71: =SUM(Landuse!C63:Q63) -> 498.8 | AA71: 137.3 | AB71: 41.4 | AC71: 4.9 | AD71: 40.8 | AE71: 10.3 | AF71: 23.9 | AG71: 128978.8 | AH71: 258.5629864
B72: 3017 | C72: 5 | D72: 106220.3065 | E72: 0 | F72: 736.1752089 | G72: 0 | H72: 23.994 | I72: 0 | J72: 5034.2577 | L72: 42233.82346 | M72: 20973.5021 | N72: 2177.516254 | O72: 6013.959808 | P72: 2897.485459 | Q72: 37718.4463 | S72: 144439.6762 | T72: 40032.54292 | U72: 7671.672842 | V72: 15668.04921 | W72: 8331.458664 | X72: 101218.5822 | Z72: =SUM(Landuse!C64:Q64) -> 952.7 | AA72: 151.6 | AB72: 42.0 | AC72: 8.1 | AD72: 16.4 | AE72: 8.7 | AF72: 106.2 | AG72: 317362.0 | AH72: 333.1224006
B73: 3017 | C73: 7 | D73: 254906.4861 | E73: 3921.868 | F73: 422.3984 | G73: 0 | H73: 0 | I73: 0 | J73: 7636.287569 | L73: 100587.1507 | M73: 50480.39868 | N73: 5181.621258 | O73: 14605.72946 | P73: 6020.953551 | Q73: 90011.18636 | S73: 344008.0555 | T73: 96352.94657 | U73: 18255.5253 | V73: 38052.01485 | W73: 17312.71005 | X73: 241547.7189 | Z73: =SUM(Landuse!C65:Q65) -> 6458.8 | AA73: 53.3 | AB73: 14.9 | AC73: 2.8 | AD73: 5.9 | AE73: 2.7 | AF73: 37.4 | AG73: 755529.0 | AH73: 116.9775166
B74: 3017 | C74: 8 | D74: 63500.27099 | E74: 80202.01895 | F74: 13157.14593 | G74: 5652 | H74: 119.97 | I74: 0 | J74: 10913.34331 | L74: 75255.5283 | M74: 40088.43275 | N74: 2828.761944 | O74: 24689.58173 | P74: 4521.04631 | Q74: 26161.39815 | S74: 257373.9068 | T74: 76517.59335 | U74: 9966.096069 | V74: 64323.27349 | W74: 12999.86177 | X74: 70204.89678 | Z74: =SUM(Landuse!C66:Q66) -> 2049.6 | AA74: 125.6 | AB74: 37.3 | AC74: 4.9 | AD74: 31.4 | AE74: 6.3 | AF74: 34.3 | AG74: 491385.6 | AH74: 239.7427024
B75: 3018 | C75: 0 | D75: 584309.1396 | E75: 14922169.47 | F75: 1391160.286 | G75: 1726855.933 | H75: 68343.36562 | I75: 143549.9566 | J75: 853214.4582 | L75: 9160016.559 | M75: 5158744.209 | N75: 289982.044 | O75: 3923339.635 | P75: 423808.3307 | Q75: 733711.8328 | S75: 31327256.63 | T75: 9846598.247 | U75: 1021644.439 | V75: 10221398.28 | W75: 1218622.712 | X75: 1968937.715 | Z75: =SUM(Landuse!C67:Q67) -> 125588.0 | AA75: =IF(Z75<>0,S75/Z75,"") -> 249.4 | AB75: =IF(Z75<>0,T75/Z75,"") -> 78.4 | AC75: =IF(Z75<>0,U75/Z75,"") -> 8.1 | AD75: =IF(Z75<>0,V75/Z75,"") -> 81.4 | AE75: =IF(Z75<>0,W75/Z75,"") -> 9.7 | AF75: =IF(Z75<>0,X75/Z75,"") -> 15.7 | AG75: =SUM(S75:X75) -> 55604458.0 | AH75: =IF(Z75<>0,AG75/Z75,"") -> 442.7530514
B76: 3018 | C76: 1 | D76: 273734.7474 | E76: 1568338.424 | F76: 159695.5385 | G76: 112510.4051 | H76: 264110.0924 | I76: 105769.999 | J76: 198760.8408 | L76: 1142671.659 | M76: 611160.5929 | N76: 44709.60256 | O76: 474090.3012 | P76: 241234.4126 | Q76: 169053.4791 | S76: 3907937.074 | T76: 1166534.447 | U76: 157517.7421 | V76: 1235137.98 | W76: 693647.8423 | X76: 453660.0827 | Z76: =SUM(Landuse!C68:Q68) -> 25110.3 | AA76: 155.6 | AB76: 46.5 | AC76: 6.3 | AD76: 49.2 | AE76: 27.6 | AF76: 18.1 | AG76: 7614435.2 | AH76: 303.2395584
B77: 3018 | C77: 2 | D77: 23587.07983 | E77: 145366.3144 | F77: 26707.98922 | G77: 1750.76 | H77: 5104.7235 | I77: 865.6385755 | J77: 57120.92513 | L77: 117919.1271 | M77: 59276.04169 | N77: 3975.622406 | O77: 42572.03516 | P77: 17361.83257 | Q77: 19398.77169 | S77: 403283.4148 | T77: 113141.3663 | U77: 14006.63457 | V77: 110912.0718 | W77: 49922.38699 | X77: 52057.18578 | Z77: =SUM(Landuse!C69:Q69) -> 2711.9 | AA77: 148.7 | AB77: 41.7 | AC77: 5.2 | AD77: 40.9 | AE77: 18.4 | AF77: 19.2 | AG77: 743323.1 | AH77: 274.1004503
B78: 3018 | C78: 5 | D78: 19461.46414 | E78: 6639.690291 | F78: 0 | G78: 0 | H78: 0 | I78: 0 | J78: 943.9666748 | L78: 10851.1141 | M78: 5641.126801 | N78: 487.2985425 | O78: 2452.096303 | P78: 590.9636528 | Q78: 7022.521704 | S78: 37110.81024 | T78: 10767.33155 | U78: 1716.816114 | V78: 6388.397455 | W78: 1699.262797 | X78: 18845.14767 | Z78: =SUM(Landuse!C70:Q70) -> 219.1 | AA78: 169.4 | AB78: 49.1 | AC78: 7.8 | AD78: 29.2 | AE78: 7.8 | AF78: 86.0 | AG78: 76527.8 | AH78: 349.2818757
B79: 3018 | C79: 7 | D79: 320473.7745 | E79: 23141.18419 | F79: 3567.498595 | G79: 0 | H79: 14.70038359 | I79: 26.98 | J79: 5087.12937 | L79: 134488.995 | M79: 68501.19737 | N79: 6747.557836 | O79: 22301.70384 | P79: 6912.435271 | Q79: 113359.3777 | S79: 459952.363 | T79: 130749.6054 | U79: 23772.52344 | V79: 58102.18298 | W79: 19876.0855 | X79: 304203.2907 | Z79: =SUM(Landuse!C71:Q71) -> 8446.0 | AA79: 54.5 | AB79: 15.5 | AC79: 2.8 | AD79: 6.9 | AE79: 2.4 | AF79: 36.0 | AG79: 996656.1 | AH79: 118.0031103
B80: 3018 | C80: 8 | D80: 119650.3791 | E80: 353093.2124 | F80: 43573.80125 | G80: 23713.27751 | H80: 2918.128513 | I80: 5257.00528 | J80: 40176.46387 | L80: 263917.0465 | M80: 142932.9419 | N80: 9427.751044 | O80: 97840.56042 | P80: 16885.5437 | Q80: 57378.42424 | S80: 902596.2992 | T80: 272818.9649 | U80: 33215.19253 | V80: 254902.0552 | W80: 48552.86121 | X80: 153976.7228 | Z80: =SUM(Landuse!C72:Q72) -> 5404.5 | AA80: 167.0 | AB80: 50.5 | AC80: 6.1 | AD80: 47.2 | AE80: 9.0 | AF80: 28.5 | AG80: 1666062.1 | AH80: 308.2731503
B81: 3021 | C81: 0 | D81: 738729.0153 | E81: 4752364.022 | F81: 1060444.056 | G81: 714931.2377 | H81: 19779.4539 | I81: 3368.078308 | J81: 551140.6058 | L81: 3579978.286 | M81: 1959201.884 | N81: 117038.1812 | O81: 1453376.845 | P81: 215528.5147 | Q81: 515632.7582 | S81: 12243525.74 | T81: 3739567.819 | U81: 412340.7274 | V81: 3786453.628 | W81: 619732.8464 | X81: 1383715.976 | Z81: =SUM(Landuse!C73:Q73) -> 59897.8 | AA81: 204.4 | AB81: 62.4 | AC81: 6.9 | AD81: 63.2 | AE81: 10.3 | AF81: 23.1 | AG81: 22185336.7 | AH81: 370.3866596
B82: 3021 | C82: 1 | D82: 258072.4114 | E82: 60260.24659 | F82: 26778.69888 | G82: 7036.552475 | H82: 7439.725118 | I82: 94.5850232 | J82: 31150.90942 | L82: 155185.591 | M82: 77946.49758 | N82: 6978.686021 | O82: 36517.25898 | P82: 16969.93348 | Q82: 97235.16188 | S82: 530734.7212 | T82: 148778.0389 | U82: 24586.81808 | V82: 95137.68448 | W82: 48795.51642 | X82: 260933.474 | Z82: =SUM(Landuse!C74:Q74) -> 6879.5 | AA82: 77.1 | AB82: 21.6 | AC82: 3.6 | AD82: 13.8 | AE82: 7.1 | AF82: 37.9 | AG82: 1108966.3 | AH82: 161.1989186
B83: 3021 | C83: 2 | D83: 6468.807123 | E83: 173.46 | F83: 958.8 | G83: 0 | H83: 11.997 | I83: 0 | J83: 2825.840167 | L83: 4214.565427 | M83: 1884.469677 | N83: 192.9860295 | O83: 787.2665665 | P83: 716.4769465 | Q83: 2643.139644 | S83: 14413.81376 | T83: 3596.924961 | U83: 679.9148699 | V83: 2051.04984 | W83: 2060.164977 | X83: 7092.944529 | Z83: =SUM(Landuse!C75:Q75) -> 207.1 | AA83: 69.6 | AB83: 17.4 | AC83: 3.3 | AD83: 9.9 | AE83: 9.9 | AF83: 34.3 | AG83: 29894.8 | AH83: 144.3587919
B84: 3021 | C84: 5 | D84: 277263.4314 | E84: 99057.92128 | F84: 21097.84575 | G84: 17600.62894 | H84: 0 | I84: 377.9898 | J84: 31561.96912 | L84: 182170.3211 | M84: 93826.94387 | N84: 7944.676263 | O84: 45910.65197 | P84: 12843.26669 | Q84: 104263.9265 | S84: 623022.498 | T84: 179089.3643 | U84: 27990.12728 | V84: 119610.1034 | W84: 36929.65746 | X84: 279795.3746 | Z84: =SUM(Landuse!C76:Q76) -> 4117.3 | AA84: 151.3 | AB84: 43.5 | AC84: 6.8 | AD84: 29.1 | AE84: 9.0 | AF84: 68.0 | AG84: 1266437.1 | AH84: 307.5864872
B85: 3021 | C85: 7 | D85: 625347.7412 | E85: 27055.92301 | F85: 11763.67102 | G85: 772.9161507 | H85: 0 | I85: 134.4615839 | J85: 28270.55222 | L85: 264673.0882 | M85: 132592.2278 | N85: 13325.8987 | O85: 42429.37807 | P85: 17135.99764 | Q85: 223188.6748 | S85: 905181.9615 | T85: 253081.4371 | U85: 46948.87348 | V85: 110540.4101 | W85: 49273.01898 | X85: 598933.5045 | Z85: =SUM(Landuse!C77:Q77) -> 16048.3 | AA85: 56.4 | AB85: 15.8 | AC85: 2.9 | AD85: 6.9 | AE85: 3.1 | AF85: 37.3 | AG85: 1963959.2 | AH85: 122.3780215
B86: 3021 | C86: 8 | D86: 536583.4799 | E86: 693471.7651 | F86: 138728.3756 | G86: 78171.13253 | H86: 2352.6117 | I86: 817.592063 | J86: 112955.2276 | L86: 678797.6371 | M86: 360843.9529 | N86: 25423.96679 | O86: 226997.0276 | P86: 44454.29443 | Q86: 226563.3056 | S86: 2321487.919 | T86: 688750.0699 | U86: 89571.94011 | V86: 591390.8162 | W86: 127824.3228 | X86: 607989.4276 | Z86: =SUM(Landuse!C78:Q78) -> 16025.0 | AA86: 144.9 | AB86: 43.0 | AC86: 5.6 | AD86: 36.9 | AE86: 8.0 | AF86: 37.9 | AG86: 4427014.5 | AH86: 276.2571819
B87: 3022 | C87: 0 | D87: 85481.97527 | E87: 378701.8469 | F87: 76930.59889 | G87: 65698.59826 | H87: 46.7883 | I87: 0 | J87: 50147.91465 | L87: 297971.4261 | M87: 162716.9486 | N87: 9892.325907 | O87: 118306.3668 | P87: 17793.89712 | Q87: 50326.75775 | S87: 1019062.277 | T87: 310581.0941 | U87: 34851.95017 | V87: 308221.2114 | W87: 51164.74973 | X87: 135053.3642 | Z87: =SUM(Landuse!C79:Q79) -> 5518.0 | AA87: 184.7 | AB87: 56.3 | AC87: 6.3 | AD87: 55.9 | AE87: 9.3 | AF87: 24.5 | AG87: 1858934.6 | AH87: 336.8836473
B88: 3022 | C88: 1 | D88: 68487.11815 | E88: 468.342 | F88: 671.16 | G88: 0 | H88: 4783.51456 | I88: 0 | J88: 2201.845567 | L88: 27635.10007 | M88: 13709.69109 | N88: 1396.942198 | O88: 4825.843437 | P88: 4800.447263 | Q88: 24243.95623 | S88: 94512.04224 | T88: 26167.96157 | U88: 4921.608965 | V88: 12572.67339 | W88: 13803.25406 | X88: 65059.38386 | Z88: =SUM(Landuse!C80:Q80) -> 2012.1 | AA88: 47.0 | AB88: 13.0 | AC88: 2.4 | AD88: 6.2 | AE88: 6.9 | AF88: 32.3 | AG88: 217036.9 | AH88: 107.868006
B89: 3022 | C89: 2 | D89: 2716.921029 | E89: 0 | F89: 0 | G89: 0 | H89: 29.9925 | I89: 0 | J89: 4515.696967 | L89: 3065.590371 | M89: 1157.771893 | N89: 126.9974115 | O89: 532.9100512 | P89: 979.4037176 | Q89: 1399.937052 | S89: 10484.31907 | T89: 2209.862367 | U89: 447.4283902 | V89: 1388.379898 | W89: 2816.187244 | X89: 3756.773078 | Z89: =SUM(Landuse!C81:Q81) -> 158.3 | AA89: 66.2 | AB89: 14.0 | AC89: 2.8 | AD89: 8.8 | AE89: 17.8 | AF89: 23.7 | AG89: 21103.0 | AH89: 133.2967139
B90: 3022 | C90: 5 | D90: 133932.4495 | E90: 6293.3115 | F90: 0 | G90: 0 | H90: 0 | I90: 0 | J90: 12099.64515 | L90: 58436.4837 | M90: 28789.22147 | N90: 2908.18218 | O90: 9204.317638 | P90: 4831.725783 | Q90: 48155.47542 | S90: 199852.7743 | T90: 54950.5628 | U90: 10245.90388 | V90: 23979.82466 | W90: 13893.19263 | X90: 129226.6629 | Z90: =SUM(Landuse!C82:Q82) -> 1498.3 | AA90: 133.4 | AB90: 36.7 | AC90: 6.8 | AD90: 16.0 | AE90: 9.3 | AF90: 86.2 | AG90: 432148.9 | AH90: 288.4265099
B91: 3022 | C91: 7 | D91: 328327.2988 | E91: 21043.92853 | F91: 5795.117398 | G91: 0 | H91: 0 | I91: 0 | J91: 11600.87996 | L91: 140371.4437 | M91: 70819.69961 | N91: 7017.739432 | O91: 23230.79213 | P91: 8389.837157 | Q91: 116937.7127 | S91: 480070.3373 | T91: 135174.977 | U91: 24724.40832 | V91: 60522.71812 | W91: 24124.22166 | X91: 313805.8602 | Z91: =SUM(Landuse!C83:Q83) -> 9436.5 | AA91: 50.9 | AB91: 14.3 | AC91: 2.6 | AD91: 6.4 | AE91: 2.6 | AF91: 33.3 | AG91: 1038422.5 | AH91: 110.0435526
B92: 3022 | C92: 8 | D92: 55404.80299 | E92: 44129.68518 | F92: 9617.833495 | G92: 3246.76 | H92: 22.7943 | I92: 0 | J92: 11132.51277 | L92: 52500.5831 | M92: 27218.1091 | N92: 2086.888324 | O92: 15535.54205 | P92: 3910.934953 | Q92: 22302.33121 | S92: 179551.9942 | T92: 51951.7492 | U92: 7352.378861 | V92: 40474.437 | W92: 11245.54147 | X92: 59848.97486 | Z92: =SUM(Landuse!C84:Q84) -> 1644.3 | AA92: 109.2 | AB92: 31.6 | AC92: 4.5 | AD92: 24.6 | AE92: 6.8 | AF92: 36.4 | AG92: 350425.1 | AH92: 213.1172675
B93: 3023 | C93: 0 | D93: 42425.44046 | E93: 476768.1619 | F93: 23335.77762 | G93: 62201.0368 | H93: 0 | I93: 0 | J93: 44888.45096 | L93: 300420.9006 | M93: 168035.6039 | N93: 9266.270587 | O93: 125240.0778 | P93: 15512.99374 | Q93: 31143.02105 | S93: 1027439.48 | T93: 320732.9179 | U93: 32646.27589 | V93: 326285.47 | W93: 44606.21732 | X93: 83573.23128 | Z93: =SUM(Landuse!C85:Q85) -> 4501.7 | AA93: 228.2 | AB93: 71.2 | AC93: 7.3 | AD93: 72.5 | AE93: 9.9 | AF93: 18.6 | AG93: 1835283.6 | AH93: 407.6838133
B94: 3023 | C94: 1 | D94: 61021.17382 | E94: 56620.6082 | F94: 0 | G94: 5470.26 | H94: 2314.563057 | I94: 0 | J94: 17162.231 | L94: 60125.61545 | M94: 31164.12239 | N94: 2315.831137 | O94: 18190.0736 | P94: 6638.362105 | Q94: 24154.8314 | S94: 205629.6048 | T94: 59483.58368 | U94: 8158.974153 | V94: 47390.23496 | W94: 19088.01278 | X94: 64820.21471 | Z94: =SUM(Landuse!C86:Q86) -> 2351.0 | AA94: 87.5 | AB94: 25.3 | AC94: 3.5 | AD94: 20.2 | AE94: 8.1 | AF94: 27.6 | AG94: 404570.6 | AH94: 172.0830796
B95: 3023 | C95: 2 | D95: 3013.915234 | E95: 15392.81077 | F95: 510.6448845 | G95: 0 | H95: 0 | I95: 0 | J95: 5322.361027 | L95: 11108.79356 | M95: 5670.885959 | N95: 365.1645446 | O95: 3889.758364 | P95: 1283.944846 | Q95: 1921.184638 | S95: 37992.07397 | T95: 10824.13345 | U95: 1286.522162 | V95: 10133.90967 | W95: 3691.86785 | X95: 5155.556611 | Z95: =SUM(Landuse!C87:Q87) -> 240.5 | AA95: 158.0 | AB95: 45.0 | AC95: 5.4 | AD95: 42.1 | AE95: 15.4 | AF95: 21.4 | AG95: 69084.1 | AH95: 287.2992812
B96: 3023 | C96: 5 | D96: 37860.53491 | E96: 12738.28707 | F96: 0 | G96: 0 | H96: 0 | I96: 0 | J96: 3403.152277 | L96: 21735.56793 | M96: 11148.21466 | N96: 971.1499053 | O96: 4867.993025 | P96: 1464.585221 | Q96: 13814.46351 | S96: 74335.64231 | T96: 21278.82029 | U96: 3421.487366 | V96: 12682.48487 | W96: 4211.282989 | X96: 37071.52726 | Z96: =SUM(Landuse!C88:Q88) -> 502.9 | AA96: 147.8 | AB96: 42.3 | AC96: 6.8 | AD96: 25.2 | AE96: 8.4 | AF96: 73.7 | AG96: 153001.2 | AH96: 304.2351058
B97: 3023 | C97: 7 | D97: 51149.67052 | E97: 0 | F97: 0 | G97: 0 | H97: 0 | I97: 0 | J97: 1913.712871 | L97: 19943.23357 | M97: 9948.798423 | N97: 1033.68847 | O97: 2785.280469 | P97: 1275.817917 | Q97: 18076.56455 | S97: 68205.85881 | T97: 18989.47053 | U97: 3641.818859 | V97: 7256.4355 | W97: 3668.499597 | X97: 48509.00325 | Z97: =SUM(Landuse!C89:Q89) -> 1366.4 | AA97: 49.9 | AB97: 13.9 | AC97: 2.7 | AD97: 5.3 | AE97: 2.7 | AF97: 35.5 | AG97: 150271.1 | AH97: 109.972501
B98: 3023 | C98: 8 | D98: 73556.98599 | E98: 189820.2357 | F98: 7475.883234 | G98: 12120.98193 | H98: 0 | I98: 0 | J98: 33594.05256 | L98: 141694.3888 | M98: 75914.38441 | N98: 4865.671767 | O98: 50471.73202 | P98: 10154.28634 | Q98: 33467.67598 | S98: 484594.8099 | T98: 144899.3038 | U98: 17142.39417 | V98: 131492.994 | W98: 29197.73648 | X98: 89811.51252 | Z98: =SUM(Landuse!C90:Q90) -> 2972.7 | AA98: 163.0 | AB98: 48.7 | AC98: 5.8 | AD98: 44.2 | AE98: 9.8 | AF98: 30.2 | AG98: 897138.8 | AH98: 301.7889002
B99: 3026 | C99: 0 | D99: 59303.79808 | E99: 270200.1562 | F99: 65050.74889 | G99: 24228.82865 | H99: 721.9802686 | I99: 0 | J99: 24099.3482 | L99: 201781.279 | M99: 110015.9522 | N99: 6739.826995 | O99: 79367.02483 | P99: 10758.42071 | Q99: 34942.3566 | S99: 690091.9741 | T99: 209989.6483 | U99: 23745.28668 | V99: 206773.3224 | W99: 30934.87049 | X99: 93768.8622 | Z99: =SUM(Landuse!C91:Q91) -> 3510.4 | AA99: 196.6 | AB99: 59.8 | AC99: 6.8 | AD99: 58.9 | AE99: 8.8 | AF99: 26.7 | AG99: 1255304.0 | AH99: 357.5987119
B100: 3026 | C100: 1 | D100: 164262.5627 | E100: 13029.954 | F100: 4605.919684 | G100: 0 | H100: 239.94 | I100: 0 | J100: 4525.419433 | L100: 71644.91296 | M100: 36319.55649 | N100: 3555.686503 | O100: 12386.90939 | P100: 4162.022474 | Q100: 58594.70798 | S100: 245025.6023 | T100: 69323.86386 | U100: 12527.14579 | V100: 32271.36731 | W100: 11967.52104 | X100: 157240.6567 | Z100: =SUM(Landuse!C92:Q92) -> 4792.3 | AA100: 51.1 | AB100: 14.5 | AC100: 2.6 | AD100: 6.7 | AE100: 2.5 | AF100: 32.8 | AG100: 528356.2 | AH100: 110.2514132
B101: 3026 | C101: 2 | D101: 3972.062898 | E101: 0 | F101: 0 | G101: 0 | H101: 0 | I101: 0 | J101: 2114.300189 | L101: 2440.563513 | M101: 1052.375779 | N101: 112.3757424 | O101: 385.1916312 | P101: 496.2705571 | Q101: 1599.585864 | S101: 8346.727213 | T101: 2008.690697 | U101: 395.9143493 | V101: 1003.532053 | W101: 1426.981323 | X101: 4292.536655 | Z101: =SUM(Landuse!C93:Q93) -> 121.0 | AA101: 69.0 | AB101: 16.6 | AC101: 3.3 | AD101: 8.3 | AE101: 11.8 | AF101: 35.5 | AG101: 17474.4 | AH101: 144.4465488
B102: 3026 | C102: 5 | D102: 1144836.931 | E102: 103558.174 | F102: 7893.340444 | G102: 2068.991229 | H102: 1071.500276 | I102: 223.6642 | J102: 38688.63047 | L102: 498558.396 | M102: 252951.181 | N102: 24672.93282 | O102: 85617.11992 | P102: 29610.90832 | Q102: 406930.6941 | S102: 1705069.714 | T102: 482812.9782 | U102: 86925.94982 | V102: 223056.5702 | W102: 85143.50189 | X102: 1092010.725 | Z102: =SUM(Landuse!C94:Q94) -> 12614.7 | AA102: 135.2 | AB102: 38.3 | AC102: 6.9 | AD102: 17.7 | AE102: 6.7 | AF102: 86.6 | AG102: 3675019.4 | AH102: 291.3288302
B103: 3026 | C103: 7 | D103: 317853.3846 | E103: 45100.35011 | F103: 4989.210479 | G103: 0 | H103: 0 | I103: 0 | J103: 5854.373731 | L103: 144959.5699 | M103: 74455.95295 | N103: 7031.547491 | O103: 27030.87072 | P103: 7251.200597 | Q103: 113068.1773 | S103: 495761.7291 | T103: 142115.5665 | U103: 24773.05591 | V103: 70422.98687 | W103: 20850.17471 | X103: 303421.8457 | Z103: =SUM(Landuse!C95:Q95) -> 8694.3 | AA103: 57.0 | AB103: 16.3 | AC103: 2.8 | AD103: 8.1 | AE103: 2.4 | AF103: 34.9 | AG103: 1057345.4 | AH103: 121.6130682
B104: 3026 | C104: 8 | D104: 117589.5665 | E104: 112800.6073 | F104: 27520.5109 | G104: 8562.78 | H104: 239.94 | I104: 0 | J104: 9949.071489 | L104: 118307.1136 | M104: 63116.64286 | N104: 4618.569602 | O104: 37528.16864 | P104: 6033.843157 | Q104: 47058.13827 | S104: 404610.3285 | T104: 120471.9986 | U104: 16271.82112 | V104: 97771.38718 | W104: 17349.77295 | X104: 126281.9258 | Z104: =SUM(Landuse!C96:Q96) -> 3332.7 | AA104: 121.4 | AB104: 36.1 | AC104: 4.9 | AD104: 29.3 | AE104: 5.2 | AF104: 37.9 | AG104: 782757.2 | AH104: 234.8692642
B105: 3027 | C105: 0 | D105: 331487.9338 | E105: 3526602.023 | F105: 585566.6606 | G105: 393897.0308 | H105: 24597.5758 | I105: 14704.04208 | J105: 197577.1123 | L105: 2337528.948 | M105: 1303417.99 | N105: 74931.7484 | O105: 979710.0577 | P105: 113863.4387 | Q105: 264980.1959 | S105: 7994349.002 | T105: 2487859.985 | U105: 263994.2908 | V105: 2552419.019 | W105: 327404.0704 | X105: 711082.3051 | Z105: =SUM(Landuse!C97:Q97) -> 35527.3 | AA105: 225.0 | AB105: 70.0 | AC105: 7.4 | AD105: 71.8 | AE105: 9.2 | AF105: 20.0 | AG105: 14337108.7 | AH105: 403.551728
B106: 3027 | C106: 1 | D106: 322869.4484 | E106: 1607317.882 | F106: 315328.4419 | G106: 277600.8628 | H106: 394678.9834 | I106: 37880.66117 | J106: 166691.1369 | L106: 1288334.596 | M106: 695927.0372 | N106: 43944.95569 | O106: 572124.5096 | P106: 325554.5348 | Q106: 196481.7834 | S106: 4406104.319 | T106: 1328329.855 | U106: 154823.7917 | V106: 1490544.542 | W106: 936102.7648 | X106: 527264.7601 | Z106: =SUM(Landuse!C98:Q98) -> 29009.6 | AA106: 151.9 | AB106: 45.8 | AC106: 5.3 | AD106: 51.4 | AE106: 32.3 | AF106: 18.2 | AG106: 8843170.0 | AH106: 304.8359392
B107: 3027 | C107: 2 | D107: 24154.87837 | E107: 57835.24399 | F107: 28602.6442 | G107: 2869.78337 | H107: 4617.263726 | I107: 333.7 | J107: 10799.62233 | L107: 56408.02812 | M107: 29320.67059 | N107: 2034.185675 | O107: 21007.56293 | P107: 6919.127318 | Q107: 13523.56136 | S107: 192915.4562 | T107: 55964.95038 | U107: 7166.700578 | V107: 54730.58355 | W107: 19895.32788 | X107: 36290.88261 | Z107: =SUM(Landuse!C99:Q99) -> 1304.8 | AA107: 147.8 | AB107: 42.9 | AC107: 5.5 | AD107: 41.9 | AE107: 15.2 | AF107: 27.8 | AG107: 366963.9 | AH107: 281.2377172
B108: 3027 | C108: 5 | D108: 474589.151 | E108: 144300.1903 | F108: 16250.7105 | G108: 977.3597085 | H108: 945.3636 | I108: 229.8696 | J108: 29277.70648 | L108: 267084.4505 | M108: 137539.0761 | N108: 12080.10471 | O108: 60110.08012 | P108: 16548.78787 | Q108: 173207.852 | S108: 913428.8206 | T108: 262523.5853 | U108: 42559.7793 | V108: 156603.5895 | W108: 47584.55014 | X108: 464808.467 | Z108: =SUM(Landuse!C100:Q100) -> 5978.9 | AA108: 152.8 | AB108: 43.9 | AC108: 7.1 | AD108: 26.2 | AE108: 8.0 | AF108: 77.7 | AG108: 1887508.8 | AH108: 315.6957692
B109: 3027 | C109: 7 | D109: 526353.7878 | E109: 107100.8841 | F109: 33609.61611 | G109: 1396.039129 | H109: 2618.688079 | I109: 681.5605446 | J109: 20056.98534 | L109: 272959.4257 | M109: 139882.0708 | N109: 12806.99838 | O109: 57907.73377 | P109: 16781.39417 | Q109: 191479.9382 | S109: 933521.2357 | T109: 266995.7062 | U109: 45120.7202 | V109: 150865.8606 | W109: 48253.3886 | X109: 513842.1587 | Z109: =SUM(Landuse!C101:Q101) -> 13364.9 | AA109: 69.8 | AB109: 20.0 | AC109: 3.4 | AD109: 11.3 | AE109: 3.6 | AF109: 38.4 | AG109: 1958599.1 | AH109: 146.5480411
B110: 3027 | C110: 8 | D110: 679567.042 | E110: 1465540.45 | F110: 275980.4524 | G110: 130877.9377 | H110: 65114.03244 | I110: 4846.570295 | J110: 139623.9459 | L110: 1206390.682 | M110: 651892.4149 | N110: 42766.77244 | O110: 447493.8519 | P110: 104842.8564 | Q110: 308163.8538 | S110: 4125856.132 | T110: 1244280.09 | U110: 150672.899 | V110: 1165846.783 | W110: 301466.1976 | X110: 826966.9465 | Z110: =SUM(Landuse!C102:Q102) -> 26625.8 | AA110: 155.0 | AB110: 46.7 | AC110: 5.7 | AD110: 43.8 | AE110: 11.3 | AF110: 31.1 | AG110: 7815089.0 | AH110: 293.5158658
B111: 3028 | C111: 0 | D111: 14541.77763 | E111: 57621.29626 | F111: 21822.16397 | G111: 10620.45594 | H111: 1338.302751 | I111: 0 | J111: 0 | L111: 47470.58115 | M111: 26403.19995 | N111: 1605.107728 | O111: 19685.09112 | P111: 2322.410839 | Q111: 8457.605771 | S111: 162349.3875 | T111: 50396.31581 | U111: 5655.003191 | V111: 51285.17419 | W111: 6677.88335 | X111: 22696.23881 | Z111: =SUM(Landuse!C103:Q103) -> 933.8 | AA111: 173.9 | AB111: 54.0 | AC111: 6.1 | AD111: 54.9 | AE111: 7.2 | AF111: 24.3 | AG111: 299060.0 | AH111: 320.2684477
B112: 3028 | C112: 1 | D112: 85781.41829 | E112: 5323.2396 | F112: 2950.854997 | G112: 2100.22 | H112: 0 | I112: 0 | J112: 1158.928721 | L112: 37284.67806 | M112: 19092.81717 | N112: 1853.217343 | O112: 6685.029982 | P112: 1870.51058 | Q112: 30528.40847 | S112: 127513.599 | T112: 36442.84199 | U112: 6529.125617 | V112: 17416.37491 | W112: 5378.484826 | X112: 81923.89998 | Z112: =SUM(Landuse!C104:Q104) -> 2391.1 | AA112: 53.3 | AB112: 15.2 | AC112: 2.7 | AD112: 7.3 | AE112: 2.2 | AF112: 34.3 | AG112: 275204.3 | AH112: 115.0934341
B113: 3028 | C113: 2 | D113: 3177.3386 | E113: 1897.6524 | F113: 407.49 | G113: 0 | H113: 29.9925 | I113: 0 | J113: 182.7214931 | L113: 2361.268099 | M113: 1239.152481 | N113: 98.63209055 | O113: 651.1433248 | P113: 139.5639177 | Q113: 1205.43508 | S113: 8075.5369 | T113: 2365.195124 | U113: 347.4936772 | V113: 1696.410681 | W113: 401.3034845 | X113: 3234.821199 | Z113: =SUM(Landuse!C105:Q105) -> 101.6 | AA113: 79.5 | AB113: 23.3 | AC113: 3.4 | AD113: 16.7 | AE113: 3.9 | AF113: 31.8 | AG113: 16120.8 | AH113: 158.6220709
B114: 3028 | C114: 5 | D114: 777932.6169 | E114: 63586.80476 | F114: 43083.30437 | G114: 0 | H114: 0 | I114: 0 | J114: 4202.934031 | L114: 341918.7122 | M114: 174698.425 | N114: 16976.14694 | O114: 61234.40268 | P114: 16022.08284 | Q114: 277955.8904 | S114: 1169361.996 | T114: 333450.3778 | U114: 59809.17258 | V114: 159532.7646 | W114: 46070.05722 | X114: 745902.9705 | Z114: =SUM(Landuse!C106:Q106) -> 8629.1 | AA114: 135.5 | AB114: 38.6 | AC114: 6.9 | AD114: 18.5 | AE114: 5.3 | AF114: 86.4 | AG114: 2514127.3 | AH114: 291.3539638
B115: 3028 | C115: 7 | D115: 390823.9813 | E115: 32012.97567 | F115: 28299.89754 | G115: 0 | H115: 290.9192096 | I115: 38.91499988 | J115: 1887.413941 | L115: 174785.9312 | M115: 89232.44456 | N115: 8652.516743 | O115: 32030.61367 | P115: 8360.250083 | Q115: 140292.3464 | S115: 597767.8847 | T115: 170319.7516 | U115: 30483.94131 | V115: 83448.7172 | W115: 24039.14669 | X115: 376478.7204 | Z115: =SUM(Landuse!C107:Q107) -> 10885.0 | AA115: 54.9 | AB115: 15.6 | AC115: 2.8 | AD115: 7.7 | AE115: 2.2 | AF115: 34.6 | AG115: 1282538.2 | AH115: 117.8263838
B116: 3028 | C116: 8 | D116: 73888.92781 | E116: 24996.72831 | F116: 14718.37936 | G116: 2983 | H116: 145.1637 | I116: 0 | J116: 13865.11937 | L116: 53734.78759 | M116: 26894.14519 | N116: 2323.902672 | O116: 13642.85618 | P116: 4808.629481 | Q116: 29192.99744 | S116: 183772.9736 | T116: 51333.3928 | U116: 8187.411219 | V116: 35543.46035 | W116: 13826.7813 | X116: 78340.28442 | Z116: =SUM(Landuse!C108:Q108) -> 1880.9 | AA116: 97.7 | AB116: 27.3 | AC116: 4.4 | AD116: 18.9 | AE116: 7.4 | AF116: 41.6 | AG116: 371004.3 | AH116: 197.2447659
B117: 3029 | C117: 0 | D117: 266425.3884 | E117: 3434805.727 | F117: 352597.036 | G117: 534798.1338 | H117: 26003.07849 | I117: 25547.19203 | J117: 212384.256 | L117: 2235387.255 | M117: 1258930.778 | N117: 71166.60966 | O117: 954375.6615 | P117: 111929.7309 | Q117: 220770.7765 | S117: 7645024.411 | T117: 2402946.355 | U117: 250729.2175 | V117: 2486415.823 | W117: 321843.8674 | X117: 592445.0018 | Z117: =SUM(Landuse!C109:Q109) -> 32860.5 | AA117: 232.7 | AB117: 73.1 | AC117: 7.6 | AD117: 75.7 | AE117: 9.8 | AF117: 18.0 | AG117: 13699404.7 | AH117: 416.8962436
B118: 3029 | C118: 1 | D118: 192297.2131 | E118: 951337.5564 | F118: 43391.77313 | G118: 184830.8541 | H118: 191612.9899 | I118: 49926.24015 | J118: 65578.25543 | L118: 699870.7204 | M118: 386634.4365 | N118: 25804.58725 | O118: 309664.5019 | P118: 155898.3985 | Q118: 101102.2376 | S118: 2393557.864 | T118: 737976.8816 | U118: 90912.91547 | V118: 806762.7336 | W118: 448271.814 | X118: 271310.8878 | Z118: =SUM(Landuse!C110:Q110) -> 15132.2 | AA118: 158.2 | AB118: 48.8 | AC118: 6.0 | AD118: 53.3 | AE118: 29.6 | AF118: 17.9 | AG118: 4748793.1 | AH118: 313.8213384
B119: 3029 | C119: 2 | D119: 11267.01802 | E119: 26407.20206 | F119: 5266.6884 | G119: 7958 | H119: 227.943 | I119: 0 | J119: 2865.006953 | L119: 23882.37239 | M119: 13193.78227 | N119: 823.7111542 | O119: 9377.298242 | P119: 1387.86632 | Q119: 5326.828057 | S119: 81677.71358 | T119: 25183.2361 | U119: 2902.041479 | V119: 24430.48756 | W119: 3990.684694 | X119: 14294.7029 | Z119: =SUM(Landuse!C111:Q111) -> 543.4 | AA119: 150.3 | AB119: 46.3 | AC119: 5.3 | AD119: 45.0 | AE119: 7.3 | AF119: 26.3 | AG119: 152478.9 | AH119: 280.5838345
B120: 3029 | C120: 5 | D120: 512460.4117 | E120: 160909.6721 | F120: 15082.90957 | G120: 974.2145942 | H120: 1991.502 | I120: 1894.2658 | J120: 18184.09447 | L120: 284489.4004 | M120: 147851.5418 | N120: 13009.20183 | O120: 64671.87066 | P120: 15825.39394 | Q120: 185649.6617 | S120: 972953.7494 | T120: 282207.1948 | U120: 45833.10926 | V120: 168488.3312 | W120: 45504.496 | X120: 498196.4365 | Z120: =SUM(Landuse!C112:Q112) -> 6446.1 | AA120: 150.9 | AB120: 43.8 | AC120: 7.1 | AD120: 26.1 | AE120: 7.1 | AF120: 77.3 | AG120: 2013183.3 | AH120: 312.3089243
B121: 3029 | C121: 7 | D121: 209747.7215 | E121: 37075.09677 | F121: 7786.812842 | G121: 0 | H121: 194.3514 | I121: 90.383 | J121: 2337.61946 | L121: 100561.904 | M121: 51939.55631 | N121: 4806.595751 | O121: 20084.36183 | P121: 4785.452952 | Q121: 75054.11418 | S121: 343921.7115 | T121: 99138.06991 | U121: 16934.26169 | V121: 52325.38619 | W121: 13760.13927 | X121: 201409.967 | Z121: =SUM(Landuse!C113:Q113) -> 5730.9 | AA121: 60.0 | AB121: 17.3 | AC121: 3.0 | AD121: 9.1 | AE121: 2.4 | AF121: 35.1 | AG121: 727489.5 | AH121: 126.9411529
B122: 3029 | C122: 8 | D122: 228969.9892 | E122: 475800.9994 | F122: 93826.09165 | G122: 41821.26396 | H122: 28725.61627 | I122: 4018.405948 | J122: 17681.40638 | L122: 385953.2018 | M122: 210847.6126 | N122: 13906.15569 | O122: 145594.9152 | P122: 33746.47226 | Q122: 100795.4153 | S122: 1319959.95 | T122: 402449.055 | U122: 48993.1943 | V122: 379315.5205 | W122: 97034.94379 | X122: 270487.5209 | Z122: =SUM(Landuse!C114:Q114) -> 8565.8 | AA122: 154.1 | AB122: 47.0 | AC122: 5.7 | AD122: 44.3 | AE122: 11.3 | AF122: 31.6 | AG122: 2518240.2 | AH122: 293.9865935
B123: 3030 | C123: 0 | D123: 537576.4032 | E123: 3415424.056 | F123: 812225.475 | G123: 472207.6509 | H123: 1.1997 | I123: 0.7546 | J123: 635182.211 | L123: 2686127.114 | M123: 1441612.428 | N123: 88317.70895 | O123: 1060706.787 | P123: 194684.1074 | Q123: 401169.605 | S123: 9186554.729 | T123: 2751634.474 | U123: 311154.7699 | V123: 2763438.177 | W123: 559796.6292 | X123: 1076550.67 | Z123: =SUM(Landuse!C115:Q115) -> 46404.8 | AA123: 198.0 | AB123: 59.3 | AC123: 6.7 | AD123: 59.6 | AE123: 12.1 | AF123: 23.2 | AG123: 16649129.4 | AH123: 358.7807111
B124: 3030 | C124: 1 | D124: 465576.4919 | E124: 158403.6733 | F124: 51590.50036 | G124: 17936.10714 | H124: 11039.76071 | I124: 0 | J124: 80308.20438 | L124: 317936.8317 | M124: 159779.5622 | N124: 13769.85704 | O124: 79736.65947 | P124: 34517.90195 | Q124: 179113.9254 | S124: 1087343.965 | T124: 304974.446 | U124: 48512.99643 | V124: 207736.3242 | W124: 99253.12044 | X124: 480657.5923 | Z124: =SUM(Landuse!C116:Q116) -> 13576.8 | AA124: 80.1 | AB124: 22.5 | AC124: 3.6 | AD124: 15.3 | AE124: 7.3 | AF124: 35.4 | AG124: 2228478.4 | AH124: 164.1388422
B125: 3030 | C125: 2 | D125: 24298.00346 | E125: 11663.4504 | F125: 2742.606529 | G125: 0 | H125: 31.62762392 | I125: 0 | J125: 27961.83024 | L125: 28558.76218 | M125: 12385.6066 | N125: 1142.414927 | O125: 6566.962097 | P125: 6269.325093 | Q125: 11774.44735 | S125: 97670.96666 | T125: 23640.65504 | U125: 4024.8763 | V125: 17108.77501 | W125: 18026.88007 | X125: 31597.0827 | Z125: =SUM(Landuse!C117:Q117) -> 1205.7 | AA125: 81.0 | AB125: 19.6 | AC125: 3.3 | AD125: 14.2 | AE125: 15.0 | AF125: 26.2 | AG125: 192069.2 | AH125: 159.3028976
B126: 3030 | C126: 5 | D126: 3379258.63 | E126: 440244.2579 | F126: 76880.20489 | G126: 4582.216696 | H126: 0 | I126: 0 | J126: 220645.835 | L126: 1607081.682 | M126: 809855.8397 | N126: 77305.26204 | O126: 298418.4099 | P126: 109368.6137 | Q126: 1219581.337 | S126: 5496219.353 | T126: 1545788.038 | U126: 272356.4878 | V126: 777463.5149 | W126: 314479.6057 | X126: 3272783.104 | Z126: =SUM(Landuse!C118:Q118) -> 38142.7 | AA126: 144.1 | AB126: 40.5 | AC126: 7.1 | AD126: 20.4 | AE126: 8.2 | AF126: 85.8 | AG126: 11679090.1 | AH126: 306.1947042
B127: 3030 | C127: 7 | D127: 1527199.427 | E127: 116288.1976 | F127: 27048.47462 | G127: 3664.8612 | H127: 11.997 | I127: 0 | J127: 64318.93676 | L127: 667999.6694 | M127: 336996.3565 | N127: 33109.97275 | O127: 113734.7374 | P127: 41340.13934 | Q127: 545351.019 | S127: 2284558.869 | T127: 643231.6856 | U127: 116650.7383 | V127: 296310.8367 | W127: 118869.8501 | X127: 1463465.82 | Z127: =SUM(Landuse!C119:Q119) -> 39595.5 | AA127: 57.7 | AB127: 16.2 | AC127: 2.9 | AD127: 7.5 | AE127: 3.0 | AF127: 37.0 | AG127: 4923087.8 | AH127: 124.3346176
B128: 3030 | C128: 8 | D128: 493988.1907 | E128: 498266.9216 | F128: 95413.67808 | G128: 42620.8174 | H128: 285.5286 | I128: 0 | J128: 114493.8773 | L128: 535163.1155 | M128: 279612.0333 | N128: 20632.17365 | O128: 166871.153 | P128: 39368.02584 | Q128: 203422.5124 | S128: 1830257.855 | T128: 533701.0802 | U128: 72689.82994 | V128: 434746.0774 | W128: 113199.2152 | X128: 545890.4148 | Z128: =SUM(Landuse!C120:Q120) -> 13664.0 | AA128: 133.9 | AB128: 39.1 | AC128: 5.3 | AD128: 31.8 | AE128: 8.3 | AF128: 40.0 | AG128: 3530484.5 | AH128: 258.3785941
B129: 3031 | C129: 0 | D129: 26662.48597 | E129: 273918.9066 | F129: 43133.80804 | G129: 29066.29376 | H129: 4318.483548 | I129: 321.8379806 | J129: 16039.20625 | L129: 180389.8986 | M129: 100460.8444 | N129: 5706.495723 | O129: 75755.4172 | P129: 10485.50215 | Q129: 20662.86408 | S129: 616933.4531 | T129: 191751.623 | U129: 20104.72628 | V129: 197364.0733 | W129: 30150.11774 | X129: 55449.41564 | Z129: =SUM(Landuse!C121:Q121) -> 2795.9 | AA129: 220.7 | AB129: 68.6 | AC129: 7.2 | AD129: 70.6 | AE129: 10.8 | AF129: 19.8 | AG129: 1111753.4 | AH129: 397.6378067
B130: 3031 | C130: 1 | D130: 79079.38508 | E130: 17707.0488 | F130: 21247.008 | G130: 2840.66 | H130: 11302.19417 | I130: 931.7632334 | J130: 16000.19539 | L130: 57846.16741 | M130: 28165.75447 | N130: 2571.317192 | O130: 15941.03054 | P130: 12780.20387 | Q130: 31803.78118 | S130: 197833.8925 | T130: 53760.53887 | U130: 9059.084738 | V130: 41530.84806 | W130: 36748.32602 | X130: 85346.40092 | Z130: =SUM(Landuse!C122:Q122) -> 2417.9 | AA130: 81.8 | AB130: 22.2 | AC130: 3.7 | AD130: 17.2 | AE130: 15.2 | AF130: 35.3 | AG130: 424279.1 | AH130: 175.4706768
B131: 3031 | C131: 2 | D131: 5626.113548 | E131: 6660.875178 | F131: 17513.96706 | G131: 0 | H131: 3501.82944 | I131: 206.894 | J131: 5056.00217 | L131: 16046.15303 | M131: 7625.71853 | N131: 627.119155 | O131: 5978.452568 | P131: 3918.767307 | Q131: 4369.470814 | S131: 54877.84335 | T131: 14555.36147 | U131: 2209.422308 | V131: 15575.54291 | W131: 11268.0627 | X131: 11725.60601 | Z131: =SUM(Landuse!C123:Q123) -> 447.9 | AA131: 122.5 | AB131: 32.5 | AC131: 4.9 | AD131: 34.8 | AE131: 25.2 | AF131: 26.2 | AG131: 110211.8 | AH131: 246.0569551
B132: 3031 | C132: 5 | D132: 289571.0544 | E132: 25916.53379 | F132: 6291.970604 | G132: 0 | H132: 964.3510084 | I132: 223.1139181 | J132: 8323.35029 | L132: 127202.2786 | M132: 64554.10728 | N132: 6302.124997 | O132: 22265.73567 | P132: 7751.552281 | Q132: 103214.5751 | S132: 435031.7928 | T132: 123215.7156 | U132: 22203.20564 | V132: 58008.47582 | W132: 22288.89094 | X132: 276979.4088 | Z132: =SUM(Landuse!C124:Q124) -> 3249.0 | AA132: 133.9 | AB132: 37.9 | AC132: 6.8 | AD132: 17.9 | AE132: 6.9 | AF132: 85.2 | AG132: 937727.5 | AH132: 288.6178909
B133: 3031 | C133: 7 | D133: 185131.3001 | E133: 9393.92 | F133: 3965.713534 | G133: 0 | H133: 0 | I133: 0 | J133: 5580.211895 | L133: 77853.08723 | M133: 39269.44403 | N133: 3920.539149 | O133: 12632.20905 | P133: 4530.582571 | Q133: 65865.28352 | S133: 266257.5583 | T133: 74954.37321 | U133: 13812.56909 | V133: 32910.44159 | W133: 13027.28243 | X133: 176751.4643 | Z133: =SUM(Landuse!C125:Q125) -> 5008.5 | AA133: 53.2 | AB133: 15.0 | AC133: 2.8 | AD133: 6.6 | AE133: 2.6 | AF133: 35.3 | AG133: 577713.7 | AH133: 115.3470427
B134: 3031 | C134: 8 | D134: 25387.70889 | E134: 36039.49968 | F134: 5250.679123 | G134: 307.70254 | H134: 0 | I134: 0 | J134: 3067.113607 | L134: 30557.24511 | M134: 16384.18843 | N134: 1139.460515 | O134: 10059.37408 | P134: 1529.422044 | Q134: 10383.01365 | S134: 104505.7783 | T134: 31272.82814 | U134: 4014.467523 | V134: 26207.48611 | W134: 4397.715441 | X134: 27863.12861 | Z134: =SUM(Landuse!C126:Q126) -> 701.2 | AA134: 149.0 | AB134: 44.6 | AC134: 5.7 | AD134: 37.4 | AE134: 6.3 | AF134: 39.7 | AG134: 198261.4 | AH134: 282.7648729
B135: 3032 | C135: 0 | D135: 84218.965 | E135: 459069.8338 | F135: 55463.53126 | G135: 73028.33218 | H135: 813.8765484 | I135: 0 | J135: 32053.09945 | L135: 321036.8547 | M135: 179365.2895 | N135: 10362.25834 | O135: 131468.3257 | P135: 14923.49893 | Q135: 47491.41105 | S135: 1097946.043 | T135: 342358.1153 | U135: 36507.58322 | V135: 342511.7997 | W135: 42911.17806 | X135: 127444.6263 | Z135: =SUM(Landuse!C127:Q127) -> 5189.5 | AA135: 211.6 | AB135: 66.0 | AC135: 7.0 | AD135: 66.0 | AE135: 8.3 | AF135: 24.6 | AG135: 1989679.3 | AH135: 383.4020464
B136: 3032 | C136: 1 | D136: 238433.3397 | E136: 9743.99927 | F136: 5005.182312 | G136: 166.5413927 | H136: 0 | I136: 737.0008341 | J136: 25884.8373 | L136: 108009.9704 | M136: 52783.74685 | N136: 5395.127865 | O136: 17481.39545 | P136: 9610.97264 | Q136: 86689.6876 | S136: 369394.0988 | T136: 100749.3933 | U136: 19007.73684 | V136: 45543.92994 | W136: 27635.48684 | X136: 232634.3774 | Z136: =SUM(Landuse!C128:Q128) -> 7022.6 | AA136: 52.6 | AB136: 14.3 | AC136: 2.7 | AD136: 6.5 | AE136: 3.9 | AF136: 33.1 | AG136: 794965.0 | AH136: 113.2016761
B137: 3032 | C137: 2 | D137: 1892.745195 | E137: 0 | F137: 0 | G137: 0 | H137: 0 | I137: 0 | J137: 0 | L137: 705.8507868 | M137: 358.0660979 | N137: 37.09410046 | O137: 96.98199184 | P137: 32.9012118 | Q137: 661.8510062 | S137: 2414.009691 | T137: 683.4479224 | U137: 130.6873381 | V137: 252.6652437 | W137: 94.60447341 | X137: 1776.097031 | Z137: =SUM(Landuse!C129:Q129) -> 58.5 | AA137: 41.3 | AB137: 11.7 | AC137: 2.2 | AD137: 4.3 | AE137: 1.6 | AF137: 30.4 | AG137: 5351.5 | AH137: 91.52232121
B138: 3032 | C138: 5 | D138: 1908989.289 | E138: 121738.6491 | F138: 9584.584809 | G138: 2764.651788 | H138: 23.994 | I138: 157.5632 | J138: 43753.21038 | L138: 795401.4494 | M138: 403745.5075 | N138: 40012.65809 | O138: 129254.0496 | P138: 43445.76647 | Q138: 675152.5112 | S138: 2720272.957 | T138: 770637.1251 | U138: 140969.7961 | V138: 336742.9904 | W138: 124924.3914 | X138: 1811792.018 | Z138: =SUM(Landuse!C130:Q130) -> 20436.4 | AA138: 133.1 | AB138: 37.7 | AC138: 6.9 | AD138: 16.5 | AE138: 6.1 | AF138: 88.7 | AG138: 5905339.3 | AH138: 288.9616388
B139: 3032 | C139: 7 | D139: 390035.7147 | E139: 33359.49438 | F139: 5098.110721 | G139: 959.478341 | H139: 0 | I139: 0 | J139: 20915.99143 | L139: 173570.741 | M139: 87320.92436 | N139: 8546.138596 | O139: 29865.67222 | P139: 11453.09762 | Q139: 139612.2158 | S139: 593611.9341 | T139: 166671.1948 | U139: 30109.15727 | V139: 77808.43852 | W139: 32932.35143 | X139: 374653.5694 | Z139: =SUM(Landuse!C131:Q131) -> 10574.1 | AA139: =IF(Z139<>0,S139/Z139,"") -> 56.1 | AB139: =IF(Z139<>0,T139/Z139,"") -> 15.8 | AC139: =IF(Z139<>0,U139/Z139,"") -> 2.8 | AD139: =IF(Z139<>0,V139/Z139,"") -> 7.4 | AE139: =IF(Z139<>0,W139/Z139,"") -> 3.1 | AF139: =IF(Z139<>0,X139/Z139,"") -> 35.4 | AG139: =SUM(S139:X139) -> 1275786.6 | AH139: =IF(Z139<>0,AG139/Z139,"") -> 120.6515223
B140: 3032 | C140: 8 | D140: 126819.6012 | E140: 112229.2465 | F140: 18711.24281 | G140: 8782.708784 | H140: 1659.088422 | I140: 404.0500121 | J140: 5446.770304 | L140: 115885.5716 | M140: 62335.09767 | N140: 4597.960725 | O140: 36253.88566 | P140: 6009.468735 | Q140: 48970.72366 | S140: 396328.6548 | T140: 118980.2476 | U140: 16199.21337 | V140: 94451.52323 | W140: 17279.68649 | X140: 131414.4061 | Z140: =SUM(Landuse!C132:Q132) -> 3556.9 | AA140: 111.4 | AB140: 33.5 | AC140: 4.6 | AD140: 26.6 | AE140: 4.9 | AF140: 36.9 | AG140: 774653.7 | AH140: 217.7884173
B141: 3033 | C141: 0 | D141: 203054.5659 | E141: 727670.012 | F141: 76186.81138 | G141: 95809.27363 | H141: 4098.689846 | I141: 0 | J141: 212593.6997 | L141: 594770.8893 | M141: 312426.0766 | N141: 19965.93669 | O141: 219020.3946 | P141: 58893.98856 | Q141: 114335.7667 | S141: 2034116.441 | T141: 596333.9008 | U141: 70342.59054 | V141: 570609.4537 | W141: 169344.3636 | X141: 306823.46 | Z141: =SUM(Landuse!C133:Q133) -> 11434.6 | AA141: 177.9 | AB141: 52.2 | AC141: 6.2 | AD141: 49.9 | AE141: 14.8 | AF141: 26.8 | AG141: 3747570.2 | AH141: 327.7400331
B142: 3033 | C142: 1 | D142: 569920.8005 | E142: 87928.99879 | F142: 20025.72135 | G142: 5077.004175 | H142: 12714.30647 | I142: 1157.672922 | J142: 86464.93677 | L142: 307007.3969 | M142: 150814.0603 | N142: 14326.03485 | O142: 62327.66204 | P142: 37134.89387 | Q142: 211679.393 | S142: 1049965.297 | T142: 287861.8132 | U142: 50472.48316 | V142: 162381.0114 | W142: 106778.0452 | X142: 568048.0015 | Z142: =SUM(Landuse!C134:Q134) -> 15824.5 | AA142: 66.4 | AB142: 18.2 | AC142: 3.2 | AD142: 10.3 | AE142: 6.7 | AF142: 35.9 | AG142: 2225506.7 | AH142: 140.6363848
B143: 3033 | C143: 2 | D143: 41352.08579 | E143: 17667.78549 | F143: 6242.304145 | G143: 0 | H143: 1023.3441 | I143: 0 | J143: 30020.70701 | L143: 40423.94358 | M143: 18357.31557 | N143: 1656.67069 | O143: 9686.500231 | P143: 7775.524032 | Q143: 18406.27243 | S143: 138249.887 | T143: 35038.97537 | U143: 5836.666206 | V143: 25236.04532 | W143: 22357.81956 | X143: 49393.78424 | Z143: =SUM(Landuse!C135:Q135) -> 1653.2 | AA143: 83.6 | AB143: 21.2 | AC143: 3.5 | AD143: 15.3 | AE143: 13.5 | AF143: 29.9 | AG143: 276113.2 | AH143: 167.0197731
B144: 3033 | C144: 5 | D144: 3373553.861 | E144: 299370.3723 | F144: 30958.76726 | G144: 4797.810604 | H144: 0 | I144: 29.92769342 | J144: 198872.9692 | L144: 1507146.065 | M144: 756945.5474 | N144: 74076.41556 | O144: 258792.781 | P144: 102432.4844 | Q144: 1208190.415 | S144: 5154439.542 | T144: 1444797.105 | U144: 260980.8419 | V144: 674227.6565 | W144: 294535.3899 | X144: 3242215.224 | Z144: =SUM(Landuse!C136:Q136) -> 36488.7 | AA144: 141.3 | AB144: 39.6 | AC144: 7.2 | AD144: 18.5 | AE144: 8.1 | AF144: 88.9 | AG144: 11071195.8 | AH144: 303.414735
B145: 3033 | C145: 7 | D145: 1770334.829 | E145: 238194.7539 | F145: 45560.21091 | G145: 4389.091179 | H145: 1629.526442 | I145: 298.9811549 | J145: 82682.78576 | L145: 834176.4838 | M145: 423504.6136 | N145: 40216.00365 | O145: 156894.1345 | P145: 51947.86331 | Q145: 636351.0797 | S145: 2852883.575 | T145: 808351.7261 | U145: 141686.2089 | V145: 408753.1507 | W145: 149371.4056 | X145: 1707667.213 | Z145: =SUM(Landuse!C137:Q137) -> 45888.7 | AA145: 62.2 | AB145: 17.6 | AC145: 3.1 | AD145: 8.9 | AE145: 3.3 | AF145: 37.2 | AG145: 6068713.3 | AH145: 132.2486193
B146: 3033 | C146: 8 | D146: 514070.295 | E146: 481101.2105 | F146: 71636.55017 | G146: 41072.65306 | H146: 8529.971638 | I146: 1560.873709 | J146: 162553.5594 | L146: 546540.5349 | M146: 280523.4208 | N146: 21271.86184 | O146: 165444.9462 | P146: 54129.95488 | Q146: 212614.3948 | S146: 1869168.629 | T146: 535440.6638 | U146: 74943.53462 | V146: 431030.4093 | W146: 155645.8136 | X146: 570557.1069 | Z146: =SUM(Landuse!C138:Q138) -> 14567.2 | AA146: 128.3 | AB146: 36.8 | AC146: 5.1 | AD146: 29.6 | AE146: 10.7 | AF146: 39.2 | AG146: 3636786.2 | AH146: 249.6563401
B147: 3034 | C147: 0 | D147: 92370.68382 | E147: 712046.744 | F147: 208778.4708 | G147: 132857.0108 | H147: 0 | I147: 0 | J147: 146611.3587 | L147: 591603.2423 | M147: 317147.8438 | N147: 19414.41631 | O147: 237559.7841 | P147: 44459.38032 | Q147: 82479.60131 | S147: 2023283.089 | T147: 605346.4323 | U147: 68399.51255 | V147: 618909.7542 | W147: 127838.9468 | X147: 221336.4845 | Z147: =SUM(Landuse!C139:Q139) -> 10154.2 | AA147: 199.3 | AB147: 59.6 | AC147: 6.7 | AD147: 61.0 | AE147: 12.6 | AF147: 21.8 | AG147: 3665114.2 | AH147: 360.9463149
B148: 3034 | C148: 1 | D148: 45224.10038 | E148: 25461.23797 | F148: 5483.668472 | G148: 5343.510552 | H148: 3508.742472 | I148: 0 | J148: 7734.776741 | L148: 37684.61797 | M148: 19477.54982 | N148: 1527.300828 | O148: 11316.93301 | P148: 5086.280299 | Q148: 17663.35466 | S148: 128881.3935 | T148: 37177.18889 | U148: 5380.879366 | V148: 29483.77923 | W148: 14625.14124 | X148: 47400.14212 | Z148: =SUM(Landuse!C140:Q140) -> 1645.0 | AA148: 78.3 | AB148: 22.6 | AC148: 3.3 | AD148: 17.9 | AE148: 8.9 | AF148: 28.8 | AG148: 262948.5 | AH148: 159.8505916
B149: 3034 | C149: 2 | D149: 4490.736887 | E149: 8701.382491 | F149: 0 | G149: 0 | H149: 0 | I149: 0 | J149: 11212.28094 | L149: 10909.84624 | M149: 4837.282834 | N149: 389.6987287 | O149: 2993.883575 | P149: 2424.821032 | Q149: 2848.867909 | S149: 37311.67413 | T149: 9233.018491 | U149: 1372.959282 | V149: 7799.905 | W149: 6972.354645 | X149: 7645.022501 | Z149: =SUM(Landuse!C141:Q141) -> 327.5 | AA149: 113.9 | AB149: 28.2 | AC149: 4.2 | AD149: 23.8 | AE149: 21.3 | AF149: 23.3 | AG149: 70334.9 | AH149: 214.7917335
B150: 3034 | C150: 5 | D150: 126432.4332 | E150: 24715.98911 | F150: 1716.333584 | G150: 0 | H150: 0 | I150: 0 | J150: 14806.01818 | L150: 66430.03823 | M150: 33196.14375 | N150: 3088.106261 | O150: 13177.34346 | P150: 5462.152985 | Q150: 46316.9894 | S150: 227190.7307 | T150: 63362.14349 | U150: 10879.79981 | V150: 34330.66937 | W150: 15705.92932 | X150: 124293.0306 | Z150: =SUM(Landuse!C142:Q142) -> 1617.3 | AA150: 140.5 | AB150: 39.2 | AC150: 6.7 | AD150: 21.2 | AE150: 9.7 | AF150: 76.9 | AG150: 475762.3 | AH150: 294.1635414
B151: 3034 | C151: 7 | D151: 103271.9331 | E151: 3424.82 | F151: 5205.762623 | G151: 0 | H151: 0 | I151: 0 | J151: 8896.085231 | L151: 46548.53232 | M151: 22886.77492 | N151: 2311.958705 | O151: 7713.814784 | P151: 3752.411901 | Q151: 37585.10833 | S151: 159195.9805 | T151: 43684.44503 | U151: 8145.331073 | V151: 20096.64738 | W151: 10789.72271 | X151: 100860.7658 | Z151: =SUM(Landuse!C143:Q143) -> 3017.6 | AA151: 52.8 | AB151: 14.5 | AC151: 2.7 | AD151: 6.7 | AE151: 3.6 | AF151: 33.4 | AG151: 342772.9 | AH151: 113.5918314
B152: 3034 | C152: 8 | D152: 50239.70459 | E152: 67317.06597 | F152: 16362.79464 | G152: 1321.94 | H152: 0 | I152: 0 | J152: 6630.893363 | L152: 61834.41615 | M152: 32913.18684 | N152: 2328.613372 | O152: 20402.76209 | P152: 3257.08704 | Q152: 21136.33308 | S152: 211473.7032 | T152: 62822.05799 | U152: 8204.007629 | V152: 53154.90801 | W152: 9365.460647 | X152: 56719.9839 | Z152: =SUM(Landuse!C144:Q144) -> 1534.2 | AA152: 137.8 | AB152: 40.9 | AC152: 5.3 | AD152: 34.6 | AE152: 6.1 | AF152: 37.0 | AG152: 401740.1 | AH152: 261.8590944
B153: 3035 | C153: 0 | D153: 160071.6682 | E153: 4713423.136 | F153: 488826.6409 | G153: 774167.744 | H153: 798.7579998 | I153: 121843.1501 | J153: 259136.7186 | L153: 3033408.039 | M153: 1715251.676 | N153: 102213.3426 | O153: 1309164.334 | P153: 123534.2929 | Q153: 234696.1308 | S153: 10374255.49 | T153: 3273935.18 | U153: 360110.8937 | V153: 3410739.656 | W153: 355211.7412 | X153: 629814.1078 | Z153: =SUM(Landuse!C145:Q145) -> 42196.9 | AA153: 245.9 | AB153: 77.6 | AC153: 8.5 | AD153: 80.8 | AE153: 8.4 | AF153: 14.9 | AG153: 18404067.1 | AH153: 436.1477824
B154: 3035 | C154: 1 | D154: 194989.6342 | E154: 1400290.747 | F154: 163674.3144 | G154: 177301.1165 | H154: 320867.3726 | I154: 172284.2915 | J154: 286676.7367 | L154: 1141260.179 | M154: 598879.797 | N154: 49719.99448 | O154: 477441.859 | P154: 296022.7076 | Q154: 152759.6755 | S154: 3903109.813 | T154: 1143093.846 | U154: 175170.0041 | V154: 1243869.726 | W154: 851186.6535 | X154: 409935.1719 | Z154: =SUM(Landuse!C146:Q146) -> 26693.5 | AA154: 146.2 | AB154: 42.8 | AC154: 6.6 | AD154: 46.6 | AE154: 31.9 | AF154: 15.4 | AG154: 7726365.2 | AH154: 289.4471607
B155: 3035 | C155: 2 | D155: 3675.46108 | E155: 23156.9058 | F155: 3020.22 | G155: 4930.5 | H155: 705.4236 | I155: 0 | J155: 13801.4726 | L155: 22216.75956 | M155: 11095.05019 | N155: 730.1071147 | O155: 8142.808296 | P155: 3660.803619 | Q155: 3444.454303 | S155: 75981.31768 | T155: 21177.3442 | U155: 2572.262279 | V155: 21214.2956 | W155: 10526.31134 | X155: 9243.296456 | Z155: =SUM(Landuse!C147:Q147) -> 502.9 | AA155: 151.1 | AB155: 42.1 | AC155: 5.1 | AD155: 42.2 | AE155: 20.9 | AF155: 18.4 | AG155: 140714.8 | AH155: 279.8034362
B156: 3035 | C156: 5 | D156: 23916.6882 | E156: 12623.3704 | F156: 2272.5824 | G156: 511.89 | H156: 239.94 | I156: 0 | J156: 4241.175298 | L156: 18139.58935 | M156: 9248.540346 | N156: 758.3115769 | O156: 4795.91685 | P156: 1609.583024 | Q156: 9253.705151 | S156: 62037.39558 | T156: 17652.87393 | U156: 2671.630266 | V156: 12494.70625 | W156: 4628.211122 | X156: 24832.59538 | Z156: =SUM(Landuse!C148:Q148) -> 432.6 | AA156: 143.4 | AB156: 40.8 | AC156: 6.2 | AD156: 28.9 | AE156: 10.7 | AF156: 57.4 | AG156: 124317.4 | AH156: 287.3880299
B157: 3035 | C157: 7 | D157: 204923.2893 | E157: 22198.16821 | F157: 2854.839613 | G157: 0 | H157: 1.1997 | I157: 0 | J157: 3417.269043 | L157: 89851.52758 | M157: 45981.61834 | N157: 4427.072542 | O157: 15907.4394 | P157: 4530.522532 | Q157: 72696.58549 | S157: 307292.2243 | T157: 87766.03457 | U157: 15597.15209 | V157: 41443.33373 | W157: 13027.10979 | X157: 195083.4681 | Z157: =SUM(Landuse!C149:Q149) -> 5453.7 | AA157: 56.3 | AB157: 16.1 | AC157: 2.9 | AD157: 7.6 | AE157: 2.4 | AF157: 35.8 | AG157: 660209.3 | AH157: 121.0568127
B158: 3035 | C158: 8 | D158: 68642.33767 | E158: 514850.5455 | F158: 36333.14889 | G158: 89635.64223 | H158: 10760.1093 | I158: 9202.412344 | J158: 28407.00541 | L158: 344133.5687 | M158: 194150.8183 | N158: 11514.35241 | O158: 145498.2296 | P158: 20942.35695 | Q158: 41591.87542 | S158: 1176936.805 | T158: 370579.5499 | U158: 40566.5604 | V158: 379063.6276 | W158: 60217.8626 | X158: 111613.0455 | Z158: =SUM(Landuse!C150:Q150) -> 6029.3 | AA158: 195.2 | AB158: 61.5 | AC158: 6.7 | AD158: 62.9 | AE158: 10.0 | AF158: 18.5 | AG158: 2138977.5 | AH158: 354.7632514
B159: 3036 | C159: 0 | D159: 135926.8394 | E159: 201988.7867 | F159: 81035.58916 | G159: 16729.84799 | H159: 0 | I159: 280.8496344 | J159: 114468.1016 | L159: 242983.0263 | M159: 120068.7376 | N159: 9017.125722 | O159: 77782.0731 | P159: 29557.20808 | Q159: 71021.84363 | S159: 831001.9499 | T159: 229177.6009 | U159: 31768.50615 | V159: 202644.0794 | W159: 84989.09169 | X159: 190589.248 | Z159: =SUM(Landuse!C151:Q151) -> 5597.6 | AA159: 148.5 | AB159: 40.9 | AC159: 5.7 | AD159: 36.2 | AE159: 15.2 | AF159: 34.0 | AG159: 1570170.5 | AH159: 280.5066316
B160: 3036 | C160: 1 | D160: 321030.2295 | E160: 78969.43389 | F160: 55543.04273 | G160: 12080.59 | H160: 13626.56527 | I160: 5344.634859 | J160: 9572.289103 | L160: 196282.3674 | M160: 101074.5179 | N160: 9223.915441 | O160: 49985.03233 | P160: 18851.86733 | Q160: 120749.085 | S160: 671285.6965 | T160: 192922.9538 | U160: 32497.05321 | V160: 130225.005 | W160: 54206.84783 | X160: 324033.792 | Z160: =SUM(Landuse!C152:Q152) -> 9398.0 | AA160: 71.4 | AB160: 20.5 | AC160: 3.5 | AD160: 13.9 | AE160: 5.8 | AF160: 34.5 | AG160: 1405171.3 | AH160: 149.5183215
B161: 3036 | C161: 2 | D161: 6434.883994 | E161: 223.839 | F161: 2393.1648 | G161: 0 | H161: 0 | I161: 1120.5646 | J161: 2018.403064 | L161: 5052.745875 | M161: 2349.070707 | N161: 316.2613597 | O161: 1088.891263 | P161: 611.5302415 | Q161: 2772.356012 | S161: 17280.39089 | T161: 4483.71824 | U161: 1114.229884 | V161: 2836.866629 | W161: 1758.400172 | X161: 7439.70053 | Z161: =SUM(Landuse!C153:Q153) -> 247.5 | AA161: 69.8 | AB161: 18.1 | AC161: 4.5 | AD161: 11.5 | AE161: 7.1 | AF161: 30.1 | AG161: 34913.3 | AH161: 141.0839561
B162: 3036 | C162: 5 | D162: 3176714.346 | E162: 261098.5388 | F162: 115011.0969 | G162: 4746 | H162: 520.2561074 | I162: 148.9296 | J162: 44128.79309 | L162: 1383601.373 | M162: 705636.293 | N162: 68732.12821 | O162: 242915.284 | P162: 69792.64398 | Q162: 1131690.238 | S162: 4731916.697 | T162: 1346862.105 | U162: 242152.2228 | V162: 632862.3312 | W162: 200682.4664 | X162: 3036924.705 | Z162: =SUM(Landuse!C154:Q154) -> 33992.1 | AA162: 139.2 | AB162: 39.6 | AC162: 7.1 | AD162: 18.6 | AE162: 5.9 | AF162: 89.3 | AG162: 10191400.5 | AH162: 299.816502
B163: 3036 | C163: 7 | D163: 1141927.406 | E163: 92719.26037 | F163: 102776.4122 | G163: 7.093615172 | H163: 121.7744436 | I163: 1007.044549 | J163: 15769.99703 | L163: 524443.8111 | M163: 266549.0114 | N163: 25896.15375 | O163: 97909.40005 | P163: 26530.99188 | Q163: 412999.62 | S163: 1793597.834 | T163: 508767.4291 | U163: 91235.51616 | V163: 255081.4018 | W163: 76287.47937 | X163: 1108296.87 | Z163: =SUM(Landuse!C155:Q155) -> 30597.9 | AA163: 58.6 | AB163: 16.6 | AC163: 3.0 | AD163: 8.3 | AE163: 2.5 | AF163: 36.2 | AG163: 3833266.5 | AH163: 125.2787252
B164: 3036 | C164: 8 | D164: 410545.7302 | E164: 225286.3755 | F164: 85791.7797 | G164: 40262.94722 | H164: 5670.404421 | I164: 1520.988045 | J164: 34831.40895 | L164: 333771.4501 | M164: 175213.8624 | N164: 13918.41031 | O164: 98058.38999 | P164: 22594.07191 | Q164: 160353.4493 | S164: 1141498.359 | T164: 334434.2035 | U164: 49036.36892 | V164: 255469.5623 | W164: 64967.22032 | X164: 430313.2918 | Z164: =SUM(Landuse!C156:Q156) -> 10068.5 | AA164: 113.4 | AB164: 33.2 | AC164: 4.9 | AD164: 25.4 | AE164: 6.5 | AF164: 42.7 | AG164: 2275719.0 | AH164: 226.0243405
B165: 3037 | C165: 0 | D165: 34233.60863 | E165: 215946.1728 | F165: 60491.8088 | G165: 31483.24928 | H165: 0 | I165: 142.1402086 | J165: 4472.569291 | L165: 158646.8026 | M165: 88609.07926 | N165: 5208.801406 | O165: 66116.97915 | P165: 5348.252775 | Q165: 22839.63377 | S165: 542572.065 | T165: 169129.9218 | U165: 18351.2845 | V165: 172253.2434 | W165: 15378.41951 | X165: 61290.84241 | Z165: =SUM(Landuse!C157:Q157) -> 2623.5 | AA165: 206.8 | AB165: 64.5 | AC165: 7.0 | AD165: 65.7 | AE165: 5.9 | AF165: 23.4 | AG165: 978975.8 | AH165: 373.1601713
B166: 3037 | C166: 1 | D166: 39765.63209 | E166: 8166.194192 | F166: 1234.687958 | G166: 177.2246513 | H166: 3205.2757 | I166: 3.160572143 | J166: 1589.101026 | L166: 20461.45256 | M166: 10424.92344 | N166: 941.8600895 | O166: 4744.166683 | P166: 3227.663632 | Q166: 14341.20979 | S166: 69978.16774 | T166: 19898.25987 | U166: 3318.295537 | V166: 12359.88258 | W166: 9280.856284 | X166: 38485.0667 | Z166: =SUM(Landuse!C158:Q158) -> 1265.8 | AA166: 55.3 | AB166: 15.7 | AC166: 2.6 | AD166: 9.8 | AE166: 7.3 | AF166: 30.4 | AG166: 153320.5 | AH166: 121.1231208
B167: 3037 | C167: 2 | D167: 8.193707071 | E167: 0 | F167: 0 | G167: 0 | H167: 0 | I167: 0 | J167: 241.9608688 | L167: 112.836313 | M167: 35.99062574 | N167: 4.112323852 | O167: 21.20994028 | P167: 49.03412816 | Q167: 26.97124484 | S167: 385.9001905 | T167: 68.69602717 | U167: 14.48825153 | V167: 55.2578332 | W167: 140.9932225 | X167: 72.37814467 | Z167: =SUM(Landuse!C159:Q159) -> 4.2 | AA167: 91.1 | AB167: 16.2 | AC167: 3.4 | AD167: 13.0 | AE167: 33.3 | AF167: 17.1 | AG167: 737.7 | AH167: 174.1524835
B168: 3037 | C168: 5 | D168: 279899.1238 | E168: 33046.1259 | F168: 5634.64 | G168: 0 | H168: 0 | I168: 0 | J168: 1015.716795 | L168: 123157.3106 | M168: 63415.33885 | N168: 6056.348364 | O168: 22293.96516 | P168: 5517.138311 | Q168: 99155.50525 | S168: 421198.0022 | T168: 121042.1256 | U168: 21337.30261 | V168: 58082.02154 | W168: 15864.03467 | X168: 266086.773 | Z168: =SUM(Landuse!C160:Q160) -> 3010.3 | AA168: 139.9 | AB168: 40.2 | AC168: 7.1 | AD168: 19.3 | AE168: 5.3 | AF168: 88.4 | AG168: 903610.3 | AH168: 300.170321
B169: 3037 | C169: 7 | D169: 63489.69708 | E169: 13574.4482 | F169: 3293.6284 | G169: 934.1145 | H169: 0 | I169: 0 | J169: 1638.523386 | L169: 32784.49958 | M169: 16960.12352 | N169: 1528.417761 | O169: 7048.07493 | P169: 1652.436093 | Q169: 22956.85968 | S169: 112122.9886 | T169: 32372.12697 | U169: 5384.814465 | V169: 18362.20865 | W169: 4751.431265 | X169: 61605.42166 | Z169: =SUM(Landuse!C161:Q161) -> 1645.5 | AA169: 68.1 | AB169: 19.7 | AC169: 3.3 | AD169: 11.2 | AE169: 2.9 | AF169: 37.4 | AG169: 234599.0 | AH169: 142.5673159
B170: 3037 | C170: 8 | D170: 46924.61787 | E170: 64773.56449 | F170: 10497.074 | G170: 16371.96 | H170: 159.5601 | I170: 0 | J170: 1442.743776 | L170: 60757.86354 | M170: 33788.52479 | N170: 2223.376438 | O170: 22167.06775 | P170: 2254.306766 | Q170: 18978.38095 | S170: 207791.8933 | T170: 64492.83304 | U170: 7833.244232 | V170: 57751.41826 | W170: 6482.056218 | X170: 50929.05463 | Z170: =SUM(Landuse!C162:Q162) -> 1460.0 | AA170: 142.3 | AB170: 44.2 | AC170: 5.4 | AD170: 39.6 | AE170: 4.4 | AF170: 34.9 | AG170: 395280.5 | AH170: 270.732533
B171: 3038 | C171: 0 | D171: 175406.9133 | E171: 1739022.881 | F171: 363690.214 | G171: 301401.1772 | H171: 1.1997 | I171: 242.5472061 | J171: 104181.1684 | L171: 1234822.994 | M171: 690434.1437 | N171: 39323.80456 | O171: 523115.2893 | P171: 52574.50619 | Q171: 143675.3625 | S171: 4223094.641 | T171: 1317845.459 | U171: 138542.8756 | V171: 1362861.801 | W171: 151173.2608 | X171: 385557.1454 | Z171: =SUM(Landuse!C163:Q163) -> 18806.2 | AA171: 224.6 | AB171: 70.1 | AC171: 7.4 | AD171: 72.5 | AE171: 8.0 | AF171: 20.5 | AG171: 7579075.2 | AH171: 403.0093022
B172: 3038 | C172: 1 | D172: 89849.77703 | E172: 6357.309 | F172: 3270.339157 | G172: 0 | H172: 0 | I172: 0 | J172: 4192.773913 | L172: 39927.04073 | M172: 20059.49715 | N172: 1976.337028 | O172: 6875.782744 | P172: 2548.58716 | Q172: 32282.95428 | S172: 136550.4793 | T172: 38287.96341 | U172: 6962.892275 | V172: 17913.33927 | W172: 7328.233006 | X172: 86632.27631 | Z172: =SUM(Landuse!C164:Q164) -> 2248.8 | AA172: 60.7 | AB172: 17.0 | AC172: 3.1 | AD172: 8.0 | AE172: 3.3 | AF172: 38.5 | AG172: 293675.2 | AH172: 130.5936172
B173: 3038 | C173: 2 | D173: 5000.874491 | E173: 0 | F173: 0 | G173: 1384 | H173: 0 | I173: 0 | J173: 4231.945488 | L173: 4371.218224 | M173: 1936.662602 | N173: 184.3551449 | O173: 982.6950963 | P173: 957.3162389 | Q173: 2184.572673 | S173: 14949.56633 | T173: 3696.546641 | U173: 649.5071416 | V173: 2560.195881 | W173: 2752.676686 | X173: 5862.366306 | Z173: =SUM(Landuse!C165:Q165) -> 194.7 | AA173: 76.8 | AB173: 19.0 | AC173: 3.3 | AD173: 13.2 | AE173: 14.1 | AF173: 30.1 | AG173: 30470.9 | AH173: 156.5176715
B174: 3038 | C174: 5 | D174: 396594.5404 | E174: 114460.58 | F174: 11322.17466 | G174: 3394.955269 | H174: 0 | I174: 0 | J174: 15945.48694 | L174: 216284.3265 | M174: 112195.7593 | N174: 9843.79904 | O174: 48328.58375 | P174: 11498.72824 | Q174: 143566.5404 | S174: 739692.3965 | T174: 214150.2898 | U174: 34680.98371 | V174: 125909.4927 | W174: 33063.55818 | X174: 385265.1183 | Z174: =SUM(Landuse!C166:Q166) -> 4735.2 | AA174: 156.2 | AB174: 45.2 | AC174: 7.3 | AD174: 26.6 | AE174: 7.0 | AF174: 81.4 | AG174: 1532761.8 | AH174: 323.6937074
B175: 3038 | C175: 7 | D175: 269964.8646 | E175: 9666.879873 | F175: 11883.4236 | G175: 0 | H175: 0 | I175: 0 | J175: 9339.28342 | L175: 114925.3708 | M175: 57665.61123 | N175: 5794.34316 | O175: 18802.25735 | P175: 6961.621011 | Q175: 96705.2479 | S175: 393044.7683 | T175: 110067.5055 | U175: 20414.22422 | V175: 48985.14503 | W175: 20017.51467 | X175: 259511.4339 | Z175: =SUM(Landuse!C167:Q167) -> 7007.7 | AA175: 56.1 | AB175: 15.7 | AC175: 2.9 | AD175: 7.0 | AE175: 2.9 | AF175: 37.0 | AG175: 852040.6 | AH175: 121.585694
B176: 3038 | C176: 8 | D176: 147962.8819 | E176: 208709.8432 | F176: 45136.48267 | G176: 8459.16 | H176: 191.952 | I176: 34.2342 | J176: 16664.37365 | L176: 186378.0889 | M176: 100024.1305 | N176: 6957.565214 | O176: 62685.03139 | P176: 9213.759258 | Q176: 61900.35234 | S176: 637413.064 | T176: 190918.0583 | U176: 24512.40673 | V176: 163312.0586 | W176: 26493.33551 | X176: 166111.4525 | Z176: =SUM(Landuse!C168:Q168) -> 4422.6 | AA176: 144.1 | AB176: 43.2 | AC176: 5.5 | AD176: 36.9 | AE176: 6.0 | AF176: 37.6 | AG176: 1208760.4 | AH176: 273.3165491
B177: 3039 | C177: 0 | D177: 281411.3762 | E177: 6201116.941 | F177: 866818.2694 | G177: 1045990.313 | H177: 54070.85975 | I177: 5134.677391 | J177: 324980.1541 | L177: 4054547.071 | M177: 2290681.736 | N177: 124845.0124 | O177: 1768426.685 | P177: 196880.4626 | Q177: 344141.6246 | S177: 13866550.98 | T177: 4372270.043 | U177: 439845.2085 | V177: 4607246.673 | W177: 566112.0509 | X177: 923514.3739 | Z177: =SUM(Landuse!C169:Q169) -> 58189.8 | AA177: 238.3 | AB177: 75.1 | AC177: 7.6 | AD177: 79.2 | AE177: 9.7 | AF177: 15.9 | AG177: 24775539.3 | AH177: 425.7711244
B178: 3039 | C178: 1 | D178: 205907.1223 | E178: 3183514.678 | F178: 371549.7175 | G178: 460703.0934 | H178: 416131.1226 | I178: 27048.66249 | J178: 343774.6113 | L178: 2176857.147 | M178: 1194205.627 | N178: 68276.89551 | O178: 968806.2951 | P178: 391203.6182 | Q178: 209279.4255 | S178: 7444851.441 | T178: 2279404.164 | U178: 240548.3789 | V178: 2524011.664 | W178: 1124870.796 | X178: 561607.6168 | Z178: =SUM(Landuse!C170:Q170) -> 41077.7 | AA178: 181.2 | AB178: 55.5 | AC178: 5.9 | AD178: 61.4 | AE178: 27.4 | AF178: 13.7 | AG178: 14175294.1 | AH178: 345.0848516
B179: 3039 | C179: 2 | D179: 4476.857382 | E179: 67574.34566 | F179: 16949.41814 | G179: 3883.85 | H179: 3655.4859 | I179: 266.96 | J179: 13187.45685 | L179: 49780.21222 | M179: 26293.94962 | N179: 1611.260824 | O179: 20171.68509 | P179: 6241.628725 | Q179: 5895.637447 | S179: 170248.3258 | T179: 50187.78753 | U179: 5676.681347 | V179: 52552.88774 | W179: 17947.24165 | X179: 15821.11996 | Z179: =SUM(Landuse!C171:Q171) -> 982.5 | AA179: 173.3 | AB179: 51.1 | AC179: 5.8 | AD179: 53.5 | AE179: 18.3 | AF179: 16.1 | AG179: 312434.0 | AH179: 318.0040102
B180: 3039 | C180: 5 | D180: 113746.7601 | E180: 58966.23228 | F180: 4399.14165 | G180: 754.6747725 | H180: 0 | I180: 0 | J180: 9495.905001 | L180: 77156.713 | M180: 40255.35436 | N180: 3278.379302 | O180: 19844.79521 | P180: 4562.24719 | Q180: 42265.22476 | S180: 263875.9585 | T180: 76836.19998 | U180: 11550.15647 | V180: 51701.24808 | W180: 13118.33119 | X180: 113419.9986 | Z180: =SUM(Landuse!C172:Q172) -> 1560.5 | AA180: 169.1 | AB180: 49.2 | AC180: 7.4 | AD180: 33.1 | AE180: 8.4 | AF180: 72.7 | AG180: 530501.9 | AH180: 339.9462182
B181: 3039 | C181: 7 | D181: 201751.2948 | E181: 53396.57576 | F181: 6420.875565 | G181: 3107.380275 | H181: 0 | I181: 0 | J181: 1780.675641 | L181: 105735.9097 | M181: 55378.36538 | N181: 4867.797319 | O181: 23524.17448 | P181: 4556.640934 | Q181: 72393.91429 | S181: 361616.811 | T181: 105701.7936 | U181: 17149.88277 | V181: 61287.06129 | W181: 13102.21091 | X181: 194271.2408 | Z181: =SUM(Landuse!C173:Q173) -> 5027.0 | AA181: 71.9 | AB181: 21.0 | AC181: 3.4 | AD181: 12.2 | AE181: 2.6 | AF181: 38.6 | AG181: 753129.0 | AH181: 149.8173249
B182: 3039 | C182: 8 | D182: 252708.8484 | E182: 2406673.013 | F182: 292377.5563 | G182: 402858.3932 | H182: 100353.6654 | I182: 7536.151452 | J182: 160500.6914 | L182: 1633450.109 | M182: 914524.4526 | N182: 51519.12638 | O182: 703374.6671 | P182: 137057.861 | Q182: 183082.1032 | S182: 5586399.373 | T182: 1745571.113 | U182: 181508.5797 | V182: 1832487.953 | W182: 394097.5442 | X182: 491306.3164 | Z182: =SUM(Landuse!C174:Q174) -> 28110.7 | AA182: 198.7 | AB182: 62.1 | AC182: 6.5 | AD182: 65.2 | AE182: 14.0 | AF182: 17.5 | AG182: 10231370.9 | AH182: 363.9667298
B183: 3041 | C183: 0 | D183: 178604.4516 | E183: 3184333.888 | F183: 414885.505 | G183: 441289.0681 | H183: 25798.02113 | I183: 57838.30326 | J183: 444897.5742 | L183: 2193052.374 | M183: 1201422.891 | N183: 72984.21458 | O183: 907803.5758 | P183: 156306.0619 | Q183: 216077.6947 | S183: 7500239.118 | T183: 2293179.9 | U183: 257132.8759 | V183: 2365082.5 | W183: 449444.0135 | X183: 579850.9761 | Z183: =SUM(Landuse!C175:Q175) -> 33347.6 | AA183: 224.9 | AB183: 68.8 | AC183: 7.7 | AD183: 70.9 | AE183: 13.5 | AF183: 17.4 | AG183: 13444929.4 | AH183: 403.1751156
B184: 3041 | C184: 1 | D184: 168453.0918 | E184: 1182551.824 | F184: 249222.2905 | G184: 189974.6159 | H184: 201159.9022 | I184: 135185.8479 | J184: 252670.5855 | L184: 1024254.014 | M184: 538857.7699 | N184: 43773.32222 | O184: 420892.626 | P184: 209187.4734 | Q184: 142252.952 | S184: 3502948.729 | T184: 1028528.602 | U184: 154219.1047 | V184: 1096543.141 | W184: 601499.753 | X184: 381740.0643 | Z184: =SUM(Landuse!C176:Q176) -> 22446.8 | AA184: 156.1 | AB184: 45.8 | AC184: 6.9 | AD184: 48.9 | AE184: 26.8 | AF184: 17.0 | AG184: 6765479.4 | AH184: 301.4004481
B185: 3041 | C185: 2 | D185: 5328.166566 | E185: 35962.09203 | F185: 970.3056 | G185: 2076 | H185: 1547.613 | I185: 2483.438664 | J185: 13895.12577 | L185: 28140.70443 | M185: 14290.43781 | N185: 1108.865244 | O185: 10151.12889 | P185: 4368.428428 | Q185: 4203.176828 | S185: 96241.20914 | T185: 27276.44445 | U185: 3906.676408 | V185: 26446.53307 | W185: 12561.02279 | X185: 11279.35111 | Z185: =SUM(Landuse!C177:Q177) -> 649.9 | AA185: 148.1 | AB185: 42.0 | AC185: 6.0 | AD185: 40.7 | AE185: 19.3 | AF185: 17.4 | AG185: 177711.2 | AH185: 273.434029
B186: 3041 | C186: 5 | D186: 63022.29003 | E186: 25083.88041 | F186: 4396.365135 | G186: 1264.769275 | H186: 1079.73 | I186: 384.1952 | J186: 18055.47717 | L186: 46500.79938 | M186: 22832.25038 | N186: 2006.385231 | O186: 11344.20847 | P186: 5819.983936 | Q186: 24783.07982 | S186: 159032.7339 | T186: 43580.37294 | U186: 7068.756 | V186: 29554.83943 | W186: 16734.84001 | X186: 66506.1382 | Z186: =SUM(Landuse!C178:Q178) -> 1133.8 | AA186: 140.3 | AB186: 38.4 | AC186: 6.2 | AD186: 26.1 | AE186: 14.8 | AF186: 58.7 | AG186: 322477.7 | AH186: 284.4297453
B187: 3041 | C187: 7 | D187: 157825.6963 | E187: 18672.45075 | F187: 5024.0744 | G187: 2311.213259 | H187: 166.9331839 | I187: 203.2225456 | J187: 5222.349762 | L187: 73509.19865 | M187: 37536.35193 | N187: 3574.241416 | O187: 13971.44341 | P187: 4236.966385 | Q187: 56597.73844 | S187: 251401.4594 | T187: 71646.38566 | U187: 12592.51716 | V187: 36399.5221 | W187: 12183.01551 | X187: 151881.729 | Z187: =SUM(Landuse!C179:Q179) -> 4008.2 | AA187: 62.7 | AB187: 17.9 | AC187: 3.1 | AD187: 9.1 | AE187: 3.0 | AF187: 37.9 | AG187: 536104.6 | AH187: 133.7532462
B188: 3041 | C188: 8 | D188: 142750.733 | E188: 380440.2834 | F188: 52311.27699 | G188: 37733.21983 | H188: 8587.950366 | I188: 6635.852586 | J188: 37860.57609 | L188: 295768.0053 | M188: 160852.064 | N188: 10686.40607 | O188: 110955.5515 | P188: 21208.1117 | Q188: 66849.75382 | S188: 1011526.578 | T188: 307021.5516 | U188: 37649.59782 | V188: 289070.2791 | W188: 60982.01647 | X188: 179393.3199 | Z188: =SUM(Landuse!C180:Q180) -> 6063.9 | AA188: 166.8 | AB188: 50.6 | AC188: 6.2 | AD188: 47.7 | AE188: 10.1 | AF188: 29.6 | AG188: 1885643.3 | AH188: 310.9617571
B189: 3042 | C189: 0 | D189: 1557.247112 | E189: 7861.306247 | F189: 5351.83046 | G189: 4078.719598 | H189: 0 | I189: 0 | J189: 0 | L189: 8489.205371 | M189: 4773.984826 | N189: 287.1872104 | O189: 3751.562634 | P189: 276.6803369 | Q189: 1270.483038 | S189: 29033.08237 | T189: 9112.200318 | U189: 1011.797877 | V189: 9773.8711 | W189: 795.5694075 | X189: 3409.379347 | Z189: =SUM(Landuse!C181:Q181) -> 130.7 | AA189: 222.2 | AB189: 69.7 | AC189: 7.7 | AD189: 74.8 | AE189: 6.1 | AF189: 26.1 | AG189: 53135.9 | AH189: 406.6045102
B190: 3042 | C190: 1 | D190: 64825.21803 | E190: 0 | F190: 0 | G190: 0 | H190: 0 | I190: 0 | J190: 223.5599976 | L190: 24276.33479 | M190: 12295.33838 | N190: 1274.098584 | O190: 3340.775398 | P190: 1172.017357 | Q190: 22690.21351 | S190: 83025.06499 | T190: 23468.35828 | U190: 4488.814946 | V190: 8703.655328 | W190: 3370.030429 | X190: 60889.86866 | Z190: =SUM(Landuse!C182:Q182) -> 1880.1 | AA190: 44.2 | AB190: 12.5 | AC190: 2.4 | AD190: 4.6 | AE190: 1.8 | AF190: 32.4 | AG190: 183945.8 | AH190: 97.83636049
B191: 3042 | C191: 2 | D191: 74.14253915 | E191: 0 | F191: 0 | G191: 0 | H191: 0 | I191: 0 | J191: 34.29018498 | L191: 43.2074457 | M191: 18.90699385 | N191: 2.013081353 | O191: 6.745304562 | P191: 8.217633556 | Q191: 29.34226511 | S191: 147.7694643 | T191: 36.0881573 | U191: 7.092347308 | V191: 17.57340707 | W191: 23.6290657 | X191: 78.74084868 | Z191: =SUM(Landuse!C183:Q183) -> 2.8 | AA191: 52.4 | AB191: 12.8 | AC191: 2.5 | AD191: 6.2 | AE191: 8.4 | AF191: 27.9 | AG191: 310.9 | AH191: 110.1871327
B192: 3042 | C192: 5 | D192: 175809.7463 | E192: 0 | F192: 0 | G192: 0 | H192: 0 | I192: 0 | J192: 0 | L192: 65563.73678 | M192: 33259.36846 | N192: 3445.526851 | O192: 9008.280368 | P192: 3056.065716 | Q192: 61476.76813 | S192: 224227.9798 | T192: 63482.82176 | U192: 12139.03901 | V192: 23469.09268 | W192: 8787.44192 | X192: 164974.7516 | Z192: =SUM(Landuse!C184:Q184) -> 1780.0 | AA192: 126.0 | AB192: 35.7 | AC192: 6.8 | AD192: 13.2 | AE192: 4.9 | AF192: 92.7 | AG192: 497081.1 | AH192: 279.2583854
B193: 3042 | C193: 7 | D193: 56270.33451 | E193: 1343.16 | F193: 0 | G193: 0 | H193: 0 | I193: 0 | J193: 6067.844238 | L193: 24377.92587 | M193: 11878.0126 | N193: 1220.191797 | O193: 3682.504927 | P193: 2216.759141 | Q193: 20305.94441 | S193: 83372.50647 | T193: 22671.80021 | U193: 4298.894326 | V193: 9593.956437 | W193: 6374.091401 | X193: 54491.611 | Z193: =SUM(Landuse!C185:Q185) -> 1737.8 | AA193: 48.0 | AB193: 13.0 | AC193: 2.5 | AD193: 5.5 | AE193: 3.7 | AF193: 31.4 | AG193: 180802.9 | AH193: 104.043274
B194: 3042 | C194: 8 | D194: 17071.92556 | E194: 6768.272 | F194: 1561.434 | G194: 0 | H194: 0 | I194: 0 | J194: 81.534 | L194: 10339.96798 | M194: 5444.295477 | N194: 456.9507868 | O194: 2566.890892 | P194: 414.6711311 | Q194: 6260.389299 | S194: 35362.69047 | T194: 10391.63566 | U194: 1609.897026 | V194: 6687.469504 | W194: 1192.349517 | X194: 16799.9425 | Z194: =SUM(Landuse!C186:Q186) -> 427.2 | AA194: 82.8 | AB194: 24.3 | AC194: 3.8 | AD194: 15.7 | AE194: 2.8 | AF194: 39.3 | AG194: 72044.0 | AH194: 168.634668
B195: 3043 | C195: 0 | D195: 32922.35519 | E195: 158397.644 | F195: 20898.16336 | G195: 16242.91421 | H195: 0 | I195: 0 | J195: 74696.97451 | L195: 138059.1874 | M195: 69542.07699 | N195: 4611.458735 | O195: 48947.97161 | P195: 17835.10022 | Q195: 24162.25638 | S195: 472162.4208 | T195: 132736.3532 | U195: 16246.76861 | V195: 127523.1715 | W195: 51283.22551 | X195: 64840.13986 | Z195: =SUM(Landuse!C187:Q187) -> 2710.8 | AA195: 174.2 | AB195: 49.0 | AC195: 6.0 | AD195: 47.0 | AE195: 18.9 | AF195: 23.9 | AG195: 864792.1 | AH195: 319.0164763
B196: 3043 | C196: 1 | D196: 40100.26322 | E196: 111504.9418 | F196: 5608.872116 | G196: 10136.70975 | H196: 31591.66947 | I196: 81.4228 | J196: 71381.19957 | L196: 111124.4858 | M196: 53572.40159 | N196: 3708.808427 | O196: 40944.7912 | P196: 37177.45893 | Q196: 23877.13273 | S196: 380045.7414 | T196: 102254.7144 | U196: 13066.61423 | V196: 106672.6456 | W196: 106900.4372 | X196: 64075.00201 | Z196: =SUM(Landuse!C188:Q188) -> 3135.5 | AA196: 121.2 | AB196: 32.6 | AC196: 4.2 | AD196: 34.0 | AE196: 34.1 | AF196: 20.4 | AG196: 773015.2 | AH196: 246.5399414
B197: 3043 | C197: 2 | D197: 516.779557 | E197: 0 | F197: 0 | G197: 0 | H197: 0 | I197: 0 | J197: 1411.618448 | L197: 833.1886744 | M197: 298.6922839 | N197: 33.18264372 | O197: 147.7702444 | P197: 294.221032 | Q197: 321.3431269 | S197: 2849.505267 | T197: 570.119936 | U197: 116.9067676 | V197: 384.9828622 | W197: 846.0060977 | X197: 862.3339212 | Z197: =SUM(Landuse!C189:Q189) -> 40.5 | AA197: 70.4 | AB197: 14.1 | AC197: 2.9 | AD197: 9.5 | AE197: 20.9 | AF197: 21.3 | AG197: 5629.9 | AH197: 139.1104205
B198: 3043 | C198: 5 | D198: 41610.0354 | E198: 15305.4557 | F198: 1052.0224 | G198: 0 | H198: 0 | I198: 0 | J198: 1935.416054 | L198: 24170.04513 | M198: 12585.11923 | N198: 1075.05745 | O198: 5657.006029 | P198: 1282.940968 | Q198: 15132.76074 | S198: 82661.55435 | T198: 24021.46878 | U198: 3787.567153 | V198: 14738.08467 | W198: 3688.981289 | X198: 40609.21744 | Z198: =SUM(Landuse!C190:Q190) -> 496.2 | AA198: 166.6 | AB198: 48.4 | AC198: 7.6 | AD198: 29.7 | AE198: 7.4 | AF198: 81.8 | AG198: 169506.9 | AH198: 341.6099832
B199: 3043 | C199: 7 | D199: 189247.5061 | E199: 13717.7546 | F199: 5541.2812 | G199: 0 | H199: 0 | I199: 0 | J199: 7455.558409 | L199: 83016.57909 | M199: 41849.31907 | N199: 4119.83203 | O199: 14186.19844 | P199: 5060.06094 | Q199: 67730.11079 | S199: 283916.7005 | T199: 79878.63229 | U199: 14514.70382 | V199: 36959.01906 | W199: 14549.74983 | X199: 181755.7842 | Z199: =SUM(Landuse!C191:Q191) -> 5213.0 | AA199: 54.5 | AB199: 15.3 | AC199: 2.8 | AD199: 7.1 | AE199: 2.8 | AF199: 34.9 | AG199: 611574.6 | AH199: 117.316463
B200: 3043 | C200: 8 | D200: 28526.0243 | E200: 33928.59911 | F200: 4505.816092 | G200: 0 | H200: 0 | I200: 0 | J200: 7405.697837 | L200: 32220.78477 | M200: 16765.44506 | N200: 1225.482701 | O200: 9939.706056 | P200: 2419.29138 | Q200: 11795.42738 | S200: 110195.0839 | T200: 32000.54029 | U200: 4317.534867 | V200: 25895.71739 | W200: 6956.454628 | X200: 31653.38323 | Z200: =SUM(Landuse!C192:Q192) -> 823.9 | AA200: 133.8 | AB200: 38.8 | AC200: 5.2 | AD200: 31.4 | AE200: 8.4 | AF200: 38.4 | AG200: 211018.7 | AH200: 256.1322186
B201: 3044 | C201: 0 | D201: 478519.6097 | E201: 4457678.819 | F201: 873507.9909 | G201: 648248.1371 | H201: 0 | I201: 3573.587956 | J201: 594500.3129 | L201: 3246647.729 | M201: 1774789.77 | N201: 104371.3561 | O201: 1327490.669 | P201: 198700.964 | Q201: 404027.9702 | S201: 11103535.23 | T201: 3387576.729 | U201: 367713.8558 | V201: 3458484.89 | W201: 571346.739 | X201: 1084221.179 | Z201: =SUM(Landuse!C193:Q193) -> 52466.9 | AA201: 211.6 | AB201: 64.6 | AC201: 7.0 | AD201: 65.9 | AE201: 10.9 | AF201: 20.7 | AG201: 19972878.6 | AH201: 380.6760298
... 335 more rows

Sheet Infield emissions outputs (hidden)
B1: This sheet tabulates the estimated fertilier use by land uses, products and in field emissions
B2: National | D2: Fertiliser use by land use | G2: Fertiliser use by product on grassland | N2: Fertiliser use by product on arable land | U2: Grassland | Y2: Arable land | AC2: Co2 emission | AE2: N2O emission | AH2: NH3 emission | AI2: CO2 emission | AK2: N2O | AL2: NH3 | AM2: CO2 | AO2: NO3 loss
D3: Total | E3: Total | F3: Total | G3: Total | H3: Total | I3: Total | J3: Total | K3: Total | L3: Total | M3: Total | N3: Total | O3: Total | P3: Total | Q3: Total | R3: Total | S3: Total | T3: Total | U3: Total | V3: Total | W3: Total | X3: Total | Y3: Total | Z3: Total | AA3: Total | AB3: Total | AC3: Total | AD3: Total | AE3: Total | AF3: Total | AG3: Total | AH3: Total | AI3: Total | AK3: Average | AL3: Average | AM3: Average | AO3: Total | AP3: Total | AQ3: Total | AR3: Average
C4: t | D4: =SUM(D10:D5000)/1000 -> 162024 | E4: =SUM(E10:E5000)/1000 -> 470962 | F4: =SUM(D4:E4) -> 632986 | G4: =SUM(G10:G5000)/1000 -> 60423 | H4: 30651 | I4: 3175 | J4: 8302 | K4: 2816 | L4: 56656 | M4: =SUM(G4:L4) -> 162024 | N4: =SUM(N10:N5000)/1000 -> 216577 | O4: 118989 | P4: 7020 | Q4: 92857 | R4: 20183 | S4: 15335 | T4: =SUM(N4:S4) -> 470962 | U4: =SUM(U10:U5000)/1000 -> 1732.68 | V4: 176.20 | W4: 105.33 | X4: 8921.88 | Y4: 3750.76 | Z4: 566.53 | AA4: 1665.19 | AB4: 30109.99 | AC4: 55320 | AD4: 265075 | AE4: 2014.21 | AF4: 5982.48 | AG4: 7996.68 | AH4: 39031.87 | AK4: =AVERAGE(AK10:AK5000) -> 1.13 | AL4: =AVERAGE(AL10:AL5000) -> 5.25 | AM4: =AVERAGE(AM10:AM5000) -> 41.02 | AO4: =SUM(AO10:AO536) / 1000 -> 37607 | AP4: =SUM(AP10:AP536) / 1000 -> 8099 | AQ4: =SUM(AQ10:AQ536) / 1000 -> 45706 | AR4: =AVERAGE(AR10:AR536) -> 6.4
C5: % | D5: =D4/$F$4*100 -> 25.6 | E5: =E4/$F$4*100 -> 74.4 | G5: =G4/$M$4*100 -> 37.3 | H5: 18.9 | I5: 2.0 | J5: 5.1 | K5: 1.7 | L5: 35.0 | M5: =SUM(G5:L5) -> 100 | N5: =N4/$T$4*100 -> 46.0 | O5: 25.3 | P5: 1.5 | Q5: 19.7 | R5: 4.3 | S5: 3.3 | T5: =SUM(N5:S5) -> 100 | AO5: =AO4/AQ4*100 -> 82.3 | AP5: =AP4/AQ4*100 -> 17.7 | AQ5: =AO5+AP5 -> 100
B6: Catchment | C6: RFTnum | D6: Fertiliser use (kg) | G6: Fertiliser use by product | N6: Fertiliser use by product | U6: Grassland | Y6: Arable land
D7: grass | E7: arable | G7: Grass | H7: Grass | I7: Grass | J7: Grass | K7: Grass | L7: Grass | N7: Arable | O7: Arable | P7: Arable | Q7: Arable | R7: Arable | S7: Arable | U7: N2O | X7: NH3 | Y7: N2O | AB7: NH3 | AC7: CO2 | AD7: CO2 | AE7: N2O | AF7: N2O | AG7: N2O | AH7: NH3 | AI7: CO2 | AK7: N2O | AL7: NH3 | AM7: CO2 | AO7: NO3 loss | AR7: NO3 loss
G8: AN | H8: Urea | I8: CAN | J8: UAN | K8: Low N | L8: High N | N8: AN | O8: Urea | P8: CAN | Q8: UAN | R8: Low N | S8: High N | U8: Direct | V8: IndirectByVolatilisation | W8: IndirectByLeaching | Y8: Direct | Z8: IndirectByVolatilisation | AA8: IndirectByLeaching | AC8: Grass | AD8: Arable | AE8: Grass | AF8: Arable | AG8: Both | AH8: Both | AI8: Both | AK8: Both | AL8: Both | AM8: Both | AO8: arable | AP8: grass | AQ8: both
D9: kg | E9: kg | G9: kg | H9: kg | I9: kg | J9: kg | K9: kg | L9: kg | N9: kg | O9: kg | P9: kg | Q9: kg | R9: kg | S9: kg | U9: kg N2O | V9: kg N2O | W9: kg N2O | X9: kg NH3 | Y9: kg N2O | Z9: kg N2O | AA9: kg N2O | AB9: kg NH3 | AC9: kg CO2 | AD9: kg CO2 | AE9: kg N2O | AF9: kg N2O | AG9: kg N2O | AH9: kg NH3 | AI9: kg CO2 | AK9: kg N2O /ha | AL9: kg NH3 /ha | AM9: kg CO2 / ha | AO9: kg N | AP9: kg N | AQ9: kg N | AR9: Kg N / ha
B10: 3000 | C10: 0 | D10: 158135 | E10: 682508 | G10: 58972 | H10: 29916 | I10: 3099 | J10: 8103 | K10: 2749 | L10: 55296 | N10: ='Embedded emissions outputs'!L10-'Infield emissions outputs'!G10 -> 320251 | O10: ='Embedded emissions outputs'!M10-'Infield emissions outputs'!H10 -> 175593 | P10: ='Embedded emissions outputs'!N10-'Infield emissions outputs'!I10 -> 9874 | Q10: ='Embedded emissions outputs'!O10-'Infield emissions outputs'!J10 -> 134483 | R10: ='Embedded emissions outputs'!P10-'Infield emissions outputs'!K10 -> 17721 | S10: ='Embedded emissions outputs'!Q10-'Infield emissions outputs'!L10 -> 24586 | U10: 1334 | V10: 189 | W10: 75 | X10: 9832 | Y10: 5336 | Z10: 829 | AA10: 2413 | AB10: 44124 | AC10: =H10*Parameters!$B$17+J10*Parameters!$B$18 -> 53992 | AD10: =O10*Parameters!$B$17+Q10*Parameters!$B$18 -> 389059 | AE10: =SUM(U10:W10) -> 1598 | AF10: =SUM(Y10:AA10) -> 8578 | AG10: =AE10+AF10 -> 10176 | AH10: =X10+AB10 -> 53956 | AI10: =AC10+AD10 -> 443051 | AK10: =IF('Embedded emissions outputs'!Z10 <>0,'Infield emissions outputs'!AG10/'Embedded emissions outputs'!Z10,"") -> 1.42 | AL10: =IF('Embedded emissions outputs'!Z10 <>0,'Infield emissions outputs'!AH10/'Embedded emissions outputs'!Z10,"") -> 7.52 | AM10: =IF('Embedded emissions outputs'!Z10 <>0,'Infield emissions outputs'!AI10/'Embedded emissions outputs'!Z10,"") -> 61.72 | AO10: =E10*'Field emission CFs'!P8 -> 60571.70 | AP10: =D10*'Field emission CFs'!Q8 -> 8374.96 | AQ10: =AO10+AP10 -> 68946.66 | AR10: =IF('Embedded emissions outputs'!Z10 <> 0,'Infield emissions outputs'!AQ10/'Embedded emissions outputs'!Z10,"") -> 9.61
B11: 3000 | C11: 1 | D11: 246680 | E11: 65208 | G11: 91993 | H11: 46667 | I11: 4834 | J11: 12640 | K11: 4288 | L11: 86259 | N11: ='Embedded emissions outputs'!L11-'Infield emissions outputs'!G11 -> 30176 | O11: ='Embedded emissions outputs'!M11-'Infield emissions outputs'!H11 -> 15455 | P11: ='Embedded emissions outputs'!N11-'Infield emissions outputs'!I11 -> 997 | Q11: ='Embedded emissions outputs'!O11-'Infield emissions outputs'!J11 -> 11624 | R11: ='Embedded emissions outputs'!P11-'Infield emissions outputs'!K11 -> 4111 | S11: ='Embedded emissions outputs'!Q11-'Infield emissions outputs'!L11 -> 2844 | U11: 2534 | V11: 269 | W11: 145 | X11: 13646 | Y11: 512 | Z11: 77 | AA11: 231 | AB11: 4081 | AC11: =H11*Parameters!$B$17+J11*Parameters!$B$18 -> 84224 | AD11: =O11*Parameters!$B$17+Q11*Parameters!$B$18 -> 34067 | AE11: =SUM(U11:W11) -> 2948 | AF11: =SUM(Y11:AA11) -> 819 | AG11: =AE11+AF11 -> 3767 | AH11: =X11+AB11 -> 17728 | AI11: =AC11+AD11 -> 118291 | AK11: =IF('Embedded emissions outputs'!Z11 <>0,'Infield emissions outputs'!AG11/'Embedded emissions outputs'!Z11,"") -> 0.60 | AL11: =IF('Embedded emissions outputs'!Z11 <>0,'Infield emissions outputs'!AH11/'Embedded emissions outputs'!Z11,"") -> 2.80 | AM11: =IF('Embedded emissions outputs'!Z11 <>0,'Infield emissions outputs'!AI11/'Embedded emissions outputs'!Z11,"") -> 18.71 | AO11: =E11*'Field emission CFs'!P9 -> 7494.44 | AP11: =D11*'Field emission CFs'!Q9 -> 13003.09 | AQ11: =AO11+AP11 -> 20497.53 | AR11: =IF('Embedded emissions outputs'!Z11 <> 0,'Infield emissions outputs'!AQ11/'Embedded emissions outputs'!Z11,"") -> 3.24
B12: 3000 | C12: 2 | D12: 12684 | E12: 24764 | G12: 4730 | H12: 2399 | I12: 249 | J12: 650 | K12: 220 | L12: 4435 | N12: ='Embedded emissions outputs'!L12-'Infield emissions outputs'!G12 -> 11237 | O12: ='Embedded emissions outputs'!M12-'Infield emissions outputs'!H12 -> 4277 | P12: ='Embedded emissions outputs'!N12-'Infield emissions outputs'!I12 -> 391 | Q12: ='Embedded emissions outputs'!O12-'Infield emissions outputs'!J12 -> 2937 | R12: ='Embedded emissions outputs'!P12-'Infield emissions outputs'!K12 -> 3872 | S12: ='Embedded emissions outputs'!Q12-'Infield emissions outputs'!L12 -> 2050 | U12: 127 | V12: 14 | W12: 7 | X12: 735 | Y12: 208 | Z12: 25 | AA12: 88 | AB12: 1313 | AC12: =H12*Parameters!$B$17+J12*Parameters!$B$18 -> 4331 | AD12: =O12*Parameters!$B$17+Q12*Parameters!$B$18 -> 9196 | AE12: 149 | AF12: 321 | AG12: 470 | AH12: 2048 | AI12: 13527 | AK12: =IF('Embedded emissions outputs'!Z12 <>0,'Infield emissions outputs'!AG12/'Embedded emissions outputs'!Z12,"") -> 0.74 | AL12: =IF('Embedded emissions outputs'!Z12 <>0,'Infield emissions outputs'!AH12/'Embedded emissions outputs'!Z12,"") -> 3.23 | AM12: =IF('Embedded emissions outputs'!Z12 <>0,'Infield emissions outputs'!AI12/'Embedded emissions outputs'!Z12,"") -> 21.30 | AO12: =E12*'Field emission CFs'!P10 -> 2563.06 | AP12: =D12*'Field emission CFs'!Q10 -> 715.02 | AQ12: 3278.07 | AR12: =IF('Embedded emissions outputs'!Z12 <> 0,'Infield emissions outputs'!AQ12/'Embedded emissions outputs'!Z12,"") -> 5.16
B13: 3000 | C13: 5 | D13: 367991 | E13: 168335 | G13: 137233 | H13: 69616 | I13: 7212 | J13: 18855 | K13: 6397 | L13: 128678 | N13: ='Embedded emissions outputs'!L13-'Infield emissions outputs'!G13 -> 78953 | O13: ='Embedded emissions outputs'!M13-'Infield emissions outputs'!H13 -> 41018 | P13: ='Embedded emissions outputs'!N13-'Infield emissions outputs'!I13 -> 2442 | Q13: ='Embedded emissions outputs'!O13-'Infield emissions outputs'!J13 -> 30566 | R13: ='Embedded emissions outputs'!P13-'Infield emissions outputs'!K13 -> 8452 | S13: ='Embedded emissions outputs'!Q13-'Infield emissions outputs'!L13 -> 6905 | U13: 4576 | V13: 385 | W13: 297 | X13: 19137 | Y13: 1628 | Z13: 193 | AA13: 595 | AB13: 10141 | AC13: =H13*Parameters!$B$17+J13*Parameters!$B$18 -> 125643 | AD13: =O13*Parameters!$B$17+Q13*Parameters!$B$18 -> 90178 | AE13: 5257 | AF13: 2416 | AG13: 7674 | AH13: 29278 | AI13: 215821 | AK13: =IF('Embedded emissions outputs'!Z13 <>0,'Infield emissions outputs'!AG13/'Embedded emissions outputs'!Z13,"") -> 1.53 | AL13: =IF('Embedded emissions outputs'!Z13 <>0,'Infield emissions outputs'!AH13/'Embedded emissions outputs'!Z13,"") -> 5.84 | AM13: =IF('Embedded emissions outputs'!Z13 <>0,'Infield emissions outputs'!AI13/'Embedded emissions outputs'!Z13,"") -> 43.08 | AO13: =E13*'Field emission CFs'!P11 -> 15745.66 | AP13: =D13*'Field emission CFs'!Q11 -> 18306.97 | AQ13: 34052.63 | AR13: =IF('Embedded emissions outputs'!Z13 <> 0,'Infield emissions outputs'!AQ13/'Embedded emissions outputs'!Z13,"") -> 6.80
B14: 3000 | C14: 7 | D14: 631971 | E14: 77793 | G14: 235677 | H14: 119555 | I14: 12385 | J14: 32381 | K14: 10985 | L14: 220986 | N14: ='Embedded emissions outputs'!L14-'Infield emissions outputs'!G14 -> 35827 | O14: ='Embedded emissions outputs'!M14-'Infield emissions outputs'!H14 -> 18616 | P14: ='Embedded emissions outputs'!N14-'Infield emissions outputs'!I14 -> 1164 | Q14: ='Embedded emissions outputs'!O14-'Infield emissions outputs'!J14 -> 14511 | R14: ='Embedded emissions outputs'!P14-'Infield emissions outputs'!K14 -> 3833 | S14: ='Embedded emissions outputs'!Q14-'Infield emissions outputs'!L14 -> 3840 | U14: 6290 | V14: 688 | W14: 369 | X14: 35061 | Y14: 742 | Z14: 89 | AA14: 275 | AB14: 4699 | AC14: =H14*Parameters!$B$17+J14*Parameters!$B$18 -> 215774 | AD14: =O14*Parameters!$B$17+Q14*Parameters!$B$18 -> 41458 | AE14: 7347 | AF14: 1107 | AG14: 8454 | AH14: 39760 | AI14: 257231 | AK14: =IF('Embedded emissions outputs'!Z14 <>0,'Infield emissions outputs'!AG14/'Embedded emissions outputs'!Z14,"") -> 0.51 | AL14: =IF('Embedded emissions outputs'!Z14 <>0,'Infield emissions outputs'!AH14/'Embedded emissions outputs'!Z14,"") -> 2.42 | AM14: =IF('Embedded emissions outputs'!Z14 <>0,'Infield emissions outputs'!AI14/'Embedded emissions outputs'!Z14,"") -> 15.64 | AO14: =E14*'Field emission CFs'!P12 -> 9054.94 | AP14: =D14*'Field emission CFs'!Q12 -> 32646.33 | AQ14: 41701.27 | AR14: =IF('Embedded emissions outputs'!Z14 <> 0,'Infield emissions outputs'!AQ14/'Embedded emissions outputs'!Z14,"") -> 2.53
B15: 3000 | C15: 8 | D15: 273383 | E15: 322966 | G15: 101951 | H15: 51718 | I15: 5358 | J15: 14008 | K15: 4752 | L15: 95596 | N15: ='Embedded emissions outputs'!L15-'Infield emissions outputs'!G15 -> 151456 | O15: ='Embedded emissions outputs'!M15-'Infield emissions outputs'!H15 -> 79850 | P15: ='Embedded emissions outputs'!N15-'Infield emissions outputs'!I15 -> 4739 | Q15: ='Embedded emissions outputs'!O15-'Infield emissions outputs'!J15 -> 60195 | R15: ='Embedded emissions outputs'!P15-'Infield emissions outputs'!K15 -> 13169 | S15: ='Embedded emissions outputs'!Q15-'Infield emissions outputs'!L15 -> 13556 | U15: 2619 | V15: 301 | W15: 150 | X15: 15397 | Y15: 2756 | Z15: 373 | AA15: 1142 | AB15: 19723 | AC15: =H15*Parameters!$B$17+J15*Parameters!$B$18 -> 93341 | AD15: =O15*Parameters!$B$17+Q15*Parameters!$B$18 -> 176125 | AE15: 3070 | AF15: 4270 | AG15: 7341 | AH15: 35120 | AI15: 269466 | AK15: =IF('Embedded emissions outputs'!Z15 <>0,'Infield emissions outputs'!AG15/'Embedded emissions outputs'!Z15,"") -> 1.02 | AL15: =IF('Embedded emissions outputs'!Z15 <>0,'Infield emissions outputs'!AH15/'Embedded emissions outputs'!Z15,"") -> 4.89 | AM15: =IF('Embedded emissions outputs'!Z15 <>0,'Infield emissions outputs'!AI15/'Embedded emissions outputs'!Z15,"") -> 37.53 | AO15: =E15*'Field emission CFs'!P13 -> 32624.94 | AP15: =D15*'Field emission CFs'!Q13 -> 15182.67 | AQ15: 47807.60 | AR15: =IF('Embedded emissions outputs'!Z15 <> 0,'Infield emissions outputs'!AQ15/'Embedded emissions outputs'!Z15,"") -> 6.66
B16: 3001 | C16: 0 | D16: 85782 | E16: 1376725 | G16: 31990 | H16: 16228 | I16: 1681 | J16: 4395 | K16: 1491 | L16: 29996 | N16: ='Embedded emissions outputs'!L16-'Infield emissions outputs'!G16 -> 642535 | O16: ='Embedded emissions outputs'!M16-'Infield emissions outputs'!H16 -> 359579 | P16: ='Embedded emissions outputs'!N16-'Infield emissions outputs'!I16 -> 19510 | Q16: ='Embedded emissions outputs'!O16-'Infield emissions outputs'!J16 -> 278715 | R16: ='Embedded emissions outputs'!P16-'Infield emissions outputs'!K16 -> 34442 | S16: ='Embedded emissions outputs'!Q16-'Infield emissions outputs'!L16 -> 41944 | U16: 723 | V16: 103 | W16: 41 | X16: 5334 | Y16: 10728 | Z16: 1688 | AA16: 4868 | AB16: 89841 | AC16: =H16*Parameters!$B$17+J16*Parameters!$B$18 -> 29289 | AD16: =O16*Parameters!$B$17+Q16*Parameters!$B$18 -> 799468 | AE16: 867 | AF16: 17283 | AG16: 18150 | AH16: 95175 | AI16: 828756 | AK16: =IF('Embedded emissions outputs'!Z16 <>0,'Infield emissions outputs'!AG16/'Embedded emissions outputs'!Z16,"") -> 1.80 | AL16: =IF('Embedded emissions outputs'!Z16 <>0,'Infield emissions outputs'!AH16/'Embedded emissions outputs'!Z16,"") -> 9.43 | AM16: =IF('Embedded emissions outputs'!Z16 <>0,'Infield emissions outputs'!AI16/'Embedded emissions outputs'!Z16,"") -> 82.12 | AO16: =E16*'Field emission CFs'!P14 -> 107220.62 | AP16: =D16*'Field emission CFs'!Q14 -> 3250.35 | AQ16: 110470.97 | AR16: =IF('Embedded emissions outputs'!Z16 <> 0,'Infield emissions outputs'!AQ16/'Embedded emissions outputs'!Z16,"") -> 10.95
